Workbook

Sheet Forma Nr.2 VISO
J1: Biudžeto vykdymo ataskaitų rinkinių rengimo taisyklių
J2: 1 priedas
A7: (Biudžeto išlaidų sąmatos vykdymo 2025 m. gruodžio mėn. 31 d. I ketvirčio, pusmečio, 9 mėnesių, metų ataskaitos forma, Nr.2)
A9: Vaikų ir jaunimo laisvalaikio centras, 195174984
A10: (įstaigos pavadinimas, kodas Juridinių asmenų registre, adresas)
G12: BIUDŽETO IŠLAIDŲ SĄMATOS VYKDYMO PAGAL
A13: 2025 M. GRUODŽIO MĖN. 31 D.
G14: 4 ketvirtis
G15: (I ketvirčio, pusmečio, 9 mėnesių, metinė)
B16: ATASKAITA
G18: 2026.01.14 Nr.________________
G19: (data)
A22: (programos pavadinimas)
L23: Kodas
J24: Ministerijos / Savivaldybės
K25: Departamento
K26: Įstaigos | L26: 195174984
J27: Programos
G28: Finansavimo šaltinio
G29: Valstybės funkcijos
L30: (eurais, ct)
A31: Išlaidų ekonominės klasifikacijos kodas | G31: Išlaidų pavadinimas | H31: Eil. Nr. | I31: Asignavimų planas, įskaitant patikslinimus | K31: Gauti asignavimai kartu su įskaitytu praėjusių metų lėšų likučiu | L31: Panaudoti asignavimai
I32: metams | J32: ataskaitiniam laikotarpiui
A33: 1 | G33: 2 | H33: 3 | I33: 4 | J33: 5 | K33: 6 | L33: 7
A34: 2 | G34: IŠLAIDOS | H34: 1 | I34: =SUM(I35+I46+I66+I87+I94+I114+I140+I159+I169) -> 460400.00 | J34: =SUM(J35+J46+J66+J87+J94+J114+J140+J159+J169) -> 460400.00 | K34: =SUM(K35+K46+K66+K87+K94+K114+K140+K159+K169) -> 456147.39 | L34: =SUM(L35+L46+L66+L87+L94+L114+L140+L159+L169) -> 456147.39
A35: 2 | B35: 1 | G35: Darbo užmokestis ir socialinis draudimas | H35: 2 | I35: =SUM(I36+I42) -> 404770.00 | J35: =SUM(J36+J42) -> 404770.00 | K35: =SUM(K36+K42) -> 404770.00 | L35: =SUM(L36+L42) -> 404770.00
A36: 2 | B36: 1 | C36: 1 | G36: Darbo užmokestis | H36: 3 | I36: =SUM(I37) -> 398390.00 | J36: =SUM(J37) -> 398390.00 | K36: =SUM(K37) -> 398390.00 | L36: =SUM(L37) -> 398390.00
A37: 2 | B37: 1 | C37: 1 | D37: 1 | G37: Darbo užmokestis | H37: 4 | I37: =SUM(I38+I40) -> 398390.00 | J37: =SUM(J38+J40) -> 398390.00 | K37: =SUM(K38+K40) -> 398390.00 | L37: =SUM(L38+L40) -> 398390.00
A38: 2 | B38: 1 | C38: 1 | D38: 1 | E38: 1 | G38: Darbo užmokestis pinigais | H38: 5 | I38: =SUM(I39) -> 398390.00 | J38: =SUM(J39) -> 398390.00 | K38: =SUM(K39) -> 398390.00 | L38: =SUM(L39) -> 398390.00
A39: 2 | B39: 1 | C39: 1 | D39: 1 | E39: 1 | F39: 1 | G39: Darbo užmokestis pinigais | H39: 6 | I39: 398390.00 | J39: 398390.00 | K39: 398390.00 | L39: 398390.00
A40: 2 | B40: 1 | C40: 1 | D40: 1 | E40: 2 | G40: Pajamos natūra | H40: 7 | I40: =I41 -> 0.00 | J40: =J41 -> 0.00 | K40: =K41 -> 0.00 | L40: =L41 -> 0.00
A41: 2 | B41: 1 | C41: 1 | D41: 1 | E41: 2 | F41: 1 | G41: Pajamos natūra | H41: 8 | I41: 0.00 | J41: 0.00 | K41: 0.00 | L41: 0.00
A42: 2 | B42: 1 | C42: 2 | G42: Socialinio draudimo įmokos | H42: 9 | I42: =I43 -> 6380.00 | J42: 6380.00 | K42: 6380.00 | L42: 6380.00
A43: 2 | B43: 1 | C43: 2 | D43: 1 | G43: Socialinio draudimo įmokos | H43: 10 | I43: 6380.00 | J43: 6380.00 | K43: 6380.00 | L43: 6380.00
A44: 2 | B44: 1 | C44: 2 | D44: 1 | E44: 1 | G44: Socialinio draudimo įmokos | H44: 11 | I44: 6380.00 | J44: 6380.00 | K44: 6380.00 | L44: 6380.00
A45: 2 | B45: 1 | C45: 2 | D45: 1 | E45: 1 | F45: 1 | G45: Socialinio draudimo įmokos | H45: 12 | I45: 6380.00 | J45: 6380.00 | K45: 6380.00 | L45: 6380.00
A46: 2 | B46: 2 | G46: Prekių ir paslaugų įsigijimo išlaidos | H46: 13 | I46: =I47 -> 49790.00 | J46: 49790.00 | K46: 45537.39 | L46: 45537.39
A47: 2 | B47: 2 | C47: 1 | G47: Prekių ir paslaugų įsigijimo išlaidos | H47: 14 | I47: 49790.00 | J47: 49790.00 | K47: 45537.39 | L47: 45537.39
A48: 2 | B48: 2 | C48: 1 | D48: 1 | G48: Prekių ir paslaugų įsigijimo išlaidos | H48: 15 | I48: 49790.00 | J48: 49790.00 | K48: 45537.39 | L48: 45537.39
A49: 2 | B49: 2 | C49: 1 | D49: 1 | E49: 1 | G49: Prekių ir paslaugų įsigijimo išlaidos | H49: 16 | I49: =SUM(I50:I65) -> 49790.00 | J49: =SUM(J50:J65) -> 49790.00 | K49: =SUM(K50:K65) -> 45537.39 | L49: =SUM(L50:L65) -> 45537.39
A50: 2 | B50: 2 | C50: 1 | D50: 1 | E50: 1 | F50: 1 | G50: Mitybos išlaidos | H50: 17 | I50: 0.00 | J50: 0.00 | K50: 0.00 | L50: 0.00
A51: 2 | B51: 2 | C51: 1 | D51: 1 | E51: 1 | F51: 2 | G51: Medikamentų ir medicininių prekių bei paslaugų įsigijimo išlaidos | H51: 18 | I51: 311.00 | J51: 311.00 | K51: 310.82 | L51: 310.82
A52: 2 | B52: 2 | C52: 1 | D52: 1 | E52: 1 | F52: 5 | G52: Ryšių įrangos ir ryšių paslaugų įsigijimo išlaidos | H52: 19 | I52: 2300.00 | J52: 2300.00 | K52: 1765.18 | L52: 1765.18
A53: 2 | B53: 2 | C53: 1 | D53: 1 | E53: 1 | F53: 6 | G53: Transporto išlaikymo ir transporto paslaugų įsigijimo išlaidos | H53: 20 | I53: 0.00 | J53: 0.00 | K53: 0.00 | L53: 0.00
A54: 2 | B54: 2 | C54: 1 | D54: 1 | E54: 1 | F54: 7 | G54: Aprangos ir patalynės įsigijimo bei priežiūros išlaidos | H54: 21 | I54: 0.00 | J54: 0.00 | K54: 0.00 | L54: 0.00
A55: 2 | B55: 2 | C55: 1 | D55: 1 | E55: 1 | F55: 11 | G55: Komandiruočių išlaidos | H55: 22 | I55: 684.00 | J55: 684.00 | K55: 683.43 | L55: 683.43
A56: 2 | B56: 2 | C56: 1 | D56: 1 | E56: 1 | F56: 12 | G56: Gyvenamųjų vietovių viešojo ūkio išlaidos | H56: 23 | I56: 0.00 | J56: 0.00 | K56: 0.00 | L56: 0.00
A57: 2 | B57: 2 | C57: 1 | D57: 1 | E57: 1 | F57: 14 | G57: Materialiojo ir nematerialiojo turto nuomos išlaidos | H57: 24 | I57: 0.00 | J57: 0.00 | K57: 0.00 | L57: 0.00
A58: 2 | B58: 2 | C58: 1 | D58: 1 | E58: 1 | F58: 15 | G58: Materialiojo turto paprastojo remonto prekių ir paslaugų įsigijimo išlaidos | H58: 25 | I58: 2664.00 | J58: 2664.00 | K58: 1952.49 | L58: 1952.49
A59: 2 | B59: 2 | C59: 1 | D59: 1 | E59: 1 | F59: 16 | G59: Kvalifikacijos kėlimo išlaidos | H59: 26 | I59: 1026.00 | J59: 1026.00 | K59: 1025.20 | L59: 1025.20
A60: 2 | B60: 2 | C60: 1 | D60: 1 | E60: 1 | F60: 17 | G60: Ekspertų ir konsultantų paslaugų įsigijimo išlaidos | H60: 27 | I60: 0.00 | J60: 0.00 | K60: 0.00 | L60: 0.00
A61: 2 | B61: 2 | C61: 1 | D61: 1 | E61: 1 | F61: 20 | G61: Komunalinių paslaugų įsigijimo išlaidos | H61: 28 | I61: 19700.00 | J61: 19700.00 | K61: 17975.46 | L61: 17975.46
A62: 2 | B62: 2 | C62: 1 | D62: 1 | E62: 1 | F62: 21 | G62: Informacinių technologijų prekių ir paslaugų įsigijimo išlaidos | H62: 29 | I62: 5300.00 | J62: 5300.00 | K62: 5182.20 | L62: 5182.20
A63: 2 | B63: 2 | C63: 1 | D63: 1 | E63: 1 | F63: 22 | G63: Reprezentacinės išlaidos | H63: 30 | I63: 300.00 | J63: 300.00 | K63: 300.00 | L63: 300.00
A64: 2 | B64: 2 | C64: 1 | D64: 1 | E64: 1 | F64: 23 | G64: Viešinimo išlaidos | H64: 31 | I64: 0.00 | J64: 0.00 | K64: 0.00 | L64: 0.00
A65: 2 | B65: 2 | C65: 1 | D65: 1 | E65: 1 | F65: 30 | G65: Kitų prekių ir paslaugų įsigijimo išlaidos | H65: 32 | I65: 17505.00 | J65: 17505.00 | K65: 16342.61 | L65: 16342.61
A66: 2 | B66: 3 | G66: Palūkanos | H66: 33 | I66: =I67 -> 0.00 | J66: =J67 -> 0.00 | K66: =K67 -> 0.00 | L66: =L67 -> 0.00
A67: 2 | B67: 3 | C67: 1 | G67: Palūkanos | H67: 34 | I67: =SUM(I68+I73+I78) -> 0.00 | J67: =SUM(J68+J73+J78) -> 0.00 | K67: =SUM(K68+K73+K78) -> 0.00 | L67: =SUM(L68+L73+L78) -> 0.00
A68: 2 | B68: 3 | C68: 1 | D68: 1 | G68: Palūkanos nerezidentams | H68: 35 | I68: =I69 -> 0.00 | J68: =J69 -> 0.00 | K68: =K69 -> 0.00 | L68: =L69 -> 0.00
A69: 2 | B69: 3 | C69: 1 | D69: 1 | E69: 1 | G69: Palūkanos nerezidentams | H69: 36 | I69: =SUM(I70:I72) -> 0.00 | J69: =SUM(J70:J72) -> 0.00 | K69: =SUM(K70:K72) -> 0.00 | L69: =SUM(L70:L72) -> 0.00
A70: 2 | B70: 3 | C70: 1 | D70: 1 | E70: 1 | F70: 1 | G70: Asignavimų valdytojų sumokėtos palūkanos | H70: 37 | I70: 0.00 | J70: 0.00 | K70: 0.00 | L70: 0.00
A71: 2 | B71: 3 | C71: 1 | D71: 1 | E71: 1 | F71: 2 | G71: Finansų ministerijos sumokėtos palūkanos | H71: 38 | I71: 0.00 | J71: 0.00 | K71: 0.00 | L71: 0.00
A72: 2 | B72: 3 | C72: 1 | D72: 1 | E72: 1 | F72: 3 | G72: Savivaldybių sumokėtos palūkanos | H72: 39 | I72: 0.00 | J72: 0.00 | K72: 0.00 | L72: 0.00
A73: 2 | B73: 3 | C73: 1 | D73: 2 | G73: Palūkanos rezidentams, kitiems nei valdžios sektorius (tik už tiesioginę skolą) | H73: 40 | I73: =I74 -> 0.00 | J73: =J74 -> 0.00 | K73: =K74 -> 0.00 | L73: =L74 -> 0.00
A74: 2 | B74: 3 | C74: 1 | D74: 2 | E74: 1 | G74: Palūkanos rezidentams, kitiems nei valdžios sektorius (tik už tiesioginę skolą) | H74: 41 | I74: =SUM(I75:I77) -> 0.00 | J74: =SUM(J75:J77) -> 0.00 | K74: =SUM(K75:K77) -> 0.00 | L74: =SUM(L75:L77) -> 0.00
A75: 2 | B75: 3 | C75: 1 | D75: 2 | E75: 1 | F75: 1 | G75: Asignavimų valdytojų sumokėtos palūkanos | H75: 42 | I75: 0.00 | J75: 0.00 | K75: 0.00 | L75: 0.00
A76: 2 | B76: 3 | C76: 1 | D76: 2 | E76: 1 | F76: 2 | G76: Finansų ministerijos sumokėtos palūkanos | H76: 43 | I76: 0.00 | J76: 0.00 | K76: 0.00 | L76: 0.00
A77: 2 | B77: 3 | C77: 1 | D77: 2 | E77: 1 | F77: 3 | G77: Savivaldybių sumokėtos palūkanos | H77: 44 | I77: 0.00 | J77: 0.00 | K77: 0.00 | L77: 0.00
A78: 2 | B78: 3 | C78: 1 | D78: 3 | G78: Palūkanos kitiems valdžios sektoriaus subjektams | H78: 45 | I78: =I79 -> 0.00 | J78: =J79 -> 0.00 | K78: =K79 -> 0.00 | L78: =L79 -> 0.00
A79: 2 | B79: 3 | C79: 1 | D79: 3 | E79: 1 | G79: Palūkanos kitiems valdžios sektoriaus subjektams | H79: 46 | I79: =SUM(I80:I82) -> 0.00 | J79: =SUM(J80:J82) -> 0.00 | K79: =SUM(K80:K82) -> 0.00 | L79: =SUM(L80:L82) -> 0.00
A80: 2 | B80: 3 | C80: 1 | D80: 3 | E80: 1 | F80: 1 | G80: Palūkanos valstybės biudžetui | H80: 47 | I80: 0.00 | J80: 0.00 | K80: 0.00 | L80: 0.00
A81: 2 | B81: 3 | C81: 1 | D81: 3 | E81: 1 | F81: 2 | G81: Palūkanos savivaldybių biudžetams | H81: 48 | I81: 0.00 | J81: 0.00 | K81: 0.00 | L81: 0.00
A82: 2 | B82: 3 | C82: 1 | D82: 3 | E82: 1 | F82: 3 | G82: Palūkanos nebiudžetiniams fondams | H82: 49 | I82: 0.00 | J82: 0.00 | K82: 0.00 | L82: 0.00
A83: 2 | B83: 3 | C83: 2 | G83: Žemės nuoma | H83: 50 | I83: =I84 -> 0.00 | J83: 0.00 | K83: 0.00 | L83: 0.00
A84: 2 | B84: 3 | C84: 2 | D84: 1 | G84: Žemės nuoma | H84: 51 | I84: 0.00 | J84: 0.00 | K84: 0.00 | L84: 0.00
A85: 2 | B85: 3 | C85: 2 | D85: 1 | E85: 1 | G85: Žemės nuoma | H85: 52 | I85: =SUM(I86) -> 0.00 | J85: =SUM(J86) -> 0.00 | K85: =SUM(K86) -> 0.00 | L85: =SUM(L86) -> 0.00
A86: 2 | B86: 3 | C86: 2 | D86: 1 | E86: 1 | F86: 1 | G86: Žemės nuoma | H86: 53 | I86: 0.00 | J86: 0.00 | K86: 0.00 | L86: 0.00
A87: 2 | B87: 4 | G87: Subsidijos | H87: 54 | I87: =I88 -> 0.00 | J87: 0.00 | K87: 0.00 | L87: 0.00
A88: 2 | B88: 4 | C88: 1 | G88: Subsidijos iš biudžeto lėšų | H88: 55 | I88: 0.00 | J88: 0.00 | K88: 0.00 | L88: 0.00
A89: 2 | B89: 4 | C89: 1 | D89: 1 | G89: Subsidijos iš biudžeto lėšų | H89: 56 | I89: 0.00 | J89: 0.00 | K89: 0.00 | L89: 0.00
A90: 2 | B90: 4 | C90: 1 | D90: 1 | E90: 1 | G90: Subsidijos iš biudžeto lėšų | H90: 57 | I90: =SUM(I91:I93) -> 0.00 | J90: =SUM(J91:J93) -> 0.00 | K90: =SUM(K91:K93) -> 0.00 | L90: =SUM(L91:L93) -> 0.00
A91: 2 | B91: 4 | C91: 1 | D91: 1 | E91: 1 | F91: 1 | G91: Subsidijos importui | H91: 58 | I91: 0.00 | J91: 0.00 | K91: 0.00 | L91: 0.00
A92: 2 | B92: 4 | C92: 1 | D92: 1 | E92: 1 | F92: 2 | G92: Subsidijos gaminiams | H92: 59 | I92: 0.00 | J92: 0.00 | K92: 0.00 | L92: 0.00
A93: 2 | B93: 4 | C93: 1 | D93: 1 | E93: 1 | F93: 3 | G93: Subsidijos gamybai | H93: 60 | I93: 0.00 | J93: 0.00 | K93: 0.00 | L93: 0.00
A94: 2 | B94: 5 | G94: Dotacijos | H94: 61 | I94: =SUM(I95+I100+I105) -> 0.00 | J94: =SUM(J95+J100+J105) -> 0.00 | K94: =SUM(K95+K100+K105) -> 0.00 | L94: =SUM(L95+L100+L105) -> 0.00
A95: 2 | B95: 5 | C95: 1 | G95: Dotacijos užsienio valstybėms | H95: 62 | I95: =I96 -> 0.00 | J95: 0.00 | K95: 0.00 | L95: 0.00
A96: 2 | B96: 5 | C96: 1 | D96: 1 | G96: Dotacijos užsienio valstybėms | H96: 63 | I96: 0.00 | J96: 0.00 | K96: 0.00 | L96: 0.00
A97: 2 | B97: 5 | C97: 1 | D97: 1 | E97: 1 | G97: Dotacijos užsienio valstybėms | H97: 64 | I97: =SUM(I98:I99) -> 0.00 | J97: =SUM(J98:J99) -> 0.00 | K97: =SUM(K98:K99) -> 0.00 | L97: =SUM(L98:L99) -> 0.00
A98: 2 | B98: 5 | C98: 1 | D98: 1 | E98: 1 | F98: 1 | G98: Dotacijos užsienio valstybėms einamiesiems tikslams | H98: 65 | I98: 0.00 | J98: 0.00 | K98: 0.00 | L98: 0.00
A99: 2 | B99: 5 | C99: 1 | D99: 1 | E99: 1 | F99: 2 | G99: Dotacijos užsienio valstybėms turtui įsigyti | H99: 66 | I99: 0.00 | J99: 0.00 | K99: 0.00 | L99: 0.00
A100: 2 | B100: 5 | C100: 2 | G100: Dotacijos tarptautinėms organizacijoms | H100: 67 | I100: =I101 -> 0.00 | J100: 0.00 | K100: 0.00 | L100: 0.00
A101: 2 | B101: 5 | C101: 2 | D101: 1 | G101: Dotacijos tarptautinėms organizacijoms | H101: 68 | I101: 0.00 | J101: 0.00 | K101: 0.00 | L101: 0.00
A102: 2 | B102: 5 | C102: 2 | D102: 1 | E102: 1 | G102: Dotacijos tarptautinėms organizacijoms | H102: 69 | I102: =SUM(I103:I104) -> 0.00 | J102: =SUM(J103:J104) -> 0.00 | K102: =SUM(K103:K104) -> 0.00 | L102: =SUM(L103:L104) -> 0.00
A103: 2 | B103: 5 | C103: 2 | D103: 1 | E103: 1 | F103: 1 | G103: Dotacijos tarptautinėms organizacijoms einamiesiems tikslams | H103: 70 | I103: 0.00 | J103: 0.00 | K103: 0.00 | L103: 0.00
A104: 2 | B104: 5 | C104: 2 | D104: 1 | E104: 1 | F104: 2 | G104: Dotacijos tarptautinėms organizacijoms turtui įsigyti | H104: 71 | I104: 0.00 | J104: 0.00 | K104: 0.00 | L104: 0.00
A105: 2 | B105: 5 | C105: 3 | G105: Dotacijos kitiems valdžios sektoriaus subjektams | H105: 72 | I105: =I106+I110 -> 0.00 | J105: =J106+J110 -> 0.00 | K105: =K106+K110 -> 0.00 | L105: =L106+L110 -> 0.00
A106: 2 | B106: 5 | C106: 3 | D106: 1 | G106: Dotacijos kitiems valdžios sektoriaus subjektams einamiesiems tikslams | H106: 73 | I106: =I107 -> 0.00 | J106: =J107 -> 0.00 | K106: =K107 -> 0.00 | L106: =L107 -> 0.00
A107: 2 | B107: 5 | C107: 3 | D107: 1 | E107: 1 | G107: Dotacijos kitiems valdžios sektoriaus subjektams einamiesiems tikslams | H107: 74 | I107: =SUM(I108:I109) -> 0.00 | J107: =SUM(J108:J109) -> 0.00 | K107: =SUM(K108:K109) -> 0.00 | L107: =SUM(L108:L109) -> 0.00
A108: 2 | B108: 5 | C108: 3 | D108: 1 | E108: 1 | F108: 1 | G108: Dotacijos kitiems valdžios sektoriaus subjektams einamiesiems tikslams | H108: 75 | I108: 0.00 | J108: 0.00 | K108: 0.00 | L108: 0.00
A109: 2 | B109: 5 | C109: 3 | D109: 1 | E109: 1 | F109: 2 | G109: Dotacijos savivaldybėms einamiesiems tikslams | H109: 76 | I109: 0.00 | J109: 0.00 | K109: 0.00 | L109: 0.00
A110: 2 | B110: 5 | C110: 3 | D110: 2 | G110: Dotacijos kitiems valdžios sektoriaus subjektams turtui įsigyti | H110: 77 | I110: =I111 -> 0.00 | J110: =J111 -> 0.00 | K110: =K111 -> 0.00 | L110: =L111 -> 0.00
A111: 2 | B111: 5 | C111: 3 | D111: 2 | E111: 1 | G111: Dotacijos kitiems valdžios sektoriaus subjektams turtui įsigyti | H111: 78 | I111: =SUM(I112:I113) -> 0.00 | J111: =SUM(J112:J113) -> 0.00 | K111: =SUM(K112:K113) -> 0.00 | L111: =SUM(L112:L113) -> 0.00
A112: 2 | B112: 5 | C112: 3 | D112: 2 | E112: 1 | F112: 1 | G112: Dotacijos kitiems valdžios sektoriaus subjektams turtui įsigyti | H112: 79 | I112: 0.00 | J112: 0.00 | K112: 0.00 | L112: 0.00
A113: 2 | B113: 5 | C113: 3 | D113: 2 | E113: 1 | F113: 2 | G113: Dotacijos savivaldybėms turtui įsigyti | H113: 80 | I113: 0.00 | J113: 0.00 | K113: 0.00 | L113: 0.00
A114: 2 | B114: 6 | G114: Įmokos į Europos Sąjungos biudžetą | H114: 81 | I114: =SUM(I115+I120+I124+I128+I132+I136) -> 0.00 | J114: =SUM(J115+J120+J124+J128+J132+J136) -> 0.00 | K114: =SUM(K115+K120+K124+K128+K132+K136) -> 0.00 | L114: =SUM(L115+L120+L124+L128+L132+L136) -> 0.00
A115: 2 | B115: 6 | C115: 1 | G115: Tradiciniai nuosavi ištekliai | H115: 82 | I115: =I116 -> 0.00 | J115: 0.00 | K115: 0.00 | L115: 0.00
A116: 2 | B116: 6 | C116: 1 | D116: 1 | G116: Tradiciniai nuosavi ištekliai | H116: 83 | I116: 0.00 | J116: 0.00 | K116: 0.00 | L116: 0.00
A117: 2 | B117: 6 | C117: 1 | D117: 1 | E117: 1 | G117: Tradiciniai nuosavi ištekliai | H117: 84 | I117: =SUM(I118:I119) -> 0.00 | J117: =SUM(J118:J119) -> 0.00 | K117: =SUM(K118:K119) -> 0.00 | L117: =SUM(L118:L119) -> 0.00
A118: 2 | B118: 6 | C118: 1 | D118: 1 | E118: 1 | F118: 1 | G118: Muitai | H118: 85 | I118: 0.00 | J118: 0.00 | K118: 0.00 | L118: 0.00
A119: 2 | B119: 6 | C119: 1 | D119: 1 | E119: 1 | F119: 2 | G119: Cukraus sektoriaus mokesčiai | H119: 86 | I119: 0.00 | J119: 0.00 | K119: 0.00 | L119: 0.00
A120: 2 | B120: 6 | C120: 2 | G120: Pridėtinės vertės mokesčio nuosavi ištekliai | H120: 87 | I120: =I121 -> 0.00 | J120: 0.00 | K120: 0.00 | L120: 0.00
A121: 2 | B121: 6 | C121: 2 | D121: 1 | G121: Pridėtinės vertės mokesčio nuosavi ištekliai | H121: 88 | I121: 0.00 | J121: 0.00 | K121: 0.00 | L121: 0.00
A122: 2 | B122: 6 | C122: 2 | D122: 1 | E122: 1 | G122: Pridėtinės vertės mokesčio nuosavi ištekliai | H122: 89 | I122: 0.00 | J122: 0.00 | K122: 0.00 | L122: 0.00
A123: 2 | B123: 6 | C123: 2 | D123: 1 | E123: 1 | F123: 1 | G123: Pridėtinės vertės mokesčio nuosavi ištekliai | H123: 90 | I123: 0.00 | J123: 0.00 | K123: 0.00 | L123: 0.00
A124: 2 | B124: 6 | C124: 3 | G124: Bendrųjų nacionalinių pajamų nuosavi ištekliai | H124: 91 | I124: =I125 -> 0.00 | J124: 0.00 | K124: 0.00 | L124: 0.00
A125: 2 | B125: 6 | C125: 3 | D125: 1 | G125: Bendrųjų nacionalinių pajamų nuosavi ištekliai | H125: 92 | I125: 0.00 | J125: 0.00 | K125: 0.00 | L125: 0.00
A126: 2 | B126: 6 | C126: 3 | D126: 1 | E126: 1 | G126: Bendrųjų nacionalinių pajamų nuosavi ištekliai | H126: 93 | I126: 0.00 | J126: 0.00 | K126: 0.00 | L126: 0.00
A127: 2 | B127: 6 | C127: 3 | D127: 1 | E127: 1 | F127: 1 | G127: Bendrųjų nacionalinių pajamų nuosavi ištekliai | H127: 94 | I127: 0.00 | J127: 0.00 | K127: 0.00 | L127: 0.00
A128: 2 | B128: 6 | C128: 4 | G128: Biudžeto disbalansų korekcija Jungtinės Karalystės naudai | H128: 95 | I128: =I129 -> 0.00 | J128: 0.00 | K128: 0.00 | L128: 0.00
A129: 2 | B129: 6 | C129: 4 | D129: 1 | G129: Biudžeto disbalansų korekcija Jungtinės Karalystės naudai | H129: 96 | I129: 0.00 | J129: 0.00 | K129: 0.00 | L129: 0.00
A130: 2 | B130: 6 | C130: 4 | D130: 1 | E130: 1 | G130: Biudžeto disbalansų korekcija Jungtinės Karalystės naudai | H130: 97 | I130: 0.00 | J130: 0.00 | K130: 0.00 | L130: 0.00
A131: 2 | B131: 6 | C131: 4 | D131: 1 | E131: 1 | F131: 1 | G131: Biudžeto disbalansų korekcija Jungtinės Karalystės naudai | H131: 98 | I131: 0.00 | J131: 0.00 | K131: 0.00 | L131: 0.00
A132: 2 | B132: 6 | C132: 5 | G132: Su nuosavais ištekliais susijusios baudos, delspinigiai ir neigiamos palūkanos | H132: 99 | I132: =I133 -> 0.00 | J132: 0.00 | K132: 0.00 | L132: 0.00
A133: 2 | B133: 6 | C133: 5 | D133: 1 | G133: Su nuosavais ištekliais susijusios baudos, delspinigiai ir neigiamos palūkanos | H133: 100 | I133: 0.00 | J133: 0.00 | K133: 0.00 | L133: 0.00
A134: 2 | B134: 6 | C134: 5 | D134: 1 | E134: 1 | G134: Su nuosavais ištekliais susijusios baudos, delspinigiai ir neigiamos palūkanos | H134: 101 | I134: 0.00 | J134: 0.00 | K134: 0.00 | L134: 0.00
A135: 2 | B135: 6 | C135: 5 | D135: 1 | E135: 1 | F135: 1 | G135: Su nuosavais ištekliais susijusios baudos, delspinigiai ir neigiamos palūkanos | H135: 102 | I135: 0.00 | J135: 0.00 | K135: 0.00 | L135: 0.00
A136: 2 | B136: 6 | C136: 6 | G136: Neperdirbto plastiko atliekų nuosavi ištekliai | H136: 103 | I136: =I137 -> 0.00 | J136: 0.00 | K136: 0.00 | L136: 0.00
A137: 2 | B137: 6 | C137: 6 | D137: 1 | G137: Neperdirbto plastiko atliekų nuosavi ištekliai | H137: 104 | I137: 0.00 | J137: 0.00 | K137: 0.00 | L137: 0.00
A138: 2 | B138: 6 | C138: 6 | D138: 1 | E138: 1 | G138: Neperdirbto plastiko atliekų nuosavi ištekliai | H138: 105 | I138: 0.00 | J138: 0.00 | K138: 0.00 | L138: 0.00
A139: 2 | B139: 6 | C139: 6 | D139: 1 | E139: 1 | F139: 1 | G139: Neperdirbto plastiko atliekų nuosavi ištekliai | H139: 106 | I139: 0.00 | J139: 0.00 | K139: 0.00 | L139: 0.00
A140: 2 | B140: 7 | G140: Socialinės išmokos (pašalpos) | H140: 107 | I140: =SUM(I141+I146+I154) -> 5840.00 | J140: =SUM(J141+J146+J154) -> 5840.00 | K140: =SUM(K141+K146+K154) -> 5840.00 | L140: =SUM(L141+L146+L154) -> 5840.00
A141: 2 | B141: 7 | C141: 1 | G141: Socialinio draudimo išmokos (pašalpos) | H141: 108 | I141: =I142 -> 0.00 | J141: 0.00 | K141: 0.00 | L141: 0.00
A142: 2 | B142: 7 | C142: 1 | D142: 1 | G142: Socialinio draudimo išmokos (pašalpos) | H142: 109 | I142: 0.00 | J142: 0.00 | K142: 0.00 | L142: 0.00
A143: 2 | B143: 7 | C143: 1 | D143: 1 | E143: 1 | G143: Socialinio draudimo išmokos (pašalpos) | H143: 110 | I143: =SUM(I144:I145) -> 0.00 | J143: =SUM(J144:J145) -> 0.00 | K143: =SUM(K144:K145) -> 0.00 | L143: =SUM(L144:L145) -> 0.00
A144: 2 | B144: 7 | C144: 1 | D144: 1 | E144: 1 | F144: 1 | G144: Socialinio draudimo išmokos pinigais | H144: 111 | I144: 0.00 | J144: 0.00 | K144: 0.00 | L144: 0.00
A145: 2 | B145: 7 | C145: 1 | D145: 1 | E145: 1 | F145: 2 | G145: Socialinio draudimo išmokos natūra | H145: 112 | I145: 0.00 | J145: 0.00 | K145: 0.00 | L145: 0.00
A146: 2 | B146: 7 | C146: 2 | G146: Socialinė parama (socialinės paramos pašalpos) ir rentos | H146: 113 | I146: =I147 -> 0.00 | J146: 0.00 | K146: 0.00 | L146: 0.00
A147: 2 | B147: 7 | C147: 2 | D147: 1 | G147: Socialinė parama (socialinės paramos pašalpos) | H147: 114 | I147: 0.00 | J147: 0.00 | K147: 0.00 | L147: 0.00
A148: 2 | B148: 7 | C148: 2 | D148: 1 | E148: 1 | G148: Socialinė parama (socialinės paramos pašalpos) | H148: 115 | I148: =SUM(I149:I150) -> 0.00 | J148: =SUM(J149:J150) -> 0.00 | K148: =SUM(K149:K150) -> 0.00 | L148: =SUM(L149:L150) -> 0.00
A149: 2 | B149: 7 | C149: 2 | D149: 1 | E149: 1 | F149: 1 | G149: Socialinė parama pinigais | H149: 116 | I149: 0.00 | J149: 0.00 | K149: 0.00 | L149: 0.00
A150: 2 | B150: 7 | C150: 2 | D150: 1 | E150: 1 | F150: 2 | G150: Socialinė parama natūra | H150: 117 | I150: 0.00 | J150: 0.00 | K150: 0.00 | L150: 0.00
A151: 2 | B151: 7 | C151: 2 | D151: 2 | G151: Rentos | H151: 118 | I151: =I152 -> 0.00 | J151: =J152 -> 0.00 | K151: =K152 -> 0.00 | L151: =L152 -> 0.00
A152: 2 | B152: 7 | C152: 2 | D152: 2 | E152: 1 | G152: Rentos | H152: 119 | I152: =SUM(I153) -> 0.00 | J152: =SUM(J153) -> 0.00 | K152: =SUM(K153) -> 0.00 | L152: =SUM(L153) -> 0.00
A153: 2 | B153: 7 | C153: 2 | D153: 2 | E153: 1 | F153: 1 | G153: Rentos | H153: 120 | I153: 0.00 | J153: 0.00 | K153: 0.00 | L153: 0.00
A154: 2 | B154: 7 | C154: 3 | G154: Darbdavių socialinė parama | H154: 121 | I154: =I155 -> 5840.00 | J154: 5840.00 | K154: 5840.00 | L154: 5840.00
A155: 2 | B155: 7 | C155: 3 | D155: 1 | G155: Darbdavių socialinė parama | H155: 122 | I155: 5840.00 | J155: 5840.00 | K155: 5840.00 | L155: 5840.00
A156: 2 | B156: 7 | C156: 3 | D156: 1 | E156: 1 | G156: Darbdavių socialinė parama | H156: 123 | I156: =SUM(I157:I158) -> 5840.00 | J156: =SUM(J157:J158) -> 5840.00 | K156: =SUM(K157:K158) -> 5840.00 | L156: =SUM(L157:L158) -> 5840.00
A157: 2 | B157: 7 | C157: 3 | D157: 1 | E157: 1 | F157: 1 | G157: Darbdavių socialinė parama pinigais | H157: 124 | I157: 5840.00 | J157: 5840.00 | K157: 5840.00 | L157: 5840.00
A158: 2 | B158: 7 | C158: 3 | D158: 1 | E158: 1 | F158: 2 | G158: Darbdavių socialinė parama natūra | H158: 125 | I158: 0.00 | J158: 0.00 | K158: 0.00 | L158: 0.00
A159: 2 | B159: 8 | G159: Kitos išlaidos | H159: 126 | I159: =I160 -> 0.00 | J159: =J160 -> 0.00 | K159: =K160 -> 0.00 | L159: =L160 -> 0.00
A160: 2 | B160: 8 | C160: 1 | G160: Kitos išlaidos | H160: 127 | I160: =I161+I166 -> 0.00 | J160: =J161+J166 -> 0.00 | K160: =K161+K166 -> 0.00 | L160: =L161+L166 -> 0.00
A161: 2 | B161: 8 | C161: 1 | D161: 1 | G161: Kitos išlaidos einamiesiems tikslams | H161: 128 | I161: =I162 -> 0.00 | J161: =J162 -> 0.00 | K161: =K162 -> 0.00 | L161: =L162 -> 0.00
A162: 2 | B162: 8 | C162: 1 | D162: 1 | E162: 1 | G162: Kitos išlaidos einamiesiems tikslams | H162: 129 | I162: =SUM(I163:I165) -> 0.00 | J162: =SUM(J163:J165) -> 0.00 | K162: =SUM(K163:K165) -> 0.00 | L162: =SUM(L163:L165) -> 0.00
A163: 2 | B163: 8 | C163: 1 | D163: 1 | E163: 1 | F163: 1 | G163: Stipendijoms | H163: 130 | I163: 0.00 | J163: 0.00 | K163: 0.00 | L163: 0.00
A164: 2 | B164: 8 | C164: 1 | D164: 1 | E164: 1 | F164: 2 | G164: Kitos išlaidos kitiems einamiesiems tikslams | H164: 131 | I164: 0.00 | J164: 0.00 | K164: 0.00 | L164: 0.00
A165: 2 | B165: 8 | C165: 1 | D165: 1 | E165: 1 | F165: 3 | G165: Valiutos kurso įtaka | H165: 132 | I165: 0.00 | J165: 0.00 | K165: 0.00 | L165: 0.00
A166: 2 | B166: 8 | C166: 1 | D166: 2 | G166: Kitos išlaidos turtui įsigyti | H166: 133 | I166: =I167 -> 0.00 | J166: 0.00 | K166: 0.00 | L166: 0.00
A167: 2 | B167: 8 | C167: 1 | D167: 2 | E167: 1 | G167: Kitos išlaidos turtui įsigyti | H167: 134 | I167: 0.00 | J167: 0.00 | K167: 0.00 | L167: 0.00
A168: 2 | B168: 8 | C168: 1 | D168: 2 | E168: 1 | F168: 1 | G168: Kitos išlaidos turtui įsigyti | H168: 135 | I168: 0.00 | J168: 0.00 | K168: 0.00 | L168: 0.00
A169: 2 | B169: 9 | G169: Pervedamos Europos Sąjungos, kitos tarptautinės finansinės paramos, bendrojo finansavimo lėšos ir kitos bendrai finansuojamiems iš Europos Sąjungos ar kitos tarptautinės finansinės paramos lėšų projektams įgyvendinti skirtos valstybės biudžeto lėšos | H169: 136 | I169: =I170+I174 -> 0.00 | J169: =J170+J174 -> 0.00 | K169: =K170+K174 -> 0.00 | L169: =L170+L174 -> 0.00
A170: 2 | B170: 9 | C170: 1 | G170: Subsidijos iš Europos Sąjungos ir kitos tarptautinės finansinės paramos lėšų (ne valdžios sektoriui) | H170: 137 | I170: =I171 -> 0.00 | J170: 0.00 | K170: 0.00 | L170: 0.00
A171: 2 | B171: 9 | C171: 1 | D171: 1 | G171: Subsidijos iš Europos Sąjungos ir kitos tarptautinės finansinės paramos lėšų (ne valdžios sektoriui) | H171: 138 | I171: 0.00 | J171: 0.00 | K171: 0.00 | L171: 0.00
A172: 2 | B172: 9 | C172: 1 | D172: 1 | E172: 1 | G172: Subsidijos iš Europos Sąjungos ir kitos tarptautinės finansinės paramos lėšų (ne valdžios sektoriui) | H172: 139 | I172: 0.00 | J172: 0.00 | K172: 0.00 | L172: 0.00
A173: 2 | B173: 9 | C173: 1 | D173: 1 | E173: 1 | F173: 1 | G173: Subsidijos iš Europos Sąjungos ir kitos tarptautinės finansinės paramos lėšų (ne valdžios sektoriui) | H173: 140 | I173: 0.00 | J173: 0.00 | K173: 0.00 | L173: 0.00
A174: 2 | B174: 9 | C174: 2 | G174: Pervedamos Europos Sąjungos, kitos tarptautinės finansinės paramos, bendrojo finansavimo lėšos ir kitos bendrai finansuojamiems iš Europos Sąjungos ar kitos tarptautinės finansinės paramos lėšų projektams įgyvendinti skirtos valstybės biudžeto lėšos | H174: 141 | I174: =SUM(I175+I180) -> 0.00 | J174: =SUM(J175+J180) -> 0.00 | K174: =SUM(K175+K180) -> 0.00 | L174: =SUM(L175+L180) -> 0.00
A175: 2 | B175: 9 | C175: 2 | D175: 1 | G175: Pervedamos Europos Sąjungos, kitos tarptautinės finansinės paramos, bendrojo finansavimo lėšos ir kitos bendrai finansuojamiems iš Europos Sąjungos ar kitos tarptautinės finansinės paramos lėšų projektams įgyvendinti skirtos valstybės biudžeto lėšos einamiesiems tikslams | H175: 142 | I175: =I176 -> 0.00 | J175: =J176 -> 0.00 | K175: =K176 -> 0.00 | L175: =L176 -> 0.00
A176: 2 | B176: 9 | C176: 2 | D176: 1 | E176: 1 | G176: Pervedamos Europos Sąjungos, kitos tarptautinės finansinės paramos, bendrojo finansavimo lėšos ir kitos bendrai finansuojamiems iš Europos Sąjungos ar kitos tarptautinės finansinės paramos lėšų projektams įgyvendinti skirtos valstybės biudžeto lėšos einamiesiems tikslams | H176: 143 | I176: =SUM(I177:I179) -> 0.00 | J176: =SUM(J177:J179) -> 0.00 | K176: =SUM(K177:K179) -> 0.00 | L176: =SUM(L177:L179) -> 0.00
A177: 2 | B177: 9 | C177: 2 | D177: 1 | E177: 1 | F177: 1 | G177: Pervedamos Europos Sąjungos, kitos tarptautinės finansinės paramos, bendrojo finansavimo lėšos ir kitos bendrai finansuojamiems iš Europos Sąjungos ar kitos tarptautinės finansinės paramos lėšų projektams įgyvendinti skirtos valstybės biudžeto lėšos einamiesiems tikslams savivaldybėms | H177: 144 | I177: 0.00 | J177: 0.00 | K177: 0.00 | L177: 0.00
A178: 2 | B178: 9 | C178: 2 | D178: 1 | E178: 1 | F178: 2 | G178: Pervedamos Europos Sąjungos, kitos tarptautinės finansinės paramos, bendrojo finansavimo lėšos ir kitos bendrai finansuojamiems iš Europos Sąjungos ar kitos tarptautinės finansinės paramos lėšų projektams įgyvendinti skirtos valstybės biudžeto lėšos einamiesiems tikslams kitiems valdžios sektoriaus subjektams | H178: 145 | I178: 0.00 | J178: 0.00 | K178: 0.00 | L178: 0.00
A179: 2 | B179: 9 | C179: 2 | D179: 1 | E179: 1 | F179: 3 | G179: Pervedamos Europos Sąjungos, kitos tarptautinės finansinės paramos, bendrojo finansavimo lėšos ir kitos bendrai finansuojamiems iš Europos Sąjungos ar kitos tarptautinės finansinės paramos lėšų projektams įgyvendinti skirtos valstybės biudžeto lėšos einamiesiems tikslams ne valdžios sektoriui | H179: 146 | I179: 0.00 | J179: 0.00 | K179: 0.00 | L179: 0.00
A180: 2 | B180: 9 | C180: 2 | D180: 2 | G180: Pervedamos Europos Sąjungos, kitos tarptautinės finansinės paramos, bendrojo finansavimo lėšos ir kitos bendrai finansuojamiems iš Europos Sąjungos ar kitos tarptautinės finansinės paramos lėšų projektams įgyvendinti skirtos valstybės biudžeto lėšos investicijoms | H180: 147 | I180: =I181 -> 0.00 | J180: =J181 -> 0.00 | K180: =K181 -> 0.00 | L180: =L181 -> 0.00
A181: 2 | B181: 9 | C181: 2 | D181: 2 | E181: 1 | G181: Pervedamos Europos Sąjungos, kitos tarptautinės finansinės paramos, bendrojo finansavimo lėšos ir kitos bendrai finansuojamiems iš Europos Sąjungos ar kitos tarptautinės finansinės paramos lėšų projektams įgyvendinti skirtos valstybės biudžeto lėšos investicijoms | H181: 148 | I181: =SUM(I182:I184) -> 0.00 | J181: =SUM(J182:J184) -> 0.00 | K181: =SUM(K182:K184) -> 0.00 | L181: =SUM(L182:L184) -> 0.00
A182: 2 | B182: 9 | C182: 2 | D182: 2 | E182: 1 | F182: 1 | G182: Pervedamos Europos Sąjungos, kitos tarptautinės finansinės paramos, bendrojo finansavimo lėšos ir kitos bendrai finansuojamiems iš Europos Sąjungos ar kitos tarptautinės finansinės paramos lėšų projektams įgyvendinti skirtos valstybės biudžeto lėšos investicijoms, skirtoms savivaldybėms | H182: 149 | I182: 0.00 | J182: 0.00 | K182: 0.00 | L182: 0.00
A183: 2 | B183: 9 | C183: 2 | D183: 2 | E183: 1 | F183: 2 | G183: Pervedamos Europos Sąjungos, kitos tarptautinės finansinės paramos, bendrojo finansavimo lėšos ir kitos bendrai finansuojamiems iš Europos Sąjungos ar kitos tarptautinės finansinės paramos lėšų projektams įgyvendinti skirtos valstybės biudžeto lėšos investicijoms kitiems valdžios sektoriaus subjektams | H183: 150 | I183: 0.00 | J183: 0.00 | K183: 0.00 | L183: 0.00
A184: 2 | B184: 9 | C184: 2 | D184: 2 | E184: 1 | F184: 3 | G184: Pervedamos Europos Sąjungos, kitos tarptautinės finansinės paramos, bendrojo finansavimo lėšos ir kitos bendrai finansuojamiems iš Europos Sąjungos ar kitos tarptautinės finansinės paramos lėšų projektams įgyvendinti skirtos valstybės biudžeto lėšos investicijoms ne valdžios sektoriui | H184: 151 | I184: 0.00 | J184: 0.00 | K184: 0.00 | L184: 0.00
A185: 3 | G185: MATERIALIOJO IR NEMATERIALIOJO TURTO ĮSIGIJIMO, FINANSINIO TURTO PADIDĖJIMO IR FINANSINIŲ ĮSIPAREIGOJIMŲ VYKDYMO IŠLAIDOS | H185: 152 | I185: =SUM(I186+I239+I304) -> 24400.00 | J185: =SUM(J186+J239+J304) -> 24400.00 | K185: =SUM(K186+K239+K304) -> 6400.00 | L185: =SUM(L186+L239+L304) -> 6400.00
A186: 3 | B186: 1 | G186: Materialiojo ir nematerialiojo turto įsigijimo išlaidos | H186: 153 | I186: =SUM(I187+I210+I217+I229+I233) -> 24400.00 | J186: =SUM(J187+J210+J217+J229+J233) -> 24400.00 | K186: =SUM(K187+K210+K217+K229+K233) -> 6400.00 | L186: =SUM(L187+L210+L217+L229+L233) -> 6400.00
A187: 3 | B187: 1 | C187: 1 | G187: Ilgalaikio materialiojo turto kūrimo ir įsigijimo išlaidos | H187: 154 | I187: =SUM(I188+I191+I196+I202+I207) -> 24400.00 | J187: =SUM(J188+J191+J196+J202+J207) -> 24400.00 | K187: =SUM(K188+K191+K196+K202+K207) -> 6400.00 | L187: =SUM(L188+L191+L196+L202+L207) -> 6400.00
A188: 3 | B188: 1 | C188: 1 | D188: 1 | G188: Žemės įsigijimo išlaidos | H188: 155 | I188: =I189 -> 0.00 | J188: 0.00 | K188: 0.00 | L188: 0.00
A189: 3 | B189: 1 | C189: 1 | D189: 1 | E189: 1 | G189: Žemės įsigijimo išlaidos | H189: 156 | I189: 0.00 | J189: 0.00 | K189: 0.00 | L189: 0.00
A190: 3 | B190: 1 | C190: 1 | D190: 1 | E190: 1 | F190: 1 | G190: Žemės įsigijimo išlaidos | H190: 157 | I190: 0.00 | J190: 0.00 | K190: 0.00 | L190: 0.00
A191: 3 | B191: 1 | C191: 1 | D191: 2 | G191: Pastatų ir statinių įsigijimo išlaidos | H191: 158 | I191: =I192 -> 18000.00 | J191: =J192 -> 18000.00 | K191: =K192 -> 0.00 | L191: =L192 -> 0.00
A192: 3 | B192: 1 | C192: 1 | D192: 2 | E192: 1 | G192: Pastatų ir statinių įsigijimo išlaidos | H192: 159 | I192: =SUM(I193:I195) -> 18000.00 | J192: =SUM(J193:J195) -> 18000.00 | K192: =SUM(K193:K195) -> 0.00 | L192: =SUM(L193:L195) -> 0.00
A193: 3 | B193: 1 | C193: 1 | D193: 2 | E193: 1 | F193: 1 | G193: Gyvenamųjų namų įsigijimo išlaidos | H193: 160 | I193: 0.00 | J193: 0.00 | K193: 0.00 | L193: 0.00
A194: 3 | B194: 1 | C194: 1 | D194: 2 | E194: 1 | F194: 2 | G194: Negyvenamųjų pastatų įsigijimo išlaidos | H194: 161 | I194: 18000.00 | J194: 18000.00 | K194: 0.00 | L194: 0.00
A195: 3 | B195: 1 | C195: 1 | D195: 2 | E195: 1 | F195: 3 | G195: Infrastruktūros ir kitų statinių įsigijimo išlaidos | H195: 162 | I195: 0.00 | J195: 0.00 | K195: 0.00 | L195: 0.00
A196: 3 | B196: 1 | C196: 1 | D196: 3 | G196: Mašinų ir įrenginių įsigijimo išlaidos | H196: 163 | I196: =I197 -> 6400.00 | J196: =J197 -> 6400.00 | K196: =K197 -> 6400.00 | L196: =L197 -> 6400.00
A197: 3 | B197: 1 | C197: 1 | D197: 3 | E197: 1 | G197: Mašinų ir įrenginių įsigijimo išlaidos | H197: 164 | I197: =SUM(I198:I201) -> 6400.00 | J197: =SUM(J198:J201) -> 6400.00 | K197: =SUM(K198:K201) -> 6400.00 | L197: =SUM(L198:L201) -> 6400.00
A198: 3 | B198: 1 | C198: 1 | D198: 3 | E198: 1 | F198: 1 | G198: Transporto priemonių įsigijimo išlaidos | H198: 165 | I198: 0.00 | J198: 0.00 | K198: 0.00 | L198: 0.00
A199: 3 | B199: 1 | C199: 1 | D199: 3 | E199: 1 | F199: 2 | G199: Kitų mašinų ir įrenginių įsigijimo išlaidos | H199: 166 | I199: 0.00 | J199: 0.00 | K199: 0.00 | L199: 0.00
A200: 3 | B200: 1 | C200: 1 | D200: 3 | E200: 1 | F200: 3 | G200: Ginklų ir karinės įrangos įsigijimo išlaidos | H200: 167 | I200: 0.00 | J200: 0.00 | K200: 0.00 | L200: 0.00
A201: 3 | B201: 1 | C201: 1 | D201: 3 | E201: 1 | F201: 4 | G201: Kompiuterinės techninės ir elektroninių ryšių įrangos įsigijimo išlaidos | H201: 168 | I201: 6400.00 | J201: 6400.00 | K201: 6400.00 | L201: 6400.00
A202: 3 | B202: 1 | C202: 1 | D202: 4 | G202: Kultūros ir kitų vertybių įsigijimo išlaidos | H202: 169 | I202: =I203 -> 0.00 | J202: =J203 -> 0.00 | K202: =K203 -> 0.00 | L202: =L203 -> 0.00
A203: 3 | B203: 1 | C203: 1 | D203: 4 | E203: 1 | G203: Kultūros ir kitų vertybių įsigijimo išlaidos | H203: 170 | I203: =SUM(I204:I206) -> 0.00 | J203: =SUM(J204:J206) -> 0.00 | K203: =SUM(K204:K206) -> 0.00 | L203: =SUM(L204:L206) -> 0.00
A204: 3 | B204: 1 | C204: 1 | D204: 4 | E204: 1 | F204: 1 | G204: Muziejinių vertybių įsigijimo išlaidos | H204: 171 | I204: 0.00 | J204: 0.00 | K204: 0.00 | L204: 0.00
A205: 3 | B205: 1 | C205: 1 | D205: 4 | E205: 1 | F205: 2 | G205: Antikvarinių ir kitų meno kūrinių įsigijimo išlaidos | H205: 172 | I205: 0.00 | J205: 0.00 | K205: 0.00 | L205: 0.00
A206: 3 | B206: 1 | C206: 1 | D206: 4 | E206: 1 | F206: 3 | G206: Kitų vertybių įsigijimo išlaidos | H206: 173 | I206: 0.00 | J206: 0.00 | K206: 0.00 | L206: 0.00
A207: 3 | B207: 1 | C207: 1 | D207: 5 | G207: Kito ilgalaikio materialiojo turto įsigijimo išlaidos | H207: 174 | I207: =I208 -> 0.00 | J207: 0.00 | K207: 0.00 | L207: 0.00
A208: 3 | B208: 1 | C208: 1 | D208: 5 | E208: 1 | G208: Kito ilgalaikio materialiojo turto įsigijimo išlaidos | H208: 175 | I208: 0.00 | J208: 0.00 | K208: 0.00 | L208: 0.00
A209: 3 | B209: 1 | C209: 1 | D209: 5 | E209: 1 | F209: 1 | G209: Kito ilgalaikio materialiojo turto įsigijimo išlaidos | H209: 176 | I209: 0.00 | J209: 0.00 | K209: 0.00 | L209: 0.00
... 165 more rows

Sheet Forma Nr.2 SB VISO
J1: Biudžeto vykdymo ataskaitų rinkinių rengimo taisyklių
J2: 1 priedas
A7: (Biudžeto išlaidų sąmatos vykdymo 2025 m. gruodžio mėn. 31 d. I ketvirčio, pusmečio, 9 mėnesių, metų ataskaitos forma, Nr.2)
A9: Vaikų ir jaunimo laisvalaikio centras, 195174984
A10: (įstaigos pavadinimas, kodas Juridinių asmenų registre, adresas)
G12: BIUDŽETO IŠLAIDŲ SĄMATOS VYKDYMO PAGAL
A13: 2025 M. GRUODŽIO MĖN. 31 D.
G14: 4 ketvirtis
G15: (I ketvirčio, pusmečio, 9 mėnesių, metinė)
B16: ATASKAITA
G18: 2026.01.14 Nr.________________
G19: (data)
E21: Žinių visuomenės plėtros programa
A22: (programos pavadinimas)
L23: Kodas
J24: Ministerijos / Savivaldybės
K25: Departamento
K26: Įstaigos | L26: 195174984
A27: Neformalusis vaikų švietimas | J27: Programos | K27: 1
G28: Finansavimo šaltinio | H28: SB
G29: Valstybės funkcijos | I29: 09 | J29: 05 | K29: 01 | L29: 01
A30: Savivaldybės biudžeto lėšos | L30: (eurais, ct)
A31: Išlaidų ekonominės klasifikacijos kodas | G31: Išlaidų pavadinimas | H31: Eil. Nr. | I31: Asignavimų planas, įskaitant patikslinimus | K31: Gauti asignavimai kartu su įskaitytu praėjusių metų lėšų likučiu | L31: Panaudoti asignavimai
I32: metams | J32: ataskaitiniam laikotarpiui
A33: 1 | G33: 2 | H33: 3 | I33: 4 | J33: 5 | K33: 6 | L33: 7
A34: 2 | G34: IŠLAIDOS | H34: 1 | I34: =SUM(I35+I46+I66+I87+I94+I114+I140+I159+I169) -> 380900.00 | J34: =SUM(J35+J46+J66+J87+J94+J114+J140+J159+J169) -> 380900.00 | K34: =SUM(K35+K46+K66+K87+K94+K114+K140+K159+K169) -> 379172.39 | L34: =SUM(L35+L46+L66+L87+L94+L114+L140+L159+L169) -> 379172.39
A35: 2 | B35: 1 | G35: Darbo užmokestis ir socialinis draudimas | H35: 2 | I35: =SUM(I36+I42) -> 339070.00 | J35: =SUM(J36+J42) -> 339070.00 | K35: =SUM(K36+K42) -> 339070.00 | L35: =SUM(L36+L42) -> 339070.00
A36: 2 | B36: 1 | C36: 1 | G36: Darbo užmokestis | H36: 3 | I36: =SUM(I37) -> 333890.00 | J36: =SUM(J37) -> 333890.00 | K36: =SUM(K37) -> 333890.00 | L36: =SUM(L37) -> 333890.00
A37: 2 | B37: 1 | C37: 1 | D37: 1 | G37: Darbo užmokestis | H37: 4 | I37: =SUM(I38+I40) -> 333890.00 | J37: =SUM(J38+J40) -> 333890.00 | K37: =SUM(K38+K40) -> 333890.00 | L37: =SUM(L38+L40) -> 333890.00
A38: 2 | B38: 1 | C38: 1 | D38: 1 | E38: 1 | G38: Darbo užmokestis pinigais | H38: 5 | I38: =SUM(I39) -> 333890.00 | J38: =SUM(J39) -> 333890.00 | K38: =SUM(K39) -> 333890.00 | L38: =SUM(L39) -> 333890.00
A39: 2 | B39: 1 | C39: 1 | D39: 1 | E39: 1 | F39: 1 | G39: Darbo užmokestis pinigais | H39: 6 | I39: 333890.00 | J39: 333890.00 | K39: 333890.00 | L39: 333890.00
A40: 2 | B40: 1 | C40: 1 | D40: 1 | E40: 2 | G40: Pajamos natūra | H40: 7 | I40: =I41 -> 0.00 | J40: =J41 -> 0.00 | K40: =K41 -> 0.00 | L40: =L41 -> 0.00
A41: 2 | B41: 1 | C41: 1 | D41: 1 | E41: 2 | F41: 1 | G41: Pajamos natūra | H41: 8 | I41: 0.00 | J41: 0.00 | K41: 0.00 | L41: 0.00
A42: 2 | B42: 1 | C42: 2 | G42: Socialinio draudimo įmokos | H42: 9 | I42: =I43 -> 5180.00 | J42: 5180.00 | K42: 5180.00 | L42: 5180.00
A43: 2 | B43: 1 | C43: 2 | D43: 1 | G43: Socialinio draudimo įmokos | H43: 10 | I43: 5180.00 | J43: 5180.00 | K43: 5180.00 | L43: 5180.00
A44: 2 | B44: 1 | C44: 2 | D44: 1 | E44: 1 | G44: Socialinio draudimo įmokos | H44: 11 | I44: 5180.00 | J44: 5180.00 | K44: 5180.00 | L44: 5180.00
A45: 2 | B45: 1 | C45: 2 | D45: 1 | E45: 1 | F45: 1 | G45: Socialinio draudimo įmokos | H45: 12 | I45: 5180.00 | J45: 5180.00 | K45: 5180.00 | L45: 5180.00
A46: 2 | B46: 2 | G46: Prekių ir paslaugų įsigijimo išlaidos | H46: 13 | I46: =I47 -> 35990.00 | J46: 35990.00 | K46: 34262.39 | L46: 34262.39
A47: 2 | B47: 2 | C47: 1 | G47: Prekių ir paslaugų įsigijimo išlaidos | H47: 14 | I47: 35990.00 | J47: 35990.00 | K47: 34262.39 | L47: 34262.39
A48: 2 | B48: 2 | C48: 1 | D48: 1 | G48: Prekių ir paslaugų įsigijimo išlaidos | H48: 15 | I48: 35990.00 | J48: 35990.00 | K48: 34262.39 | L48: 34262.39
A49: 2 | B49: 2 | C49: 1 | D49: 1 | E49: 1 | G49: Prekių ir paslaugų įsigijimo išlaidos | H49: 16 | I49: =SUM(I50:I65) -> 35990.00 | J49: =SUM(J50:J65) -> 35990.00 | K49: =SUM(K50:K65) -> 34262.39 | L49: =SUM(L50:L65) -> 34262.39
A50: 2 | B50: 2 | C50: 1 | D50: 1 | E50: 1 | F50: 1 | G50: Mitybos išlaidos | H50: 17 | I50: 0.00 | J50: 0.00 | K50: 0.00 | L50: 0.00
A51: 2 | B51: 2 | C51: 1 | D51: 1 | E51: 1 | F51: 2 | G51: Medikamentų ir medicininių prekių bei paslaugų įsigijimo išlaidos | H51: 18 | I51: 311.00 | J51: 311.00 | K51: 310.82 | L51: 310.82
A52: 2 | B52: 2 | C52: 1 | D52: 1 | E52: 1 | F52: 5 | G52: Ryšių įrangos ir ryšių paslaugų įsigijimo išlaidos | H52: 19 | I52: 1700.00 | J52: 1700.00 | K52: 1700.00 | L52: 1700.00
A53: 2 | B53: 2 | C53: 1 | D53: 1 | E53: 1 | F53: 6 | G53: Transporto išlaikymo ir transporto paslaugų įsigijimo išlaidos | H53: 20 | I53: 0.00 | J53: 0.00 | K53: 0.00 | L53: 0.00
A54: 2 | B54: 2 | C54: 1 | D54: 1 | E54: 1 | F54: 7 | G54: Aprangos ir patalynės įsigijimo bei priežiūros išlaidos | H54: 21 | I54: 0.00 | J54: 0.00 | K54: 0.00 | L54: 0.00
A55: 2 | B55: 2 | C55: 1 | D55: 1 | E55: 1 | F55: 11 | G55: Komandiruočių išlaidos | H55: 22 | I55: 684.00 | J55: 684.00 | K55: 683.43 | L55: 683.43
A56: 2 | B56: 2 | C56: 1 | D56: 1 | E56: 1 | F56: 12 | G56: Gyvenamųjų vietovių viešojo ūkio išlaidos | H56: 23 | I56: 0.00 | J56: 0.00 | K56: 0.00 | L56: 0.00
A57: 2 | B57: 2 | C57: 1 | D57: 1 | E57: 1 | F57: 14 | G57: Materialiojo ir nematerialiojo turto nuomos išlaidos | H57: 24 | I57: 0.00 | J57: 0.00 | K57: 0.00 | L57: 0.00
A58: 2 | B58: 2 | C58: 1 | D58: 1 | E58: 1 | F58: 15 | G58: Materialiojo turto paprastojo remonto prekių ir paslaugų įsigijimo išlaidos | H58: 25 | I58: 1464.00 | J58: 1464.00 | K58: 1463.49 | L58: 1463.49
A59: 2 | B59: 2 | C59: 1 | D59: 1 | E59: 1 | F59: 16 | G59: Kvalifikacijos kėlimo išlaidos | H59: 26 | I59: 1026.00 | J59: 1026.00 | K59: 1025.20 | L59: 1025.20
A60: 2 | B60: 2 | C60: 1 | D60: 1 | E60: 1 | F60: 17 | G60: Ekspertų ir konsultantų paslaugų įsigijimo išlaidos | H60: 27 | I60: 0.00 | J60: 0.00 | K60: 0.00 | L60: 0.00
A61: 2 | B61: 2 | C61: 1 | D61: 1 | E61: 1 | F61: 20 | G61: Komunalinių paslaugų įsigijimo išlaidos | H61: 28 | I61: 19700.00 | J61: 19700.00 | K61: 17975.46 | L61: 17975.46
A62: 2 | B62: 2 | C62: 1 | D62: 1 | E62: 1 | F62: 21 | G62: Informacinių technologijų prekių ir paslaugų įsigijimo išlaidos | H62: 29 | I62: 4500.00 | J62: 4500.00 | K62: 4500.00 | L62: 4500.00
A63: 2 | B63: 2 | C63: 1 | D63: 1 | E63: 1 | F63: 22 | G63: Reprezentacinės išlaidos | H63: 30 | I63: 300.00 | J63: 300.00 | K63: 300.00 | L63: 300.00
A64: 2 | B64: 2 | C64: 1 | D64: 1 | E64: 1 | F64: 23 | G64: Viešinimo išlaidos | H64: 31 | I64: 0.00 | J64: 0.00 | K64: 0.00 | L64: 0.00
A65: 2 | B65: 2 | C65: 1 | D65: 1 | E65: 1 | F65: 30 | G65: Kitų prekių ir paslaugų įsigijimo išlaidos | H65: 32 | I65: 6305.00 | J65: 6305.00 | K65: 6303.99 | L65: 6303.99
A66: 2 | B66: 3 | G66: Palūkanos | H66: 33 | I66: =I67 -> 0.00 | J66: =J67 -> 0.00 | K66: =K67 -> 0.00 | L66: =L67 -> 0.00
A67: 2 | B67: 3 | C67: 1 | G67: Palūkanos | H67: 34 | I67: =SUM(I68+I73+I78) -> 0.00 | J67: =SUM(J68+J73+J78) -> 0.00 | K67: =SUM(K68+K73+K78) -> 0.00 | L67: =SUM(L68+L73+L78) -> 0.00
A68: 2 | B68: 3 | C68: 1 | D68: 1 | G68: Palūkanos nerezidentams | H68: 35 | I68: =I69 -> 0.00 | J68: =J69 -> 0.00 | K68: =K69 -> 0.00 | L68: =L69 -> 0.00
A69: 2 | B69: 3 | C69: 1 | D69: 1 | E69: 1 | G69: Palūkanos nerezidentams | H69: 36 | I69: =SUM(I70:I72) -> 0.00 | J69: =SUM(J70:J72) -> 0.00 | K69: =SUM(K70:K72) -> 0.00 | L69: =SUM(L70:L72) -> 0.00
A70: 2 | B70: 3 | C70: 1 | D70: 1 | E70: 1 | F70: 1 | G70: Asignavimų valdytojų sumokėtos palūkanos | H70: 37 | I70: 0.00 | J70: 0.00 | K70: 0.00 | L70: 0.00
A71: 2 | B71: 3 | C71: 1 | D71: 1 | E71: 1 | F71: 2 | G71: Finansų ministerijos sumokėtos palūkanos | H71: 38 | I71: 0.00 | J71: 0.00 | K71: 0.00 | L71: 0.00
A72: 2 | B72: 3 | C72: 1 | D72: 1 | E72: 1 | F72: 3 | G72: Savivaldybių sumokėtos palūkanos | H72: 39 | I72: 0.00 | J72: 0.00 | K72: 0.00 | L72: 0.00
A73: 2 | B73: 3 | C73: 1 | D73: 2 | G73: Palūkanos rezidentams, kitiems nei valdžios sektorius (tik už tiesioginę skolą) | H73: 40 | I73: =I74 -> 0.00 | J73: =J74 -> 0.00 | K73: =K74 -> 0.00 | L73: =L74 -> 0.00
A74: 2 | B74: 3 | C74: 1 | D74: 2 | E74: 1 | G74: Palūkanos rezidentams, kitiems nei valdžios sektorius (tik už tiesioginę skolą) | H74: 41 | I74: =SUM(I75:I77) -> 0.00 | J74: =SUM(J75:J77) -> 0.00 | K74: =SUM(K75:K77) -> 0.00 | L74: =SUM(L75:L77) -> 0.00
A75: 2 | B75: 3 | C75: 1 | D75: 2 | E75: 1 | F75: 1 | G75: Asignavimų valdytojų sumokėtos palūkanos | H75: 42 | I75: 0.00 | J75: 0.00 | K75: 0.00 | L75: 0.00
A76: 2 | B76: 3 | C76: 1 | D76: 2 | E76: 1 | F76: 2 | G76: Finansų ministerijos sumokėtos palūkanos | H76: 43 | I76: 0.00 | J76: 0.00 | K76: 0.00 | L76: 0.00
A77: 2 | B77: 3 | C77: 1 | D77: 2 | E77: 1 | F77: 3 | G77: Savivaldybių sumokėtos palūkanos | H77: 44 | I77: 0.00 | J77: 0.00 | K77: 0.00 | L77: 0.00
A78: 2 | B78: 3 | C78: 1 | D78: 3 | G78: Palūkanos kitiems valdžios sektoriaus subjektams | H78: 45 | I78: =I79 -> 0.00 | J78: =J79 -> 0.00 | K78: =K79 -> 0.00 | L78: =L79 -> 0.00
A79: 2 | B79: 3 | C79: 1 | D79: 3 | E79: 1 | G79: Palūkanos kitiems valdžios sektoriaus subjektams | H79: 46 | I79: =SUM(I80:I82) -> 0.00 | J79: =SUM(J80:J82) -> 0.00 | K79: =SUM(K80:K82) -> 0.00 | L79: =SUM(L80:L82) -> 0.00
A80: 2 | B80: 3 | C80: 1 | D80: 3 | E80: 1 | F80: 1 | G80: Palūkanos valstybės biudžetui | H80: 47 | I80: 0.00 | J80: 0.00 | K80: 0.00 | L80: 0.00
A81: 2 | B81: 3 | C81: 1 | D81: 3 | E81: 1 | F81: 2 | G81: Palūkanos savivaldybių biudžetams | H81: 48 | I81: 0.00 | J81: 0.00 | K81: 0.00 | L81: 0.00
A82: 2 | B82: 3 | C82: 1 | D82: 3 | E82: 1 | F82: 3 | G82: Palūkanos nebiudžetiniams fondams | H82: 49 | I82: 0.00 | J82: 0.00 | K82: 0.00 | L82: 0.00
A83: 2 | B83: 3 | C83: 2 | G83: Žemės nuoma | H83: 50 | I83: =I84 -> 0.00 | J83: 0.00 | K83: 0.00 | L83: 0.00
A84: 2 | B84: 3 | C84: 2 | D84: 1 | G84: Žemės nuoma | H84: 51 | I84: 0.00 | J84: 0.00 | K84: 0.00 | L84: 0.00
A85: 2 | B85: 3 | C85: 2 | D85: 1 | E85: 1 | G85: Žemės nuoma | H85: 52 | I85: =SUM(I86) -> 0.00 | J85: =SUM(J86) -> 0.00 | K85: =SUM(K86) -> 0.00 | L85: =SUM(L86) -> 0.00
A86: 2 | B86: 3 | C86: 2 | D86: 1 | E86: 1 | F86: 1 | G86: Žemės nuoma | H86: 53 | I86: 0.00 | J86: 0.00 | K86: 0.00 | L86: 0.00
A87: 2 | B87: 4 | G87: Subsidijos | H87: 54 | I87: =I88 -> 0.00 | J87: 0.00 | K87: 0.00 | L87: 0.00
A88: 2 | B88: 4 | C88: 1 | G88: Subsidijos iš biudžeto lėšų | H88: 55 | I88: 0.00 | J88: 0.00 | K88: 0.00 | L88: 0.00
A89: 2 | B89: 4 | C89: 1 | D89: 1 | G89: Subsidijos iš biudžeto lėšų | H89: 56 | I89: 0.00 | J89: 0.00 | K89: 0.00 | L89: 0.00
A90: 2 | B90: 4 | C90: 1 | D90: 1 | E90: 1 | G90: Subsidijos iš biudžeto lėšų | H90: 57 | I90: =SUM(I91:I93) -> 0.00 | J90: =SUM(J91:J93) -> 0.00 | K90: =SUM(K91:K93) -> 0.00 | L90: =SUM(L91:L93) -> 0.00
A91: 2 | B91: 4 | C91: 1 | D91: 1 | E91: 1 | F91: 1 | G91: Subsidijos importui | H91: 58 | I91: 0.00 | J91: 0.00 | K91: 0.00 | L91: 0.00
A92: 2 | B92: 4 | C92: 1 | D92: 1 | E92: 1 | F92: 2 | G92: Subsidijos gaminiams | H92: 59 | I92: 0.00 | J92: 0.00 | K92: 0.00 | L92: 0.00
A93: 2 | B93: 4 | C93: 1 | D93: 1 | E93: 1 | F93: 3 | G93: Subsidijos gamybai | H93: 60 | I93: 0.00 | J93: 0.00 | K93: 0.00 | L93: 0.00
A94: 2 | B94: 5 | G94: Dotacijos | H94: 61 | I94: =SUM(I95+I100+I105) -> 0.00 | J94: =SUM(J95+J100+J105) -> 0.00 | K94: =SUM(K95+K100+K105) -> 0.00 | L94: =SUM(L95+L100+L105) -> 0.00
A95: 2 | B95: 5 | C95: 1 | G95: Dotacijos užsienio valstybėms | H95: 62 | I95: =I96 -> 0.00 | J95: 0.00 | K95: 0.00 | L95: 0.00
A96: 2 | B96: 5 | C96: 1 | D96: 1 | G96: Dotacijos užsienio valstybėms | H96: 63 | I96: 0.00 | J96: 0.00 | K96: 0.00 | L96: 0.00
A97: 2 | B97: 5 | C97: 1 | D97: 1 | E97: 1 | G97: Dotacijos užsienio valstybėms | H97: 64 | I97: =SUM(I98:I99) -> 0.00 | J97: =SUM(J98:J99) -> 0.00 | K97: =SUM(K98:K99) -> 0.00 | L97: =SUM(L98:L99) -> 0.00
A98: 2 | B98: 5 | C98: 1 | D98: 1 | E98: 1 | F98: 1 | G98: Dotacijos užsienio valstybėms einamiesiems tikslams | H98: 65 | I98: 0.00 | J98: 0.00 | K98: 0.00 | L98: 0.00
A99: 2 | B99: 5 | C99: 1 | D99: 1 | E99: 1 | F99: 2 | G99: Dotacijos užsienio valstybėms turtui įsigyti | H99: 66 | I99: 0.00 | J99: 0.00 | K99: 0.00 | L99: 0.00
A100: 2 | B100: 5 | C100: 2 | G100: Dotacijos tarptautinėms organizacijoms | H100: 67 | I100: =I101 -> 0.00 | J100: 0.00 | K100: 0.00 | L100: 0.00
A101: 2 | B101: 5 | C101: 2 | D101: 1 | G101: Dotacijos tarptautinėms organizacijoms | H101: 68 | I101: 0.00 | J101: 0.00 | K101: 0.00 | L101: 0.00
A102: 2 | B102: 5 | C102: 2 | D102: 1 | E102: 1 | G102: Dotacijos tarptautinėms organizacijoms | H102: 69 | I102: =SUM(I103:I104) -> 0.00 | J102: =SUM(J103:J104) -> 0.00 | K102: =SUM(K103:K104) -> 0.00 | L102: =SUM(L103:L104) -> 0.00
A103: 2 | B103: 5 | C103: 2 | D103: 1 | E103: 1 | F103: 1 | G103: Dotacijos tarptautinėms organizacijoms einamiesiems tikslams | H103: 70 | I103: 0.00 | J103: 0.00 | K103: 0.00 | L103: 0.00
A104: 2 | B104: 5 | C104: 2 | D104: 1 | E104: 1 | F104: 2 | G104: Dotacijos tarptautinėms organizacijoms turtui įsigyti | H104: 71 | I104: 0.00 | J104: 0.00 | K104: 0.00 | L104: 0.00
A105: 2 | B105: 5 | C105: 3 | G105: Dotacijos kitiems valdžios sektoriaus subjektams | H105: 72 | I105: =I106+I110 -> 0.00 | J105: =J106+J110 -> 0.00 | K105: =K106+K110 -> 0.00 | L105: =L106+L110 -> 0.00
A106: 2 | B106: 5 | C106: 3 | D106: 1 | G106: Dotacijos kitiems valdžios sektoriaus subjektams einamiesiems tikslams | H106: 73 | I106: =I107 -> 0.00 | J106: =J107 -> 0.00 | K106: =K107 -> 0.00 | L106: =L107 -> 0.00
A107: 2 | B107: 5 | C107: 3 | D107: 1 | E107: 1 | G107: Dotacijos kitiems valdžios sektoriaus subjektams einamiesiems tikslams | H107: 74 | I107: =SUM(I108:I109) -> 0.00 | J107: =SUM(J108:J109) -> 0.00 | K107: =SUM(K108:K109) -> 0.00 | L107: =SUM(L108:L109) -> 0.00
A108: 2 | B108: 5 | C108: 3 | D108: 1 | E108: 1 | F108: 1 | G108: Dotacijos kitiems valdžios sektoriaus subjektams einamiesiems tikslams | H108: 75 | I108: 0.00 | J108: 0.00 | K108: 0.00 | L108: 0.00
A109: 2 | B109: 5 | C109: 3 | D109: 1 | E109: 1 | F109: 2 | G109: Dotacijos savivaldybėms einamiesiems tikslams | H109: 76 | I109: 0.00 | J109: 0.00 | K109: 0.00 | L109: 0.00
A110: 2 | B110: 5 | C110: 3 | D110: 2 | G110: Dotacijos kitiems valdžios sektoriaus subjektams turtui įsigyti | H110: 77 | I110: =I111 -> 0.00 | J110: =J111 -> 0.00 | K110: =K111 -> 0.00 | L110: =L111 -> 0.00
A111: 2 | B111: 5 | C111: 3 | D111: 2 | E111: 1 | G111: Dotacijos kitiems valdžios sektoriaus subjektams turtui įsigyti | H111: 78 | I111: =SUM(I112:I113) -> 0.00 | J111: =SUM(J112:J113) -> 0.00 | K111: =SUM(K112:K113) -> 0.00 | L111: =SUM(L112:L113) -> 0.00
A112: 2 | B112: 5 | C112: 3 | D112: 2 | E112: 1 | F112: 1 | G112: Dotacijos kitiems valdžios sektoriaus subjektams turtui įsigyti | H112: 79 | I112: 0.00 | J112: 0.00 | K112: 0.00 | L112: 0.00
A113: 2 | B113: 5 | C113: 3 | D113: 2 | E113: 1 | F113: 2 | G113: Dotacijos savivaldybėms turtui įsigyti | H113: 80 | I113: 0.00 | J113: 0.00 | K113: 0.00 | L113: 0.00
A114: 2 | B114: 6 | G114: Įmokos į Europos Sąjungos biudžetą | H114: 81 | I114: =SUM(I115+I120+I124+I128+I132+I136) -> 0.00 | J114: =SUM(J115+J120+J124+J128+J132+J136) -> 0.00 | K114: =SUM(K115+K120+K124+K128+K132+K136) -> 0.00 | L114: =SUM(L115+L120+L124+L128+L132+L136) -> 0.00
A115: 2 | B115: 6 | C115: 1 | G115: Tradiciniai nuosavi ištekliai | H115: 82 | I115: =I116 -> 0.00 | J115: 0.00 | K115: 0.00 | L115: 0.00
A116: 2 | B116: 6 | C116: 1 | D116: 1 | G116: Tradiciniai nuosavi ištekliai | H116: 83 | I116: 0.00 | J116: 0.00 | K116: 0.00 | L116: 0.00
A117: 2 | B117: 6 | C117: 1 | D117: 1 | E117: 1 | G117: Tradiciniai nuosavi ištekliai | H117: 84 | I117: =SUM(I118:I119) -> 0.00 | J117: =SUM(J118:J119) -> 0.00 | K117: =SUM(K118:K119) -> 0.00 | L117: =SUM(L118:L119) -> 0.00
A118: 2 | B118: 6 | C118: 1 | D118: 1 | E118: 1 | F118: 1 | G118: Muitai | H118: 85 | I118: 0.00 | J118: 0.00 | K118: 0.00 | L118: 0.00
A119: 2 | B119: 6 | C119: 1 | D119: 1 | E119: 1 | F119: 2 | G119: Cukraus sektoriaus mokesčiai | H119: 86 | I119: 0.00 | J119: 0.00 | K119: 0.00 | L119: 0.00
A120: 2 | B120: 6 | C120: 2 | G120: Pridėtinės vertės mokesčio nuosavi ištekliai | H120: 87 | I120: =I121 -> 0.00 | J120: 0.00 | K120: 0.00 | L120: 0.00
A121: 2 | B121: 6 | C121: 2 | D121: 1 | G121: Pridėtinės vertės mokesčio nuosavi ištekliai | H121: 88 | I121: 0.00 | J121: 0.00 | K121: 0.00 | L121: 0.00
A122: 2 | B122: 6 | C122: 2 | D122: 1 | E122: 1 | G122: Pridėtinės vertės mokesčio nuosavi ištekliai | H122: 89 | I122: 0.00 | J122: 0.00 | K122: 0.00 | L122: 0.00
A123: 2 | B123: 6 | C123: 2 | D123: 1 | E123: 1 | F123: 1 | G123: Pridėtinės vertės mokesčio nuosavi ištekliai | H123: 90 | I123: 0.00 | J123: 0.00 | K123: 0.00 | L123: 0.00
A124: 2 | B124: 6 | C124: 3 | G124: Bendrųjų nacionalinių pajamų nuosavi ištekliai | H124: 91 | I124: =I125 -> 0.00 | J124: 0.00 | K124: 0.00 | L124: 0.00
A125: 2 | B125: 6 | C125: 3 | D125: 1 | G125: Bendrųjų nacionalinių pajamų nuosavi ištekliai | H125: 92 | I125: 0.00 | J125: 0.00 | K125: 0.00 | L125: 0.00
A126: 2 | B126: 6 | C126: 3 | D126: 1 | E126: 1 | G126: Bendrųjų nacionalinių pajamų nuosavi ištekliai | H126: 93 | I126: 0.00 | J126: 0.00 | K126: 0.00 | L126: 0.00
A127: 2 | B127: 6 | C127: 3 | D127: 1 | E127: 1 | F127: 1 | G127: Bendrųjų nacionalinių pajamų nuosavi ištekliai | H127: 94 | I127: 0.00 | J127: 0.00 | K127: 0.00 | L127: 0.00
A128: 2 | B128: 6 | C128: 4 | G128: Biudžeto disbalansų korekcija Jungtinės Karalystės naudai | H128: 95 | I128: =I129 -> 0.00 | J128: 0.00 | K128: 0.00 | L128: 0.00
A129: 2 | B129: 6 | C129: 4 | D129: 1 | G129: Biudžeto disbalansų korekcija Jungtinės Karalystės naudai | H129: 96 | I129: 0.00 | J129: 0.00 | K129: 0.00 | L129: 0.00
A130: 2 | B130: 6 | C130: 4 | D130: 1 | E130: 1 | G130: Biudžeto disbalansų korekcija Jungtinės Karalystės naudai | H130: 97 | I130: 0.00 | J130: 0.00 | K130: 0.00 | L130: 0.00
A131: 2 | B131: 6 | C131: 4 | D131: 1 | E131: 1 | F131: 1 | G131: Biudžeto disbalansų korekcija Jungtinės Karalystės naudai | H131: 98 | I131: 0.00 | J131: 0.00 | K131: 0.00 | L131: 0.00
A132: 2 | B132: 6 | C132: 5 | G132: Su nuosavais ištekliais susijusios baudos, delspinigiai ir neigiamos palūkanos | H132: 99 | I132: =I133 -> 0.00 | J132: 0.00 | K132: 0.00 | L132: 0.00
A133: 2 | B133: 6 | C133: 5 | D133: 1 | G133: Su nuosavais ištekliais susijusios baudos, delspinigiai ir neigiamos palūkanos | H133: 100 | I133: 0.00 | J133: 0.00 | K133: 0.00 | L133: 0.00
A134: 2 | B134: 6 | C134: 5 | D134: 1 | E134: 1 | G134: Su nuosavais ištekliais susijusios baudos, delspinigiai ir neigiamos palūkanos | H134: 101 | I134: 0.00 | J134: 0.00 | K134: 0.00 | L134: 0.00
A135: 2 | B135: 6 | C135: 5 | D135: 1 | E135: 1 | F135: 1 | G135: Su nuosavais ištekliais susijusios baudos, delspinigiai ir neigiamos palūkanos | H135: 102 | I135: 0.00 | J135: 0.00 | K135: 0.00 | L135: 0.00
A136: 2 | B136: 6 | C136: 6 | G136: Neperdirbto plastiko atliekų nuosavi ištekliai | H136: 103 | I136: =I137 -> 0.00 | J136: 0.00 | K136: 0.00 | L136: 0.00
A137: 2 | B137: 6 | C137: 6 | D137: 1 | G137: Neperdirbto plastiko atliekų nuosavi ištekliai | H137: 104 | I137: 0.00 | J137: 0.00 | K137: 0.00 | L137: 0.00
A138: 2 | B138: 6 | C138: 6 | D138: 1 | E138: 1 | G138: Neperdirbto plastiko atliekų nuosavi ištekliai | H138: 105 | I138: 0.00 | J138: 0.00 | K138: 0.00 | L138: 0.00
A139: 2 | B139: 6 | C139: 6 | D139: 1 | E139: 1 | F139: 1 | G139: Neperdirbto plastiko atliekų nuosavi ištekliai | H139: 106 | I139: 0.00 | J139: 0.00 | K139: 0.00 | L139: 0.00
A140: 2 | B140: 7 | G140: Socialinės išmokos (pašalpos) | H140: 107 | I140: =SUM(I141+I146+I154) -> 5840.00 | J140: =SUM(J141+J146+J154) -> 5840.00 | K140: =SUM(K141+K146+K154) -> 5840.00 | L140: =SUM(L141+L146+L154) -> 5840.00
A141: 2 | B141: 7 | C141: 1 | G141: Socialinio draudimo išmokos (pašalpos) | H141: 108 | I141: =I142 -> 0.00 | J141: 0.00 | K141: 0.00 | L141: 0.00
A142: 2 | B142: 7 | C142: 1 | D142: 1 | G142: Socialinio draudimo išmokos (pašalpos) | H142: 109 | I142: 0.00 | J142: 0.00 | K142: 0.00 | L142: 0.00
A143: 2 | B143: 7 | C143: 1 | D143: 1 | E143: 1 | G143: Socialinio draudimo išmokos (pašalpos) | H143: 110 | I143: =SUM(I144:I145) -> 0.00 | J143: =SUM(J144:J145) -> 0.00 | K143: =SUM(K144:K145) -> 0.00 | L143: =SUM(L144:L145) -> 0.00
A144: 2 | B144: 7 | C144: 1 | D144: 1 | E144: 1 | F144: 1 | G144: Socialinio draudimo išmokos pinigais | H144: 111 | I144: 0.00 | J144: 0.00 | K144: 0.00 | L144: 0.00
A145: 2 | B145: 7 | C145: 1 | D145: 1 | E145: 1 | F145: 2 | G145: Socialinio draudimo išmokos natūra | H145: 112 | I145: 0.00 | J145: 0.00 | K145: 0.00 | L145: 0.00
A146: 2 | B146: 7 | C146: 2 | G146: Socialinė parama (socialinės paramos pašalpos) ir rentos | H146: 113 | I146: =I147 -> 0.00 | J146: 0.00 | K146: 0.00 | L146: 0.00
A147: 2 | B147: 7 | C147: 2 | D147: 1 | G147: Socialinė parama (socialinės paramos pašalpos) | H147: 114 | I147: 0.00 | J147: 0.00 | K147: 0.00 | L147: 0.00
A148: 2 | B148: 7 | C148: 2 | D148: 1 | E148: 1 | G148: Socialinė parama (socialinės paramos pašalpos) | H148: 115 | I148: =SUM(I149:I150) -> 0.00 | J148: =SUM(J149:J150) -> 0.00 | K148: =SUM(K149:K150) -> 0.00 | L148: =SUM(L149:L150) -> 0.00
A149: 2 | B149: 7 | C149: 2 | D149: 1 | E149: 1 | F149: 1 | G149: Socialinė parama pinigais | H149: 116 | I149: 0.00 | J149: 0.00 | K149: 0.00 | L149: 0.00
A150: 2 | B150: 7 | C150: 2 | D150: 1 | E150: 1 | F150: 2 | G150: Socialinė parama natūra | H150: 117 | I150: 0.00 | J150: 0.00 | K150: 0.00 | L150: 0.00
A151: 2 | B151: 7 | C151: 2 | D151: 2 | G151: Rentos | H151: 118 | I151: =I152 -> 0.00 | J151: =J152 -> 0.00 | K151: =K152 -> 0.00 | L151: =L152 -> 0.00
A152: 2 | B152: 7 | C152: 2 | D152: 2 | E152: 1 | G152: Rentos | H152: 119 | I152: =SUM(I153) -> 0.00 | J152: =SUM(J153) -> 0.00 | K152: =SUM(K153) -> 0.00 | L152: =SUM(L153) -> 0.00
A153: 2 | B153: 7 | C153: 2 | D153: 2 | E153: 1 | F153: 1 | G153: Rentos | H153: 120 | I153: 0.00 | J153: 0.00 | K153: 0.00 | L153: 0.00
A154: 2 | B154: 7 | C154: 3 | G154: Darbdavių socialinė parama | H154: 121 | I154: =I155 -> 5840.00 | J154: 5840.00 | K154: 5840.00 | L154: 5840.00
A155: 2 | B155: 7 | C155: 3 | D155: 1 | G155: Darbdavių socialinė parama | H155: 122 | I155: 5840.00 | J155: 5840.00 | K155: 5840.00 | L155: 5840.00
A156: 2 | B156: 7 | C156: 3 | D156: 1 | E156: 1 | G156: Darbdavių socialinė parama | H156: 123 | I156: =SUM(I157:I158) -> 5840.00 | J156: =SUM(J157:J158) -> 5840.00 | K156: =SUM(K157:K158) -> 5840.00 | L156: =SUM(L157:L158) -> 5840.00
A157: 2 | B157: 7 | C157: 3 | D157: 1 | E157: 1 | F157: 1 | G157: Darbdavių socialinė parama pinigais | H157: 124 | I157: 5840.00 | J157: 5840.00 | K157: 5840.00 | L157: 5840.00
A158: 2 | B158: 7 | C158: 3 | D158: 1 | E158: 1 | F158: 2 | G158: Darbdavių socialinė parama natūra | H158: 125 | I158: 0.00 | J158: 0.00 | K158: 0.00 | L158: 0.00
A159: 2 | B159: 8 | G159: Kitos išlaidos | H159: 126 | I159: =I160 -> 0.00 | J159: =J160 -> 0.00 | K159: =K160 -> 0.00 | L159: =L160 -> 0.00
A160: 2 | B160: 8 | C160: 1 | G160: Kitos išlaidos | H160: 127 | I160: =I161+I166 -> 0.00 | J160: =J161+J166 -> 0.00 | K160: =K161+K166 -> 0.00 | L160: =L161+L166 -> 0.00
A161: 2 | B161: 8 | C161: 1 | D161: 1 | G161: Kitos išlaidos einamiesiems tikslams | H161: 128 | I161: =I162 -> 0.00 | J161: =J162 -> 0.00 | K161: =K162 -> 0.00 | L161: =L162 -> 0.00
A162: 2 | B162: 8 | C162: 1 | D162: 1 | E162: 1 | G162: Kitos išlaidos einamiesiems tikslams | H162: 129 | I162: =SUM(I163:I165) -> 0.00 | J162: =SUM(J163:J165) -> 0.00 | K162: =SUM(K163:K165) -> 0.00 | L162: =SUM(L163:L165) -> 0.00
A163: 2 | B163: 8 | C163: 1 | D163: 1 | E163: 1 | F163: 1 | G163: Stipendijoms | H163: 130 | I163: 0.00 | J163: 0.00 | K163: 0.00 | L163: 0.00
A164: 2 | B164: 8 | C164: 1 | D164: 1 | E164: 1 | F164: 2 | G164: Kitos išlaidos kitiems einamiesiems tikslams | H164: 131 | I164: 0.00 | J164: 0.00 | K164: 0.00 | L164: 0.00
A165: 2 | B165: 8 | C165: 1 | D165: 1 | E165: 1 | F165: 3 | G165: Valiutos kurso įtaka | H165: 132 | I165: 0.00 | J165: 0.00 | K165: 0.00 | L165: 0.00
A166: 2 | B166: 8 | C166: 1 | D166: 2 | G166: Kitos išlaidos turtui įsigyti | H166: 133 | I166: =I167 -> 0.00 | J166: 0.00 | K166: 0.00 | L166: 0.00
A167: 2 | B167: 8 | C167: 1 | D167: 2 | E167: 1 | G167: Kitos išlaidos turtui įsigyti | H167: 134 | I167: 0.00 | J167: 0.00 | K167: 0.00 | L167: 0.00
A168: 2 | B168: 8 | C168: 1 | D168: 2 | E168: 1 | F168: 1 | G168: Kitos išlaidos turtui įsigyti | H168: 135 | I168: 0.00 | J168: 0.00 | K168: 0.00 | L168: 0.00
A169: 2 | B169: 9 | G169: Pervedamos Europos Sąjungos, kitos tarptautinės finansinės paramos, bendrojo finansavimo lėšos ir kitos bendrai finansuojamiems iš Europos Sąjungos ar kitos tarptautinės finansinės paramos lėšų projektams įgyvendinti skirtos valstybės biudžeto lėšos | H169: 136 | I169: =I170+I174 -> 0.00 | J169: =J170+J174 -> 0.00 | K169: =K170+K174 -> 0.00 | L169: =L170+L174 -> 0.00
A170: 2 | B170: 9 | C170: 1 | G170: Subsidijos iš Europos Sąjungos ir kitos tarptautinės finansinės paramos lėšų (ne valdžios sektoriui) | H170: 137 | I170: =I171 -> 0.00 | J170: 0.00 | K170: 0.00 | L170: 0.00
A171: 2 | B171: 9 | C171: 1 | D171: 1 | G171: Subsidijos iš Europos Sąjungos ir kitos tarptautinės finansinės paramos lėšų (ne valdžios sektoriui) | H171: 138 | I171: 0.00 | J171: 0.00 | K171: 0.00 | L171: 0.00
A172: 2 | B172: 9 | C172: 1 | D172: 1 | E172: 1 | G172: Subsidijos iš Europos Sąjungos ir kitos tarptautinės finansinės paramos lėšų (ne valdžios sektoriui) | H172: 139 | I172: 0.00 | J172: 0.00 | K172: 0.00 | L172: 0.00
A173: 2 | B173: 9 | C173: 1 | D173: 1 | E173: 1 | F173: 1 | G173: Subsidijos iš Europos Sąjungos ir kitos tarptautinės finansinės paramos lėšų (ne valdžios sektoriui) | H173: 140 | I173: 0.00 | J173: 0.00 | K173: 0.00 | L173: 0.00
A174: 2 | B174: 9 | C174: 2 | G174: Pervedamos Europos Sąjungos, kitos tarptautinės finansinės paramos, bendrojo finansavimo lėšos ir kitos bendrai finansuojamiems iš Europos Sąjungos ar kitos tarptautinės finansinės paramos lėšų projektams įgyvendinti skirtos valstybės biudžeto lėšos | H174: 141 | I174: =SUM(I175+I180) -> 0.00 | J174: =SUM(J175+J180) -> 0.00 | K174: =SUM(K175+K180) -> 0.00 | L174: =SUM(L175+L180) -> 0.00
A175: 2 | B175: 9 | C175: 2 | D175: 1 | G175: Pervedamos Europos Sąjungos, kitos tarptautinės finansinės paramos, bendrojo finansavimo lėšos ir kitos bendrai finansuojamiems iš Europos Sąjungos ar kitos tarptautinės finansinės paramos lėšų projektams įgyvendinti skirtos valstybės biudžeto lėšos einamiesiems tikslams | H175: 142 | I175: =I176 -> 0.00 | J175: =J176 -> 0.00 | K175: =K176 -> 0.00 | L175: =L176 -> 0.00
A176: 2 | B176: 9 | C176: 2 | D176: 1 | E176: 1 | G176: Pervedamos Europos Sąjungos, kitos tarptautinės finansinės paramos, bendrojo finansavimo lėšos ir kitos bendrai finansuojamiems iš Europos Sąjungos ar kitos tarptautinės finansinės paramos lėšų projektams įgyvendinti skirtos valstybės biudžeto lėšos einamiesiems tikslams | H176: 143 | I176: =SUM(I177:I179) -> 0.00 | J176: =SUM(J177:J179) -> 0.00 | K176: =SUM(K177:K179) -> 0.00 | L176: =SUM(L177:L179) -> 0.00
A177: 2 | B177: 9 | C177: 2 | D177: 1 | E177: 1 | F177: 1 | G177: Pervedamos Europos Sąjungos, kitos tarptautinės finansinės paramos, bendrojo finansavimo lėšos ir kitos bendrai finansuojamiems iš Europos Sąjungos ar kitos tarptautinės finansinės paramos lėšų projektams įgyvendinti skirtos valstybės biudžeto lėšos einamiesiems tikslams savivaldybėms | H177: 144 | I177: 0.00 | J177: 0.00 | K177: 0.00 | L177: 0.00
A178: 2 | B178: 9 | C178: 2 | D178: 1 | E178: 1 | F178: 2 | G178: Pervedamos Europos Sąjungos, kitos tarptautinės finansinės paramos, bendrojo finansavimo lėšos ir kitos bendrai finansuojamiems iš Europos Sąjungos ar kitos tarptautinės finansinės paramos lėšų projektams įgyvendinti skirtos valstybės biudžeto lėšos einamiesiems tikslams kitiems valdžios sektoriaus subjektams | H178: 145 | I178: 0.00 | J178: 0.00 | K178: 0.00 | L178: 0.00
A179: 2 | B179: 9 | C179: 2 | D179: 1 | E179: 1 | F179: 3 | G179: Pervedamos Europos Sąjungos, kitos tarptautinės finansinės paramos, bendrojo finansavimo lėšos ir kitos bendrai finansuojamiems iš Europos Sąjungos ar kitos tarptautinės finansinės paramos lėšų projektams įgyvendinti skirtos valstybės biudžeto lėšos einamiesiems tikslams ne valdžios sektoriui | H179: 146 | I179: 0.00 | J179: 0.00 | K179: 0.00 | L179: 0.00
A180: 2 | B180: 9 | C180: 2 | D180: 2 | G180: Pervedamos Europos Sąjungos, kitos tarptautinės finansinės paramos, bendrojo finansavimo lėšos ir kitos bendrai finansuojamiems iš Europos Sąjungos ar kitos tarptautinės finansinės paramos lėšų projektams įgyvendinti skirtos valstybės biudžeto lėšos investicijoms | H180: 147 | I180: =I181 -> 0.00 | J180: =J181 -> 0.00 | K180: =K181 -> 0.00 | L180: =L181 -> 0.00
A181: 2 | B181: 9 | C181: 2 | D181: 2 | E181: 1 | G181: Pervedamos Europos Sąjungos, kitos tarptautinės finansinės paramos, bendrojo finansavimo lėšos ir kitos bendrai finansuojamiems iš Europos Sąjungos ar kitos tarptautinės finansinės paramos lėšų projektams įgyvendinti skirtos valstybės biudžeto lėšos investicijoms | H181: 148 | I181: =SUM(I182:I184) -> 0.00 | J181: =SUM(J182:J184) -> 0.00 | K181: =SUM(K182:K184) -> 0.00 | L181: =SUM(L182:L184) -> 0.00
A182: 2 | B182: 9 | C182: 2 | D182: 2 | E182: 1 | F182: 1 | G182: Pervedamos Europos Sąjungos, kitos tarptautinės finansinės paramos, bendrojo finansavimo lėšos ir kitos bendrai finansuojamiems iš Europos Sąjungos ar kitos tarptautinės finansinės paramos lėšų projektams įgyvendinti skirtos valstybės biudžeto lėšos investicijoms, skirtoms savivaldybėms | H182: 149 | I182: 0.00 | J182: 0.00 | K182: 0.00 | L182: 0.00
A183: 2 | B183: 9 | C183: 2 | D183: 2 | E183: 1 | F183: 2 | G183: Pervedamos Europos Sąjungos, kitos tarptautinės finansinės paramos, bendrojo finansavimo lėšos ir kitos bendrai finansuojamiems iš Europos Sąjungos ar kitos tarptautinės finansinės paramos lėšų projektams įgyvendinti skirtos valstybės biudžeto lėšos investicijoms kitiems valdžios sektoriaus subjektams | H183: 150 | I183: 0.00 | J183: 0.00 | K183: 0.00 | L183: 0.00
A184: 2 | B184: 9 | C184: 2 | D184: 2 | E184: 1 | F184: 3 | G184: Pervedamos Europos Sąjungos, kitos tarptautinės finansinės paramos, bendrojo finansavimo lėšos ir kitos bendrai finansuojamiems iš Europos Sąjungos ar kitos tarptautinės finansinės paramos lėšų projektams įgyvendinti skirtos valstybės biudžeto lėšos investicijoms ne valdžios sektoriui | H184: 151 | I184: 0.00 | J184: 0.00 | K184: 0.00 | L184: 0.00
A185: 3 | G185: MATERIALIOJO IR NEMATERIALIOJO TURTO ĮSIGIJIMO, FINANSINIO TURTO PADIDĖJIMO IR FINANSINIŲ ĮSIPAREIGOJIMŲ VYKDYMO IŠLAIDOS | H185: 152 | I185: =SUM(I186+I239+I304) -> 6400.00 | J185: =SUM(J186+J239+J304) -> 6400.00 | K185: =SUM(K186+K239+K304) -> 6400.00 | L185: =SUM(L186+L239+L304) -> 6400.00
A186: 3 | B186: 1 | G186: Materialiojo ir nematerialiojo turto įsigijimo išlaidos | H186: 153 | I186: =SUM(I187+I210+I217+I229+I233) -> 6400.00 | J186: =SUM(J187+J210+J217+J229+J233) -> 6400.00 | K186: =SUM(K187+K210+K217+K229+K233) -> 6400.00 | L186: =SUM(L187+L210+L217+L229+L233) -> 6400.00
A187: 3 | B187: 1 | C187: 1 | G187: Ilgalaikio materialiojo turto kūrimo ir įsigijimo išlaidos | H187: 154 | I187: =SUM(I188+I191+I196+I202+I207) -> 6400.00 | J187: =SUM(J188+J191+J196+J202+J207) -> 6400.00 | K187: =SUM(K188+K191+K196+K202+K207) -> 6400.00 | L187: =SUM(L188+L191+L196+L202+L207) -> 6400.00
A188: 3 | B188: 1 | C188: 1 | D188: 1 | G188: Žemės įsigijimo išlaidos | H188: 155 | I188: =I189 -> 0.00 | J188: 0.00 | K188: 0.00 | L188: 0.00
A189: 3 | B189: 1 | C189: 1 | D189: 1 | E189: 1 | G189: Žemės įsigijimo išlaidos | H189: 156 | I189: 0.00 | J189: 0.00 | K189: 0.00 | L189: 0.00
A190: 3 | B190: 1 | C190: 1 | D190: 1 | E190: 1 | F190: 1 | G190: Žemės įsigijimo išlaidos | H190: 157 | I190: 0.00 | J190: 0.00 | K190: 0.00 | L190: 0.00
A191: 3 | B191: 1 | C191: 1 | D191: 2 | G191: Pastatų ir statinių įsigijimo išlaidos | H191: 158 | I191: =I192 -> 0.00 | J191: =J192 -> 0.00 | K191: =K192 -> 0.00 | L191: =L192 -> 0.00
A192: 3 | B192: 1 | C192: 1 | D192: 2 | E192: 1 | G192: Pastatų ir statinių įsigijimo išlaidos | H192: 159 | I192: =SUM(I193:I195) -> 0.00 | J192: =SUM(J193:J195) -> 0.00 | K192: =SUM(K193:K195) -> 0.00 | L192: =SUM(L193:L195) -> 0.00
A193: 3 | B193: 1 | C193: 1 | D193: 2 | E193: 1 | F193: 1 | G193: Gyvenamųjų namų įsigijimo išlaidos | H193: 160 | I193: 0.00 | J193: 0.00 | K193: 0.00 | L193: 0.00
A194: 3 | B194: 1 | C194: 1 | D194: 2 | E194: 1 | F194: 2 | G194: Negyvenamųjų pastatų įsigijimo išlaidos | H194: 161 | I194: 0.00 | J194: 0.00 | K194: 0.00 | L194: 0.00
A195: 3 | B195: 1 | C195: 1 | D195: 2 | E195: 1 | F195: 3 | G195: Infrastruktūros ir kitų statinių įsigijimo išlaidos | H195: 162 | I195: 0.00 | J195: 0.00 | K195: 0.00 | L195: 0.00
A196: 3 | B196: 1 | C196: 1 | D196: 3 | G196: Mašinų ir įrenginių įsigijimo išlaidos | H196: 163 | I196: =I197 -> 6400.00 | J196: =J197 -> 6400.00 | K196: =K197 -> 6400.00 | L196: =L197 -> 6400.00
A197: 3 | B197: 1 | C197: 1 | D197: 3 | E197: 1 | G197: Mašinų ir įrenginių įsigijimo išlaidos | H197: 164 | I197: =SUM(I198:I201) -> 6400.00 | J197: =SUM(J198:J201) -> 6400.00 | K197: =SUM(K198:K201) -> 6400.00 | L197: =SUM(L198:L201) -> 6400.00
A198: 3 | B198: 1 | C198: 1 | D198: 3 | E198: 1 | F198: 1 | G198: Transporto priemonių įsigijimo išlaidos | H198: 165 | I198: 0.00 | J198: 0.00 | K198: 0.00 | L198: 0.00
A199: 3 | B199: 1 | C199: 1 | D199: 3 | E199: 1 | F199: 2 | G199: Kitų mašinų ir įrenginių įsigijimo išlaidos | H199: 166 | I199: 0.00 | J199: 0.00 | K199: 0.00 | L199: 0.00
A200: 3 | B200: 1 | C200: 1 | D200: 3 | E200: 1 | F200: 3 | G200: Ginklų ir karinės įrangos įsigijimo išlaidos | H200: 167 | I200: 0.00 | J200: 0.00 | K200: 0.00 | L200: 0.00
A201: 3 | B201: 1 | C201: 1 | D201: 3 | E201: 1 | F201: 4 | G201: Kompiuterinės techninės ir elektroninių ryšių įrangos įsigijimo išlaidos | H201: 168 | I201: 6400.00 | J201: 6400.00 | K201: 6400.00 | L201: 6400.00
A202: 3 | B202: 1 | C202: 1 | D202: 4 | G202: Kultūros ir kitų vertybių įsigijimo išlaidos | H202: 169 | I202: =I203 -> 0.00 | J202: =J203 -> 0.00 | K202: =K203 -> 0.00 | L202: =L203 -> 0.00
A203: 3 | B203: 1 | C203: 1 | D203: 4 | E203: 1 | G203: Kultūros ir kitų vertybių įsigijimo išlaidos | H203: 170 | I203: =SUM(I204:I206) -> 0.00 | J203: =SUM(J204:J206) -> 0.00 | K203: =SUM(K204:K206) -> 0.00 | L203: =SUM(L204:L206) -> 0.00
A204: 3 | B204: 1 | C204: 1 | D204: 4 | E204: 1 | F204: 1 | G204: Muziejinių vertybių įsigijimo išlaidos | H204: 171 | I204: 0.00 | J204: 0.00 | K204: 0.00 | L204: 0.00
A205: 3 | B205: 1 | C205: 1 | D205: 4 | E205: 1 | F205: 2 | G205: Antikvarinių ir kitų meno kūrinių įsigijimo išlaidos | H205: 172 | I205: 0.00 | J205: 0.00 | K205: 0.00 | L205: 0.00
A206: 3 | B206: 1 | C206: 1 | D206: 4 | E206: 1 | F206: 3 | G206: Kitų vertybių įsigijimo išlaidos | H206: 173 | I206: 0.00 | J206: 0.00 | K206: 0.00 | L206: 0.00
A207: 3 | B207: 1 | C207: 1 | D207: 5 | G207: Kito ilgalaikio materialiojo turto įsigijimo išlaidos | H207: 174 | I207: =I208 -> 0.00 | J207: 0.00 | K207: 0.00 | L207: 0.00
A208: 3 | B208: 1 | C208: 1 | D208: 5 | E208: 1 | G208: Kito ilgalaikio materialiojo turto įsigijimo išlaidos | H208: 175 | I208: 0.00 | J208: 0.00 | K208: 0.00 | L208: 0.00
... 166 more rows

Sheet Forma Nr.2 SB
J1: Biudžeto vykdymo ataskaitų rinkinių rengimo taisyklių
J2: 1 priedas
A7: (Biudžeto išlaidų sąmatos vykdymo 2025 m. gruodžio mėn. 31 d. I ketvirčio, pusmečio, 9 mėnesių, metų ataskaitos forma, Nr.2)
A9: Vaikų ir jaunimo laisvalaikio centras, 195174984
A10: (įstaigos pavadinimas, kodas Juridinių asmenų registre, adresas)
G12: BIUDŽETO IŠLAIDŲ SĄMATOS VYKDYMO PAGAL
A13: 2025 M. GRUODŽIO MĖN. 31 D.
G14: 4 ketvirtis
G15: (I ketvirčio, pusmečio, 9 mėnesių, metinė)
B16: ATASKAITA
G18: 2026.01.14 Nr.________________
G19: (data)
E21: Žinių visuomenės plėtros programa
A22: (programos pavadinimas)
L23: Kodas
J24: Ministerijos / Savivaldybės
K25: Departamento
A26: 1.1.2.5. Neformaliojo ugdymo programų įgyvendinimas ir tinkamos aplinkos užtikrinimas Gargždų vaikų ir jaunimo laisvalaikio centre | K26: Įstaigos | L26: 195174984
A27: Neformalusis vaikų švietimas | J27: Programos | K27: 1
G28: Finansavimo šaltinio | H28: SB
G29: Valstybės funkcijos | I29: 09 | J29: 05 | K29: 01 | L29: 01
A30: Savivaldybės biudžeto lėšos | L30: (eurais, ct)
A31: Išlaidų ekonominės klasifikacijos kodas | G31: Išlaidų pavadinimas | H31: Eil. Nr. | I31: Asignavimų planas, įskaitant patikslinimus | K31: Gauti asignavimai kartu su įskaitytu praėjusių metų lėšų likučiu | L31: Panaudoti asignavimai
I32: metams | J32: ataskaitiniam laikotarpiui
A33: 1 | G33: 2 | H33: 3 | I33: 4 | J33: 5 | K33: 6 | L33: 7
A34: 2 | G34: IŠLAIDOS | H34: 1 | I34: =SUM(I35+I46+I66+I87+I94+I114+I140+I159+I169) -> 377400.00 | J34: =SUM(J35+J46+J66+J87+J94+J114+J140+J159+J169) -> 377400.00 | K34: =SUM(K35+K46+K66+K87+K94+K114+K140+K159+K169) -> 375673.40 | L34: =SUM(L35+L46+L66+L87+L94+L114+L140+L159+L169) -> 375673.40
A35: 2 | B35: 1 | G35: Darbo užmokestis ir socialinis draudimas | H35: 2 | I35: =SUM(I36+I42) -> 339070.00 | J35: =SUM(J36+J42) -> 339070.00 | K35: =SUM(K36+K42) -> 339070.00 | L35: =SUM(L36+L42) -> 339070.00
A36: 2 | B36: 1 | C36: 1 | G36: Darbo užmokestis | H36: 3 | I36: =SUM(I37) -> 333890.00 | J36: =SUM(J37) -> 333890.00 | K36: =SUM(K37) -> 333890.00 | L36: =SUM(L37) -> 333890.00
A37: 2 | B37: 1 | C37: 1 | D37: 1 | G37: Darbo užmokestis | H37: 4 | I37: =SUM(I38+I40) -> 333890.00 | J37: =SUM(J38+J40) -> 333890.00 | K37: =SUM(K38+K40) -> 333890.00 | L37: =SUM(L38+L40) -> 333890.00
A38: 2 | B38: 1 | C38: 1 | D38: 1 | E38: 1 | G38: Darbo užmokestis pinigais | H38: 5 | I38: =SUM(I39) -> 333890.00 | J38: =SUM(J39) -> 333890.00 | K38: =SUM(K39) -> 333890.00 | L38: =SUM(L39) -> 333890.00
A39: 2 | B39: 1 | C39: 1 | D39: 1 | E39: 1 | F39: 1 | G39: Darbo užmokestis pinigais | H39: 6 | I39: 333890.00 | J39: 333890.00 | K39: 333890.00 | L39: 333890.00
A40: 2 | B40: 1 | C40: 1 | D40: 1 | E40: 2 | G40: Pajamos natūra | H40: 7 | I40: =I41 -> 0.00 | J40: =J41 -> 0.00 | K40: =K41 -> 0.00 | L40: =L41 -> 0.00
A41: 2 | B41: 1 | C41: 1 | D41: 1 | E41: 2 | F41: 1 | G41: Pajamos natūra | H41: 8 | I41: 0.00 | J41: 0.00 | K41: 0.00 | L41: 0.00
A42: 2 | B42: 1 | C42: 2 | G42: Socialinio draudimo įmokos | H42: 9 | I42: =I43 -> 5180.00 | J42: 5180.00 | K42: 5180.00 | L42: 5180.00
A43: 2 | B43: 1 | C43: 2 | D43: 1 | G43: Socialinio draudimo įmokos | H43: 10 | I43: 5180.00 | J43: 5180.00 | K43: 5180.00 | L43: 5180.00
A44: 2 | B44: 1 | C44: 2 | D44: 1 | E44: 1 | G44: Socialinio draudimo įmokos | H44: 11 | I44: 5180.00 | J44: 5180.00 | K44: 5180.00 | L44: 5180.00
A45: 2 | B45: 1 | C45: 2 | D45: 1 | E45: 1 | F45: 1 | G45: Socialinio draudimo įmokos | H45: 12 | I45: 5180.00 | J45: 5180.00 | K45: 5180.00 | L45: 5180.00
A46: 2 | B46: 2 | G46: Prekių ir paslaugų įsigijimo išlaidos | H46: 13 | I46: =I47 -> 32490.00 | J46: 32490.00 | K46: 30763.40 | L46: 30763.40
A47: 2 | B47: 2 | C47: 1 | G47: Prekių ir paslaugų įsigijimo išlaidos | H47: 14 | I47: 32490.00 | J47: 32490.00 | K47: 30763.40 | L47: 30763.40
A48: 2 | B48: 2 | C48: 1 | D48: 1 | G48: Prekių ir paslaugų įsigijimo išlaidos | H48: 15 | I48: 32490.00 | J48: 32490.00 | K48: 30763.40 | L48: 30763.40
A49: 2 | B49: 2 | C49: 1 | D49: 1 | E49: 1 | G49: Prekių ir paslaugų įsigijimo išlaidos | H49: 16 | I49: =SUM(I50:I65) -> 32490.00 | J49: =SUM(J50:J65) -> 32490.00 | K49: =SUM(K50:K65) -> 30763.40 | L49: =SUM(L50:L65) -> 30763.40
A50: 2 | B50: 2 | C50: 1 | D50: 1 | E50: 1 | F50: 1 | G50: Mitybos išlaidos | H50: 17 | I50: 0.00 | J50: 0.00 | K50: 0.00 | L50: 0.00
A51: 2 | B51: 2 | C51: 1 | D51: 1 | E51: 1 | F51: 2 | G51: Medikamentų ir medicininių prekių bei paslaugų įsigijimo išlaidos | H51: 18 | I51: 311.00 | J51: 311.00 | K51: 310.82 | L51: 310.82
A52: 2 | B52: 2 | C52: 1 | D52: 1 | E52: 1 | F52: 5 | G52: Ryšių įrangos ir ryšių paslaugų įsigijimo išlaidos | H52: 19 | I52: 1700.00 | J52: 1700.00 | K52: 1700.00 | L52: 1700.00
A53: 2 | B53: 2 | C53: 1 | D53: 1 | E53: 1 | F53: 6 | G53: Transporto išlaikymo ir transporto paslaugų įsigijimo išlaidos | H53: 20 | I53: 0.00 | J53: 0.00 | K53: 0.00 | L53: 0.00
A54: 2 | B54: 2 | C54: 1 | D54: 1 | E54: 1 | F54: 7 | G54: Aprangos ir patalynės įsigijimo bei priežiūros išlaidos | H54: 21 | I54: 0.00 | J54: 0.00 | K54: 0.00 | L54: 0.00
A55: 2 | B55: 2 | C55: 1 | D55: 1 | E55: 1 | F55: 11 | G55: Komandiruočių išlaidos | H55: 22 | I55: 684.00 | J55: 684.00 | K55: 683.43 | L55: 683.43
A56: 2 | B56: 2 | C56: 1 | D56: 1 | E56: 1 | F56: 12 | G56: Gyvenamųjų vietovių viešojo ūkio išlaidos | H56: 23 | I56: 0.00 | J56: 0.00 | K56: 0.00 | L56: 0.00
A57: 2 | B57: 2 | C57: 1 | D57: 1 | E57: 1 | F57: 14 | G57: Materialiojo ir nematerialiojo turto nuomos išlaidos | H57: 24 | I57: 0.00 | J57: 0.00 | K57: 0.00 | L57: 0.00
A58: 2 | B58: 2 | C58: 1 | D58: 1 | E58: 1 | F58: 15 | G58: Materialiojo turto paprastojo remonto prekių ir paslaugų įsigijimo išlaidos | H58: 25 | I58: 1464.00 | J58: 1464.00 | K58: 1463.49 | L58: 1463.49
A59: 2 | B59: 2 | C59: 1 | D59: 1 | E59: 1 | F59: 16 | G59: Kvalifikacijos kėlimo išlaidos | H59: 26 | I59: 1026.00 | J59: 1026.00 | K59: 1025.20 | L59: 1025.20
A60: 2 | B60: 2 | C60: 1 | D60: 1 | E60: 1 | F60: 17 | G60: Ekspertų ir konsultantų paslaugų įsigijimo išlaidos | H60: 27 | I60: 0.00 | J60: 0.00 | K60: 0.00 | L60: 0.00
A61: 2 | B61: 2 | C61: 1 | D61: 1 | E61: 1 | F61: 20 | G61: Komunalinių paslaugų įsigijimo išlaidos | H61: 28 | I61: 19700.00 | J61: 19700.00 | K61: 17975.46 | L61: 17975.46
A62: 2 | B62: 2 | C62: 1 | D62: 1 | E62: 1 | F62: 21 | G62: Informacinių technologijų prekių ir paslaugų įsigijimo išlaidos | H62: 29 | I62: 2500.00 | J62: 2500.00 | K62: 2500.00 | L62: 2500.00
A63: 2 | B63: 2 | C63: 1 | D63: 1 | E63: 1 | F63: 22 | G63: Reprezentacinės išlaidos | H63: 30 | I63: 300.00 | J63: 300.00 | K63: 300.00 | L63: 300.00
A64: 2 | B64: 2 | C64: 1 | D64: 1 | E64: 1 | F64: 23 | G64: Viešinimo išlaidos | H64: 31 | I64: 0.00 | J64: 0.00 | K64: 0.00 | L64: 0.00
A65: 2 | B65: 2 | C65: 1 | D65: 1 | E65: 1 | F65: 30 | G65: Kitų prekių ir paslaugų įsigijimo išlaidos | H65: 32 | I65: 4805.00 | J65: 4805.00 | K65: 4805.00 | L65: 4805.00
A66: 2 | B66: 3 | G66: Palūkanos | H66: 33 | I66: =I67 -> 0.00 | J66: =J67 -> 0.00 | K66: =K67 -> 0.00 | L66: =L67 -> 0.00
A67: 2 | B67: 3 | C67: 1 | G67: Palūkanos | H67: 34 | I67: =SUM(I68+I73+I78) -> 0.00 | J67: =SUM(J68+J73+J78) -> 0.00 | K67: =SUM(K68+K73+K78) -> 0.00 | L67: =SUM(L68+L73+L78) -> 0.00
A68: 2 | B68: 3 | C68: 1 | D68: 1 | G68: Palūkanos nerezidentams | H68: 35 | I68: =I69 -> 0.00 | J68: =J69 -> 0.00 | K68: =K69 -> 0.00 | L68: =L69 -> 0.00
A69: 2 | B69: 3 | C69: 1 | D69: 1 | E69: 1 | G69: Palūkanos nerezidentams | H69: 36 | I69: =SUM(I70:I72) -> 0.00 | J69: =SUM(J70:J72) -> 0.00 | K69: =SUM(K70:K72) -> 0.00 | L69: =SUM(L70:L72) -> 0.00
A70: 2 | B70: 3 | C70: 1 | D70: 1 | E70: 1 | F70: 1 | G70: Asignavimų valdytojų sumokėtos palūkanos | H70: 37 | I70: 0.00 | J70: 0.00 | K70: 0.00 | L70: 0.00
A71: 2 | B71: 3 | C71: 1 | D71: 1 | E71: 1 | F71: 2 | G71: Finansų ministerijos sumokėtos palūkanos | H71: 38 | I71: 0.00 | J71: 0.00 | K71: 0.00 | L71: 0.00
A72: 2 | B72: 3 | C72: 1 | D72: 1 | E72: 1 | F72: 3 | G72: Savivaldybių sumokėtos palūkanos | H72: 39 | I72: 0.00 | J72: 0.00 | K72: 0.00 | L72: 0.00
A73: 2 | B73: 3 | C73: 1 | D73: 2 | G73: Palūkanos rezidentams, kitiems nei valdžios sektorius (tik už tiesioginę skolą) | H73: 40 | I73: =I74 -> 0.00 | J73: =J74 -> 0.00 | K73: =K74 -> 0.00 | L73: =L74 -> 0.00
A74: 2 | B74: 3 | C74: 1 | D74: 2 | E74: 1 | G74: Palūkanos rezidentams, kitiems nei valdžios sektorius (tik už tiesioginę skolą) | H74: 41 | I74: =SUM(I75:I77) -> 0.00 | J74: =SUM(J75:J77) -> 0.00 | K74: =SUM(K75:K77) -> 0.00 | L74: =SUM(L75:L77) -> 0.00
A75: 2 | B75: 3 | C75: 1 | D75: 2 | E75: 1 | F75: 1 | G75: Asignavimų valdytojų sumokėtos palūkanos | H75: 42 | I75: 0.00 | J75: 0.00 | K75: 0.00 | L75: 0.00
A76: 2 | B76: 3 | C76: 1 | D76: 2 | E76: 1 | F76: 2 | G76: Finansų ministerijos sumokėtos palūkanos | H76: 43 | I76: 0.00 | J76: 0.00 | K76: 0.00 | L76: 0.00
A77: 2 | B77: 3 | C77: 1 | D77: 2 | E77: 1 | F77: 3 | G77: Savivaldybių sumokėtos palūkanos | H77: 44 | I77: 0.00 | J77: 0.00 | K77: 0.00 | L77: 0.00
A78: 2 | B78: 3 | C78: 1 | D78: 3 | G78: Palūkanos kitiems valdžios sektoriaus subjektams | H78: 45 | I78: =I79 -> 0.00 | J78: =J79 -> 0.00 | K78: =K79 -> 0.00 | L78: =L79 -> 0.00
A79: 2 | B79: 3 | C79: 1 | D79: 3 | E79: 1 | G79: Palūkanos kitiems valdžios sektoriaus subjektams | H79: 46 | I79: =SUM(I80:I82) -> 0.00 | J79: =SUM(J80:J82) -> 0.00 | K79: =SUM(K80:K82) -> 0.00 | L79: =SUM(L80:L82) -> 0.00
A80: 2 | B80: 3 | C80: 1 | D80: 3 | E80: 1 | F80: 1 | G80: Palūkanos valstybės biudžetui | H80: 47 | I80: 0.00 | J80: 0.00 | K80: 0.00 | L80: 0.00
A81: 2 | B81: 3 | C81: 1 | D81: 3 | E81: 1 | F81: 2 | G81: Palūkanos savivaldybių biudžetams | H81: 48 | I81: 0.00 | J81: 0.00 | K81: 0.00 | L81: 0.00
A82: 2 | B82: 3 | C82: 1 | D82: 3 | E82: 1 | F82: 3 | G82: Palūkanos nebiudžetiniams fondams | H82: 49 | I82: 0.00 | J82: 0.00 | K82: 0.00 | L82: 0.00
A83: 2 | B83: 3 | C83: 2 | G83: Žemės nuoma | H83: 50 | I83: =I84 -> 0.00 | J83: 0.00 | K83: 0.00 | L83: 0.00
A84: 2 | B84: 3 | C84: 2 | D84: 1 | G84: Žemės nuoma | H84: 51 | I84: 0.00 | J84: 0.00 | K84: 0.00 | L84: 0.00
A85: 2 | B85: 3 | C85: 2 | D85: 1 | E85: 1 | G85: Žemės nuoma | H85: 52 | I85: =SUM(I86) -> 0.00 | J85: =SUM(J86) -> 0.00 | K85: =SUM(K86) -> 0.00 | L85: =SUM(L86) -> 0.00
A86: 2 | B86: 3 | C86: 2 | D86: 1 | E86: 1 | F86: 1 | G86: Žemės nuoma | H86: 53 | I86: 0.00 | J86: 0.00 | K86: 0.00 | L86: 0.00
A87: 2 | B87: 4 | G87: Subsidijos | H87: 54 | I87: =I88 -> 0.00 | J87: 0.00 | K87: 0.00 | L87: 0.00
A88: 2 | B88: 4 | C88: 1 | G88: Subsidijos iš biudžeto lėšų | H88: 55 | I88: 0.00 | J88: 0.00 | K88: 0.00 | L88: 0.00
A89: 2 | B89: 4 | C89: 1 | D89: 1 | G89: Subsidijos iš biudžeto lėšų | H89: 56 | I89: 0.00 | J89: 0.00 | K89: 0.00 | L89: 0.00
A90: 2 | B90: 4 | C90: 1 | D90: 1 | E90: 1 | G90: Subsidijos iš biudžeto lėšų | H90: 57 | I90: =SUM(I91:I93) -> 0.00 | J90: =SUM(J91:J93) -> 0.00 | K90: =SUM(K91:K93) -> 0.00 | L90: =SUM(L91:L93) -> 0.00
A91: 2 | B91: 4 | C91: 1 | D91: 1 | E91: 1 | F91: 1 | G91: Subsidijos importui | H91: 58 | I91: 0.00 | J91: 0.00 | K91: 0.00 | L91: 0.00
A92: 2 | B92: 4 | C92: 1 | D92: 1 | E92: 1 | F92: 2 | G92: Subsidijos gaminiams | H92: 59 | I92: 0.00 | J92: 0.00 | K92: 0.00 | L92: 0.00
A93: 2 | B93: 4 | C93: 1 | D93: 1 | E93: 1 | F93: 3 | G93: Subsidijos gamybai | H93: 60 | I93: 0.00 | J93: 0.00 | K93: 0.00 | L93: 0.00
A94: 2 | B94: 5 | G94: Dotacijos | H94: 61 | I94: =SUM(I95+I100+I105) -> 0.00 | J94: =SUM(J95+J100+J105) -> 0.00 | K94: =SUM(K95+K100+K105) -> 0.00 | L94: =SUM(L95+L100+L105) -> 0.00
A95: 2 | B95: 5 | C95: 1 | G95: Dotacijos užsienio valstybėms | H95: 62 | I95: =I96 -> 0.00 | J95: 0.00 | K95: 0.00 | L95: 0.00
A96: 2 | B96: 5 | C96: 1 | D96: 1 | G96: Dotacijos užsienio valstybėms | H96: 63 | I96: 0.00 | J96: 0.00 | K96: 0.00 | L96: 0.00
A97: 2 | B97: 5 | C97: 1 | D97: 1 | E97: 1 | G97: Dotacijos užsienio valstybėms | H97: 64 | I97: =SUM(I98:I99) -> 0.00 | J97: =SUM(J98:J99) -> 0.00 | K97: =SUM(K98:K99) -> 0.00 | L97: =SUM(L98:L99) -> 0.00
A98: 2 | B98: 5 | C98: 1 | D98: 1 | E98: 1 | F98: 1 | G98: Dotacijos užsienio valstybėms einamiesiems tikslams | H98: 65 | I98: 0.00 | J98: 0.00 | K98: 0.00 | L98: 0.00
A99: 2 | B99: 5 | C99: 1 | D99: 1 | E99: 1 | F99: 2 | G99: Dotacijos užsienio valstybėms turtui įsigyti | H99: 66 | I99: 0.00 | J99: 0.00 | K99: 0.00 | L99: 0.00
A100: 2 | B100: 5 | C100: 2 | G100: Dotacijos tarptautinėms organizacijoms | H100: 67 | I100: =I101 -> 0.00 | J100: 0.00 | K100: 0.00 | L100: 0.00
A101: 2 | B101: 5 | C101: 2 | D101: 1 | G101: Dotacijos tarptautinėms organizacijoms | H101: 68 | I101: 0.00 | J101: 0.00 | K101: 0.00 | L101: 0.00
A102: 2 | B102: 5 | C102: 2 | D102: 1 | E102: 1 | G102: Dotacijos tarptautinėms organizacijoms | H102: 69 | I102: =SUM(I103:I104) -> 0.00 | J102: =SUM(J103:J104) -> 0.00 | K102: =SUM(K103:K104) -> 0.00 | L102: =SUM(L103:L104) -> 0.00
A103: 2 | B103: 5 | C103: 2 | D103: 1 | E103: 1 | F103: 1 | G103: Dotacijos tarptautinėms organizacijoms einamiesiems tikslams | H103: 70 | I103: 0.00 | J103: 0.00 | K103: 0.00 | L103: 0.00
A104: 2 | B104: 5 | C104: 2 | D104: 1 | E104: 1 | F104: 2 | G104: Dotacijos tarptautinėms organizacijoms turtui įsigyti | H104: 71 | I104: 0.00 | J104: 0.00 | K104: 0.00 | L104: 0.00
A105: 2 | B105: 5 | C105: 3 | G105: Dotacijos kitiems valdžios sektoriaus subjektams | H105: 72 | I105: =I106+I110 -> 0.00 | J105: =J106+J110 -> 0.00 | K105: =K106+K110 -> 0.00 | L105: =L106+L110 -> 0.00
A106: 2 | B106: 5 | C106: 3 | D106: 1 | G106: Dotacijos kitiems valdžios sektoriaus subjektams einamiesiems tikslams | H106: 73 | I106: =I107 -> 0.00 | J106: =J107 -> 0.00 | K106: =K107 -> 0.00 | L106: =L107 -> 0.00
A107: 2 | B107: 5 | C107: 3 | D107: 1 | E107: 1 | G107: Dotacijos kitiems valdžios sektoriaus subjektams einamiesiems tikslams | H107: 74 | I107: =SUM(I108:I109) -> 0.00 | J107: =SUM(J108:J109) -> 0.00 | K107: =SUM(K108:K109) -> 0.00 | L107: =SUM(L108:L109) -> 0.00
A108: 2 | B108: 5 | C108: 3 | D108: 1 | E108: 1 | F108: 1 | G108: Dotacijos kitiems valdžios sektoriaus subjektams einamiesiems tikslams | H108: 75 | I108: 0.00 | J108: 0.00 | K108: 0.00 | L108: 0.00
A109: 2 | B109: 5 | C109: 3 | D109: 1 | E109: 1 | F109: 2 | G109: Dotacijos savivaldybėms einamiesiems tikslams | H109: 76 | I109: 0.00 | J109: 0.00 | K109: 0.00 | L109: 0.00
A110: 2 | B110: 5 | C110: 3 | D110: 2 | G110: Dotacijos kitiems valdžios sektoriaus subjektams turtui įsigyti | H110: 77 | I110: =I111 -> 0.00 | J110: =J111 -> 0.00 | K110: =K111 -> 0.00 | L110: =L111 -> 0.00
A111: 2 | B111: 5 | C111: 3 | D111: 2 | E111: 1 | G111: Dotacijos kitiems valdžios sektoriaus subjektams turtui įsigyti | H111: 78 | I111: =SUM(I112:I113) -> 0.00 | J111: =SUM(J112:J113) -> 0.00 | K111: =SUM(K112:K113) -> 0.00 | L111: =SUM(L112:L113) -> 0.00
A112: 2 | B112: 5 | C112: 3 | D112: 2 | E112: 1 | F112: 1 | G112: Dotacijos kitiems valdžios sektoriaus subjektams turtui įsigyti | H112: 79 | I112: 0.00 | J112: 0.00 | K112: 0.00 | L112: 0.00
A113: 2 | B113: 5 | C113: 3 | D113: 2 | E113: 1 | F113: 2 | G113: Dotacijos savivaldybėms turtui įsigyti | H113: 80 | I113: 0.00 | J113: 0.00 | K113: 0.00 | L113: 0.00
A114: 2 | B114: 6 | G114: Įmokos į Europos Sąjungos biudžetą | H114: 81 | I114: =SUM(I115+I120+I124+I128+I132+I136) -> 0.00 | J114: =SUM(J115+J120+J124+J128+J132+J136) -> 0.00 | K114: =SUM(K115+K120+K124+K128+K132+K136) -> 0.00 | L114: =SUM(L115+L120+L124+L128+L132+L136) -> 0.00
A115: 2 | B115: 6 | C115: 1 | G115: Tradiciniai nuosavi ištekliai | H115: 82 | I115: =I116 -> 0.00 | J115: 0.00 | K115: 0.00 | L115: 0.00
A116: 2 | B116: 6 | C116: 1 | D116: 1 | G116: Tradiciniai nuosavi ištekliai | H116: 83 | I116: 0.00 | J116: 0.00 | K116: 0.00 | L116: 0.00
A117: 2 | B117: 6 | C117: 1 | D117: 1 | E117: 1 | G117: Tradiciniai nuosavi ištekliai | H117: 84 | I117: =SUM(I118:I119) -> 0.00 | J117: =SUM(J118:J119) -> 0.00 | K117: =SUM(K118:K119) -> 0.00 | L117: =SUM(L118:L119) -> 0.00
A118: 2 | B118: 6 | C118: 1 | D118: 1 | E118: 1 | F118: 1 | G118: Muitai | H118: 85 | I118: 0.00 | J118: 0.00 | K118: 0.00 | L118: 0.00
A119: 2 | B119: 6 | C119: 1 | D119: 1 | E119: 1 | F119: 2 | G119: Cukraus sektoriaus mokesčiai | H119: 86 | I119: 0.00 | J119: 0.00 | K119: 0.00 | L119: 0.00
A120: 2 | B120: 6 | C120: 2 | G120: Pridėtinės vertės mokesčio nuosavi ištekliai | H120: 87 | I120: =I121 -> 0.00 | J120: 0.00 | K120: 0.00 | L120: 0.00
A121: 2 | B121: 6 | C121: 2 | D121: 1 | G121: Pridėtinės vertės mokesčio nuosavi ištekliai | H121: 88 | I121: 0.00 | J121: 0.00 | K121: 0.00 | L121: 0.00
A122: 2 | B122: 6 | C122: 2 | D122: 1 | E122: 1 | G122: Pridėtinės vertės mokesčio nuosavi ištekliai | H122: 89 | I122: 0.00 | J122: 0.00 | K122: 0.00 | L122: 0.00
A123: 2 | B123: 6 | C123: 2 | D123: 1 | E123: 1 | F123: 1 | G123: Pridėtinės vertės mokesčio nuosavi ištekliai | H123: 90 | I123: 0.00 | J123: 0.00 | K123: 0.00 | L123: 0.00
A124: 2 | B124: 6 | C124: 3 | G124: Bendrųjų nacionalinių pajamų nuosavi ištekliai | H124: 91 | I124: =I125 -> 0.00 | J124: 0.00 | K124: 0.00 | L124: 0.00
A125: 2 | B125: 6 | C125: 3 | D125: 1 | G125: Bendrųjų nacionalinių pajamų nuosavi ištekliai | H125: 92 | I125: 0.00 | J125: 0.00 | K125: 0.00 | L125: 0.00
A126: 2 | B126: 6 | C126: 3 | D126: 1 | E126: 1 | G126: Bendrųjų nacionalinių pajamų nuosavi ištekliai | H126: 93 | I126: 0.00 | J126: 0.00 | K126: 0.00 | L126: 0.00
A127: 2 | B127: 6 | C127: 3 | D127: 1 | E127: 1 | F127: 1 | G127: Bendrųjų nacionalinių pajamų nuosavi ištekliai | H127: 94 | I127: 0.00 | J127: 0.00 | K127: 0.00 | L127: 0.00
A128: 2 | B128: 6 | C128: 4 | G128: Biudžeto disbalansų korekcija Jungtinės Karalystės naudai | H128: 95 | I128: =I129 -> 0.00 | J128: 0.00 | K128: 0.00 | L128: 0.00
A129: 2 | B129: 6 | C129: 4 | D129: 1 | G129: Biudžeto disbalansų korekcija Jungtinės Karalystės naudai | H129: 96 | I129: 0.00 | J129: 0.00 | K129: 0.00 | L129: 0.00
A130: 2 | B130: 6 | C130: 4 | D130: 1 | E130: 1 | G130: Biudžeto disbalansų korekcija Jungtinės Karalystės naudai | H130: 97 | I130: 0.00 | J130: 0.00 | K130: 0.00 | L130: 0.00
A131: 2 | B131: 6 | C131: 4 | D131: 1 | E131: 1 | F131: 1 | G131: Biudžeto disbalansų korekcija Jungtinės Karalystės naudai | H131: 98 | I131: 0.00 | J131: 0.00 | K131: 0.00 | L131: 0.00
A132: 2 | B132: 6 | C132: 5 | G132: Su nuosavais ištekliais susijusios baudos, delspinigiai ir neigiamos palūkanos | H132: 99 | I132: =I133 -> 0.00 | J132: 0.00 | K132: 0.00 | L132: 0.00
A133: 2 | B133: 6 | C133: 5 | D133: 1 | G133: Su nuosavais ištekliais susijusios baudos, delspinigiai ir neigiamos palūkanos | H133: 100 | I133: 0.00 | J133: 0.00 | K133: 0.00 | L133: 0.00
A134: 2 | B134: 6 | C134: 5 | D134: 1 | E134: 1 | G134: Su nuosavais ištekliais susijusios baudos, delspinigiai ir neigiamos palūkanos | H134: 101 | I134: 0.00 | J134: 0.00 | K134: 0.00 | L134: 0.00
A135: 2 | B135: 6 | C135: 5 | D135: 1 | E135: 1 | F135: 1 | G135: Su nuosavais ištekliais susijusios baudos, delspinigiai ir neigiamos palūkanos | H135: 102 | I135: 0.00 | J135: 0.00 | K135: 0.00 | L135: 0.00
A136: 2 | B136: 6 | C136: 6 | G136: Neperdirbto plastiko atliekų nuosavi ištekliai | H136: 103 | I136: =I137 -> 0.00 | J136: 0.00 | K136: 0.00 | L136: 0.00
A137: 2 | B137: 6 | C137: 6 | D137: 1 | G137: Neperdirbto plastiko atliekų nuosavi ištekliai | H137: 104 | I137: 0.00 | J137: 0.00 | K137: 0.00 | L137: 0.00
A138: 2 | B138: 6 | C138: 6 | D138: 1 | E138: 1 | G138: Neperdirbto plastiko atliekų nuosavi ištekliai | H138: 105 | I138: 0.00 | J138: 0.00 | K138: 0.00 | L138: 0.00
A139: 2 | B139: 6 | C139: 6 | D139: 1 | E139: 1 | F139: 1 | G139: Neperdirbto plastiko atliekų nuosavi ištekliai | H139: 106 | I139: 0.00 | J139: 0.00 | K139: 0.00 | L139: 0.00
A140: 2 | B140: 7 | G140: Socialinės išmokos (pašalpos) | H140: 107 | I140: =SUM(I141+I146+I154) -> 5840.00 | J140: =SUM(J141+J146+J154) -> 5840.00 | K140: =SUM(K141+K146+K154) -> 5840.00 | L140: =SUM(L141+L146+L154) -> 5840.00
A141: 2 | B141: 7 | C141: 1 | G141: Socialinio draudimo išmokos (pašalpos) | H141: 108 | I141: =I142 -> 0.00 | J141: 0.00 | K141: 0.00 | L141: 0.00
A142: 2 | B142: 7 | C142: 1 | D142: 1 | G142: Socialinio draudimo išmokos (pašalpos) | H142: 109 | I142: 0.00 | J142: 0.00 | K142: 0.00 | L142: 0.00
A143: 2 | B143: 7 | C143: 1 | D143: 1 | E143: 1 | G143: Socialinio draudimo išmokos (pašalpos) | H143: 110 | I143: =SUM(I144:I145) -> 0.00 | J143: =SUM(J144:J145) -> 0.00 | K143: =SUM(K144:K145) -> 0.00 | L143: =SUM(L144:L145) -> 0.00
A144: 2 | B144: 7 | C144: 1 | D144: 1 | E144: 1 | F144: 1 | G144: Socialinio draudimo išmokos pinigais | H144: 111 | I144: 0.00 | J144: 0.00 | K144: 0.00 | L144: 0.00
A145: 2 | B145: 7 | C145: 1 | D145: 1 | E145: 1 | F145: 2 | G145: Socialinio draudimo išmokos natūra | H145: 112 | I145: 0.00 | J145: 0.00 | K145: 0.00 | L145: 0.00
A146: 2 | B146: 7 | C146: 2 | G146: Socialinė parama (socialinės paramos pašalpos) ir rentos | H146: 113 | I146: =I147 -> 0.00 | J146: 0.00 | K146: 0.00 | L146: 0.00
A147: 2 | B147: 7 | C147: 2 | D147: 1 | G147: Socialinė parama (socialinės paramos pašalpos) | H147: 114 | I147: 0.00 | J147: 0.00 | K147: 0.00 | L147: 0.00
A148: 2 | B148: 7 | C148: 2 | D148: 1 | E148: 1 | G148: Socialinė parama (socialinės paramos pašalpos) | H148: 115 | I148: =SUM(I149:I150) -> 0.00 | J148: =SUM(J149:J150) -> 0.00 | K148: =SUM(K149:K150) -> 0.00 | L148: =SUM(L149:L150) -> 0.00
A149: 2 | B149: 7 | C149: 2 | D149: 1 | E149: 1 | F149: 1 | G149: Socialinė parama pinigais | H149: 116 | I149: 0.00 | J149: 0.00 | K149: 0.00 | L149: 0.00
A150: 2 | B150: 7 | C150: 2 | D150: 1 | E150: 1 | F150: 2 | G150: Socialinė parama natūra | H150: 117 | I150: 0.00 | J150: 0.00 | K150: 0.00 | L150: 0.00
A151: 2 | B151: 7 | C151: 2 | D151: 2 | G151: Rentos | H151: 118 | I151: =I152 -> 0.00 | J151: =J152 -> 0.00 | K151: =K152 -> 0.00 | L151: =L152 -> 0.00
A152: 2 | B152: 7 | C152: 2 | D152: 2 | E152: 1 | G152: Rentos | H152: 119 | I152: =SUM(I153) -> 0.00 | J152: =SUM(J153) -> 0.00 | K152: =SUM(K153) -> 0.00 | L152: =SUM(L153) -> 0.00
A153: 2 | B153: 7 | C153: 2 | D153: 2 | E153: 1 | F153: 1 | G153: Rentos | H153: 120 | I153: 0.00 | J153: 0.00 | K153: 0.00 | L153: 0.00
A154: 2 | B154: 7 | C154: 3 | G154: Darbdavių socialinė parama | H154: 121 | I154: =I155 -> 5840.00 | J154: 5840.00 | K154: 5840.00 | L154: 5840.00
A155: 2 | B155: 7 | C155: 3 | D155: 1 | G155: Darbdavių socialinė parama | H155: 122 | I155: 5840.00 | J155: 5840.00 | K155: 5840.00 | L155: 5840.00
A156: 2 | B156: 7 | C156: 3 | D156: 1 | E156: 1 | G156: Darbdavių socialinė parama | H156: 123 | I156: =SUM(I157:I158) -> 5840.00 | J156: =SUM(J157:J158) -> 5840.00 | K156: =SUM(K157:K158) -> 5840.00 | L156: =SUM(L157:L158) -> 5840.00
A157: 2 | B157: 7 | C157: 3 | D157: 1 | E157: 1 | F157: 1 | G157: Darbdavių socialinė parama pinigais | H157: 124 | I157: 5840.00 | J157: 5840.00 | K157: 5840.00 | L157: 5840.00
A158: 2 | B158: 7 | C158: 3 | D158: 1 | E158: 1 | F158: 2 | G158: Darbdavių socialinė parama natūra | H158: 125 | I158: 0.00 | J158: 0.00 | K158: 0.00 | L158: 0.00
A159: 2 | B159: 8 | G159: Kitos išlaidos | H159: 126 | I159: =I160 -> 0.00 | J159: =J160 -> 0.00 | K159: =K160 -> 0.00 | L159: =L160 -> 0.00
A160: 2 | B160: 8 | C160: 1 | G160: Kitos išlaidos | H160: 127 | I160: =I161+I166 -> 0.00 | J160: =J161+J166 -> 0.00 | K160: =K161+K166 -> 0.00 | L160: =L161+L166 -> 0.00
A161: 2 | B161: 8 | C161: 1 | D161: 1 | G161: Kitos išlaidos einamiesiems tikslams | H161: 128 | I161: =I162 -> 0.00 | J161: =J162 -> 0.00 | K161: =K162 -> 0.00 | L161: =L162 -> 0.00
A162: 2 | B162: 8 | C162: 1 | D162: 1 | E162: 1 | G162: Kitos išlaidos einamiesiems tikslams | H162: 129 | I162: =SUM(I163:I165) -> 0.00 | J162: =SUM(J163:J165) -> 0.00 | K162: =SUM(K163:K165) -> 0.00 | L162: =SUM(L163:L165) -> 0.00
A163: 2 | B163: 8 | C163: 1 | D163: 1 | E163: 1 | F163: 1 | G163: Stipendijoms | H163: 130 | I163: 0.00 | J163: 0.00 | K163: 0.00 | L163: 0.00
A164: 2 | B164: 8 | C164: 1 | D164: 1 | E164: 1 | F164: 2 | G164: Kitos išlaidos kitiems einamiesiems tikslams | H164: 131 | I164: 0.00 | J164: 0.00 | K164: 0.00 | L164: 0.00
A165: 2 | B165: 8 | C165: 1 | D165: 1 | E165: 1 | F165: 3 | G165: Valiutos kurso įtaka | H165: 132 | I165: 0.00 | J165: 0.00 | K165: 0.00 | L165: 0.00
A166: 2 | B166: 8 | C166: 1 | D166: 2 | G166: Kitos išlaidos turtui įsigyti | H166: 133 | I166: =I167 -> 0.00 | J166: 0.00 | K166: 0.00 | L166: 0.00
A167: 2 | B167: 8 | C167: 1 | D167: 2 | E167: 1 | G167: Kitos išlaidos turtui įsigyti | H167: 134 | I167: 0.00 | J167: 0.00 | K167: 0.00 | L167: 0.00
A168: 2 | B168: 8 | C168: 1 | D168: 2 | E168: 1 | F168: 1 | G168: Kitos išlaidos turtui įsigyti | H168: 135 | I168: 0.00 | J168: 0.00 | K168: 0.00 | L168: 0.00
A169: 2 | B169: 9 | G169: Pervedamos Europos Sąjungos, kitos tarptautinės finansinės paramos, bendrojo finansavimo lėšos ir kitos bendrai finansuojamiems iš Europos Sąjungos ar kitos tarptautinės finansinės paramos lėšų projektams įgyvendinti skirtos valstybės biudžeto lėšos | H169: 136 | I169: =I170+I174 -> 0.00 | J169: =J170+J174 -> 0.00 | K169: =K170+K174 -> 0.00 | L169: =L170+L174 -> 0.00
A170: 2 | B170: 9 | C170: 1 | G170: Subsidijos iš Europos Sąjungos ir kitos tarptautinės finansinės paramos lėšų (ne valdžios sektoriui) | H170: 137 | I170: =I171 -> 0.00 | J170: 0.00 | K170: 0.00 | L170: 0.00
A171: 2 | B171: 9 | C171: 1 | D171: 1 | G171: Subsidijos iš Europos Sąjungos ir kitos tarptautinės finansinės paramos lėšų (ne valdžios sektoriui) | H171: 138 | I171: 0.00 | J171: 0.00 | K171: 0.00 | L171: 0.00
A172: 2 | B172: 9 | C172: 1 | D172: 1 | E172: 1 | G172: Subsidijos iš Europos Sąjungos ir kitos tarptautinės finansinės paramos lėšų (ne valdžios sektoriui) | H172: 139 | I172: 0.00 | J172: 0.00 | K172: 0.00 | L172: 0.00
A173: 2 | B173: 9 | C173: 1 | D173: 1 | E173: 1 | F173: 1 | G173: Subsidijos iš Europos Sąjungos ir kitos tarptautinės finansinės paramos lėšų (ne valdžios sektoriui) | H173: 140 | I173: 0.00 | J173: 0.00 | K173: 0.00 | L173: 0.00
A174: 2 | B174: 9 | C174: 2 | G174: Pervedamos Europos Sąjungos, kitos tarptautinės finansinės paramos, bendrojo finansavimo lėšos ir kitos bendrai finansuojamiems iš Europos Sąjungos ar kitos tarptautinės finansinės paramos lėšų projektams įgyvendinti skirtos valstybės biudžeto lėšos | H174: 141 | I174: =SUM(I175+I180) -> 0.00 | J174: =SUM(J175+J180) -> 0.00 | K174: =SUM(K175+K180) -> 0.00 | L174: =SUM(L175+L180) -> 0.00
A175: 2 | B175: 9 | C175: 2 | D175: 1 | G175: Pervedamos Europos Sąjungos, kitos tarptautinės finansinės paramos, bendrojo finansavimo lėšos ir kitos bendrai finansuojamiems iš Europos Sąjungos ar kitos tarptautinės finansinės paramos lėšų projektams įgyvendinti skirtos valstybės biudžeto lėšos einamiesiems tikslams | H175: 142 | I175: =I176 -> 0.00 | J175: =J176 -> 0.00 | K175: =K176 -> 0.00 | L175: =L176 -> 0.00
A176: 2 | B176: 9 | C176: 2 | D176: 1 | E176: 1 | G176: Pervedamos Europos Sąjungos, kitos tarptautinės finansinės paramos, bendrojo finansavimo lėšos ir kitos bendrai finansuojamiems iš Europos Sąjungos ar kitos tarptautinės finansinės paramos lėšų projektams įgyvendinti skirtos valstybės biudžeto lėšos einamiesiems tikslams | H176: 143 | I176: =SUM(I177:I179) -> 0.00 | J176: =SUM(J177:J179) -> 0.00 | K176: =SUM(K177:K179) -> 0.00 | L176: =SUM(L177:L179) -> 0.00
A177: 2 | B177: 9 | C177: 2 | D177: 1 | E177: 1 | F177: 1 | G177: Pervedamos Europos Sąjungos, kitos tarptautinės finansinės paramos, bendrojo finansavimo lėšos ir kitos bendrai finansuojamiems iš Europos Sąjungos ar kitos tarptautinės finansinės paramos lėšų projektams įgyvendinti skirtos valstybės biudžeto lėšos einamiesiems tikslams savivaldybėms | H177: 144 | I177: 0.00 | J177: 0.00 | K177: 0.00 | L177: 0.00
A178: 2 | B178: 9 | C178: 2 | D178: 1 | E178: 1 | F178: 2 | G178: Pervedamos Europos Sąjungos, kitos tarptautinės finansinės paramos, bendrojo finansavimo lėšos ir kitos bendrai finansuojamiems iš Europos Sąjungos ar kitos tarptautinės finansinės paramos lėšų projektams įgyvendinti skirtos valstybės biudžeto lėšos einamiesiems tikslams kitiems valdžios sektoriaus subjektams | H178: 145 | I178: 0.00 | J178: 0.00 | K178: 0.00 | L178: 0.00
A179: 2 | B179: 9 | C179: 2 | D179: 1 | E179: 1 | F179: 3 | G179: Pervedamos Europos Sąjungos, kitos tarptautinės finansinės paramos, bendrojo finansavimo lėšos ir kitos bendrai finansuojamiems iš Europos Sąjungos ar kitos tarptautinės finansinės paramos lėšų projektams įgyvendinti skirtos valstybės biudžeto lėšos einamiesiems tikslams ne valdžios sektoriui | H179: 146 | I179: 0.00 | J179: 0.00 | K179: 0.00 | L179: 0.00
A180: 2 | B180: 9 | C180: 2 | D180: 2 | G180: Pervedamos Europos Sąjungos, kitos tarptautinės finansinės paramos, bendrojo finansavimo lėšos ir kitos bendrai finansuojamiems iš Europos Sąjungos ar kitos tarptautinės finansinės paramos lėšų projektams įgyvendinti skirtos valstybės biudžeto lėšos investicijoms | H180: 147 | I180: =I181 -> 0.00 | J180: =J181 -> 0.00 | K180: =K181 -> 0.00 | L180: =L181 -> 0.00
A181: 2 | B181: 9 | C181: 2 | D181: 2 | E181: 1 | G181: Pervedamos Europos Sąjungos, kitos tarptautinės finansinės paramos, bendrojo finansavimo lėšos ir kitos bendrai finansuojamiems iš Europos Sąjungos ar kitos tarptautinės finansinės paramos lėšų projektams įgyvendinti skirtos valstybės biudžeto lėšos investicijoms | H181: 148 | I181: =SUM(I182:I184) -> 0.00 | J181: =SUM(J182:J184) -> 0.00 | K181: =SUM(K182:K184) -> 0.00 | L181: =SUM(L182:L184) -> 0.00
A182: 2 | B182: 9 | C182: 2 | D182: 2 | E182: 1 | F182: 1 | G182: Pervedamos Europos Sąjungos, kitos tarptautinės finansinės paramos, bendrojo finansavimo lėšos ir kitos bendrai finansuojamiems iš Europos Sąjungos ar kitos tarptautinės finansinės paramos lėšų projektams įgyvendinti skirtos valstybės biudžeto lėšos investicijoms, skirtoms savivaldybėms | H182: 149 | I182: 0.00 | J182: 0.00 | K182: 0.00 | L182: 0.00
A183: 2 | B183: 9 | C183: 2 | D183: 2 | E183: 1 | F183: 2 | G183: Pervedamos Europos Sąjungos, kitos tarptautinės finansinės paramos, bendrojo finansavimo lėšos ir kitos bendrai finansuojamiems iš Europos Sąjungos ar kitos tarptautinės finansinės paramos lėšų projektams įgyvendinti skirtos valstybės biudžeto lėšos investicijoms kitiems valdžios sektoriaus subjektams | H183: 150 | I183: 0.00 | J183: 0.00 | K183: 0.00 | L183: 0.00
A184: 2 | B184: 9 | C184: 2 | D184: 2 | E184: 1 | F184: 3 | G184: Pervedamos Europos Sąjungos, kitos tarptautinės finansinės paramos, bendrojo finansavimo lėšos ir kitos bendrai finansuojamiems iš Europos Sąjungos ar kitos tarptautinės finansinės paramos lėšų projektams įgyvendinti skirtos valstybės biudžeto lėšos investicijoms ne valdžios sektoriui | H184: 151 | I184: 0.00 | J184: 0.00 | K184: 0.00 | L184: 0.00
A185: 3 | G185: MATERIALIOJO IR NEMATERIALIOJO TURTO ĮSIGIJIMO, FINANSINIO TURTO PADIDĖJIMO IR FINANSINIŲ ĮSIPAREIGOJIMŲ VYKDYMO IŠLAIDOS | H185: 152 | I185: =SUM(I186+I239+I304) -> 0.00 | J185: =SUM(J186+J239+J304) -> 0.00 | K185: =SUM(K186+K239+K304) -> 0.00 | L185: =SUM(L186+L239+L304) -> 0.00
A186: 3 | B186: 1 | G186: Materialiojo ir nematerialiojo turto įsigijimo išlaidos | H186: 153 | I186: =SUM(I187+I210+I217+I229+I233) -> 0.00 | J186: =SUM(J187+J210+J217+J229+J233) -> 0.00 | K186: =SUM(K187+K210+K217+K229+K233) -> 0.00 | L186: =SUM(L187+L210+L217+L229+L233) -> 0.00
A187: 3 | B187: 1 | C187: 1 | G187: Ilgalaikio materialiojo turto kūrimo ir įsigijimo išlaidos | H187: 154 | I187: =SUM(I188+I191+I196+I202+I207) -> 0.00 | J187: =SUM(J188+J191+J196+J202+J207) -> 0.00 | K187: =SUM(K188+K191+K196+K202+K207) -> 0.00 | L187: =SUM(L188+L191+L196+L202+L207) -> 0.00
A188: 3 | B188: 1 | C188: 1 | D188: 1 | G188: Žemės įsigijimo išlaidos | H188: 155 | I188: =I189 -> 0.00 | J188: 0.00 | K188: 0.00 | L188: 0.00
A189: 3 | B189: 1 | C189: 1 | D189: 1 | E189: 1 | G189: Žemės įsigijimo išlaidos | H189: 156 | I189: 0.00 | J189: 0.00 | K189: 0.00 | L189: 0.00
A190: 3 | B190: 1 | C190: 1 | D190: 1 | E190: 1 | F190: 1 | G190: Žemės įsigijimo išlaidos | H190: 157 | I190: 0.00 | J190: 0.00 | K190: 0.00 | L190: 0.00
A191: 3 | B191: 1 | C191: 1 | D191: 2 | G191: Pastatų ir statinių įsigijimo išlaidos | H191: 158 | I191: =I192 -> 0.00 | J191: =J192 -> 0.00 | K191: =K192 -> 0.00 | L191: =L192 -> 0.00
A192: 3 | B192: 1 | C192: 1 | D192: 2 | E192: 1 | G192: Pastatų ir statinių įsigijimo išlaidos | H192: 159 | I192: =SUM(I193:I195) -> 0.00 | J192: =SUM(J193:J195) -> 0.00 | K192: =SUM(K193:K195) -> 0.00 | L192: =SUM(L193:L195) -> 0.00
A193: 3 | B193: 1 | C193: 1 | D193: 2 | E193: 1 | F193: 1 | G193: Gyvenamųjų namų įsigijimo išlaidos | H193: 160 | I193: 0.00 | J193: 0.00 | K193: 0.00 | L193: 0.00
A194: 3 | B194: 1 | C194: 1 | D194: 2 | E194: 1 | F194: 2 | G194: Negyvenamųjų pastatų įsigijimo išlaidos | H194: 161 | I194: 0.00 | J194: 0.00 | K194: 0.00 | L194: 0.00
A195: 3 | B195: 1 | C195: 1 | D195: 2 | E195: 1 | F195: 3 | G195: Infrastruktūros ir kitų statinių įsigijimo išlaidos | H195: 162 | I195: 0.00 | J195: 0.00 | K195: 0.00 | L195: 0.00
A196: 3 | B196: 1 | C196: 1 | D196: 3 | G196: Mašinų ir įrenginių įsigijimo išlaidos | H196: 163 | I196: =I197 -> 0.00 | J196: =J197 -> 0.00 | K196: =K197 -> 0.00 | L196: =L197 -> 0.00
A197: 3 | B197: 1 | C197: 1 | D197: 3 | E197: 1 | G197: Mašinų ir įrenginių įsigijimo išlaidos | H197: 164 | I197: =SUM(I198:I201) -> 0.00 | J197: =SUM(J198:J201) -> 0.00 | K197: =SUM(K198:K201) -> 0.00 | L197: =SUM(L198:L201) -> 0.00
A198: 3 | B198: 1 | C198: 1 | D198: 3 | E198: 1 | F198: 1 | G198: Transporto priemonių įsigijimo išlaidos | H198: 165 | I198: 0.00 | J198: 0.00 | K198: 0.00 | L198: 0.00
A199: 3 | B199: 1 | C199: 1 | D199: 3 | E199: 1 | F199: 2 | G199: Kitų mašinų ir įrenginių įsigijimo išlaidos | H199: 166 | I199: 0.00 | J199: 0.00 | K199: 0.00 | L199: 0.00
A200: 3 | B200: 1 | C200: 1 | D200: 3 | E200: 1 | F200: 3 | G200: Ginklų ir karinės įrangos įsigijimo išlaidos | H200: 167 | I200: 0.00 | J200: 0.00 | K200: 0.00 | L200: 0.00
A201: 3 | B201: 1 | C201: 1 | D201: 3 | E201: 1 | F201: 4 | G201: Kompiuterinės techninės ir elektroninių ryšių įrangos įsigijimo išlaidos | H201: 168 | I201: 0.00 | J201: 0.00 | K201: 0.00 | L201: 0.00
A202: 3 | B202: 1 | C202: 1 | D202: 4 | G202: Kultūros ir kitų vertybių įsigijimo išlaidos | H202: 169 | I202: =I203 -> 0.00 | J202: =J203 -> 0.00 | K202: =K203 -> 0.00 | L202: =L203 -> 0.00
A203: 3 | B203: 1 | C203: 1 | D203: 4 | E203: 1 | G203: Kultūros ir kitų vertybių įsigijimo išlaidos | H203: 170 | I203: =SUM(I204:I206) -> 0.00 | J203: =SUM(J204:J206) -> 0.00 | K203: =SUM(K204:K206) -> 0.00 | L203: =SUM(L204:L206) -> 0.00
A204: 3 | B204: 1 | C204: 1 | D204: 4 | E204: 1 | F204: 1 | G204: Muziejinių vertybių įsigijimo išlaidos | H204: 171 | I204: 0.00 | J204: 0.00 | K204: 0.00 | L204: 0.00
A205: 3 | B205: 1 | C205: 1 | D205: 4 | E205: 1 | F205: 2 | G205: Antikvarinių ir kitų meno kūrinių įsigijimo išlaidos | H205: 172 | I205: 0.00 | J205: 0.00 | K205: 0.00 | L205: 0.00
A206: 3 | B206: 1 | C206: 1 | D206: 4 | E206: 1 | F206: 3 | G206: Kitų vertybių įsigijimo išlaidos | H206: 173 | I206: 0.00 | J206: 0.00 | K206: 0.00 | L206: 0.00
A207: 3 | B207: 1 | C207: 1 | D207: 5 | G207: Kito ilgalaikio materialiojo turto įsigijimo išlaidos | H207: 174 | I207: =I208 -> 0.00 | J207: 0.00 | K207: 0.00 | L207: 0.00
A208: 3 | B208: 1 | C208: 1 | D208: 5 | E208: 1 | G208: Kito ilgalaikio materialiojo turto įsigijimo išlaidos | H208: 175 | I208: 0.00 | J208: 0.00 | K208: 0.00 | L208: 0.00
... 166 more rows

Sheet Forma Nr.2 SB 1.4.4.28
J1: Biudžeto vykdymo ataskaitų rinkinių rengimo taisyklių
J2: 1 priedas
A7: (Biudžeto išlaidų sąmatos vykdymo 2025 m. gruodžio mėn. 31 d. I ketvirčio, pusmečio, 9 mėnesių, metų ataskaitos forma, Nr.2)
A9: Vaikų ir jaunimo laisvalaikio centras, 195174984
A10: (įstaigos pavadinimas, kodas Juridinių asmenų registre, adresas)
G12: BIUDŽETO IŠLAIDŲ SĄMATOS VYKDYMO PAGAL
A13: 2025 M. GRUODŽIO MĖN. 31 D.
G14: 4 ketvirtis
G15: (I ketvirčio, pusmečio, 9 mėnesių, metinė)
B16: ATASKAITA
G18: 2026.01.14 Nr.________________
G19: (data)
E21: Žinių visuomenės plėtros programa
A22: (programos pavadinimas)
L23: Kodas
J24: Ministerijos / Savivaldybės
K25: Departamento
A26: 1.4.4.28. Švietimo įstaigų patalpų remontas, mokyklinių autobusų remontas, buitinės, organizacinės technikos, mokymo priemonių įsigijimas | K26: Įstaigos | L26: 195174984
A27: Neformalusis vaikų švietimas | J27: Programos | K27: 1
G28: Finansavimo šaltinio | H28: SB
G29: Valstybės funkcijos | I29: 09 | J29: 05 | K29: 01 | L29: 01
A30: Savivaldybės biudžeto lėšos | L30: (eurais, ct)
A31: Išlaidų ekonominės klasifikacijos kodas | G31: Išlaidų pavadinimas | H31: Eil. Nr. | I31: Asignavimų planas, įskaitant patikslinimus | K31: Gauti asignavimai kartu su įskaitytu praėjusių metų lėšų likučiu | L31: Panaudoti asignavimai
I32: metams | J32: ataskaitiniam laikotarpiui
A33: 1 | G33: 2 | H33: 3 | I33: 4 | J33: 5 | K33: 6 | L33: 7
A34: 2 | G34: IŠLAIDOS | H34: 1 | I34: =SUM(I35+I46+I66+I87+I94+I114+I140+I159+I169) -> 3500.00 | J34: =SUM(J35+J46+J66+J87+J94+J114+J140+J159+J169) -> 3500.00 | K34: =SUM(K35+K46+K66+K87+K94+K114+K140+K159+K169) -> 3498.99 | L34: =SUM(L35+L46+L66+L87+L94+L114+L140+L159+L169) -> 3498.99
A35: 2 | B35: 1 | G35: Darbo užmokestis ir socialinis draudimas | H35: 2 | I35: =SUM(I36+I42) -> 0.00 | J35: =SUM(J36+J42) -> 0.00 | K35: =SUM(K36+K42) -> 0.00 | L35: =SUM(L36+L42) -> 0.00
A36: 2 | B36: 1 | C36: 1 | G36: Darbo užmokestis | H36: 3 | I36: =SUM(I37) -> 0.00 | J36: =SUM(J37) -> 0.00 | K36: =SUM(K37) -> 0.00 | L36: =SUM(L37) -> 0.00
A37: 2 | B37: 1 | C37: 1 | D37: 1 | G37: Darbo užmokestis | H37: 4 | I37: =SUM(I38+I40) -> 0.00 | J37: =SUM(J38+J40) -> 0.00 | K37: =SUM(K38+K40) -> 0.00 | L37: =SUM(L38+L40) -> 0.00
A38: 2 | B38: 1 | C38: 1 | D38: 1 | E38: 1 | G38: Darbo užmokestis pinigais | H38: 5 | I38: =SUM(I39) -> 0.00 | J38: =SUM(J39) -> 0.00 | K38: =SUM(K39) -> 0.00 | L38: =SUM(L39) -> 0.00
A39: 2 | B39: 1 | C39: 1 | D39: 1 | E39: 1 | F39: 1 | G39: Darbo užmokestis pinigais | H39: 6 | I39: 0.00 | J39: 0.00 | K39: 0.00 | L39: 0.00
A40: 2 | B40: 1 | C40: 1 | D40: 1 | E40: 2 | G40: Pajamos natūra | H40: 7 | I40: =I41 -> 0.00 | J40: =J41 -> 0.00 | K40: =K41 -> 0.00 | L40: =L41 -> 0.00
A41: 2 | B41: 1 | C41: 1 | D41: 1 | E41: 2 | F41: 1 | G41: Pajamos natūra | H41: 8 | I41: 0.00 | J41: 0.00 | K41: 0.00 | L41: 0.00
A42: 2 | B42: 1 | C42: 2 | G42: Socialinio draudimo įmokos | H42: 9 | I42: =I43 -> 0.00 | J42: 0.00 | K42: 0.00 | L42: 0.00
A43: 2 | B43: 1 | C43: 2 | D43: 1 | G43: Socialinio draudimo įmokos | H43: 10 | I43: 0.00 | J43: 0.00 | K43: 0.00 | L43: 0.00
A44: 2 | B44: 1 | C44: 2 | D44: 1 | E44: 1 | G44: Socialinio draudimo įmokos | H44: 11 | I44: 0.00 | J44: 0.00 | K44: 0.00 | L44: 0.00
A45: 2 | B45: 1 | C45: 2 | D45: 1 | E45: 1 | F45: 1 | G45: Socialinio draudimo įmokos | H45: 12 | I45: 0.00 | J45: 0.00 | K45: 0.00 | L45: 0.00
A46: 2 | B46: 2 | G46: Prekių ir paslaugų įsigijimo išlaidos | H46: 13 | I46: =I47 -> 3500.00 | J46: 3500.00 | K46: 3498.99 | L46: 3498.99
A47: 2 | B47: 2 | C47: 1 | G47: Prekių ir paslaugų įsigijimo išlaidos | H47: 14 | I47: 3500.00 | J47: 3500.00 | K47: 3498.99 | L47: 3498.99
A48: 2 | B48: 2 | C48: 1 | D48: 1 | G48: Prekių ir paslaugų įsigijimo išlaidos | H48: 15 | I48: 3500.00 | J48: 3500.00 | K48: 3498.99 | L48: 3498.99
A49: 2 | B49: 2 | C49: 1 | D49: 1 | E49: 1 | G49: Prekių ir paslaugų įsigijimo išlaidos | H49: 16 | I49: =SUM(I50:I65) -> 3500.00 | J49: =SUM(J50:J65) -> 3500.00 | K49: =SUM(K50:K65) -> 3498.99 | L49: =SUM(L50:L65) -> 3498.99
A50: 2 | B50: 2 | C50: 1 | D50: 1 | E50: 1 | F50: 1 | G50: Mitybos išlaidos | H50: 17 | I50: 0.00 | J50: 0.00 | K50: 0.00 | L50: 0.00
A51: 2 | B51: 2 | C51: 1 | D51: 1 | E51: 1 | F51: 2 | G51: Medikamentų ir medicininių prekių bei paslaugų įsigijimo išlaidos | H51: 18 | I51: 0.00 | J51: 0.00 | K51: 0.00 | L51: 0.00
A52: 2 | B52: 2 | C52: 1 | D52: 1 | E52: 1 | F52: 5 | G52: Ryšių įrangos ir ryšių paslaugų įsigijimo išlaidos | H52: 19 | I52: 0.00 | J52: 0.00 | K52: 0.00 | L52: 0.00
A53: 2 | B53: 2 | C53: 1 | D53: 1 | E53: 1 | F53: 6 | G53: Transporto išlaikymo ir transporto paslaugų įsigijimo išlaidos | H53: 20 | I53: 0.00 | J53: 0.00 | K53: 0.00 | L53: 0.00
A54: 2 | B54: 2 | C54: 1 | D54: 1 | E54: 1 | F54: 7 | G54: Aprangos ir patalynės įsigijimo bei priežiūros išlaidos | H54: 21 | I54: 0.00 | J54: 0.00 | K54: 0.00 | L54: 0.00
A55: 2 | B55: 2 | C55: 1 | D55: 1 | E55: 1 | F55: 11 | G55: Komandiruočių išlaidos | H55: 22 | I55: 0.00 | J55: 0.00 | K55: 0.00 | L55: 0.00
A56: 2 | B56: 2 | C56: 1 | D56: 1 | E56: 1 | F56: 12 | G56: Gyvenamųjų vietovių viešojo ūkio išlaidos | H56: 23 | I56: 0.00 | J56: 0.00 | K56: 0.00 | L56: 0.00
A57: 2 | B57: 2 | C57: 1 | D57: 1 | E57: 1 | F57: 14 | G57: Materialiojo ir nematerialiojo turto nuomos išlaidos | H57: 24 | I57: 0.00 | J57: 0.00 | K57: 0.00 | L57: 0.00
A58: 2 | B58: 2 | C58: 1 | D58: 1 | E58: 1 | F58: 15 | G58: Materialiojo turto paprastojo remonto prekių ir paslaugų įsigijimo išlaidos | H58: 25 | I58: 0.00 | J58: 0.00 | K58: 0.00 | L58: 0.00
A59: 2 | B59: 2 | C59: 1 | D59: 1 | E59: 1 | F59: 16 | G59: Kvalifikacijos kėlimo išlaidos | H59: 26 | I59: 0.00 | J59: 0.00 | K59: 0.00 | L59: 0.00
A60: 2 | B60: 2 | C60: 1 | D60: 1 | E60: 1 | F60: 17 | G60: Ekspertų ir konsultantų paslaugų įsigijimo išlaidos | H60: 27 | I60: 0.00 | J60: 0.00 | K60: 0.00 | L60: 0.00
A61: 2 | B61: 2 | C61: 1 | D61: 1 | E61: 1 | F61: 20 | G61: Komunalinių paslaugų įsigijimo išlaidos | H61: 28 | I61: 0.00 | J61: 0.00 | K61: 0.00 | L61: 0.00
A62: 2 | B62: 2 | C62: 1 | D62: 1 | E62: 1 | F62: 21 | G62: Informacinių technologijų prekių ir paslaugų įsigijimo išlaidos | H62: 29 | I62: 2000.00 | J62: 2000.00 | K62: 2000.00 | L62: 2000.00
A63: 2 | B63: 2 | C63: 1 | D63: 1 | E63: 1 | F63: 22 | G63: Reprezentacinės išlaidos | H63: 30 | I63: 0.00 | J63: 0.00 | K63: 0.00 | L63: 0.00
A64: 2 | B64: 2 | C64: 1 | D64: 1 | E64: 1 | F64: 23 | G64: Viešinimo išlaidos | H64: 31 | I64: 0.00 | J64: 0.00 | K64: 0.00 | L64: 0.00
A65: 2 | B65: 2 | C65: 1 | D65: 1 | E65: 1 | F65: 30 | G65: Kitų prekių ir paslaugų įsigijimo išlaidos | H65: 32 | I65: 1500.00 | J65: 1500.00 | K65: 1498.99 | L65: 1498.99
A66: 2 | B66: 3 | G66: Palūkanos | H66: 33 | I66: =I67 -> 0.00 | J66: =J67 -> 0.00 | K66: =K67 -> 0.00 | L66: =L67 -> 0.00
A67: 2 | B67: 3 | C67: 1 | G67: Palūkanos | H67: 34 | I67: =SUM(I68+I73+I78) -> 0.00 | J67: =SUM(J68+J73+J78) -> 0.00 | K67: =SUM(K68+K73+K78) -> 0.00 | L67: =SUM(L68+L73+L78) -> 0.00
A68: 2 | B68: 3 | C68: 1 | D68: 1 | G68: Palūkanos nerezidentams | H68: 35 | I68: =I69 -> 0.00 | J68: =J69 -> 0.00 | K68: =K69 -> 0.00 | L68: =L69 -> 0.00
A69: 2 | B69: 3 | C69: 1 | D69: 1 | E69: 1 | G69: Palūkanos nerezidentams | H69: 36 | I69: =SUM(I70:I72) -> 0.00 | J69: =SUM(J70:J72) -> 0.00 | K69: =SUM(K70:K72) -> 0.00 | L69: =SUM(L70:L72) -> 0.00
A70: 2 | B70: 3 | C70: 1 | D70: 1 | E70: 1 | F70: 1 | G70: Asignavimų valdytojų sumokėtos palūkanos | H70: 37 | I70: 0.00 | J70: 0.00 | K70: 0.00 | L70: 0.00
A71: 2 | B71: 3 | C71: 1 | D71: 1 | E71: 1 | F71: 2 | G71: Finansų ministerijos sumokėtos palūkanos | H71: 38 | I71: 0.00 | J71: 0.00 | K71: 0.00 | L71: 0.00
A72: 2 | B72: 3 | C72: 1 | D72: 1 | E72: 1 | F72: 3 | G72: Savivaldybių sumokėtos palūkanos | H72: 39 | I72: 0.00 | J72: 0.00 | K72: 0.00 | L72: 0.00
A73: 2 | B73: 3 | C73: 1 | D73: 2 | G73: Palūkanos rezidentams, kitiems nei valdžios sektorius (tik už tiesioginę skolą) | H73: 40 | I73: =I74 -> 0.00 | J73: =J74 -> 0.00 | K73: =K74 -> 0.00 | L73: =L74 -> 0.00
A74: 2 | B74: 3 | C74: 1 | D74: 2 | E74: 1 | G74: Palūkanos rezidentams, kitiems nei valdžios sektorius (tik už tiesioginę skolą) | H74: 41 | I74: =SUM(I75:I77) -> 0.00 | J74: =SUM(J75:J77) -> 0.00 | K74: =SUM(K75:K77) -> 0.00 | L74: =SUM(L75:L77) -> 0.00
A75: 2 | B75: 3 | C75: 1 | D75: 2 | E75: 1 | F75: 1 | G75: Asignavimų valdytojų sumokėtos palūkanos | H75: 42 | I75: 0.00 | J75: 0.00 | K75: 0.00 | L75: 0.00
A76: 2 | B76: 3 | C76: 1 | D76: 2 | E76: 1 | F76: 2 | G76: Finansų ministerijos sumokėtos palūkanos | H76: 43 | I76: 0.00 | J76: 0.00 | K76: 0.00 | L76: 0.00
A77: 2 | B77: 3 | C77: 1 | D77: 2 | E77: 1 | F77: 3 | G77: Savivaldybių sumokėtos palūkanos | H77: 44 | I77: 0.00 | J77: 0.00 | K77: 0.00 | L77: 0.00
A78: 2 | B78: 3 | C78: 1 | D78: 3 | G78: Palūkanos kitiems valdžios sektoriaus subjektams | H78: 45 | I78: =I79 -> 0.00 | J78: =J79 -> 0.00 | K78: =K79 -> 0.00 | L78: =L79 -> 0.00
A79: 2 | B79: 3 | C79: 1 | D79: 3 | E79: 1 | G79: Palūkanos kitiems valdžios sektoriaus subjektams | H79: 46 | I79: =SUM(I80:I82) -> 0.00 | J79: =SUM(J80:J82) -> 0.00 | K79: =SUM(K80:K82) -> 0.00 | L79: =SUM(L80:L82) -> 0.00
A80: 2 | B80: 3 | C80: 1 | D80: 3 | E80: 1 | F80: 1 | G80: Palūkanos valstybės biudžetui | H80: 47 | I80: 0.00 | J80: 0.00 | K80: 0.00 | L80: 0.00
A81: 2 | B81: 3 | C81: 1 | D81: 3 | E81: 1 | F81: 2 | G81: Palūkanos savivaldybių biudžetams | H81: 48 | I81: 0.00 | J81: 0.00 | K81: 0.00 | L81: 0.00
A82: 2 | B82: 3 | C82: 1 | D82: 3 | E82: 1 | F82: 3 | G82: Palūkanos nebiudžetiniams fondams | H82: 49 | I82: 0.00 | J82: 0.00 | K82: 0.00 | L82: 0.00
A83: 2 | B83: 3 | C83: 2 | G83: Žemės nuoma | H83: 50 | I83: =I84 -> 0.00 | J83: 0.00 | K83: 0.00 | L83: 0.00
A84: 2 | B84: 3 | C84: 2 | D84: 1 | G84: Žemės nuoma | H84: 51 | I84: 0.00 | J84: 0.00 | K84: 0.00 | L84: 0.00
A85: 2 | B85: 3 | C85: 2 | D85: 1 | E85: 1 | G85: Žemės nuoma | H85: 52 | I85: =SUM(I86) -> 0.00 | J85: =SUM(J86) -> 0.00 | K85: =SUM(K86) -> 0.00 | L85: =SUM(L86) -> 0.00
A86: 2 | B86: 3 | C86: 2 | D86: 1 | E86: 1 | F86: 1 | G86: Žemės nuoma | H86: 53 | I86: 0.00 | J86: 0.00 | K86: 0.00 | L86: 0.00
A87: 2 | B87: 4 | G87: Subsidijos | H87: 54 | I87: =I88 -> 0.00 | J87: 0.00 | K87: 0.00 | L87: 0.00
A88: 2 | B88: 4 | C88: 1 | G88: Subsidijos iš biudžeto lėšų | H88: 55 | I88: 0.00 | J88: 0.00 | K88: 0.00 | L88: 0.00
A89: 2 | B89: 4 | C89: 1 | D89: 1 | G89: Subsidijos iš biudžeto lėšų | H89: 56 | I89: 0.00 | J89: 0.00 | K89: 0.00 | L89: 0.00
A90: 2 | B90: 4 | C90: 1 | D90: 1 | E90: 1 | G90: Subsidijos iš biudžeto lėšų | H90: 57 | I90: =SUM(I91:I93) -> 0.00 | J90: =SUM(J91:J93) -> 0.00 | K90: =SUM(K91:K93) -> 0.00 | L90: =SUM(L91:L93) -> 0.00
A91: 2 | B91: 4 | C91: 1 | D91: 1 | E91: 1 | F91: 1 | G91: Subsidijos importui | H91: 58 | I91: 0.00 | J91: 0.00 | K91: 0.00 | L91: 0.00
A92: 2 | B92: 4 | C92: 1 | D92: 1 | E92: 1 | F92: 2 | G92: Subsidijos gaminiams | H92: 59 | I92: 0.00 | J92: 0.00 | K92: 0.00 | L92: 0.00
A93: 2 | B93: 4 | C93: 1 | D93: 1 | E93: 1 | F93: 3 | G93: Subsidijos gamybai | H93: 60 | I93: 0.00 | J93: 0.00 | K93: 0.00 | L93: 0.00
A94: 2 | B94: 5 | G94: Dotacijos | H94: 61 | I94: =SUM(I95+I100+I105) -> 0.00 | J94: =SUM(J95+J100+J105) -> 0.00 | K94: =SUM(K95+K100+K105) -> 0.00 | L94: =SUM(L95+L100+L105) -> 0.00
A95: 2 | B95: 5 | C95: 1 | G95: Dotacijos užsienio valstybėms | H95: 62 | I95: =I96 -> 0.00 | J95: 0.00 | K95: 0.00 | L95: 0.00
A96: 2 | B96: 5 | C96: 1 | D96: 1 | G96: Dotacijos užsienio valstybėms | H96: 63 | I96: 0.00 | J96: 0.00 | K96: 0.00 | L96: 0.00
A97: 2 | B97: 5 | C97: 1 | D97: 1 | E97: 1 | G97: Dotacijos užsienio valstybėms | H97: 64 | I97: =SUM(I98:I99) -> 0.00 | J97: =SUM(J98:J99) -> 0.00 | K97: =SUM(K98:K99) -> 0.00 | L97: =SUM(L98:L99) -> 0.00
A98: 2 | B98: 5 | C98: 1 | D98: 1 | E98: 1 | F98: 1 | G98: Dotacijos užsienio valstybėms einamiesiems tikslams | H98: 65 | I98: 0.00 | J98: 0.00 | K98: 0.00 | L98: 0.00
A99: 2 | B99: 5 | C99: 1 | D99: 1 | E99: 1 | F99: 2 | G99: Dotacijos užsienio valstybėms turtui įsigyti | H99: 66 | I99: 0.00 | J99: 0.00 | K99: 0.00 | L99: 0.00
A100: 2 | B100: 5 | C100: 2 | G100: Dotacijos tarptautinėms organizacijoms | H100: 67 | I100: =I101 -> 0.00 | J100: 0.00 | K100: 0.00 | L100: 0.00
A101: 2 | B101: 5 | C101: 2 | D101: 1 | G101: Dotacijos tarptautinėms organizacijoms | H101: 68 | I101: 0.00 | J101: 0.00 | K101: 0.00 | L101: 0.00
A102: 2 | B102: 5 | C102: 2 | D102: 1 | E102: 1 | G102: Dotacijos tarptautinėms organizacijoms | H102: 69 | I102: =SUM(I103:I104) -> 0.00 | J102: =SUM(J103:J104) -> 0.00 | K102: =SUM(K103:K104) -> 0.00 | L102: =SUM(L103:L104) -> 0.00
A103: 2 | B103: 5 | C103: 2 | D103: 1 | E103: 1 | F103: 1 | G103: Dotacijos tarptautinėms organizacijoms einamiesiems tikslams | H103: 70 | I103: 0.00 | J103: 0.00 | K103: 0.00 | L103: 0.00
A104: 2 | B104: 5 | C104: 2 | D104: 1 | E104: 1 | F104: 2 | G104: Dotacijos tarptautinėms organizacijoms turtui įsigyti | H104: 71 | I104: 0.00 | J104: 0.00 | K104: 0.00 | L104: 0.00
A105: 2 | B105: 5 | C105: 3 | G105: Dotacijos kitiems valdžios sektoriaus subjektams | H105: 72 | I105: =I106+I110 -> 0.00 | J105: =J106+J110 -> 0.00 | K105: =K106+K110 -> 0.00 | L105: =L106+L110 -> 0.00
A106: 2 | B106: 5 | C106: 3 | D106: 1 | G106: Dotacijos kitiems valdžios sektoriaus subjektams einamiesiems tikslams | H106: 73 | I106: =I107 -> 0.00 | J106: =J107 -> 0.00 | K106: =K107 -> 0.00 | L106: =L107 -> 0.00
A107: 2 | B107: 5 | C107: 3 | D107: 1 | E107: 1 | G107: Dotacijos kitiems valdžios sektoriaus subjektams einamiesiems tikslams | H107: 74 | I107: =SUM(I108:I109) -> 0.00 | J107: =SUM(J108:J109) -> 0.00 | K107: =SUM(K108:K109) -> 0.00 | L107: =SUM(L108:L109) -> 0.00
A108: 2 | B108: 5 | C108: 3 | D108: 1 | E108: 1 | F108: 1 | G108: Dotacijos kitiems valdžios sektoriaus subjektams einamiesiems tikslams | H108: 75 | I108: 0.00 | J108: 0.00 | K108: 0.00 | L108: 0.00
A109: 2 | B109: 5 | C109: 3 | D109: 1 | E109: 1 | F109: 2 | G109: Dotacijos savivaldybėms einamiesiems tikslams | H109: 76 | I109: 0.00 | J109: 0.00 | K109: 0.00 | L109: 0.00
A110: 2 | B110: 5 | C110: 3 | D110: 2 | G110: Dotacijos kitiems valdžios sektoriaus subjektams turtui įsigyti | H110: 77 | I110: =I111 -> 0.00 | J110: =J111 -> 0.00 | K110: =K111 -> 0.00 | L110: =L111 -> 0.00
A111: 2 | B111: 5 | C111: 3 | D111: 2 | E111: 1 | G111: Dotacijos kitiems valdžios sektoriaus subjektams turtui įsigyti | H111: 78 | I111: =SUM(I112:I113) -> 0.00 | J111: =SUM(J112:J113) -> 0.00 | K111: =SUM(K112:K113) -> 0.00 | L111: =SUM(L112:L113) -> 0.00
A112: 2 | B112: 5 | C112: 3 | D112: 2 | E112: 1 | F112: 1 | G112: Dotacijos kitiems valdžios sektoriaus subjektams turtui įsigyti | H112: 79 | I112: 0.00 | J112: 0.00 | K112: 0.00 | L112: 0.00
A113: 2 | B113: 5 | C113: 3 | D113: 2 | E113: 1 | F113: 2 | G113: Dotacijos savivaldybėms turtui įsigyti | H113: 80 | I113: 0.00 | J113: 0.00 | K113: 0.00 | L113: 0.00
A114: 2 | B114: 6 | G114: Įmokos į Europos Sąjungos biudžetą | H114: 81 | I114: =SUM(I115+I120+I124+I128+I132+I136) -> 0.00 | J114: =SUM(J115+J120+J124+J128+J132+J136) -> 0.00 | K114: =SUM(K115+K120+K124+K128+K132+K136) -> 0.00 | L114: =SUM(L115+L120+L124+L128+L132+L136) -> 0.00
A115: 2 | B115: 6 | C115: 1 | G115: Tradiciniai nuosavi ištekliai | H115: 82 | I115: =I116 -> 0.00 | J115: 0.00 | K115: 0.00 | L115: 0.00
A116: 2 | B116: 6 | C116: 1 | D116: 1 | G116: Tradiciniai nuosavi ištekliai | H116: 83 | I116: 0.00 | J116: 0.00 | K116: 0.00 | L116: 0.00
A117: 2 | B117: 6 | C117: 1 | D117: 1 | E117: 1 | G117: Tradiciniai nuosavi ištekliai | H117: 84 | I117: =SUM(I118:I119) -> 0.00 | J117: =SUM(J118:J119) -> 0.00 | K117: =SUM(K118:K119) -> 0.00 | L117: =SUM(L118:L119) -> 0.00
A118: 2 | B118: 6 | C118: 1 | D118: 1 | E118: 1 | F118: 1 | G118: Muitai | H118: 85 | I118: 0.00 | J118: 0.00 | K118: 0.00 | L118: 0.00
A119: 2 | B119: 6 | C119: 1 | D119: 1 | E119: 1 | F119: 2 | G119: Cukraus sektoriaus mokesčiai | H119: 86 | I119: 0.00 | J119: 0.00 | K119: 0.00 | L119: 0.00
A120: 2 | B120: 6 | C120: 2 | G120: Pridėtinės vertės mokesčio nuosavi ištekliai | H120: 87 | I120: =I121 -> 0.00 | J120: 0.00 | K120: 0.00 | L120: 0.00
A121: 2 | B121: 6 | C121: 2 | D121: 1 | G121: Pridėtinės vertės mokesčio nuosavi ištekliai | H121: 88 | I121: 0.00 | J121: 0.00 | K121: 0.00 | L121: 0.00
A122: 2 | B122: 6 | C122: 2 | D122: 1 | E122: 1 | G122: Pridėtinės vertės mokesčio nuosavi ištekliai | H122: 89 | I122: 0.00 | J122: 0.00 | K122: 0.00 | L122: 0.00
A123: 2 | B123: 6 | C123: 2 | D123: 1 | E123: 1 | F123: 1 | G123: Pridėtinės vertės mokesčio nuosavi ištekliai | H123: 90 | I123: 0.00 | J123: 0.00 | K123: 0.00 | L123: 0.00
A124: 2 | B124: 6 | C124: 3 | G124: Bendrųjų nacionalinių pajamų nuosavi ištekliai | H124: 91 | I124: =I125 -> 0.00 | J124: 0.00 | K124: 0.00 | L124: 0.00
A125: 2 | B125: 6 | C125: 3 | D125: 1 | G125: Bendrųjų nacionalinių pajamų nuosavi ištekliai | H125: 92 | I125: 0.00 | J125: 0.00 | K125: 0.00 | L125: 0.00
A126: 2 | B126: 6 | C126: 3 | D126: 1 | E126: 1 | G126: Bendrųjų nacionalinių pajamų nuosavi ištekliai | H126: 93 | I126: 0.00 | J126: 0.00 | K126: 0.00 | L126: 0.00
A127: 2 | B127: 6 | C127: 3 | D127: 1 | E127: 1 | F127: 1 | G127: Bendrųjų nacionalinių pajamų nuosavi ištekliai | H127: 94 | I127: 0.00 | J127: 0.00 | K127: 0.00 | L127: 0.00
A128: 2 | B128: 6 | C128: 4 | G128: Biudžeto disbalansų korekcija Jungtinės Karalystės naudai | H128: 95 | I128: =I129 -> 0.00 | J128: 0.00 | K128: 0.00 | L128: 0.00
A129: 2 | B129: 6 | C129: 4 | D129: 1 | G129: Biudžeto disbalansų korekcija Jungtinės Karalystės naudai | H129: 96 | I129: 0.00 | J129: 0.00 | K129: 0.00 | L129: 0.00
A130: 2 | B130: 6 | C130: 4 | D130: 1 | E130: 1 | G130: Biudžeto disbalansų korekcija Jungtinės Karalystės naudai | H130: 97 | I130: 0.00 | J130: 0.00 | K130: 0.00 | L130: 0.00
A131: 2 | B131: 6 | C131: 4 | D131: 1 | E131: 1 | F131: 1 | G131: Biudžeto disbalansų korekcija Jungtinės Karalystės naudai | H131: 98 | I131: 0.00 | J131: 0.00 | K131: 0.00 | L131: 0.00
A132: 2 | B132: 6 | C132: 5 | G132: Su nuosavais ištekliais susijusios baudos, delspinigiai ir neigiamos palūkanos | H132: 99 | I132: =I133 -> 0.00 | J132: 0.00 | K132: 0.00 | L132: 0.00
A133: 2 | B133: 6 | C133: 5 | D133: 1 | G133: Su nuosavais ištekliais susijusios baudos, delspinigiai ir neigiamos palūkanos | H133: 100 | I133: 0.00 | J133: 0.00 | K133: 0.00 | L133: 0.00
A134: 2 | B134: 6 | C134: 5 | D134: 1 | E134: 1 | G134: Su nuosavais ištekliais susijusios baudos, delspinigiai ir neigiamos palūkanos | H134: 101 | I134: 0.00 | J134: 0.00 | K134: 0.00 | L134: 0.00
A135: 2 | B135: 6 | C135: 5 | D135: 1 | E135: 1 | F135: 1 | G135: Su nuosavais ištekliais susijusios baudos, delspinigiai ir neigiamos palūkanos | H135: 102 | I135: 0.00 | J135: 0.00 | K135: 0.00 | L135: 0.00
A136: 2 | B136: 6 | C136: 6 | G136: Neperdirbto plastiko atliekų nuosavi ištekliai | H136: 103 | I136: =I137 -> 0.00 | J136: 0.00 | K136: 0.00 | L136: 0.00
A137: 2 | B137: 6 | C137: 6 | D137: 1 | G137: Neperdirbto plastiko atliekų nuosavi ištekliai | H137: 104 | I137: 0.00 | J137: 0.00 | K137: 0.00 | L137: 0.00
A138: 2 | B138: 6 | C138: 6 | D138: 1 | E138: 1 | G138: Neperdirbto plastiko atliekų nuosavi ištekliai | H138: 105 | I138: 0.00 | J138: 0.00 | K138: 0.00 | L138: 0.00
A139: 2 | B139: 6 | C139: 6 | D139: 1 | E139: 1 | F139: 1 | G139: Neperdirbto plastiko atliekų nuosavi ištekliai | H139: 106 | I139: 0.00 | J139: 0.00 | K139: 0.00 | L139: 0.00
A140: 2 | B140: 7 | G140: Socialinės išmokos (pašalpos) | H140: 107 | I140: =SUM(I141+I146+I154) -> 0.00 | J140: =SUM(J141+J146+J154) -> 0.00 | K140: =SUM(K141+K146+K154) -> 0.00 | L140: =SUM(L141+L146+L154) -> 0.00
A141: 2 | B141: 7 | C141: 1 | G141: Socialinio draudimo išmokos (pašalpos) | H141: 108 | I141: =I142 -> 0.00 | J141: 0.00 | K141: 0.00 | L141: 0.00
A142: 2 | B142: 7 | C142: 1 | D142: 1 | G142: Socialinio draudimo išmokos (pašalpos) | H142: 109 | I142: 0.00 | J142: 0.00 | K142: 0.00 | L142: 0.00
A143: 2 | B143: 7 | C143: 1 | D143: 1 | E143: 1 | G143: Socialinio draudimo išmokos (pašalpos) | H143: 110 | I143: =SUM(I144:I145) -> 0.00 | J143: =SUM(J144:J145) -> 0.00 | K143: =SUM(K144:K145) -> 0.00 | L143: =SUM(L144:L145) -> 0.00
A144: 2 | B144: 7 | C144: 1 | D144: 1 | E144: 1 | F144: 1 | G144: Socialinio draudimo išmokos pinigais | H144: 111 | I144: 0.00 | J144: 0.00 | K144: 0.00 | L144: 0.00
A145: 2 | B145: 7 | C145: 1 | D145: 1 | E145: 1 | F145: 2 | G145: Socialinio draudimo išmokos natūra | H145: 112 | I145: 0.00 | J145: 0.00 | K145: 0.00 | L145: 0.00
A146: 2 | B146: 7 | C146: 2 | G146: Socialinė parama (socialinės paramos pašalpos) ir rentos | H146: 113 | I146: =I147 -> 0.00 | J146: 0.00 | K146: 0.00 | L146: 0.00
A147: 2 | B147: 7 | C147: 2 | D147: 1 | G147: Socialinė parama (socialinės paramos pašalpos) | H147: 114 | I147: 0.00 | J147: 0.00 | K147: 0.00 | L147: 0.00
A148: 2 | B148: 7 | C148: 2 | D148: 1 | E148: 1 | G148: Socialinė parama (socialinės paramos pašalpos) | H148: 115 | I148: =SUM(I149:I150) -> 0.00 | J148: =SUM(J149:J150) -> 0.00 | K148: =SUM(K149:K150) -> 0.00 | L148: =SUM(L149:L150) -> 0.00
A149: 2 | B149: 7 | C149: 2 | D149: 1 | E149: 1 | F149: 1 | G149: Socialinė parama pinigais | H149: 116 | I149: 0.00 | J149: 0.00 | K149: 0.00 | L149: 0.00
A150: 2 | B150: 7 | C150: 2 | D150: 1 | E150: 1 | F150: 2 | G150: Socialinė parama natūra | H150: 117 | I150: 0.00 | J150: 0.00 | K150: 0.00 | L150: 0.00
A151: 2 | B151: 7 | C151: 2 | D151: 2 | G151: Rentos | H151: 118 | I151: =I152 -> 0.00 | J151: =J152 -> 0.00 | K151: =K152 -> 0.00 | L151: =L152 -> 0.00
A152: 2 | B152: 7 | C152: 2 | D152: 2 | E152: 1 | G152: Rentos | H152: 119 | I152: =SUM(I153) -> 0.00 | J152: =SUM(J153) -> 0.00 | K152: =SUM(K153) -> 0.00 | L152: =SUM(L153) -> 0.00
A153: 2 | B153: 7 | C153: 2 | D153: 2 | E153: 1 | F153: 1 | G153: Rentos | H153: 120 | I153: 0.00 | J153: 0.00 | K153: 0.00 | L153: 0.00
A154: 2 | B154: 7 | C154: 3 | G154: Darbdavių socialinė parama | H154: 121 | I154: =I155 -> 0.00 | J154: 0.00 | K154: 0.00 | L154: 0.00
A155: 2 | B155: 7 | C155: 3 | D155: 1 | G155: Darbdavių socialinė parama | H155: 122 | I155: 0.00 | J155: 0.00 | K155: 0.00 | L155: 0.00
A156: 2 | B156: 7 | C156: 3 | D156: 1 | E156: 1 | G156: Darbdavių socialinė parama | H156: 123 | I156: =SUM(I157:I158) -> 0.00 | J156: =SUM(J157:J158) -> 0.00 | K156: =SUM(K157:K158) -> 0.00 | L156: =SUM(L157:L158) -> 0.00
A157: 2 | B157: 7 | C157: 3 | D157: 1 | E157: 1 | F157: 1 | G157: Darbdavių socialinė parama pinigais | H157: 124 | I157: 0.00 | J157: 0.00 | K157: 0.00 | L157: 0.00
A158: 2 | B158: 7 | C158: 3 | D158: 1 | E158: 1 | F158: 2 | G158: Darbdavių socialinė parama natūra | H158: 125 | I158: 0.00 | J158: 0.00 | K158: 0.00 | L158: 0.00
A159: 2 | B159: 8 | G159: Kitos išlaidos | H159: 126 | I159: =I160 -> 0.00 | J159: =J160 -> 0.00 | K159: =K160 -> 0.00 | L159: =L160 -> 0.00
A160: 2 | B160: 8 | C160: 1 | G160: Kitos išlaidos | H160: 127 | I160: =I161+I166 -> 0.00 | J160: =J161+J166 -> 0.00 | K160: =K161+K166 -> 0.00 | L160: =L161+L166 -> 0.00
A161: 2 | B161: 8 | C161: 1 | D161: 1 | G161: Kitos išlaidos einamiesiems tikslams | H161: 128 | I161: =I162 -> 0.00 | J161: =J162 -> 0.00 | K161: =K162 -> 0.00 | L161: =L162 -> 0.00
A162: 2 | B162: 8 | C162: 1 | D162: 1 | E162: 1 | G162: Kitos išlaidos einamiesiems tikslams | H162: 129 | I162: =SUM(I163:I165) -> 0.00 | J162: =SUM(J163:J165) -> 0.00 | K162: =SUM(K163:K165) -> 0.00 | L162: =SUM(L163:L165) -> 0.00
A163: 2 | B163: 8 | C163: 1 | D163: 1 | E163: 1 | F163: 1 | G163: Stipendijoms | H163: 130 | I163: 0.00 | J163: 0.00 | K163: 0.00 | L163: 0.00
A164: 2 | B164: 8 | C164: 1 | D164: 1 | E164: 1 | F164: 2 | G164: Kitos išlaidos kitiems einamiesiems tikslams | H164: 131 | I164: 0.00 | J164: 0.00 | K164: 0.00 | L164: 0.00
A165: 2 | B165: 8 | C165: 1 | D165: 1 | E165: 1 | F165: 3 | G165: Valiutos kurso įtaka | H165: 132 | I165: 0.00 | J165: 0.00 | K165: 0.00 | L165: 0.00
A166: 2 | B166: 8 | C166: 1 | D166: 2 | G166: Kitos išlaidos turtui įsigyti | H166: 133 | I166: =I167 -> 0.00 | J166: 0.00 | K166: 0.00 | L166: 0.00
A167: 2 | B167: 8 | C167: 1 | D167: 2 | E167: 1 | G167: Kitos išlaidos turtui įsigyti | H167: 134 | I167: 0.00 | J167: 0.00 | K167: 0.00 | L167: 0.00
A168: 2 | B168: 8 | C168: 1 | D168: 2 | E168: 1 | F168: 1 | G168: Kitos išlaidos turtui įsigyti | H168: 135 | I168: 0.00 | J168: 0.00 | K168: 0.00 | L168: 0.00
A169: 2 | B169: 9 | G169: Pervedamos Europos Sąjungos, kitos tarptautinės finansinės paramos, bendrojo finansavimo lėšos ir kitos bendrai finansuojamiems iš Europos Sąjungos ar kitos tarptautinės finansinės paramos lėšų projektams įgyvendinti skirtos valstybės biudžeto lėšos | H169: 136 | I169: =I170+I174 -> 0.00 | J169: =J170+J174 -> 0.00 | K169: =K170+K174 -> 0.00 | L169: =L170+L174 -> 0.00
A170: 2 | B170: 9 | C170: 1 | G170: Subsidijos iš Europos Sąjungos ir kitos tarptautinės finansinės paramos lėšų (ne valdžios sektoriui) | H170: 137 | I170: =I171 -> 0.00 | J170: 0.00 | K170: 0.00 | L170: 0.00
A171: 2 | B171: 9 | C171: 1 | D171: 1 | G171: Subsidijos iš Europos Sąjungos ir kitos tarptautinės finansinės paramos lėšų (ne valdžios sektoriui) | H171: 138 | I171: 0.00 | J171: 0.00 | K171: 0.00 | L171: 0.00
A172: 2 | B172: 9 | C172: 1 | D172: 1 | E172: 1 | G172: Subsidijos iš Europos Sąjungos ir kitos tarptautinės finansinės paramos lėšų (ne valdžios sektoriui) | H172: 139 | I172: 0.00 | J172: 0.00 | K172: 0.00 | L172: 0.00
A173: 2 | B173: 9 | C173: 1 | D173: 1 | E173: 1 | F173: 1 | G173: Subsidijos iš Europos Sąjungos ir kitos tarptautinės finansinės paramos lėšų (ne valdžios sektoriui) | H173: 140 | I173: 0.00 | J173: 0.00 | K173: 0.00 | L173: 0.00
A174: 2 | B174: 9 | C174: 2 | G174: Pervedamos Europos Sąjungos, kitos tarptautinės finansinės paramos, bendrojo finansavimo lėšos ir kitos bendrai finansuojamiems iš Europos Sąjungos ar kitos tarptautinės finansinės paramos lėšų projektams įgyvendinti skirtos valstybės biudžeto lėšos | H174: 141 | I174: =SUM(I175+I180) -> 0.00 | J174: =SUM(J175+J180) -> 0.00 | K174: =SUM(K175+K180) -> 0.00 | L174: =SUM(L175+L180) -> 0.00
A175: 2 | B175: 9 | C175: 2 | D175: 1 | G175: Pervedamos Europos Sąjungos, kitos tarptautinės finansinės paramos, bendrojo finansavimo lėšos ir kitos bendrai finansuojamiems iš Europos Sąjungos ar kitos tarptautinės finansinės paramos lėšų projektams įgyvendinti skirtos valstybės biudžeto lėšos einamiesiems tikslams | H175: 142 | I175: =I176 -> 0.00 | J175: =J176 -> 0.00 | K175: =K176 -> 0.00 | L175: =L176 -> 0.00
A176: 2 | B176: 9 | C176: 2 | D176: 1 | E176: 1 | G176: Pervedamos Europos Sąjungos, kitos tarptautinės finansinės paramos, bendrojo finansavimo lėšos ir kitos bendrai finansuojamiems iš Europos Sąjungos ar kitos tarptautinės finansinės paramos lėšų projektams įgyvendinti skirtos valstybės biudžeto lėšos einamiesiems tikslams | H176: 143 | I176: =SUM(I177:I179) -> 0.00 | J176: =SUM(J177:J179) -> 0.00 | K176: =SUM(K177:K179) -> 0.00 | L176: =SUM(L177:L179) -> 0.00
A177: 2 | B177: 9 | C177: 2 | D177: 1 | E177: 1 | F177: 1 | G177: Pervedamos Europos Sąjungos, kitos tarptautinės finansinės paramos, bendrojo finansavimo lėšos ir kitos bendrai finansuojamiems iš Europos Sąjungos ar kitos tarptautinės finansinės paramos lėšų projektams įgyvendinti skirtos valstybės biudžeto lėšos einamiesiems tikslams savivaldybėms | H177: 144 | I177: 0.00 | J177: 0.00 | K177: 0.00 | L177: 0.00
A178: 2 | B178: 9 | C178: 2 | D178: 1 | E178: 1 | F178: 2 | G178: Pervedamos Europos Sąjungos, kitos tarptautinės finansinės paramos, bendrojo finansavimo lėšos ir kitos bendrai finansuojamiems iš Europos Sąjungos ar kitos tarptautinės finansinės paramos lėšų projektams įgyvendinti skirtos valstybės biudžeto lėšos einamiesiems tikslams kitiems valdžios sektoriaus subjektams | H178: 145 | I178: 0.00 | J178: 0.00 | K178: 0.00 | L178: 0.00
A179: 2 | B179: 9 | C179: 2 | D179: 1 | E179: 1 | F179: 3 | G179: Pervedamos Europos Sąjungos, kitos tarptautinės finansinės paramos, bendrojo finansavimo lėšos ir kitos bendrai finansuojamiems iš Europos Sąjungos ar kitos tarptautinės finansinės paramos lėšų projektams įgyvendinti skirtos valstybės biudžeto lėšos einamiesiems tikslams ne valdžios sektoriui | H179: 146 | I179: 0.00 | J179: 0.00 | K179: 0.00 | L179: 0.00
A180: 2 | B180: 9 | C180: 2 | D180: 2 | G180: Pervedamos Europos Sąjungos, kitos tarptautinės finansinės paramos, bendrojo finansavimo lėšos ir kitos bendrai finansuojamiems iš Europos Sąjungos ar kitos tarptautinės finansinės paramos lėšų projektams įgyvendinti skirtos valstybės biudžeto lėšos investicijoms | H180: 147 | I180: =I181 -> 0.00 | J180: =J181 -> 0.00 | K180: =K181 -> 0.00 | L180: =L181 -> 0.00
A181: 2 | B181: 9 | C181: 2 | D181: 2 | E181: 1 | G181: Pervedamos Europos Sąjungos, kitos tarptautinės finansinės paramos, bendrojo finansavimo lėšos ir kitos bendrai finansuojamiems iš Europos Sąjungos ar kitos tarptautinės finansinės paramos lėšų projektams įgyvendinti skirtos valstybės biudžeto lėšos investicijoms | H181: 148 | I181: =SUM(I182:I184) -> 0.00 | J181: =SUM(J182:J184) -> 0.00 | K181: =SUM(K182:K184) -> 0.00 | L181: =SUM(L182:L184) -> 0.00
A182: 2 | B182: 9 | C182: 2 | D182: 2 | E182: 1 | F182: 1 | G182: Pervedamos Europos Sąjungos, kitos tarptautinės finansinės paramos, bendrojo finansavimo lėšos ir kitos bendrai finansuojamiems iš Europos Sąjungos ar kitos tarptautinės finansinės paramos lėšų projektams įgyvendinti skirtos valstybės biudžeto lėšos investicijoms, skirtoms savivaldybėms | H182: 149 | I182: 0.00 | J182: 0.00 | K182: 0.00 | L182: 0.00
A183: 2 | B183: 9 | C183: 2 | D183: 2 | E183: 1 | F183: 2 | G183: Pervedamos Europos Sąjungos, kitos tarptautinės finansinės paramos, bendrojo finansavimo lėšos ir kitos bendrai finansuojamiems iš Europos Sąjungos ar kitos tarptautinės finansinės paramos lėšų projektams įgyvendinti skirtos valstybės biudžeto lėšos investicijoms kitiems valdžios sektoriaus subjektams | H183: 150 | I183: 0.00 | J183: 0.00 | K183: 0.00 | L183: 0.00
A184: 2 | B184: 9 | C184: 2 | D184: 2 | E184: 1 | F184: 3 | G184: Pervedamos Europos Sąjungos, kitos tarptautinės finansinės paramos, bendrojo finansavimo lėšos ir kitos bendrai finansuojamiems iš Europos Sąjungos ar kitos tarptautinės finansinės paramos lėšų projektams įgyvendinti skirtos valstybės biudžeto lėšos investicijoms ne valdžios sektoriui | H184: 151 | I184: 0.00 | J184: 0.00 | K184: 0.00 | L184: 0.00
A185: 3 | G185: MATERIALIOJO IR NEMATERIALIOJO TURTO ĮSIGIJIMO, FINANSINIO TURTO PADIDĖJIMO IR FINANSINIŲ ĮSIPAREIGOJIMŲ VYKDYMO IŠLAIDOS | H185: 152 | I185: =SUM(I186+I239+I304) -> 6400.00 | J185: =SUM(J186+J239+J304) -> 6400.00 | K185: =SUM(K186+K239+K304) -> 6400.00 | L185: =SUM(L186+L239+L304) -> 6400.00
A186: 3 | B186: 1 | G186: Materialiojo ir nematerialiojo turto įsigijimo išlaidos | H186: 153 | I186: =SUM(I187+I210+I217+I229+I233) -> 6400.00 | J186: =SUM(J187+J210+J217+J229+J233) -> 6400.00 | K186: =SUM(K187+K210+K217+K229+K233) -> 6400.00 | L186: =SUM(L187+L210+L217+L229+L233) -> 6400.00
A187: 3 | B187: 1 | C187: 1 | G187: Ilgalaikio materialiojo turto kūrimo ir įsigijimo išlaidos | H187: 154 | I187: =SUM(I188+I191+I196+I202+I207) -> 6400.00 | J187: =SUM(J188+J191+J196+J202+J207) -> 6400.00 | K187: =SUM(K188+K191+K196+K202+K207) -> 6400.00 | L187: =SUM(L188+L191+L196+L202+L207) -> 6400.00
A188: 3 | B188: 1 | C188: 1 | D188: 1 | G188: Žemės įsigijimo išlaidos | H188: 155 | I188: =I189 -> 0.00 | J188: 0.00 | K188: 0.00 | L188: 0.00
A189: 3 | B189: 1 | C189: 1 | D189: 1 | E189: 1 | G189: Žemės įsigijimo išlaidos | H189: 156 | I189: 0.00 | J189: 0.00 | K189: 0.00 | L189: 0.00
A190: 3 | B190: 1 | C190: 1 | D190: 1 | E190: 1 | F190: 1 | G190: Žemės įsigijimo išlaidos | H190: 157 | I190: 0.00 | J190: 0.00 | K190: 0.00 | L190: 0.00
A191: 3 | B191: 1 | C191: 1 | D191: 2 | G191: Pastatų ir statinių įsigijimo išlaidos | H191: 158 | I191: =I192 -> 0.00 | J191: =J192 -> 0.00 | K191: =K192 -> 0.00 | L191: =L192 -> 0.00
A192: 3 | B192: 1 | C192: 1 | D192: 2 | E192: 1 | G192: Pastatų ir statinių įsigijimo išlaidos | H192: 159 | I192: =SUM(I193:I195) -> 0.00 | J192: =SUM(J193:J195) -> 0.00 | K192: =SUM(K193:K195) -> 0.00 | L192: =SUM(L193:L195) -> 0.00
A193: 3 | B193: 1 | C193: 1 | D193: 2 | E193: 1 | F193: 1 | G193: Gyvenamųjų namų įsigijimo išlaidos | H193: 160 | I193: 0.00 | J193: 0.00 | K193: 0.00 | L193: 0.00
A194: 3 | B194: 1 | C194: 1 | D194: 2 | E194: 1 | F194: 2 | G194: Negyvenamųjų pastatų įsigijimo išlaidos | H194: 161 | I194: 0.00 | J194: 0.00 | K194: 0.00 | L194: 0.00
A195: 3 | B195: 1 | C195: 1 | D195: 2 | E195: 1 | F195: 3 | G195: Infrastruktūros ir kitų statinių įsigijimo išlaidos | H195: 162 | I195: 0.00 | J195: 0.00 | K195: 0.00 | L195: 0.00
A196: 3 | B196: 1 | C196: 1 | D196: 3 | G196: Mašinų ir įrenginių įsigijimo išlaidos | H196: 163 | I196: =I197 -> 6400.00 | J196: =J197 -> 6400.00 | K196: =K197 -> 6400.00 | L196: =L197 -> 6400.00
A197: 3 | B197: 1 | C197: 1 | D197: 3 | E197: 1 | G197: Mašinų ir įrenginių įsigijimo išlaidos | H197: 164 | I197: =SUM(I198:I201) -> 6400.00 | J197: =SUM(J198:J201) -> 6400.00 | K197: =SUM(K198:K201) -> 6400.00 | L197: =SUM(L198:L201) -> 6400.00
A198: 3 | B198: 1 | C198: 1 | D198: 3 | E198: 1 | F198: 1 | G198: Transporto priemonių įsigijimo išlaidos | H198: 165 | I198: 0.00 | J198: 0.00 | K198: 0.00 | L198: 0.00
A199: 3 | B199: 1 | C199: 1 | D199: 3 | E199: 1 | F199: 2 | G199: Kitų mašinų ir įrenginių įsigijimo išlaidos | H199: 166 | I199: 0.00 | J199: 0.00 | K199: 0.00 | L199: 0.00
A200: 3 | B200: 1 | C200: 1 | D200: 3 | E200: 1 | F200: 3 | G200: Ginklų ir karinės įrangos įsigijimo išlaidos | H200: 167 | I200: 0.00 | J200: 0.00 | K200: 0.00 | L200: 0.00
A201: 3 | B201: 1 | C201: 1 | D201: 3 | E201: 1 | F201: 4 | G201: Kompiuterinės techninės ir elektroninių ryšių įrangos įsigijimo išlaidos | H201: 168 | I201: 6400.00 | J201: 6400.00 | K201: 6400.00 | L201: 6400.00
A202: 3 | B202: 1 | C202: 1 | D202: 4 | G202: Kultūros ir kitų vertybių įsigijimo išlaidos | H202: 169 | I202: =I203 -> 0.00 | J202: =J203 -> 0.00 | K202: =K203 -> 0.00 | L202: =L203 -> 0.00
A203: 3 | B203: 1 | C203: 1 | D203: 4 | E203: 1 | G203: Kultūros ir kitų vertybių įsigijimo išlaidos | H203: 170 | I203: =SUM(I204:I206) -> 0.00 | J203: =SUM(J204:J206) -> 0.00 | K203: =SUM(K204:K206) -> 0.00 | L203: =SUM(L204:L206) -> 0.00
A204: 3 | B204: 1 | C204: 1 | D204: 4 | E204: 1 | F204: 1 | G204: Muziejinių vertybių įsigijimo išlaidos | H204: 171 | I204: 0.00 | J204: 0.00 | K204: 0.00 | L204: 0.00
A205: 3 | B205: 1 | C205: 1 | D205: 4 | E205: 1 | F205: 2 | G205: Antikvarinių ir kitų meno kūrinių įsigijimo išlaidos | H205: 172 | I205: 0.00 | J205: 0.00 | K205: 0.00 | L205: 0.00
A206: 3 | B206: 1 | C206: 1 | D206: 4 | E206: 1 | F206: 3 | G206: Kitų vertybių įsigijimo išlaidos | H206: 173 | I206: 0.00 | J206: 0.00 | K206: 0.00 | L206: 0.00
A207: 3 | B207: 1 | C207: 1 | D207: 5 | G207: Kito ilgalaikio materialiojo turto įsigijimo išlaidos | H207: 174 | I207: =I208 -> 0.00 | J207: 0.00 | K207: 0.00 | L207: 0.00
A208: 3 | B208: 1 | C208: 1 | D208: 5 | E208: 1 | G208: Kito ilgalaikio materialiojo turto įsigijimo išlaidos | H208: 175 | I208: 0.00 | J208: 0.00 | K208: 0.00 | L208: 0.00
... 166 more rows

Sheet Forma Nr.2 S
J1: Biudžeto vykdymo ataskaitų rinkinių rengimo taisyklių
J2: 1 priedas
A7: (Biudžeto išlaidų sąmatos vykdymo 2025 m. gruodžio mėn. 31 d. I ketvirčio, pusmečio, 9 mėnesių, metų ataskaitos forma, Nr.2)
A9: Vaikų ir jaunimo laisvalaikio centras, 195174984
A10: (įstaigos pavadinimas, kodas Juridinių asmenų registre, adresas)
G12: BIUDŽETO IŠLAIDŲ SĄMATOS VYKDYMO PAGAL
A13: 2025 M. GRUODŽIO MĖN. 31 D.
G14: 4 ketvirtis
G15: (I ketvirčio, pusmečio, 9 mėnesių, metinė)
B16: ATASKAITA
G18: 2026.01.14 Nr.________________
G19: (data)
E21: Žinių visuomenės plėtros programa
A22: (programos pavadinimas)
L23: Kodas
J24: Ministerijos / Savivaldybės
K25: Departamento
A26: 1.1.2.5. Neformaliojo ugdymo programų įgyvendinimas ir tinkamos aplinkos užtikrinimas Gargždų vaikų ir jaunimo laisvalaikio centre | K26: Įstaigos | L26: 195174984
A27: Neformalusis vaikų švietimas | J27: Programos | K27: 1
G28: Finansavimo šaltinio | H28: S
G29: Valstybės funkcijos | I29: 09 | J29: 05 | K29: 01 | L29: 01
A30: Pajamos už paslaugas ir nuomą | L30: (eurais, ct)
A31: Išlaidų ekonominės klasifikacijos kodas | G31: Išlaidų pavadinimas | H31: Eil. Nr. | I31: Asignavimų planas, įskaitant patikslinimus | K31: Gauti asignavimai kartu su įskaitytu praėjusių metų lėšų likučiu | L31: Panaudoti asignavimai
I32: metams | J32: ataskaitiniam laikotarpiui
A33: 1 | G33: 2 | H33: 3 | I33: 4 | J33: 5 | K33: 6 | L33: 7
A34: 2 | G34: IŠLAIDOS | H34: 1 | I34: =SUM(I35+I46+I66+I87+I94+I114+I140+I159+I169) -> 26800.00 | J34: =SUM(J35+J46+J66+J87+J94+J114+J140+J159+J169) -> 26800.00 | K34: =SUM(K35+K46+K66+K87+K94+K114+K140+K159+K169) -> 24275.00 | L34: =SUM(L35+L46+L66+L87+L94+L114+L140+L159+L169) -> 24275.00
A35: 2 | B35: 1 | G35: Darbo užmokestis ir socialinis draudimas | H35: 2 | I35: =SUM(I36+I42) -> 13000.00 | J35: =SUM(J36+J42) -> 13000.00 | K35: =SUM(K36+K42) -> 13000.00 | L35: =SUM(L36+L42) -> 13000.00
A36: 2 | B36: 1 | C36: 1 | G36: Darbo užmokestis | H36: 3 | I36: =SUM(I37) -> 12700.00 | J36: =SUM(J37) -> 12700.00 | K36: =SUM(K37) -> 12700.00 | L36: =SUM(L37) -> 12700.00
A37: 2 | B37: 1 | C37: 1 | D37: 1 | G37: Darbo užmokestis | H37: 4 | I37: =SUM(I38+I40) -> 12700.00 | J37: =SUM(J38+J40) -> 12700.00 | K37: =SUM(K38+K40) -> 12700.00 | L37: =SUM(L38+L40) -> 12700.00
A38: 2 | B38: 1 | C38: 1 | D38: 1 | E38: 1 | G38: Darbo užmokestis pinigais | H38: 5 | I38: =SUM(I39) -> 12700.00 | J38: =SUM(J39) -> 12700.00 | K38: =SUM(K39) -> 12700.00 | L38: =SUM(L39) -> 12700.00
A39: 2 | B39: 1 | C39: 1 | D39: 1 | E39: 1 | F39: 1 | G39: Darbo užmokestis pinigais | H39: 6 | I39: 12700.00 | J39: 12700.00 | K39: 12700.00 | L39: 12700.00
A40: 2 | B40: 1 | C40: 1 | D40: 1 | E40: 2 | G40: Pajamos natūra | H40: 7 | I40: =I41 -> 0.00 | J40: =J41 -> 0.00 | K40: =K41 -> 0.00 | L40: =L41 -> 0.00
A41: 2 | B41: 1 | C41: 1 | D41: 1 | E41: 2 | F41: 1 | G41: Pajamos natūra | H41: 8 | I41: 0.00 | J41: 0.00 | K41: 0.00 | L41: 0.00
A42: 2 | B42: 1 | C42: 2 | G42: Socialinio draudimo įmokos | H42: 9 | I42: =I43 -> 300.00 | J42: 300.00 | K42: 300.00 | L42: 300.00
A43: 2 | B43: 1 | C43: 2 | D43: 1 | G43: Socialinio draudimo įmokos | H43: 10 | I43: 300.00 | J43: 300.00 | K43: 300.00 | L43: 300.00
A44: 2 | B44: 1 | C44: 2 | D44: 1 | E44: 1 | G44: Socialinio draudimo įmokos | H44: 11 | I44: 300.00 | J44: 300.00 | K44: 300.00 | L44: 300.00
A45: 2 | B45: 1 | C45: 2 | D45: 1 | E45: 1 | F45: 1 | G45: Socialinio draudimo įmokos | H45: 12 | I45: 300.00 | J45: 300.00 | K45: 300.00 | L45: 300.00
A46: 2 | B46: 2 | G46: Prekių ir paslaugų įsigijimo išlaidos | H46: 13 | I46: =I47 -> 13800.00 | J46: 13800.00 | K46: 11275.00 | L46: 11275.00
A47: 2 | B47: 2 | C47: 1 | G47: Prekių ir paslaugų įsigijimo išlaidos | H47: 14 | I47: 13800.00 | J47: 13800.00 | K47: 11275.00 | L47: 11275.00
A48: 2 | B48: 2 | C48: 1 | D48: 1 | G48: Prekių ir paslaugų įsigijimo išlaidos | H48: 15 | I48: 13800.00 | J48: 13800.00 | K48: 11275.00 | L48: 11275.00
A49: 2 | B49: 2 | C49: 1 | D49: 1 | E49: 1 | G49: Prekių ir paslaugų įsigijimo išlaidos | H49: 16 | I49: =SUM(I50:I65) -> 13800.00 | J49: =SUM(J50:J65) -> 13800.00 | K49: =SUM(K50:K65) -> 11275.00 | L49: =SUM(L50:L65) -> 11275.00
A50: 2 | B50: 2 | C50: 1 | D50: 1 | E50: 1 | F50: 1 | G50: Mitybos išlaidos | H50: 17 | I50: 0.00 | J50: 0.00 | K50: 0.00 | L50: 0.00
A51: 2 | B51: 2 | C51: 1 | D51: 1 | E51: 1 | F51: 2 | G51: Medikamentų ir medicininių prekių bei paslaugų įsigijimo išlaidos | H51: 18 | I51: 0.00 | J51: 0.00 | K51: 0.00 | L51: 0.00
A52: 2 | B52: 2 | C52: 1 | D52: 1 | E52: 1 | F52: 5 | G52: Ryšių įrangos ir ryšių paslaugų įsigijimo išlaidos | H52: 19 | I52: 600.00 | J52: 600.00 | K52: 65.18 | L52: 65.18
A53: 2 | B53: 2 | C53: 1 | D53: 1 | E53: 1 | F53: 6 | G53: Transporto išlaikymo ir transporto paslaugų įsigijimo išlaidos | H53: 20 | I53: 0.00 | J53: 0.00 | K53: 0.00 | L53: 0.00
A54: 2 | B54: 2 | C54: 1 | D54: 1 | E54: 1 | F54: 7 | G54: Aprangos ir patalynės įsigijimo bei priežiūros išlaidos | H54: 21 | I54: 0.00 | J54: 0.00 | K54: 0.00 | L54: 0.00
A55: 2 | B55: 2 | C55: 1 | D55: 1 | E55: 1 | F55: 11 | G55: Komandiruočių išlaidos | H55: 22 | I55: 0.00 | J55: 0.00 | K55: 0.00 | L55: 0.00
A56: 2 | B56: 2 | C56: 1 | D56: 1 | E56: 1 | F56: 12 | G56: Gyvenamųjų vietovių viešojo ūkio išlaidos | H56: 23 | I56: 0.00 | J56: 0.00 | K56: 0.00 | L56: 0.00
A57: 2 | B57: 2 | C57: 1 | D57: 1 | E57: 1 | F57: 14 | G57: Materialiojo ir nematerialiojo turto nuomos išlaidos | H57: 24 | I57: 0.00 | J57: 0.00 | K57: 0.00 | L57: 0.00
A58: 2 | B58: 2 | C58: 1 | D58: 1 | E58: 1 | F58: 15 | G58: Materialiojo turto paprastojo remonto prekių ir paslaugų įsigijimo išlaidos | H58: 25 | I58: 1200.00 | J58: 1200.00 | K58: 489.00 | L58: 489.00
A59: 2 | B59: 2 | C59: 1 | D59: 1 | E59: 1 | F59: 16 | G59: Kvalifikacijos kėlimo išlaidos | H59: 26 | I59: 0.00 | J59: 0.00 | K59: 0.00 | L59: 0.00
A60: 2 | B60: 2 | C60: 1 | D60: 1 | E60: 1 | F60: 17 | G60: Ekspertų ir konsultantų paslaugų įsigijimo išlaidos | H60: 27 | I60: 0.00 | J60: 0.00 | K60: 0.00 | L60: 0.00
A61: 2 | B61: 2 | C61: 1 | D61: 1 | E61: 1 | F61: 20 | G61: Komunalinių paslaugų įsigijimo išlaidos | H61: 28 | I61: 0.00 | J61: 0.00 | K61: 0.00 | L61: 0.00
A62: 2 | B62: 2 | C62: 1 | D62: 1 | E62: 1 | F62: 21 | G62: Informacinių technologijų prekių ir paslaugų įsigijimo išlaidos | H62: 29 | I62: 800.00 | J62: 800.00 | K62: 682.20 | L62: 682.20
A63: 2 | B63: 2 | C63: 1 | D63: 1 | E63: 1 | F63: 22 | G63: Reprezentacinės išlaidos | H63: 30 | I63: 0.00 | J63: 0.00 | K63: 0.00 | L63: 0.00
A64: 2 | B64: 2 | C64: 1 | D64: 1 | E64: 1 | F64: 23 | G64: Viešinimo išlaidos | H64: 31 | I64: 0.00 | J64: 0.00 | K64: 0.00 | L64: 0.00
A65: 2 | B65: 2 | C65: 1 | D65: 1 | E65: 1 | F65: 30 | G65: Kitų prekių ir paslaugų įsigijimo išlaidos | H65: 32 | I65: 11200.00 | J65: 11200.00 | K65: 10038.62 | L65: 10038.62
A66: 2 | B66: 3 | G66: Palūkanos | H66: 33 | I66: =I67 -> 0.00 | J66: =J67 -> 0.00 | K66: =K67 -> 0.00 | L66: =L67 -> 0.00
A67: 2 | B67: 3 | C67: 1 | G67: Palūkanos | H67: 34 | I67: =SUM(I68+I73+I78) -> 0.00 | J67: =SUM(J68+J73+J78) -> 0.00 | K67: =SUM(K68+K73+K78) -> 0.00 | L67: =SUM(L68+L73+L78) -> 0.00
A68: 2 | B68: 3 | C68: 1 | D68: 1 | G68: Palūkanos nerezidentams | H68: 35 | I68: =I69 -> 0.00 | J68: =J69 -> 0.00 | K68: =K69 -> 0.00 | L68: =L69 -> 0.00
A69: 2 | B69: 3 | C69: 1 | D69: 1 | E69: 1 | G69: Palūkanos nerezidentams | H69: 36 | I69: =SUM(I70:I72) -> 0.00 | J69: =SUM(J70:J72) -> 0.00 | K69: =SUM(K70:K72) -> 0.00 | L69: =SUM(L70:L72) -> 0.00
A70: 2 | B70: 3 | C70: 1 | D70: 1 | E70: 1 | F70: 1 | G70: Asignavimų valdytojų sumokėtos palūkanos | H70: 37 | I70: 0.00 | J70: 0.00 | K70: 0.00 | L70: 0.00
A71: 2 | B71: 3 | C71: 1 | D71: 1 | E71: 1 | F71: 2 | G71: Finansų ministerijos sumokėtos palūkanos | H71: 38 | I71: 0.00 | J71: 0.00 | K71: 0.00 | L71: 0.00
A72: 2 | B72: 3 | C72: 1 | D72: 1 | E72: 1 | F72: 3 | G72: Savivaldybių sumokėtos palūkanos | H72: 39 | I72: 0.00 | J72: 0.00 | K72: 0.00 | L72: 0.00
A73: 2 | B73: 3 | C73: 1 | D73: 2 | G73: Palūkanos rezidentams, kitiems nei valdžios sektorius (tik už tiesioginę skolą) | H73: 40 | I73: =I74 -> 0.00 | J73: =J74 -> 0.00 | K73: =K74 -> 0.00 | L73: =L74 -> 0.00
A74: 2 | B74: 3 | C74: 1 | D74: 2 | E74: 1 | G74: Palūkanos rezidentams, kitiems nei valdžios sektorius (tik už tiesioginę skolą) | H74: 41 | I74: =SUM(I75:I77) -> 0.00 | J74: =SUM(J75:J77) -> 0.00 | K74: =SUM(K75:K77) -> 0.00 | L74: =SUM(L75:L77) -> 0.00
A75: 2 | B75: 3 | C75: 1 | D75: 2 | E75: 1 | F75: 1 | G75: Asignavimų valdytojų sumokėtos palūkanos | H75: 42 | I75: 0.00 | J75: 0.00 | K75: 0.00 | L75: 0.00
A76: 2 | B76: 3 | C76: 1 | D76: 2 | E76: 1 | F76: 2 | G76: Finansų ministerijos sumokėtos palūkanos | H76: 43 | I76: 0.00 | J76: 0.00 | K76: 0.00 | L76: 0.00
A77: 2 | B77: 3 | C77: 1 | D77: 2 | E77: 1 | F77: 3 | G77: Savivaldybių sumokėtos palūkanos | H77: 44 | I77: 0.00 | J77: 0.00 | K77: 0.00 | L77: 0.00
A78: 2 | B78: 3 | C78: 1 | D78: 3 | G78: Palūkanos kitiems valdžios sektoriaus subjektams | H78: 45 | I78: =I79 -> 0.00 | J78: =J79 -> 0.00 | K78: =K79 -> 0.00 | L78: =L79 -> 0.00
A79: 2 | B79: 3 | C79: 1 | D79: 3 | E79: 1 | G79: Palūkanos kitiems valdžios sektoriaus subjektams | H79: 46 | I79: =SUM(I80:I82) -> 0.00 | J79: =SUM(J80:J82) -> 0.00 | K79: =SUM(K80:K82) -> 0.00 | L79: =SUM(L80:L82) -> 0.00
A80: 2 | B80: 3 | C80: 1 | D80: 3 | E80: 1 | F80: 1 | G80: Palūkanos valstybės biudžetui | H80: 47 | I80: 0.00 | J80: 0.00 | K80: 0.00 | L80: 0.00
A81: 2 | B81: 3 | C81: 1 | D81: 3 | E81: 1 | F81: 2 | G81: Palūkanos savivaldybių biudžetams | H81: 48 | I81: 0.00 | J81: 0.00 | K81: 0.00 | L81: 0.00
A82: 2 | B82: 3 | C82: 1 | D82: 3 | E82: 1 | F82: 3 | G82: Palūkanos nebiudžetiniams fondams | H82: 49 | I82: 0.00 | J82: 0.00 | K82: 0.00 | L82: 0.00
A83: 2 | B83: 3 | C83: 2 | G83: Žemės nuoma | H83: 50 | I83: =I84 -> 0.00 | J83: 0.00 | K83: 0.00 | L83: 0.00
A84: 2 | B84: 3 | C84: 2 | D84: 1 | G84: Žemės nuoma | H84: 51 | I84: 0.00 | J84: 0.00 | K84: 0.00 | L84: 0.00
A85: 2 | B85: 3 | C85: 2 | D85: 1 | E85: 1 | G85: Žemės nuoma | H85: 52 | I85: =SUM(I86) -> 0.00 | J85: =SUM(J86) -> 0.00 | K85: =SUM(K86) -> 0.00 | L85: =SUM(L86) -> 0.00
A86: 2 | B86: 3 | C86: 2 | D86: 1 | E86: 1 | F86: 1 | G86: Žemės nuoma | H86: 53 | I86: 0.00 | J86: 0.00 | K86: 0.00 | L86: 0.00
A87: 2 | B87: 4 | G87: Subsidijos | H87: 54 | I87: =I88 -> 0.00 | J87: 0.00 | K87: 0.00 | L87: 0.00
A88: 2 | B88: 4 | C88: 1 | G88: Subsidijos iš biudžeto lėšų | H88: 55 | I88: 0.00 | J88: 0.00 | K88: 0.00 | L88: 0.00
A89: 2 | B89: 4 | C89: 1 | D89: 1 | G89: Subsidijos iš biudžeto lėšų | H89: 56 | I89: 0.00 | J89: 0.00 | K89: 0.00 | L89: 0.00
A90: 2 | B90: 4 | C90: 1 | D90: 1 | E90: 1 | G90: Subsidijos iš biudžeto lėšų | H90: 57 | I90: =SUM(I91:I93) -> 0.00 | J90: =SUM(J91:J93) -> 0.00 | K90: =SUM(K91:K93) -> 0.00 | L90: =SUM(L91:L93) -> 0.00
A91: 2 | B91: 4 | C91: 1 | D91: 1 | E91: 1 | F91: 1 | G91: Subsidijos importui | H91: 58 | I91: 0.00 | J91: 0.00 | K91: 0.00 | L91: 0.00
A92: 2 | B92: 4 | C92: 1 | D92: 1 | E92: 1 | F92: 2 | G92: Subsidijos gaminiams | H92: 59 | I92: 0.00 | J92: 0.00 | K92: 0.00 | L92: 0.00
A93: 2 | B93: 4 | C93: 1 | D93: 1 | E93: 1 | F93: 3 | G93: Subsidijos gamybai | H93: 60 | I93: 0.00 | J93: 0.00 | K93: 0.00 | L93: 0.00
A94: 2 | B94: 5 | G94: Dotacijos | H94: 61 | I94: =SUM(I95+I100+I105) -> 0.00 | J94: =SUM(J95+J100+J105) -> 0.00 | K94: =SUM(K95+K100+K105) -> 0.00 | L94: =SUM(L95+L100+L105) -> 0.00
A95: 2 | B95: 5 | C95: 1 | G95: Dotacijos užsienio valstybėms | H95: 62 | I95: =I96 -> 0.00 | J95: 0.00 | K95: 0.00 | L95: 0.00
A96: 2 | B96: 5 | C96: 1 | D96: 1 | G96: Dotacijos užsienio valstybėms | H96: 63 | I96: 0.00 | J96: 0.00 | K96: 0.00 | L96: 0.00
A97: 2 | B97: 5 | C97: 1 | D97: 1 | E97: 1 | G97: Dotacijos užsienio valstybėms | H97: 64 | I97: =SUM(I98:I99) -> 0.00 | J97: =SUM(J98:J99) -> 0.00 | K97: =SUM(K98:K99) -> 0.00 | L97: =SUM(L98:L99) -> 0.00
A98: 2 | B98: 5 | C98: 1 | D98: 1 | E98: 1 | F98: 1 | G98: Dotacijos užsienio valstybėms einamiesiems tikslams | H98: 65 | I98: 0.00 | J98: 0.00 | K98: 0.00 | L98: 0.00
A99: 2 | B99: 5 | C99: 1 | D99: 1 | E99: 1 | F99: 2 | G99: Dotacijos užsienio valstybėms turtui įsigyti | H99: 66 | I99: 0.00 | J99: 0.00 | K99: 0.00 | L99: 0.00
A100: 2 | B100: 5 | C100: 2 | G100: Dotacijos tarptautinėms organizacijoms | H100: 67 | I100: =I101 -> 0.00 | J100: 0.00 | K100: 0.00 | L100: 0.00
A101: 2 | B101: 5 | C101: 2 | D101: 1 | G101: Dotacijos tarptautinėms organizacijoms | H101: 68 | I101: 0.00 | J101: 0.00 | K101: 0.00 | L101: 0.00
A102: 2 | B102: 5 | C102: 2 | D102: 1 | E102: 1 | G102: Dotacijos tarptautinėms organizacijoms | H102: 69 | I102: =SUM(I103:I104) -> 0.00 | J102: =SUM(J103:J104) -> 0.00 | K102: =SUM(K103:K104) -> 0.00 | L102: =SUM(L103:L104) -> 0.00
A103: 2 | B103: 5 | C103: 2 | D103: 1 | E103: 1 | F103: 1 | G103: Dotacijos tarptautinėms organizacijoms einamiesiems tikslams | H103: 70 | I103: 0.00 | J103: 0.00 | K103: 0.00 | L103: 0.00
A104: 2 | B104: 5 | C104: 2 | D104: 1 | E104: 1 | F104: 2 | G104: Dotacijos tarptautinėms organizacijoms turtui įsigyti | H104: 71 | I104: 0.00 | J104: 0.00 | K104: 0.00 | L104: 0.00
A105: 2 | B105: 5 | C105: 3 | G105: Dotacijos kitiems valdžios sektoriaus subjektams | H105: 72 | I105: =I106+I110 -> 0.00 | J105: =J106+J110 -> 0.00 | K105: =K106+K110 -> 0.00 | L105: =L106+L110 -> 0.00
A106: 2 | B106: 5 | C106: 3 | D106: 1 | G106: Dotacijos kitiems valdžios sektoriaus subjektams einamiesiems tikslams | H106: 73 | I106: =I107 -> 0.00 | J106: =J107 -> 0.00 | K106: =K107 -> 0.00 | L106: =L107 -> 0.00
A107: 2 | B107: 5 | C107: 3 | D107: 1 | E107: 1 | G107: Dotacijos kitiems valdžios sektoriaus subjektams einamiesiems tikslams | H107: 74 | I107: =SUM(I108:I109) -> 0.00 | J107: =SUM(J108:J109) -> 0.00 | K107: =SUM(K108:K109) -> 0.00 | L107: =SUM(L108:L109) -> 0.00
A108: 2 | B108: 5 | C108: 3 | D108: 1 | E108: 1 | F108: 1 | G108: Dotacijos kitiems valdžios sektoriaus subjektams einamiesiems tikslams | H108: 75 | I108: 0.00 | J108: 0.00 | K108: 0.00 | L108: 0.00
A109: 2 | B109: 5 | C109: 3 | D109: 1 | E109: 1 | F109: 2 | G109: Dotacijos savivaldybėms einamiesiems tikslams | H109: 76 | I109: 0.00 | J109: 0.00 | K109: 0.00 | L109: 0.00
A110: 2 | B110: 5 | C110: 3 | D110: 2 | G110: Dotacijos kitiems valdžios sektoriaus subjektams turtui įsigyti | H110: 77 | I110: =I111 -> 0.00 | J110: =J111 -> 0.00 | K110: =K111 -> 0.00 | L110: =L111 -> 0.00
A111: 2 | B111: 5 | C111: 3 | D111: 2 | E111: 1 | G111: Dotacijos kitiems valdžios sektoriaus subjektams turtui įsigyti | H111: 78 | I111: =SUM(I112:I113) -> 0.00 | J111: =SUM(J112:J113) -> 0.00 | K111: =SUM(K112:K113) -> 0.00 | L111: =SUM(L112:L113) -> 0.00
A112: 2 | B112: 5 | C112: 3 | D112: 2 | E112: 1 | F112: 1 | G112: Dotacijos kitiems valdžios sektoriaus subjektams turtui įsigyti | H112: 79 | I112: 0.00 | J112: 0.00 | K112: 0.00 | L112: 0.00
A113: 2 | B113: 5 | C113: 3 | D113: 2 | E113: 1 | F113: 2 | G113: Dotacijos savivaldybėms turtui įsigyti | H113: 80 | I113: 0.00 | J113: 0.00 | K113: 0.00 | L113: 0.00
A114: 2 | B114: 6 | G114: Įmokos į Europos Sąjungos biudžetą | H114: 81 | I114: =SUM(I115+I120+I124+I128+I132+I136) -> 0.00 | J114: =SUM(J115+J120+J124+J128+J132+J136) -> 0.00 | K114: =SUM(K115+K120+K124+K128+K132+K136) -> 0.00 | L114: =SUM(L115+L120+L124+L128+L132+L136) -> 0.00
A115: 2 | B115: 6 | C115: 1 | G115: Tradiciniai nuosavi ištekliai | H115: 82 | I115: =I116 -> 0.00 | J115: 0.00 | K115: 0.00 | L115: 0.00
A116: 2 | B116: 6 | C116: 1 | D116: 1 | G116: Tradiciniai nuosavi ištekliai | H116: 83 | I116: 0.00 | J116: 0.00 | K116: 0.00 | L116: 0.00
A117: 2 | B117: 6 | C117: 1 | D117: 1 | E117: 1 | G117: Tradiciniai nuosavi ištekliai | H117: 84 | I117: =SUM(I118:I119) -> 0.00 | J117: =SUM(J118:J119) -> 0.00 | K117: =SUM(K118:K119) -> 0.00 | L117: =SUM(L118:L119) -> 0.00
A118: 2 | B118: 6 | C118: 1 | D118: 1 | E118: 1 | F118: 1 | G118: Muitai | H118: 85 | I118: 0.00 | J118: 0.00 | K118: 0.00 | L118: 0.00
A119: 2 | B119: 6 | C119: 1 | D119: 1 | E119: 1 | F119: 2 | G119: Cukraus sektoriaus mokesčiai | H119: 86 | I119: 0.00 | J119: 0.00 | K119: 0.00 | L119: 0.00
A120: 2 | B120: 6 | C120: 2 | G120: Pridėtinės vertės mokesčio nuosavi ištekliai | H120: 87 | I120: =I121 -> 0.00 | J120: 0.00 | K120: 0.00 | L120: 0.00
A121: 2 | B121: 6 | C121: 2 | D121: 1 | G121: Pridėtinės vertės mokesčio nuosavi ištekliai | H121: 88 | I121: 0.00 | J121: 0.00 | K121: 0.00 | L121: 0.00
A122: 2 | B122: 6 | C122: 2 | D122: 1 | E122: 1 | G122: Pridėtinės vertės mokesčio nuosavi ištekliai | H122: 89 | I122: 0.00 | J122: 0.00 | K122: 0.00 | L122: 0.00
A123: 2 | B123: 6 | C123: 2 | D123: 1 | E123: 1 | F123: 1 | G123: Pridėtinės vertės mokesčio nuosavi ištekliai | H123: 90 | I123: 0.00 | J123: 0.00 | K123: 0.00 | L123: 0.00
A124: 2 | B124: 6 | C124: 3 | G124: Bendrųjų nacionalinių pajamų nuosavi ištekliai | H124: 91 | I124: =I125 -> 0.00 | J124: 0.00 | K124: 0.00 | L124: 0.00
A125: 2 | B125: 6 | C125: 3 | D125: 1 | G125: Bendrųjų nacionalinių pajamų nuosavi ištekliai | H125: 92 | I125: 0.00 | J125: 0.00 | K125: 0.00 | L125: 0.00
A126: 2 | B126: 6 | C126: 3 | D126: 1 | E126: 1 | G126: Bendrųjų nacionalinių pajamų nuosavi ištekliai | H126: 93 | I126: 0.00 | J126: 0.00 | K126: 0.00 | L126: 0.00
A127: 2 | B127: 6 | C127: 3 | D127: 1 | E127: 1 | F127: 1 | G127: Bendrųjų nacionalinių pajamų nuosavi ištekliai | H127: 94 | I127: 0.00 | J127: 0.00 | K127: 0.00 | L127: 0.00
A128: 2 | B128: 6 | C128: 4 | G128: Biudžeto disbalansų korekcija Jungtinės Karalystės naudai | H128: 95 | I128: =I129 -> 0.00 | J128: 0.00 | K128: 0.00 | L128: 0.00
A129: 2 | B129: 6 | C129: 4 | D129: 1 | G129: Biudžeto disbalansų korekcija Jungtinės Karalystės naudai | H129: 96 | I129: 0.00 | J129: 0.00 | K129: 0.00 | L129: 0.00
A130: 2 | B130: 6 | C130: 4 | D130: 1 | E130: 1 | G130: Biudžeto disbalansų korekcija Jungtinės Karalystės naudai | H130: 97 | I130: 0.00 | J130: 0.00 | K130: 0.00 | L130: 0.00
A131: 2 | B131: 6 | C131: 4 | D131: 1 | E131: 1 | F131: 1 | G131: Biudžeto disbalansų korekcija Jungtinės Karalystės naudai | H131: 98 | I131: 0.00 | J131: 0.00 | K131: 0.00 | L131: 0.00
A132: 2 | B132: 6 | C132: 5 | G132: Su nuosavais ištekliais susijusios baudos, delspinigiai ir neigiamos palūkanos | H132: 99 | I132: =I133 -> 0.00 | J132: 0.00 | K132: 0.00 | L132: 0.00
A133: 2 | B133: 6 | C133: 5 | D133: 1 | G133: Su nuosavais ištekliais susijusios baudos, delspinigiai ir neigiamos palūkanos | H133: 100 | I133: 0.00 | J133: 0.00 | K133: 0.00 | L133: 0.00
A134: 2 | B134: 6 | C134: 5 | D134: 1 | E134: 1 | G134: Su nuosavais ištekliais susijusios baudos, delspinigiai ir neigiamos palūkanos | H134: 101 | I134: 0.00 | J134: 0.00 | K134: 0.00 | L134: 0.00
A135: 2 | B135: 6 | C135: 5 | D135: 1 | E135: 1 | F135: 1 | G135: Su nuosavais ištekliais susijusios baudos, delspinigiai ir neigiamos palūkanos | H135: 102 | I135: 0.00 | J135: 0.00 | K135: 0.00 | L135: 0.00
A136: 2 | B136: 6 | C136: 6 | G136: Neperdirbto plastiko atliekų nuosavi ištekliai | H136: 103 | I136: =I137 -> 0.00 | J136: 0.00 | K136: 0.00 | L136: 0.00
A137: 2 | B137: 6 | C137: 6 | D137: 1 | G137: Neperdirbto plastiko atliekų nuosavi ištekliai | H137: 104 | I137: 0.00 | J137: 0.00 | K137: 0.00 | L137: 0.00
A138: 2 | B138: 6 | C138: 6 | D138: 1 | E138: 1 | G138: Neperdirbto plastiko atliekų nuosavi ištekliai | H138: 105 | I138: 0.00 | J138: 0.00 | K138: 0.00 | L138: 0.00
A139: 2 | B139: 6 | C139: 6 | D139: 1 | E139: 1 | F139: 1 | G139: Neperdirbto plastiko atliekų nuosavi ištekliai | H139: 106 | I139: 0.00 | J139: 0.00 | K139: 0.00 | L139: 0.00
A140: 2 | B140: 7 | G140: Socialinės išmokos (pašalpos) | H140: 107 | I140: =SUM(I141+I146+I154) -> 0.00 | J140: =SUM(J141+J146+J154) -> 0.00 | K140: =SUM(K141+K146+K154) -> 0.00 | L140: =SUM(L141+L146+L154) -> 0.00
A141: 2 | B141: 7 | C141: 1 | G141: Socialinio draudimo išmokos (pašalpos) | H141: 108 | I141: =I142 -> 0.00 | J141: 0.00 | K141: 0.00 | L141: 0.00
A142: 2 | B142: 7 | C142: 1 | D142: 1 | G142: Socialinio draudimo išmokos (pašalpos) | H142: 109 | I142: 0.00 | J142: 0.00 | K142: 0.00 | L142: 0.00
A143: 2 | B143: 7 | C143: 1 | D143: 1 | E143: 1 | G143: Socialinio draudimo išmokos (pašalpos) | H143: 110 | I143: =SUM(I144:I145) -> 0.00 | J143: =SUM(J144:J145) -> 0.00 | K143: =SUM(K144:K145) -> 0.00 | L143: =SUM(L144:L145) -> 0.00
A144: 2 | B144: 7 | C144: 1 | D144: 1 | E144: 1 | F144: 1 | G144: Socialinio draudimo išmokos pinigais | H144: 111 | I144: 0.00 | J144: 0.00 | K144: 0.00 | L144: 0.00
A145: 2 | B145: 7 | C145: 1 | D145: 1 | E145: 1 | F145: 2 | G145: Socialinio draudimo išmokos natūra | H145: 112 | I145: 0.00 | J145: 0.00 | K145: 0.00 | L145: 0.00
A146: 2 | B146: 7 | C146: 2 | G146: Socialinė parama (socialinės paramos pašalpos) ir rentos | H146: 113 | I146: =I147 -> 0.00 | J146: 0.00 | K146: 0.00 | L146: 0.00
A147: 2 | B147: 7 | C147: 2 | D147: 1 | G147: Socialinė parama (socialinės paramos pašalpos) | H147: 114 | I147: 0.00 | J147: 0.00 | K147: 0.00 | L147: 0.00
A148: 2 | B148: 7 | C148: 2 | D148: 1 | E148: 1 | G148: Socialinė parama (socialinės paramos pašalpos) | H148: 115 | I148: =SUM(I149:I150) -> 0.00 | J148: =SUM(J149:J150) -> 0.00 | K148: =SUM(K149:K150) -> 0.00 | L148: =SUM(L149:L150) -> 0.00
A149: 2 | B149: 7 | C149: 2 | D149: 1 | E149: 1 | F149: 1 | G149: Socialinė parama pinigais | H149: 116 | I149: 0.00 | J149: 0.00 | K149: 0.00 | L149: 0.00
A150: 2 | B150: 7 | C150: 2 | D150: 1 | E150: 1 | F150: 2 | G150: Socialinė parama natūra | H150: 117 | I150: 0.00 | J150: 0.00 | K150: 0.00 | L150: 0.00
A151: 2 | B151: 7 | C151: 2 | D151: 2 | G151: Rentos | H151: 118 | I151: =I152 -> 0.00 | J151: =J152 -> 0.00 | K151: =K152 -> 0.00 | L151: =L152 -> 0.00
A152: 2 | B152: 7 | C152: 2 | D152: 2 | E152: 1 | G152: Rentos | H152: 119 | I152: =SUM(I153) -> 0.00 | J152: =SUM(J153) -> 0.00 | K152: =SUM(K153) -> 0.00 | L152: =SUM(L153) -> 0.00
A153: 2 | B153: 7 | C153: 2 | D153: 2 | E153: 1 | F153: 1 | G153: Rentos | H153: 120 | I153: 0.00 | J153: 0.00 | K153: 0.00 | L153: 0.00
A154: 2 | B154: 7 | C154: 3 | G154: Darbdavių socialinė parama | H154: 121 | I154: =I155 -> 0.00 | J154: 0.00 | K154: 0.00 | L154: 0.00
A155: 2 | B155: 7 | C155: 3 | D155: 1 | G155: Darbdavių socialinė parama | H155: 122 | I155: 0.00 | J155: 0.00 | K155: 0.00 | L155: 0.00
A156: 2 | B156: 7 | C156: 3 | D156: 1 | E156: 1 | G156: Darbdavių socialinė parama | H156: 123 | I156: =SUM(I157:I158) -> 0.00 | J156: =SUM(J157:J158) -> 0.00 | K156: =SUM(K157:K158) -> 0.00 | L156: =SUM(L157:L158) -> 0.00
A157: 2 | B157: 7 | C157: 3 | D157: 1 | E157: 1 | F157: 1 | G157: Darbdavių socialinė parama pinigais | H157: 124 | I157: 0.00 | J157: 0.00 | K157: 0.00 | L157: 0.00
A158: 2 | B158: 7 | C158: 3 | D158: 1 | E158: 1 | F158: 2 | G158: Darbdavių socialinė parama natūra | H158: 125 | I158: 0.00 | J158: 0.00 | K158: 0.00 | L158: 0.00
A159: 2 | B159: 8 | G159: Kitos išlaidos | H159: 126 | I159: =I160 -> 0.00 | J159: =J160 -> 0.00 | K159: =K160 -> 0.00 | L159: =L160 -> 0.00
A160: 2 | B160: 8 | C160: 1 | G160: Kitos išlaidos | H160: 127 | I160: =I161+I166 -> 0.00 | J160: =J161+J166 -> 0.00 | K160: =K161+K166 -> 0.00 | L160: =L161+L166 -> 0.00
A161: 2 | B161: 8 | C161: 1 | D161: 1 | G161: Kitos išlaidos einamiesiems tikslams | H161: 128 | I161: =I162 -> 0.00 | J161: =J162 -> 0.00 | K161: =K162 -> 0.00 | L161: =L162 -> 0.00
A162: 2 | B162: 8 | C162: 1 | D162: 1 | E162: 1 | G162: Kitos išlaidos einamiesiems tikslams | H162: 129 | I162: =SUM(I163:I165) -> 0.00 | J162: =SUM(J163:J165) -> 0.00 | K162: =SUM(K163:K165) -> 0.00 | L162: =SUM(L163:L165) -> 0.00
A163: 2 | B163: 8 | C163: 1 | D163: 1 | E163: 1 | F163: 1 | G163: Stipendijoms | H163: 130 | I163: 0.00 | J163: 0.00 | K163: 0.00 | L163: 0.00
A164: 2 | B164: 8 | C164: 1 | D164: 1 | E164: 1 | F164: 2 | G164: Kitos išlaidos kitiems einamiesiems tikslams | H164: 131 | I164: 0.00 | J164: 0.00 | K164: 0.00 | L164: 0.00
A165: 2 | B165: 8 | C165: 1 | D165: 1 | E165: 1 | F165: 3 | G165: Valiutos kurso įtaka | H165: 132 | I165: 0.00 | J165: 0.00 | K165: 0.00 | L165: 0.00
A166: 2 | B166: 8 | C166: 1 | D166: 2 | G166: Kitos išlaidos turtui įsigyti | H166: 133 | I166: =I167 -> 0.00 | J166: 0.00 | K166: 0.00 | L166: 0.00
A167: 2 | B167: 8 | C167: 1 | D167: 2 | E167: 1 | G167: Kitos išlaidos turtui įsigyti | H167: 134 | I167: 0.00 | J167: 0.00 | K167: 0.00 | L167: 0.00
A168: 2 | B168: 8 | C168: 1 | D168: 2 | E168: 1 | F168: 1 | G168: Kitos išlaidos turtui įsigyti | H168: 135 | I168: 0.00 | J168: 0.00 | K168: 0.00 | L168: 0.00
A169: 2 | B169: 9 | G169: Pervedamos Europos Sąjungos, kitos tarptautinės finansinės paramos, bendrojo finansavimo lėšos ir kitos bendrai finansuojamiems iš Europos Sąjungos ar kitos tarptautinės finansinės paramos lėšų projektams įgyvendinti skirtos valstybės biudžeto lėšos | H169: 136 | I169: =I170+I174 -> 0.00 | J169: =J170+J174 -> 0.00 | K169: =K170+K174 -> 0.00 | L169: =L170+L174 -> 0.00
A170: 2 | B170: 9 | C170: 1 | G170: Subsidijos iš Europos Sąjungos ir kitos tarptautinės finansinės paramos lėšų (ne valdžios sektoriui) | H170: 137 | I170: =I171 -> 0.00 | J170: 0.00 | K170: 0.00 | L170: 0.00
A171: 2 | B171: 9 | C171: 1 | D171: 1 | G171: Subsidijos iš Europos Sąjungos ir kitos tarptautinės finansinės paramos lėšų (ne valdžios sektoriui) | H171: 138 | I171: 0.00 | J171: 0.00 | K171: 0.00 | L171: 0.00
A172: 2 | B172: 9 | C172: 1 | D172: 1 | E172: 1 | G172: Subsidijos iš Europos Sąjungos ir kitos tarptautinės finansinės paramos lėšų (ne valdžios sektoriui) | H172: 139 | I172: 0.00 | J172: 0.00 | K172: 0.00 | L172: 0.00
A173: 2 | B173: 9 | C173: 1 | D173: 1 | E173: 1 | F173: 1 | G173: Subsidijos iš Europos Sąjungos ir kitos tarptautinės finansinės paramos lėšų (ne valdžios sektoriui) | H173: 140 | I173: 0.00 | J173: 0.00 | K173: 0.00 | L173: 0.00
A174: 2 | B174: 9 | C174: 2 | G174: Pervedamos Europos Sąjungos, kitos tarptautinės finansinės paramos, bendrojo finansavimo lėšos ir kitos bendrai finansuojamiems iš Europos Sąjungos ar kitos tarptautinės finansinės paramos lėšų projektams įgyvendinti skirtos valstybės biudžeto lėšos | H174: 141 | I174: =SUM(I175+I180) -> 0.00 | J174: =SUM(J175+J180) -> 0.00 | K174: =SUM(K175+K180) -> 0.00 | L174: =SUM(L175+L180) -> 0.00
A175: 2 | B175: 9 | C175: 2 | D175: 1 | G175: Pervedamos Europos Sąjungos, kitos tarptautinės finansinės paramos, bendrojo finansavimo lėšos ir kitos bendrai finansuojamiems iš Europos Sąjungos ar kitos tarptautinės finansinės paramos lėšų projektams įgyvendinti skirtos valstybės biudžeto lėšos einamiesiems tikslams | H175: 142 | I175: =I176 -> 0.00 | J175: =J176 -> 0.00 | K175: =K176 -> 0.00 | L175: =L176 -> 0.00
A176: 2 | B176: 9 | C176: 2 | D176: 1 | E176: 1 | G176: Pervedamos Europos Sąjungos, kitos tarptautinės finansinės paramos, bendrojo finansavimo lėšos ir kitos bendrai finansuojamiems iš Europos Sąjungos ar kitos tarptautinės finansinės paramos lėšų projektams įgyvendinti skirtos valstybės biudžeto lėšos einamiesiems tikslams | H176: 143 | I176: =SUM(I177:I179) -> 0.00 | J176: =SUM(J177:J179) -> 0.00 | K176: =SUM(K177:K179) -> 0.00 | L176: =SUM(L177:L179) -> 0.00
A177: 2 | B177: 9 | C177: 2 | D177: 1 | E177: 1 | F177: 1 | G177: Pervedamos Europos Sąjungos, kitos tarptautinės finansinės paramos, bendrojo finansavimo lėšos ir kitos bendrai finansuojamiems iš Europos Sąjungos ar kitos tarptautinės finansinės paramos lėšų projektams įgyvendinti skirtos valstybės biudžeto lėšos einamiesiems tikslams savivaldybėms | H177: 144 | I177: 0.00 | J177: 0.00 | K177: 0.00 | L177: 0.00
A178: 2 | B178: 9 | C178: 2 | D178: 1 | E178: 1 | F178: 2 | G178: Pervedamos Europos Sąjungos, kitos tarptautinės finansinės paramos, bendrojo finansavimo lėšos ir kitos bendrai finansuojamiems iš Europos Sąjungos ar kitos tarptautinės finansinės paramos lėšų projektams įgyvendinti skirtos valstybės biudžeto lėšos einamiesiems tikslams kitiems valdžios sektoriaus subjektams | H178: 145 | I178: 0.00 | J178: 0.00 | K178: 0.00 | L178: 0.00
A179: 2 | B179: 9 | C179: 2 | D179: 1 | E179: 1 | F179: 3 | G179: Pervedamos Europos Sąjungos, kitos tarptautinės finansinės paramos, bendrojo finansavimo lėšos ir kitos bendrai finansuojamiems iš Europos Sąjungos ar kitos tarptautinės finansinės paramos lėšų projektams įgyvendinti skirtos valstybės biudžeto lėšos einamiesiems tikslams ne valdžios sektoriui | H179: 146 | I179: 0.00 | J179: 0.00 | K179: 0.00 | L179: 0.00
A180: 2 | B180: 9 | C180: 2 | D180: 2 | G180: Pervedamos Europos Sąjungos, kitos tarptautinės finansinės paramos, bendrojo finansavimo lėšos ir kitos bendrai finansuojamiems iš Europos Sąjungos ar kitos tarptautinės finansinės paramos lėšų projektams įgyvendinti skirtos valstybės biudžeto lėšos investicijoms | H180: 147 | I180: =I181 -> 0.00 | J180: =J181 -> 0.00 | K180: =K181 -> 0.00 | L180: =L181 -> 0.00
A181: 2 | B181: 9 | C181: 2 | D181: 2 | E181: 1 | G181: Pervedamos Europos Sąjungos, kitos tarptautinės finansinės paramos, bendrojo finansavimo lėšos ir kitos bendrai finansuojamiems iš Europos Sąjungos ar kitos tarptautinės finansinės paramos lėšų projektams įgyvendinti skirtos valstybės biudžeto lėšos investicijoms | H181: 148 | I181: =SUM(I182:I184) -> 0.00 | J181: =SUM(J182:J184) -> 0.00 | K181: =SUM(K182:K184) -> 0.00 | L181: =SUM(L182:L184) -> 0.00
A182: 2 | B182: 9 | C182: 2 | D182: 2 | E182: 1 | F182: 1 | G182: Pervedamos Europos Sąjungos, kitos tarptautinės finansinės paramos, bendrojo finansavimo lėšos ir kitos bendrai finansuojamiems iš Europos Sąjungos ar kitos tarptautinės finansinės paramos lėšų projektams įgyvendinti skirtos valstybės biudžeto lėšos investicijoms, skirtoms savivaldybėms | H182: 149 | I182: 0.00 | J182: 0.00 | K182: 0.00 | L182: 0.00
A183: 2 | B183: 9 | C183: 2 | D183: 2 | E183: 1 | F183: 2 | G183: Pervedamos Europos Sąjungos, kitos tarptautinės finansinės paramos, bendrojo finansavimo lėšos ir kitos bendrai finansuojamiems iš Europos Sąjungos ar kitos tarptautinės finansinės paramos lėšų projektams įgyvendinti skirtos valstybės biudžeto lėšos investicijoms kitiems valdžios sektoriaus subjektams | H183: 150 | I183: 0.00 | J183: 0.00 | K183: 0.00 | L183: 0.00
A184: 2 | B184: 9 | C184: 2 | D184: 2 | E184: 1 | F184: 3 | G184: Pervedamos Europos Sąjungos, kitos tarptautinės finansinės paramos, bendrojo finansavimo lėšos ir kitos bendrai finansuojamiems iš Europos Sąjungos ar kitos tarptautinės finansinės paramos lėšų projektams įgyvendinti skirtos valstybės biudžeto lėšos investicijoms ne valdžios sektoriui | H184: 151 | I184: 0.00 | J184: 0.00 | K184: 0.00 | L184: 0.00
A185: 3 | G185: MATERIALIOJO IR NEMATERIALIOJO TURTO ĮSIGIJIMO, FINANSINIO TURTO PADIDĖJIMO IR FINANSINIŲ ĮSIPAREIGOJIMŲ VYKDYMO IŠLAIDOS | H185: 152 | I185: =SUM(I186+I239+I304) -> 0.00 | J185: =SUM(J186+J239+J304) -> 0.00 | K185: =SUM(K186+K239+K304) -> 0.00 | L185: =SUM(L186+L239+L304) -> 0.00
A186: 3 | B186: 1 | G186: Materialiojo ir nematerialiojo turto įsigijimo išlaidos | H186: 153 | I186: =SUM(I187+I210+I217+I229+I233) -> 0.00 | J186: =SUM(J187+J210+J217+J229+J233) -> 0.00 | K186: =SUM(K187+K210+K217+K229+K233) -> 0.00 | L186: =SUM(L187+L210+L217+L229+L233) -> 0.00
A187: 3 | B187: 1 | C187: 1 | G187: Ilgalaikio materialiojo turto kūrimo ir įsigijimo išlaidos | H187: 154 | I187: =SUM(I188+I191+I196+I202+I207) -> 0.00 | J187: =SUM(J188+J191+J196+J202+J207) -> 0.00 | K187: =SUM(K188+K191+K196+K202+K207) -> 0.00 | L187: =SUM(L188+L191+L196+L202+L207) -> 0.00
A188: 3 | B188: 1 | C188: 1 | D188: 1 | G188: Žemės įsigijimo išlaidos | H188: 155 | I188: =I189 -> 0.00 | J188: 0.00 | K188: 0.00 | L188: 0.00
A189: 3 | B189: 1 | C189: 1 | D189: 1 | E189: 1 | G189: Žemės įsigijimo išlaidos | H189: 156 | I189: 0.00 | J189: 0.00 | K189: 0.00 | L189: 0.00
A190: 3 | B190: 1 | C190: 1 | D190: 1 | E190: 1 | F190: 1 | G190: Žemės įsigijimo išlaidos | H190: 157 | I190: 0.00 | J190: 0.00 | K190: 0.00 | L190: 0.00
A191: 3 | B191: 1 | C191: 1 | D191: 2 | G191: Pastatų ir statinių įsigijimo išlaidos | H191: 158 | I191: =I192 -> 0.00 | J191: =J192 -> 0.00 | K191: =K192 -> 0.00 | L191: =L192 -> 0.00
A192: 3 | B192: 1 | C192: 1 | D192: 2 | E192: 1 | G192: Pastatų ir statinių įsigijimo išlaidos | H192: 159 | I192: =SUM(I193:I195) -> 0.00 | J192: =SUM(J193:J195) -> 0.00 | K192: =SUM(K193:K195) -> 0.00 | L192: =SUM(L193:L195) -> 0.00
A193: 3 | B193: 1 | C193: 1 | D193: 2 | E193: 1 | F193: 1 | G193: Gyvenamųjų namų įsigijimo išlaidos | H193: 160 | I193: 0.00 | J193: 0.00 | K193: 0.00 | L193: 0.00
A194: 3 | B194: 1 | C194: 1 | D194: 2 | E194: 1 | F194: 2 | G194: Negyvenamųjų pastatų įsigijimo išlaidos | H194: 161 | I194: 0.00 | J194: 0.00 | K194: 0.00 | L194: 0.00
A195: 3 | B195: 1 | C195: 1 | D195: 2 | E195: 1 | F195: 3 | G195: Infrastruktūros ir kitų statinių įsigijimo išlaidos | H195: 162 | I195: 0.00 | J195: 0.00 | K195: 0.00 | L195: 0.00
A196: 3 | B196: 1 | C196: 1 | D196: 3 | G196: Mašinų ir įrenginių įsigijimo išlaidos | H196: 163 | I196: =I197 -> 0.00 | J196: =J197 -> 0.00 | K196: =K197 -> 0.00 | L196: =L197 -> 0.00
A197: 3 | B197: 1 | C197: 1 | D197: 3 | E197: 1 | G197: Mašinų ir įrenginių įsigijimo išlaidos | H197: 164 | I197: =SUM(I198:I201) -> 0.00 | J197: =SUM(J198:J201) -> 0.00 | K197: =SUM(K198:K201) -> 0.00 | L197: =SUM(L198:L201) -> 0.00
A198: 3 | B198: 1 | C198: 1 | D198: 3 | E198: 1 | F198: 1 | G198: Transporto priemonių įsigijimo išlaidos | H198: 165 | I198: 0.00 | J198: 0.00 | K198: 0.00 | L198: 0.00
A199: 3 | B199: 1 | C199: 1 | D199: 3 | E199: 1 | F199: 2 | G199: Kitų mašinų ir įrenginių įsigijimo išlaidos | H199: 166 | I199: 0.00 | J199: 0.00 | K199: 0.00 | L199: 0.00
A200: 3 | B200: 1 | C200: 1 | D200: 3 | E200: 1 | F200: 3 | G200: Ginklų ir karinės įrangos įsigijimo išlaidos | H200: 167 | I200: 0.00 | J200: 0.00 | K200: 0.00 | L200: 0.00
A201: 3 | B201: 1 | C201: 1 | D201: 3 | E201: 1 | F201: 4 | G201: Kompiuterinės techninės ir elektroninių ryšių įrangos įsigijimo išlaidos | H201: 168 | I201: 0.00 | J201: 0.00 | K201: 0.00 | L201: 0.00
A202: 3 | B202: 1 | C202: 1 | D202: 4 | G202: Kultūros ir kitų vertybių įsigijimo išlaidos | H202: 169 | I202: =I203 -> 0.00 | J202: =J203 -> 0.00 | K202: =K203 -> 0.00 | L202: =L203 -> 0.00
A203: 3 | B203: 1 | C203: 1 | D203: 4 | E203: 1 | G203: Kultūros ir kitų vertybių įsigijimo išlaidos | H203: 170 | I203: =SUM(I204:I206) -> 0.00 | J203: =SUM(J204:J206) -> 0.00 | K203: =SUM(K204:K206) -> 0.00 | L203: =SUM(L204:L206) -> 0.00
A204: 3 | B204: 1 | C204: 1 | D204: 4 | E204: 1 | F204: 1 | G204: Muziejinių vertybių įsigijimo išlaidos | H204: 171 | I204: 0.00 | J204: 0.00 | K204: 0.00 | L204: 0.00
A205: 3 | B205: 1 | C205: 1 | D205: 4 | E205: 1 | F205: 2 | G205: Antikvarinių ir kitų meno kūrinių įsigijimo išlaidos | H205: 172 | I205: 0.00 | J205: 0.00 | K205: 0.00 | L205: 0.00
A206: 3 | B206: 1 | C206: 1 | D206: 4 | E206: 1 | F206: 3 | G206: Kitų vertybių įsigijimo išlaidos | H206: 173 | I206: 0.00 | J206: 0.00 | K206: 0.00 | L206: 0.00
A207: 3 | B207: 1 | C207: 1 | D207: 5 | G207: Kito ilgalaikio materialiojo turto įsigijimo išlaidos | H207: 174 | I207: =I208 -> 0.00 | J207: 0.00 | K207: 0.00 | L207: 0.00
A208: 3 | B208: 1 | C208: 1 | D208: 5 | E208: 1 | G208: Kito ilgalaikio materialiojo turto įsigijimo išlaidos | H208: 175 | I208: 0.00 | J208: 0.00 | K208: 0.00 | L208: 0.00
... 166 more rows

Sheet Forma Nr.2 ML
J1: Biudžeto vykdymo ataskaitų rinkinių rengimo taisyklių
J2: 1 priedas
A7: (Biudžeto išlaidų sąmatos vykdymo 2025 m. gruodžio mėn. 31 d. I ketvirčio, pusmečio, 9 mėnesių, metų ataskaitos forma, Nr.2)
A9: Vaikų ir jaunimo laisvalaikio centras, 195174984
A10: (įstaigos pavadinimas, kodas Juridinių asmenų registre, adresas)
G12: BIUDŽETO IŠLAIDŲ SĄMATOS VYKDYMO PAGAL
A13: 2025 M. GRUODŽIO MĖN. 31 D.
G14: 4 ketvirtis
G15: (I ketvirčio, pusmečio, 9 mėnesių, metinė)
B16: ATASKAITA
G18: 2026.01.14 Nr.________________
G19: (data)
E21: Žinių visuomenės plėtros programa
A22: (programos pavadinimas)
L23: Kodas
J24: Ministerijos / Savivaldybės
K25: Departamento
A26: 1.1.2.5. Neformaliojo ugdymo programų įgyvendinimas ir tinkamos aplinkos užtikrinimas Gargždų vaikų ir jaunimo laisvalaikio centre | K26: Įstaigos | L26: 195174984
A27: Neformalusis vaikų švietimas | J27: Programos | K27: 1
G28: Finansavimo šaltinio | H28: ML
G29: Valstybės funkcijos | I29: 09 | J29: 05 | K29: 01 | L29: 01
A30: Mokymo lėšos | L30: (eurais, ct)
A31: Išlaidų ekonominės klasifikacijos kodas | G31: Išlaidų pavadinimas | H31: Eil. Nr. | I31: Asignavimų planas, įskaitant patikslinimus | K31: Gauti asignavimai kartu su įskaitytu praėjusių metų lėšų likučiu | L31: Panaudoti asignavimai
I32: metams | J32: ataskaitiniam laikotarpiui
A33: 1 | G33: 2 | H33: 3 | I33: 4 | J33: 5 | K33: 6 | L33: 7
A34: 2 | G34: IŠLAIDOS | H34: 1 | I34: =SUM(I35+I46+I66+I87+I94+I114+I140+I159+I169) -> 49900.00 | J34: =SUM(J35+J46+J66+J87+J94+J114+J140+J159+J169) -> 49900.00 | K34: =SUM(K35+K46+K66+K87+K94+K114+K140+K159+K169) -> 49900.00 | L34: =SUM(L35+L46+L66+L87+L94+L114+L140+L159+L169) -> 49900.00
A35: 2 | B35: 1 | G35: Darbo užmokestis ir socialinis draudimas | H35: 2 | I35: =SUM(I36+I42) -> 49900.00 | J35: =SUM(J36+J42) -> 49900.00 | K35: =SUM(K36+K42) -> 49900.00 | L35: =SUM(L36+L42) -> 49900.00
A36: 2 | B36: 1 | C36: 1 | G36: Darbo užmokestis | H36: 3 | I36: =SUM(I37) -> 49000.00 | J36: =SUM(J37) -> 49000.00 | K36: =SUM(K37) -> 49000.00 | L36: =SUM(L37) -> 49000.00
A37: 2 | B37: 1 | C37: 1 | D37: 1 | G37: Darbo užmokestis | H37: 4 | I37: =SUM(I38+I40) -> 49000.00 | J37: =SUM(J38+J40) -> 49000.00 | K37: =SUM(K38+K40) -> 49000.00 | L37: =SUM(L38+L40) -> 49000.00
A38: 2 | B38: 1 | C38: 1 | D38: 1 | E38: 1 | G38: Darbo užmokestis pinigais | H38: 5 | I38: =SUM(I39) -> 49000.00 | J38: =SUM(J39) -> 49000.00 | K38: =SUM(K39) -> 49000.00 | L38: =SUM(L39) -> 49000.00
A39: 2 | B39: 1 | C39: 1 | D39: 1 | E39: 1 | F39: 1 | G39: Darbo užmokestis pinigais | H39: 6 | I39: 49000.00 | J39: 49000.00 | K39: 49000.00 | L39: 49000.00
A40: 2 | B40: 1 | C40: 1 | D40: 1 | E40: 2 | G40: Pajamos natūra | H40: 7 | I40: =I41 -> 0.00 | J40: =J41 -> 0.00 | K40: =K41 -> 0.00 | L40: =L41 -> 0.00
A41: 2 | B41: 1 | C41: 1 | D41: 1 | E41: 2 | F41: 1 | G41: Pajamos natūra | H41: 8 | I41: 0.00 | J41: 0.00 | K41: 0.00 | L41: 0.00
A42: 2 | B42: 1 | C42: 2 | G42: Socialinio draudimo įmokos | H42: 9 | I42: =I43 -> 900.00 | J42: 900.00 | K42: 900.00 | L42: 900.00
A43: 2 | B43: 1 | C43: 2 | D43: 1 | G43: Socialinio draudimo įmokos | H43: 10 | I43: 900.00 | J43: 900.00 | K43: 900.00 | L43: 900.00
A44: 2 | B44: 1 | C44: 2 | D44: 1 | E44: 1 | G44: Socialinio draudimo įmokos | H44: 11 | I44: 900.00 | J44: 900.00 | K44: 900.00 | L44: 900.00
A45: 2 | B45: 1 | C45: 2 | D45: 1 | E45: 1 | F45: 1 | G45: Socialinio draudimo įmokos | H45: 12 | I45: 900.00 | J45: 900.00 | K45: 900.00 | L45: 900.00
A46: 2 | B46: 2 | G46: Prekių ir paslaugų įsigijimo išlaidos | H46: 13 | I46: =I47 -> 0.00 | J46: 0.00 | K46: 0.00 | L46: 0.00
A47: 2 | B47: 2 | C47: 1 | G47: Prekių ir paslaugų įsigijimo išlaidos | H47: 14 | I47: 0.00 | J47: 0.00 | K47: 0.00 | L47: 0.00
A48: 2 | B48: 2 | C48: 1 | D48: 1 | G48: Prekių ir paslaugų įsigijimo išlaidos | H48: 15 | I48: 0.00 | J48: 0.00 | K48: 0.00 | L48: 0.00
A49: 2 | B49: 2 | C49: 1 | D49: 1 | E49: 1 | G49: Prekių ir paslaugų įsigijimo išlaidos | H49: 16 | I49: =SUM(I50:I65) -> 0.00 | J49: =SUM(J50:J65) -> 0.00 | K49: =SUM(K50:K65) -> 0.00 | L49: =SUM(L50:L65) -> 0.00
A50: 2 | B50: 2 | C50: 1 | D50: 1 | E50: 1 | F50: 1 | G50: Mitybos išlaidos | H50: 17 | I50: 0.00 | J50: 0.00 | K50: 0.00 | L50: 0.00
A51: 2 | B51: 2 | C51: 1 | D51: 1 | E51: 1 | F51: 2 | G51: Medikamentų ir medicininių prekių bei paslaugų įsigijimo išlaidos | H51: 18 | I51: 0.00 | J51: 0.00 | K51: 0.00 | L51: 0.00
A52: 2 | B52: 2 | C52: 1 | D52: 1 | E52: 1 | F52: 5 | G52: Ryšių įrangos ir ryšių paslaugų įsigijimo išlaidos | H52: 19 | I52: 0.00 | J52: 0.00 | K52: 0.00 | L52: 0.00
A53: 2 | B53: 2 | C53: 1 | D53: 1 | E53: 1 | F53: 6 | G53: Transporto išlaikymo ir transporto paslaugų įsigijimo išlaidos | H53: 20 | I53: 0.00 | J53: 0.00 | K53: 0.00 | L53: 0.00
A54: 2 | B54: 2 | C54: 1 | D54: 1 | E54: 1 | F54: 7 | G54: Aprangos ir patalynės įsigijimo bei priežiūros išlaidos | H54: 21 | I54: 0.00 | J54: 0.00 | K54: 0.00 | L54: 0.00
A55: 2 | B55: 2 | C55: 1 | D55: 1 | E55: 1 | F55: 11 | G55: Komandiruočių išlaidos | H55: 22 | I55: 0.00 | J55: 0.00 | K55: 0.00 | L55: 0.00
A56: 2 | B56: 2 | C56: 1 | D56: 1 | E56: 1 | F56: 12 | G56: Gyvenamųjų vietovių viešojo ūkio išlaidos | H56: 23 | I56: 0.00 | J56: 0.00 | K56: 0.00 | L56: 0.00
A57: 2 | B57: 2 | C57: 1 | D57: 1 | E57: 1 | F57: 14 | G57: Materialiojo ir nematerialiojo turto nuomos išlaidos | H57: 24 | I57: 0.00 | J57: 0.00 | K57: 0.00 | L57: 0.00
A58: 2 | B58: 2 | C58: 1 | D58: 1 | E58: 1 | F58: 15 | G58: Materialiojo turto paprastojo remonto prekių ir paslaugų įsigijimo išlaidos | H58: 25 | I58: 0.00 | J58: 0.00 | K58: 0.00 | L58: 0.00
A59: 2 | B59: 2 | C59: 1 | D59: 1 | E59: 1 | F59: 16 | G59: Kvalifikacijos kėlimo išlaidos | H59: 26 | I59: 0.00 | J59: 0.00 | K59: 0.00 | L59: 0.00
A60: 2 | B60: 2 | C60: 1 | D60: 1 | E60: 1 | F60: 17 | G60: Ekspertų ir konsultantų paslaugų įsigijimo išlaidos | H60: 27 | I60: 0.00 | J60: 0.00 | K60: 0.00 | L60: 0.00
A61: 2 | B61: 2 | C61: 1 | D61: 1 | E61: 1 | F61: 20 | G61: Komunalinių paslaugų įsigijimo išlaidos | H61: 28 | I61: 0.00 | J61: 0.00 | K61: 0.00 | L61: 0.00
A62: 2 | B62: 2 | C62: 1 | D62: 1 | E62: 1 | F62: 21 | G62: Informacinių technologijų prekių ir paslaugų įsigijimo išlaidos | H62: 29 | I62: 0.00 | J62: 0.00 | K62: 0.00 | L62: 0.00
A63: 2 | B63: 2 | C63: 1 | D63: 1 | E63: 1 | F63: 22 | G63: Reprezentacinės išlaidos | H63: 30 | I63: 0.00 | J63: 0.00 | K63: 0.00 | L63: 0.00
A64: 2 | B64: 2 | C64: 1 | D64: 1 | E64: 1 | F64: 23 | G64: Viešinimo išlaidos | H64: 31 | I64: 0.00 | J64: 0.00 | K64: 0.00 | L64: 0.00
A65: 2 | B65: 2 | C65: 1 | D65: 1 | E65: 1 | F65: 30 | G65: Kitų prekių ir paslaugų įsigijimo išlaidos | H65: 32 | I65: 0.00 | J65: 0.00 | K65: 0.00 | L65: 0.00
A66: 2 | B66: 3 | G66: Palūkanos | H66: 33 | I66: =I67 -> 0.00 | J66: =J67 -> 0.00 | K66: =K67 -> 0.00 | L66: =L67 -> 0.00
A67: 2 | B67: 3 | C67: 1 | G67: Palūkanos | H67: 34 | I67: =SUM(I68+I73+I78) -> 0.00 | J67: =SUM(J68+J73+J78) -> 0.00 | K67: =SUM(K68+K73+K78) -> 0.00 | L67: =SUM(L68+L73+L78) -> 0.00
A68: 2 | B68: 3 | C68: 1 | D68: 1 | G68: Palūkanos nerezidentams | H68: 35 | I68: =I69 -> 0.00 | J68: =J69 -> 0.00 | K68: =K69 -> 0.00 | L68: =L69 -> 0.00
A69: 2 | B69: 3 | C69: 1 | D69: 1 | E69: 1 | G69: Palūkanos nerezidentams | H69: 36 | I69: =SUM(I70:I72) -> 0.00 | J69: =SUM(J70:J72) -> 0.00 | K69: =SUM(K70:K72) -> 0.00 | L69: =SUM(L70:L72) -> 0.00
A70: 2 | B70: 3 | C70: 1 | D70: 1 | E70: 1 | F70: 1 | G70: Asignavimų valdytojų sumokėtos palūkanos | H70: 37 | I70: 0.00 | J70: 0.00 | K70: 0.00 | L70: 0.00
A71: 2 | B71: 3 | C71: 1 | D71: 1 | E71: 1 | F71: 2 | G71: Finansų ministerijos sumokėtos palūkanos | H71: 38 | I71: 0.00 | J71: 0.00 | K71: 0.00 | L71: 0.00
A72: 2 | B72: 3 | C72: 1 | D72: 1 | E72: 1 | F72: 3 | G72: Savivaldybių sumokėtos palūkanos | H72: 39 | I72: 0.00 | J72: 0.00 | K72: 0.00 | L72: 0.00
A73: 2 | B73: 3 | C73: 1 | D73: 2 | G73: Palūkanos rezidentams, kitiems nei valdžios sektorius (tik už tiesioginę skolą) | H73: 40 | I73: =I74 -> 0.00 | J73: =J74 -> 0.00 | K73: =K74 -> 0.00 | L73: =L74 -> 0.00
A74: 2 | B74: 3 | C74: 1 | D74: 2 | E74: 1 | G74: Palūkanos rezidentams, kitiems nei valdžios sektorius (tik už tiesioginę skolą) | H74: 41 | I74: =SUM(I75:I77) -> 0.00 | J74: =SUM(J75:J77) -> 0.00 | K74: =SUM(K75:K77) -> 0.00 | L74: =SUM(L75:L77) -> 0.00
A75: 2 | B75: 3 | C75: 1 | D75: 2 | E75: 1 | F75: 1 | G75: Asignavimų valdytojų sumokėtos palūkanos | H75: 42 | I75: 0.00 | J75: 0.00 | K75: 0.00 | L75: 0.00
A76: 2 | B76: 3 | C76: 1 | D76: 2 | E76: 1 | F76: 2 | G76: Finansų ministerijos sumokėtos palūkanos | H76: 43 | I76: 0.00 | J76: 0.00 | K76: 0.00 | L76: 0.00
A77: 2 | B77: 3 | C77: 1 | D77: 2 | E77: 1 | F77: 3 | G77: Savivaldybių sumokėtos palūkanos | H77: 44 | I77: 0.00 | J77: 0.00 | K77: 0.00 | L77: 0.00
A78: 2 | B78: 3 | C78: 1 | D78: 3 | G78: Palūkanos kitiems valdžios sektoriaus subjektams | H78: 45 | I78: =I79 -> 0.00 | J78: =J79 -> 0.00 | K78: =K79 -> 0.00 | L78: =L79 -> 0.00
A79: 2 | B79: 3 | C79: 1 | D79: 3 | E79: 1 | G79: Palūkanos kitiems valdžios sektoriaus subjektams | H79: 46 | I79: =SUM(I80:I82) -> 0.00 | J79: =SUM(J80:J82) -> 0.00 | K79: =SUM(K80:K82) -> 0.00 | L79: =SUM(L80:L82) -> 0.00
A80: 2 | B80: 3 | C80: 1 | D80: 3 | E80: 1 | F80: 1 | G80: Palūkanos valstybės biudžetui | H80: 47 | I80: 0.00 | J80: 0.00 | K80: 0.00 | L80: 0.00
A81: 2 | B81: 3 | C81: 1 | D81: 3 | E81: 1 | F81: 2 | G81: Palūkanos savivaldybių biudžetams | H81: 48 | I81: 0.00 | J81: 0.00 | K81: 0.00 | L81: 0.00
A82: 2 | B82: 3 | C82: 1 | D82: 3 | E82: 1 | F82: 3 | G82: Palūkanos nebiudžetiniams fondams | H82: 49 | I82: 0.00 | J82: 0.00 | K82: 0.00 | L82: 0.00
A83: 2 | B83: 3 | C83: 2 | G83: Žemės nuoma | H83: 50 | I83: =I84 -> 0.00 | J83: 0.00 | K83: 0.00 | L83: 0.00
A84: 2 | B84: 3 | C84: 2 | D84: 1 | G84: Žemės nuoma | H84: 51 | I84: 0.00 | J84: 0.00 | K84: 0.00 | L84: 0.00
A85: 2 | B85: 3 | C85: 2 | D85: 1 | E85: 1 | G85: Žemės nuoma | H85: 52 | I85: =SUM(I86) -> 0.00 | J85: =SUM(J86) -> 0.00 | K85: =SUM(K86) -> 0.00 | L85: =SUM(L86) -> 0.00
A86: 2 | B86: 3 | C86: 2 | D86: 1 | E86: 1 | F86: 1 | G86: Žemės nuoma | H86: 53 | I86: 0.00 | J86: 0.00 | K86: 0.00 | L86: 0.00
A87: 2 | B87: 4 | G87: Subsidijos | H87: 54 | I87: =I88 -> 0.00 | J87: 0.00 | K87: 0.00 | L87: 0.00
A88: 2 | B88: 4 | C88: 1 | G88: Subsidijos iš biudžeto lėšų | H88: 55 | I88: 0.00 | J88: 0.00 | K88: 0.00 | L88: 0.00
A89: 2 | B89: 4 | C89: 1 | D89: 1 | G89: Subsidijos iš biudžeto lėšų | H89: 56 | I89: 0.00 | J89: 0.00 | K89: 0.00 | L89: 0.00
A90: 2 | B90: 4 | C90: 1 | D90: 1 | E90: 1 | G90: Subsidijos iš biudžeto lėšų | H90: 57 | I90: =SUM(I91:I93) -> 0.00 | J90: =SUM(J91:J93) -> 0.00 | K90: =SUM(K91:K93) -> 0.00 | L90: =SUM(L91:L93) -> 0.00
A91: 2 | B91: 4 | C91: 1 | D91: 1 | E91: 1 | F91: 1 | G91: Subsidijos importui | H91: 58 | I91: 0.00 | J91: 0.00 | K91: 0.00 | L91: 0.00
A92: 2 | B92: 4 | C92: 1 | D92: 1 | E92: 1 | F92: 2 | G92: Subsidijos gaminiams | H92: 59 | I92: 0.00 | J92: 0.00 | K92: 0.00 | L92: 0.00
A93: 2 | B93: 4 | C93: 1 | D93: 1 | E93: 1 | F93: 3 | G93: Subsidijos gamybai | H93: 60 | I93: 0.00 | J93: 0.00 | K93: 0.00 | L93: 0.00
A94: 2 | B94: 5 | G94: Dotacijos | H94: 61 | I94: =SUM(I95+I100+I105) -> 0.00 | J94: =SUM(J95+J100+J105) -> 0.00 | K94: =SUM(K95+K100+K105) -> 0.00 | L94: =SUM(L95+L100+L105) -> 0.00
A95: 2 | B95: 5 | C95: 1 | G95: Dotacijos užsienio valstybėms | H95: 62 | I95: =I96 -> 0.00 | J95: 0.00 | K95: 0.00 | L95: 0.00
A96: 2 | B96: 5 | C96: 1 | D96: 1 | G96: Dotacijos užsienio valstybėms | H96: 63 | I96: 0.00 | J96: 0.00 | K96: 0.00 | L96: 0.00
A97: 2 | B97: 5 | C97: 1 | D97: 1 | E97: 1 | G97: Dotacijos užsienio valstybėms | H97: 64 | I97: =SUM(I98:I99) -> 0.00 | J97: =SUM(J98:J99) -> 0.00 | K97: =SUM(K98:K99) -> 0.00 | L97: =SUM(L98:L99) -> 0.00
A98: 2 | B98: 5 | C98: 1 | D98: 1 | E98: 1 | F98: 1 | G98: Dotacijos užsienio valstybėms einamiesiems tikslams | H98: 65 | I98: 0.00 | J98: 0.00 | K98: 0.00 | L98: 0.00
A99: 2 | B99: 5 | C99: 1 | D99: 1 | E99: 1 | F99: 2 | G99: Dotacijos užsienio valstybėms turtui įsigyti | H99: 66 | I99: 0.00 | J99: 0.00 | K99: 0.00 | L99: 0.00
A100: 2 | B100: 5 | C100: 2 | G100: Dotacijos tarptautinėms organizacijoms | H100: 67 | I100: =I101 -> 0.00 | J100: 0.00 | K100: 0.00 | L100: 0.00
A101: 2 | B101: 5 | C101: 2 | D101: 1 | G101: Dotacijos tarptautinėms organizacijoms | H101: 68 | I101: 0.00 | J101: 0.00 | K101: 0.00 | L101: 0.00
A102: 2 | B102: 5 | C102: 2 | D102: 1 | E102: 1 | G102: Dotacijos tarptautinėms organizacijoms | H102: 69 | I102: =SUM(I103:I104) -> 0.00 | J102: =SUM(J103:J104) -> 0.00 | K102: =SUM(K103:K104) -> 0.00 | L102: =SUM(L103:L104) -> 0.00
A103: 2 | B103: 5 | C103: 2 | D103: 1 | E103: 1 | F103: 1 | G103: Dotacijos tarptautinėms organizacijoms einamiesiems tikslams | H103: 70 | I103: 0.00 | J103: 0.00 | K103: 0.00 | L103: 0.00
A104: 2 | B104: 5 | C104: 2 | D104: 1 | E104: 1 | F104: 2 | G104: Dotacijos tarptautinėms organizacijoms turtui įsigyti | H104: 71 | I104: 0.00 | J104: 0.00 | K104: 0.00 | L104: 0.00
A105: 2 | B105: 5 | C105: 3 | G105: Dotacijos kitiems valdžios sektoriaus subjektams | H105: 72 | I105: =I106+I110 -> 0.00 | J105: =J106+J110 -> 0.00 | K105: =K106+K110 -> 0.00 | L105: =L106+L110 -> 0.00
A106: 2 | B106: 5 | C106: 3 | D106: 1 | G106: Dotacijos kitiems valdžios sektoriaus subjektams einamiesiems tikslams | H106: 73 | I106: =I107 -> 0.00 | J106: =J107 -> 0.00 | K106: =K107 -> 0.00 | L106: =L107 -> 0.00
A107: 2 | B107: 5 | C107: 3 | D107: 1 | E107: 1 | G107: Dotacijos kitiems valdžios sektoriaus subjektams einamiesiems tikslams | H107: 74 | I107: =SUM(I108:I109) -> 0.00 | J107: =SUM(J108:J109) -> 0.00 | K107: =SUM(K108:K109) -> 0.00 | L107: =SUM(L108:L109) -> 0.00
A108: 2 | B108: 5 | C108: 3 | D108: 1 | E108: 1 | F108: 1 | G108: Dotacijos kitiems valdžios sektoriaus subjektams einamiesiems tikslams | H108: 75 | I108: 0.00 | J108: 0.00 | K108: 0.00 | L108: 0.00
A109: 2 | B109: 5 | C109: 3 | D109: 1 | E109: 1 | F109: 2 | G109: Dotacijos savivaldybėms einamiesiems tikslams | H109: 76 | I109: 0.00 | J109: 0.00 | K109: 0.00 | L109: 0.00
A110: 2 | B110: 5 | C110: 3 | D110: 2 | G110: Dotacijos kitiems valdžios sektoriaus subjektams turtui įsigyti | H110: 77 | I110: =I111 -> 0.00 | J110: =J111 -> 0.00 | K110: =K111 -> 0.00 | L110: =L111 -> 0.00
A111: 2 | B111: 5 | C111: 3 | D111: 2 | E111: 1 | G111: Dotacijos kitiems valdžios sektoriaus subjektams turtui įsigyti | H111: 78 | I111: =SUM(I112:I113) -> 0.00 | J111: =SUM(J112:J113) -> 0.00 | K111: =SUM(K112:K113) -> 0.00 | L111: =SUM(L112:L113) -> 0.00
A112: 2 | B112: 5 | C112: 3 | D112: 2 | E112: 1 | F112: 1 | G112: Dotacijos kitiems valdžios sektoriaus subjektams turtui įsigyti | H112: 79 | I112: 0.00 | J112: 0.00 | K112: 0.00 | L112: 0.00
A113: 2 | B113: 5 | C113: 3 | D113: 2 | E113: 1 | F113: 2 | G113: Dotacijos savivaldybėms turtui įsigyti | H113: 80 | I113: 0.00 | J113: 0.00 | K113: 0.00 | L113: 0.00
A114: 2 | B114: 6 | G114: Įmokos į Europos Sąjungos biudžetą | H114: 81 | I114: =SUM(I115+I120+I124+I128+I132+I136) -> 0.00 | J114: =SUM(J115+J120+J124+J128+J132+J136) -> 0.00 | K114: =SUM(K115+K120+K124+K128+K132+K136) -> 0.00 | L114: =SUM(L115+L120+L124+L128+L132+L136) -> 0.00
A115: 2 | B115: 6 | C115: 1 | G115: Tradiciniai nuosavi ištekliai | H115: 82 | I115: =I116 -> 0.00 | J115: 0.00 | K115: 0.00 | L115: 0.00
A116: 2 | B116: 6 | C116: 1 | D116: 1 | G116: Tradiciniai nuosavi ištekliai | H116: 83 | I116: 0.00 | J116: 0.00 | K116: 0.00 | L116: 0.00
A117: 2 | B117: 6 | C117: 1 | D117: 1 | E117: 1 | G117: Tradiciniai nuosavi ištekliai | H117: 84 | I117: =SUM(I118:I119) -> 0.00 | J117: =SUM(J118:J119) -> 0.00 | K117: =SUM(K118:K119) -> 0.00 | L117: =SUM(L118:L119) -> 0.00
A118: 2 | B118: 6 | C118: 1 | D118: 1 | E118: 1 | F118: 1 | G118: Muitai | H118: 85 | I118: 0.00 | J118: 0.00 | K118: 0.00 | L118: 0.00
A119: 2 | B119: 6 | C119: 1 | D119: 1 | E119: 1 | F119: 2 | G119: Cukraus sektoriaus mokesčiai | H119: 86 | I119: 0.00 | J119: 0.00 | K119: 0.00 | L119: 0.00
A120: 2 | B120: 6 | C120: 2 | G120: Pridėtinės vertės mokesčio nuosavi ištekliai | H120: 87 | I120: =I121 -> 0.00 | J120: 0.00 | K120: 0.00 | L120: 0.00
A121: 2 | B121: 6 | C121: 2 | D121: 1 | G121: Pridėtinės vertės mokesčio nuosavi ištekliai | H121: 88 | I121: 0.00 | J121: 0.00 | K121: 0.00 | L121: 0.00
A122: 2 | B122: 6 | C122: 2 | D122: 1 | E122: 1 | G122: Pridėtinės vertės mokesčio nuosavi ištekliai | H122: 89 | I122: 0.00 | J122: 0.00 | K122: 0.00 | L122: 0.00
A123: 2 | B123: 6 | C123: 2 | D123: 1 | E123: 1 | F123: 1 | G123: Pridėtinės vertės mokesčio nuosavi ištekliai | H123: 90 | I123: 0.00 | J123: 0.00 | K123: 0.00 | L123: 0.00
A124: 2 | B124: 6 | C124: 3 | G124: Bendrųjų nacionalinių pajamų nuosavi ištekliai | H124: 91 | I124: =I125 -> 0.00 | J124: 0.00 | K124: 0.00 | L124: 0.00
A125: 2 | B125: 6 | C125: 3 | D125: 1 | G125: Bendrųjų nacionalinių pajamų nuosavi ištekliai | H125: 92 | I125: 0.00 | J125: 0.00 | K125: 0.00 | L125: 0.00
A126: 2 | B126: 6 | C126: 3 | D126: 1 | E126: 1 | G126: Bendrųjų nacionalinių pajamų nuosavi ištekliai | H126: 93 | I126: 0.00 | J126: 0.00 | K126: 0.00 | L126: 0.00
A127: 2 | B127: 6 | C127: 3 | D127: 1 | E127: 1 | F127: 1 | G127: Bendrųjų nacionalinių pajamų nuosavi ištekliai | H127: 94 | I127: 0.00 | J127: 0.00 | K127: 0.00 | L127: 0.00
A128: 2 | B128: 6 | C128: 4 | G128: Biudžeto disbalansų korekcija Jungtinės Karalystės naudai | H128: 95 | I128: =I129 -> 0.00 | J128: 0.00 | K128: 0.00 | L128: 0.00
A129: 2 | B129: 6 | C129: 4 | D129: 1 | G129: Biudžeto disbalansų korekcija Jungtinės Karalystės naudai | H129: 96 | I129: 0.00 | J129: 0.00 | K129: 0.00 | L129: 0.00
A130: 2 | B130: 6 | C130: 4 | D130: 1 | E130: 1 | G130: Biudžeto disbalansų korekcija Jungtinės Karalystės naudai | H130: 97 | I130: 0.00 | J130: 0.00 | K130: 0.00 | L130: 0.00
A131: 2 | B131: 6 | C131: 4 | D131: 1 | E131: 1 | F131: 1 | G131: Biudžeto disbalansų korekcija Jungtinės Karalystės naudai | H131: 98 | I131: 0.00 | J131: 0.00 | K131: 0.00 | L131: 0.00
A132: 2 | B132: 6 | C132: 5 | G132: Su nuosavais ištekliais susijusios baudos, delspinigiai ir neigiamos palūkanos | H132: 99 | I132: =I133 -> 0.00 | J132: 0.00 | K132: 0.00 | L132: 0.00
A133: 2 | B133: 6 | C133: 5 | D133: 1 | G133: Su nuosavais ištekliais susijusios baudos, delspinigiai ir neigiamos palūkanos | H133: 100 | I133: 0.00 | J133: 0.00 | K133: 0.00 | L133: 0.00
A134: 2 | B134: 6 | C134: 5 | D134: 1 | E134: 1 | G134: Su nuosavais ištekliais susijusios baudos, delspinigiai ir neigiamos palūkanos | H134: 101 | I134: 0.00 | J134: 0.00 | K134: 0.00 | L134: 0.00
A135: 2 | B135: 6 | C135: 5 | D135: 1 | E135: 1 | F135: 1 | G135: Su nuosavais ištekliais susijusios baudos, delspinigiai ir neigiamos palūkanos | H135: 102 | I135: 0.00 | J135: 0.00 | K135: 0.00 | L135: 0.00
A136: 2 | B136: 6 | C136: 6 | G136: Neperdirbto plastiko atliekų nuosavi ištekliai | H136: 103 | I136: =I137 -> 0.00 | J136: 0.00 | K136: 0.00 | L136: 0.00
A137: 2 | B137: 6 | C137: 6 | D137: 1 | G137: Neperdirbto plastiko atliekų nuosavi ištekliai | H137: 104 | I137: 0.00 | J137: 0.00 | K137: 0.00 | L137: 0.00
A138: 2 | B138: 6 | C138: 6 | D138: 1 | E138: 1 | G138: Neperdirbto plastiko atliekų nuosavi ištekliai | H138: 105 | I138: 0.00 | J138: 0.00 | K138: 0.00 | L138: 0.00
A139: 2 | B139: 6 | C139: 6 | D139: 1 | E139: 1 | F139: 1 | G139: Neperdirbto plastiko atliekų nuosavi ištekliai | H139: 106 | I139: 0.00 | J139: 0.00 | K139: 0.00 | L139: 0.00
A140: 2 | B140: 7 | G140: Socialinės išmokos (pašalpos) | H140: 107 | I140: =SUM(I141+I146+I154) -> 0.00 | J140: =SUM(J141+J146+J154) -> 0.00 | K140: =SUM(K141+K146+K154) -> 0.00 | L140: =SUM(L141+L146+L154) -> 0.00
A141: 2 | B141: 7 | C141: 1 | G141: Socialinio draudimo išmokos (pašalpos) | H141: 108 | I141: =I142 -> 0.00 | J141: 0.00 | K141: 0.00 | L141: 0.00
A142: 2 | B142: 7 | C142: 1 | D142: 1 | G142: Socialinio draudimo išmokos (pašalpos) | H142: 109 | I142: 0.00 | J142: 0.00 | K142: 0.00 | L142: 0.00
A143: 2 | B143: 7 | C143: 1 | D143: 1 | E143: 1 | G143: Socialinio draudimo išmokos (pašalpos) | H143: 110 | I143: =SUM(I144:I145) -> 0.00 | J143: =SUM(J144:J145) -> 0.00 | K143: =SUM(K144:K145) -> 0.00 | L143: =SUM(L144:L145) -> 0.00
A144: 2 | B144: 7 | C144: 1 | D144: 1 | E144: 1 | F144: 1 | G144: Socialinio draudimo išmokos pinigais | H144: 111 | I144: 0.00 | J144: 0.00 | K144: 0.00 | L144: 0.00
A145: 2 | B145: 7 | C145: 1 | D145: 1 | E145: 1 | F145: 2 | G145: Socialinio draudimo išmokos natūra | H145: 112 | I145: 0.00 | J145: 0.00 | K145: 0.00 | L145: 0.00
A146: 2 | B146: 7 | C146: 2 | G146: Socialinė parama (socialinės paramos pašalpos) ir rentos | H146: 113 | I146: =I147 -> 0.00 | J146: 0.00 | K146: 0.00 | L146: 0.00
A147: 2 | B147: 7 | C147: 2 | D147: 1 | G147: Socialinė parama (socialinės paramos pašalpos) | H147: 114 | I147: 0.00 | J147: 0.00 | K147: 0.00 | L147: 0.00
A148: 2 | B148: 7 | C148: 2 | D148: 1 | E148: 1 | G148: Socialinė parama (socialinės paramos pašalpos) | H148: 115 | I148: =SUM(I149:I150) -> 0.00 | J148: =SUM(J149:J150) -> 0.00 | K148: =SUM(K149:K150) -> 0.00 | L148: =SUM(L149:L150) -> 0.00
A149: 2 | B149: 7 | C149: 2 | D149: 1 | E149: 1 | F149: 1 | G149: Socialinė parama pinigais | H149: 116 | I149: 0.00 | J149: 0.00 | K149: 0.00 | L149: 0.00
A150: 2 | B150: 7 | C150: 2 | D150: 1 | E150: 1 | F150: 2 | G150: Socialinė parama natūra | H150: 117 | I150: 0.00 | J150: 0.00 | K150: 0.00 | L150: 0.00
A151: 2 | B151: 7 | C151: 2 | D151: 2 | G151: Rentos | H151: 118 | I151: =I152 -> 0.00 | J151: =J152 -> 0.00 | K151: =K152 -> 0.00 | L151: =L152 -> 0.00
A152: 2 | B152: 7 | C152: 2 | D152: 2 | E152: 1 | G152: Rentos | H152: 119 | I152: =SUM(I153) -> 0.00 | J152: =SUM(J153) -> 0.00 | K152: =SUM(K153) -> 0.00 | L152: =SUM(L153) -> 0.00
A153: 2 | B153: 7 | C153: 2 | D153: 2 | E153: 1 | F153: 1 | G153: Rentos | H153: 120 | I153: 0.00 | J153: 0.00 | K153: 0.00 | L153: 0.00
A154: 2 | B154: 7 | C154: 3 | G154: Darbdavių socialinė parama | H154: 121 | I154: =I155 -> 0.00 | J154: 0.00 | K154: 0.00 | L154: 0.00
A155: 2 | B155: 7 | C155: 3 | D155: 1 | G155: Darbdavių socialinė parama | H155: 122 | I155: 0.00 | J155: 0.00 | K155: 0.00 | L155: 0.00
A156: 2 | B156: 7 | C156: 3 | D156: 1 | E156: 1 | G156: Darbdavių socialinė parama | H156: 123 | I156: =SUM(I157:I158) -> 0.00 | J156: =SUM(J157:J158) -> 0.00 | K156: =SUM(K157:K158) -> 0.00 | L156: =SUM(L157:L158) -> 0.00
A157: 2 | B157: 7 | C157: 3 | D157: 1 | E157: 1 | F157: 1 | G157: Darbdavių socialinė parama pinigais | H157: 124 | I157: 0.00 | J157: 0.00 | K157: 0.00 | L157: 0.00
A158: 2 | B158: 7 | C158: 3 | D158: 1 | E158: 1 | F158: 2 | G158: Darbdavių socialinė parama natūra | H158: 125 | I158: 0.00 | J158: 0.00 | K158: 0.00 | L158: 0.00
A159: 2 | B159: 8 | G159: Kitos išlaidos | H159: 126 | I159: =I160 -> 0.00 | J159: =J160 -> 0.00 | K159: =K160 -> 0.00 | L159: =L160 -> 0.00
A160: 2 | B160: 8 | C160: 1 | G160: Kitos išlaidos | H160: 127 | I160: =I161+I166 -> 0.00 | J160: =J161+J166 -> 0.00 | K160: =K161+K166 -> 0.00 | L160: =L161+L166 -> 0.00
A161: 2 | B161: 8 | C161: 1 | D161: 1 | G161: Kitos išlaidos einamiesiems tikslams | H161: 128 | I161: =I162 -> 0.00 | J161: =J162 -> 0.00 | K161: =K162 -> 0.00 | L161: =L162 -> 0.00
A162: 2 | B162: 8 | C162: 1 | D162: 1 | E162: 1 | G162: Kitos išlaidos einamiesiems tikslams | H162: 129 | I162: =SUM(I163:I165) -> 0.00 | J162: =SUM(J163:J165) -> 0.00 | K162: =SUM(K163:K165) -> 0.00 | L162: =SUM(L163:L165) -> 0.00
A163: 2 | B163: 8 | C163: 1 | D163: 1 | E163: 1 | F163: 1 | G163: Stipendijoms | H163: 130 | I163: 0.00 | J163: 0.00 | K163: 0.00 | L163: 0.00
A164: 2 | B164: 8 | C164: 1 | D164: 1 | E164: 1 | F164: 2 | G164: Kitos išlaidos kitiems einamiesiems tikslams | H164: 131 | I164: 0.00 | J164: 0.00 | K164: 0.00 | L164: 0.00
A165: 2 | B165: 8 | C165: 1 | D165: 1 | E165: 1 | F165: 3 | G165: Valiutos kurso įtaka | H165: 132 | I165: 0.00 | J165: 0.00 | K165: 0.00 | L165: 0.00
A166: 2 | B166: 8 | C166: 1 | D166: 2 | G166: Kitos išlaidos turtui įsigyti | H166: 133 | I166: =I167 -> 0.00 | J166: 0.00 | K166: 0.00 | L166: 0.00
A167: 2 | B167: 8 | C167: 1 | D167: 2 | E167: 1 | G167: Kitos išlaidos turtui įsigyti | H167: 134 | I167: 0.00 | J167: 0.00 | K167: 0.00 | L167: 0.00
A168: 2 | B168: 8 | C168: 1 | D168: 2 | E168: 1 | F168: 1 | G168: Kitos išlaidos turtui įsigyti | H168: 135 | I168: 0.00 | J168: 0.00 | K168: 0.00 | L168: 0.00
A169: 2 | B169: 9 | G169: Pervedamos Europos Sąjungos, kitos tarptautinės finansinės paramos, bendrojo finansavimo lėšos ir kitos bendrai finansuojamiems iš Europos Sąjungos ar kitos tarptautinės finansinės paramos lėšų projektams įgyvendinti skirtos valstybės biudžeto lėšos | H169: 136 | I169: =I170+I174 -> 0.00 | J169: =J170+J174 -> 0.00 | K169: =K170+K174 -> 0.00 | L169: =L170+L174 -> 0.00
A170: 2 | B170: 9 | C170: 1 | G170: Subsidijos iš Europos Sąjungos ir kitos tarptautinės finansinės paramos lėšų (ne valdžios sektoriui) | H170: 137 | I170: =I171 -> 0.00 | J170: 0.00 | K170: 0.00 | L170: 0.00
A171: 2 | B171: 9 | C171: 1 | D171: 1 | G171: Subsidijos iš Europos Sąjungos ir kitos tarptautinės finansinės paramos lėšų (ne valdžios sektoriui) | H171: 138 | I171: 0.00 | J171: 0.00 | K171: 0.00 | L171: 0.00
A172: 2 | B172: 9 | C172: 1 | D172: 1 | E172: 1 | G172: Subsidijos iš Europos Sąjungos ir kitos tarptautinės finansinės paramos lėšų (ne valdžios sektoriui) | H172: 139 | I172: 0.00 | J172: 0.00 | K172: 0.00 | L172: 0.00
A173: 2 | B173: 9 | C173: 1 | D173: 1 | E173: 1 | F173: 1 | G173: Subsidijos iš Europos Sąjungos ir kitos tarptautinės finansinės paramos lėšų (ne valdžios sektoriui) | H173: 140 | I173: 0.00 | J173: 0.00 | K173: 0.00 | L173: 0.00
A174: 2 | B174: 9 | C174: 2 | G174: Pervedamos Europos Sąjungos, kitos tarptautinės finansinės paramos, bendrojo finansavimo lėšos ir kitos bendrai finansuojamiems iš Europos Sąjungos ar kitos tarptautinės finansinės paramos lėšų projektams įgyvendinti skirtos valstybės biudžeto lėšos | H174: 141 | I174: =SUM(I175+I180) -> 0.00 | J174: =SUM(J175+J180) -> 0.00 | K174: =SUM(K175+K180) -> 0.00 | L174: =SUM(L175+L180) -> 0.00
A175: 2 | B175: 9 | C175: 2 | D175: 1 | G175: Pervedamos Europos Sąjungos, kitos tarptautinės finansinės paramos, bendrojo finansavimo lėšos ir kitos bendrai finansuojamiems iš Europos Sąjungos ar kitos tarptautinės finansinės paramos lėšų projektams įgyvendinti skirtos valstybės biudžeto lėšos einamiesiems tikslams | H175: 142 | I175: =I176 -> 0.00 | J175: =J176 -> 0.00 | K175: =K176 -> 0.00 | L175: =L176 -> 0.00
A176: 2 | B176: 9 | C176: 2 | D176: 1 | E176: 1 | G176: Pervedamos Europos Sąjungos, kitos tarptautinės finansinės paramos, bendrojo finansavimo lėšos ir kitos bendrai finansuojamiems iš Europos Sąjungos ar kitos tarptautinės finansinės paramos lėšų projektams įgyvendinti skirtos valstybės biudžeto lėšos einamiesiems tikslams | H176: 143 | I176: =SUM(I177:I179) -> 0.00 | J176: =SUM(J177:J179) -> 0.00 | K176: =SUM(K177:K179) -> 0.00 | L176: =SUM(L177:L179) -> 0.00
A177: 2 | B177: 9 | C177: 2 | D177: 1 | E177: 1 | F177: 1 | G177: Pervedamos Europos Sąjungos, kitos tarptautinės finansinės paramos, bendrojo finansavimo lėšos ir kitos bendrai finansuojamiems iš Europos Sąjungos ar kitos tarptautinės finansinės paramos lėšų projektams įgyvendinti skirtos valstybės biudžeto lėšos einamiesiems tikslams savivaldybėms | H177: 144 | I177: 0.00 | J177: 0.00 | K177: 0.00 | L177: 0.00
A178: 2 | B178: 9 | C178: 2 | D178: 1 | E178: 1 | F178: 2 | G178: Pervedamos Europos Sąjungos, kitos tarptautinės finansinės paramos, bendrojo finansavimo lėšos ir kitos bendrai finansuojamiems iš Europos Sąjungos ar kitos tarptautinės finansinės paramos lėšų projektams įgyvendinti skirtos valstybės biudžeto lėšos einamiesiems tikslams kitiems valdžios sektoriaus subjektams | H178: 145 | I178: 0.00 | J178: 0.00 | K178: 0.00 | L178: 0.00
A179: 2 | B179: 9 | C179: 2 | D179: 1 | E179: 1 | F179: 3 | G179: Pervedamos Europos Sąjungos, kitos tarptautinės finansinės paramos, bendrojo finansavimo lėšos ir kitos bendrai finansuojamiems iš Europos Sąjungos ar kitos tarptautinės finansinės paramos lėšų projektams įgyvendinti skirtos valstybės biudžeto lėšos einamiesiems tikslams ne valdžios sektoriui | H179: 146 | I179: 0.00 | J179: 0.00 | K179: 0.00 | L179: 0.00
A180: 2 | B180: 9 | C180: 2 | D180: 2 | G180: Pervedamos Europos Sąjungos, kitos tarptautinės finansinės paramos, bendrojo finansavimo lėšos ir kitos bendrai finansuojamiems iš Europos Sąjungos ar kitos tarptautinės finansinės paramos lėšų projektams įgyvendinti skirtos valstybės biudžeto lėšos investicijoms | H180: 147 | I180: =I181 -> 0.00 | J180: =J181 -> 0.00 | K180: =K181 -> 0.00 | L180: =L181 -> 0.00
A181: 2 | B181: 9 | C181: 2 | D181: 2 | E181: 1 | G181: Pervedamos Europos Sąjungos, kitos tarptautinės finansinės paramos, bendrojo finansavimo lėšos ir kitos bendrai finansuojamiems iš Europos Sąjungos ar kitos tarptautinės finansinės paramos lėšų projektams įgyvendinti skirtos valstybės biudžeto lėšos investicijoms | H181: 148 | I181: =SUM(I182:I184) -> 0.00 | J181: =SUM(J182:J184) -> 0.00 | K181: =SUM(K182:K184) -> 0.00 | L181: =SUM(L182:L184) -> 0.00
A182: 2 | B182: 9 | C182: 2 | D182: 2 | E182: 1 | F182: 1 | G182: Pervedamos Europos Sąjungos, kitos tarptautinės finansinės paramos, bendrojo finansavimo lėšos ir kitos bendrai finansuojamiems iš Europos Sąjungos ar kitos tarptautinės finansinės paramos lėšų projektams įgyvendinti skirtos valstybės biudžeto lėšos investicijoms, skirtoms savivaldybėms | H182: 149 | I182: 0.00 | J182: 0.00 | K182: 0.00 | L182: 0.00
A183: 2 | B183: 9 | C183: 2 | D183: 2 | E183: 1 | F183: 2 | G183: Pervedamos Europos Sąjungos, kitos tarptautinės finansinės paramos, bendrojo finansavimo lėšos ir kitos bendrai finansuojamiems iš Europos Sąjungos ar kitos tarptautinės finansinės paramos lėšų projektams įgyvendinti skirtos valstybės biudžeto lėšos investicijoms kitiems valdžios sektoriaus subjektams | H183: 150 | I183: 0.00 | J183: 0.00 | K183: 0.00 | L183: 0.00
A184: 2 | B184: 9 | C184: 2 | D184: 2 | E184: 1 | F184: 3 | G184: Pervedamos Europos Sąjungos, kitos tarptautinės finansinės paramos, bendrojo finansavimo lėšos ir kitos bendrai finansuojamiems iš Europos Sąjungos ar kitos tarptautinės finansinės paramos lėšų projektams įgyvendinti skirtos valstybės biudžeto lėšos investicijoms ne valdžios sektoriui | H184: 151 | I184: 0.00 | J184: 0.00 | K184: 0.00 | L184: 0.00
A185: 3 | G185: MATERIALIOJO IR NEMATERIALIOJO TURTO ĮSIGIJIMO, FINANSINIO TURTO PADIDĖJIMO IR FINANSINIŲ ĮSIPAREIGOJIMŲ VYKDYMO IŠLAIDOS | H185: 152 | I185: =SUM(I186+I239+I304) -> 0.00 | J185: =SUM(J186+J239+J304) -> 0.00 | K185: =SUM(K186+K239+K304) -> 0.00 | L185: =SUM(L186+L239+L304) -> 0.00
A186: 3 | B186: 1 | G186: Materialiojo ir nematerialiojo turto įsigijimo išlaidos | H186: 153 | I186: =SUM(I187+I210+I217+I229+I233) -> 0.00 | J186: =SUM(J187+J210+J217+J229+J233) -> 0.00 | K186: =SUM(K187+K210+K217+K229+K233) -> 0.00 | L186: =SUM(L187+L210+L217+L229+L233) -> 0.00
A187: 3 | B187: 1 | C187: 1 | G187: Ilgalaikio materialiojo turto kūrimo ir įsigijimo išlaidos | H187: 154 | I187: =SUM(I188+I191+I196+I202+I207) -> 0.00 | J187: =SUM(J188+J191+J196+J202+J207) -> 0.00 | K187: =SUM(K188+K191+K196+K202+K207) -> 0.00 | L187: =SUM(L188+L191+L196+L202+L207) -> 0.00
A188: 3 | B188: 1 | C188: 1 | D188: 1 | G188: Žemės įsigijimo išlaidos | H188: 155 | I188: =I189 -> 0.00 | J188: 0.00 | K188: 0.00 | L188: 0.00
A189: 3 | B189: 1 | C189: 1 | D189: 1 | E189: 1 | G189: Žemės įsigijimo išlaidos | H189: 156 | I189: 0.00 | J189: 0.00 | K189: 0.00 | L189: 0.00
A190: 3 | B190: 1 | C190: 1 | D190: 1 | E190: 1 | F190: 1 | G190: Žemės įsigijimo išlaidos | H190: 157 | I190: 0.00 | J190: 0.00 | K190: 0.00 | L190: 0.00
A191: 3 | B191: 1 | C191: 1 | D191: 2 | G191: Pastatų ir statinių įsigijimo išlaidos | H191: 158 | I191: =I192 -> 0.00 | J191: =J192 -> 0.00 | K191: =K192 -> 0.00 | L191: =L192 -> 0.00
A192: 3 | B192: 1 | C192: 1 | D192: 2 | E192: 1 | G192: Pastatų ir statinių įsigijimo išlaidos | H192: 159 | I192: =SUM(I193:I195) -> 0.00 | J192: =SUM(J193:J195) -> 0.00 | K192: =SUM(K193:K195) -> 0.00 | L192: =SUM(L193:L195) -> 0.00
A193: 3 | B193: 1 | C193: 1 | D193: 2 | E193: 1 | F193: 1 | G193: Gyvenamųjų namų įsigijimo išlaidos | H193: 160 | I193: 0.00 | J193: 0.00 | K193: 0.00 | L193: 0.00
A194: 3 | B194: 1 | C194: 1 | D194: 2 | E194: 1 | F194: 2 | G194: Negyvenamųjų pastatų įsigijimo išlaidos | H194: 161 | I194: 0.00 | J194: 0.00 | K194: 0.00 | L194: 0.00
A195: 3 | B195: 1 | C195: 1 | D195: 2 | E195: 1 | F195: 3 | G195: Infrastruktūros ir kitų statinių įsigijimo išlaidos | H195: 162 | I195: 0.00 | J195: 0.00 | K195: 0.00 | L195: 0.00
A196: 3 | B196: 1 | C196: 1 | D196: 3 | G196: Mašinų ir įrenginių įsigijimo išlaidos | H196: 163 | I196: =I197 -> 0.00 | J196: =J197 -> 0.00 | K196: =K197 -> 0.00 | L196: =L197 -> 0.00
A197: 3 | B197: 1 | C197: 1 | D197: 3 | E197: 1 | G197: Mašinų ir įrenginių įsigijimo išlaidos | H197: 164 | I197: =SUM(I198:I201) -> 0.00 | J197: =SUM(J198:J201) -> 0.00 | K197: =SUM(K198:K201) -> 0.00 | L197: =SUM(L198:L201) -> 0.00
A198: 3 | B198: 1 | C198: 1 | D198: 3 | E198: 1 | F198: 1 | G198: Transporto priemonių įsigijimo išlaidos | H198: 165 | I198: 0.00 | J198: 0.00 | K198: 0.00 | L198: 0.00
A199: 3 | B199: 1 | C199: 1 | D199: 3 | E199: 1 | F199: 2 | G199: Kitų mašinų ir įrenginių įsigijimo išlaidos | H199: 166 | I199: 0.00 | J199: 0.00 | K199: 0.00 | L199: 0.00
A200: 3 | B200: 1 | C200: 1 | D200: 3 | E200: 1 | F200: 3 | G200: Ginklų ir karinės įrangos įsigijimo išlaidos | H200: 167 | I200: 0.00 | J200: 0.00 | K200: 0.00 | L200: 0.00
A201: 3 | B201: 1 | C201: 1 | D201: 3 | E201: 1 | F201: 4 | G201: Kompiuterinės techninės ir elektroninių ryšių įrangos įsigijimo išlaidos | H201: 168 | I201: 0.00 | J201: 0.00 | K201: 0.00 | L201: 0.00
A202: 3 | B202: 1 | C202: 1 | D202: 4 | G202: Kultūros ir kitų vertybių įsigijimo išlaidos | H202: 169 | I202: =I203 -> 0.00 | J202: =J203 -> 0.00 | K202: =K203 -> 0.00 | L202: =L203 -> 0.00
A203: 3 | B203: 1 | C203: 1 | D203: 4 | E203: 1 | G203: Kultūros ir kitų vertybių įsigijimo išlaidos | H203: 170 | I203: =SUM(I204:I206) -> 0.00 | J203: =SUM(J204:J206) -> 0.00 | K203: =SUM(K204:K206) -> 0.00 | L203: =SUM(L204:L206) -> 0.00
A204: 3 | B204: 1 | C204: 1 | D204: 4 | E204: 1 | F204: 1 | G204: Muziejinių vertybių įsigijimo išlaidos | H204: 171 | I204: 0.00 | J204: 0.00 | K204: 0.00 | L204: 0.00
A205: 3 | B205: 1 | C205: 1 | D205: 4 | E205: 1 | F205: 2 | G205: Antikvarinių ir kitų meno kūrinių įsigijimo išlaidos | H205: 172 | I205: 0.00 | J205: 0.00 | K205: 0.00 | L205: 0.00
A206: 3 | B206: 1 | C206: 1 | D206: 4 | E206: 1 | F206: 3 | G206: Kitų vertybių įsigijimo išlaidos | H206: 173 | I206: 0.00 | J206: 0.00 | K206: 0.00 | L206: 0.00
A207: 3 | B207: 1 | C207: 1 | D207: 5 | G207: Kito ilgalaikio materialiojo turto įsigijimo išlaidos | H207: 174 | I207: =I208 -> 0.00 | J207: 0.00 | K207: 0.00 | L207: 0.00
A208: 3 | B208: 1 | C208: 1 | D208: 5 | E208: 1 | G208: Kito ilgalaikio materialiojo turto įsigijimo išlaidos | H208: 175 | I208: 0.00 | J208: 0.00 | K208: 0.00 | L208: 0.00
... 166 more rows

Sheet Forma Nr.2 VBD
J1: Biudžeto vykdymo ataskaitų rinkinių rengimo taisyklių
J2: 1 priedas
A7: (Biudžeto išlaidų sąmatos vykdymo 2025 m. gruodžio mėn. 31 d. I ketvirčio, pusmečio, 9 mėnesių, metų ataskaitos forma, Nr.2)
A9: Vaikų ir jaunimo laisvalaikio centras, 195174984
A10: (įstaigos pavadinimas, kodas Juridinių asmenų registre, adresas)
G12: BIUDŽETO IŠLAIDŲ SĄMATOS VYKDYMO PAGAL
A13: 2025 M. GRUODŽIO MĖN. 31 D.
G14: 4 ketvirtis
G15: (I ketvirčio, pusmečio, 9 mėnesių, metinė)
B16: ATASKAITA
G18: 2026.01.14 Nr.________________
G19: (data)
E21: Žinių visuomenės plėtros programa
A22: (programos pavadinimas)
L23: Kodas
J24: Ministerijos / Savivaldybės
K25: Departamento
A26: 1.1.2.5. Neformaliojo ugdymo programų įgyvendinimas ir tinkamos aplinkos užtikrinimas Gargždų vaikų ir jaunimo laisvalaikio centre | K26: Įstaigos | L26: 195174984
A27: Neformalusis vaikų švietimas | J27: Programos | K27: 1
G28: Finansavimo šaltinio | H28: VBD
G29: Valstybės funkcijos | I29: 09 | J29: 05 | K29: 01 | L29: 01
A30: Valstybės biudžeto kita dotacija | L30: (eurais, ct)
A31: Išlaidų ekonominės klasifikacijos kodas | G31: Išlaidų pavadinimas | H31: Eil. Nr. | I31: Asignavimų planas, įskaitant patikslinimus | K31: Gauti asignavimai kartu su įskaitytu praėjusių metų lėšų likučiu | L31: Panaudoti asignavimai
I32: metams | J32: ataskaitiniam laikotarpiui
A33: 1 | G33: 2 | H33: 3 | I33: 4 | J33: 5 | K33: 6 | L33: 7
A34: 2 | G34: IŠLAIDOS | H34: 1 | I34: =SUM(I35+I46+I66+I87+I94+I114+I140+I159+I169) -> 2800.00 | J34: =SUM(J35+J46+J66+J87+J94+J114+J140+J159+J169) -> 2800.00 | K34: =SUM(K35+K46+K66+K87+K94+K114+K140+K159+K169) -> 2800.00 | L34: =SUM(L35+L46+L66+L87+L94+L114+L140+L159+L169) -> 2800.00
A35: 2 | B35: 1 | G35: Darbo užmokestis ir socialinis draudimas | H35: 2 | I35: =SUM(I36+I42) -> 2800.00 | J35: =SUM(J36+J42) -> 2800.00 | K35: =SUM(K36+K42) -> 2800.00 | L35: =SUM(L36+L42) -> 2800.00
A36: 2 | B36: 1 | C36: 1 | G36: Darbo užmokestis | H36: 3 | I36: =SUM(I37) -> 2800.00 | J36: =SUM(J37) -> 2800.00 | K36: =SUM(K37) -> 2800.00 | L36: =SUM(L37) -> 2800.00
A37: 2 | B37: 1 | C37: 1 | D37: 1 | G37: Darbo užmokestis | H37: 4 | I37: =SUM(I38+I40) -> 2800.00 | J37: =SUM(J38+J40) -> 2800.00 | K37: =SUM(K38+K40) -> 2800.00 | L37: =SUM(L38+L40) -> 2800.00
A38: 2 | B38: 1 | C38: 1 | D38: 1 | E38: 1 | G38: Darbo užmokestis pinigais | H38: 5 | I38: =SUM(I39) -> 2800.00 | J38: =SUM(J39) -> 2800.00 | K38: =SUM(K39) -> 2800.00 | L38: =SUM(L39) -> 2800.00
A39: 2 | B39: 1 | C39: 1 | D39: 1 | E39: 1 | F39: 1 | G39: Darbo užmokestis pinigais | H39: 6 | I39: 2800.00 | J39: 2800.00 | K39: 2800.00 | L39: 2800.00
A40: 2 | B40: 1 | C40: 1 | D40: 1 | E40: 2 | G40: Pajamos natūra | H40: 7 | I40: =I41 -> 0.00 | J40: =J41 -> 0.00 | K40: =K41 -> 0.00 | L40: =L41 -> 0.00
A41: 2 | B41: 1 | C41: 1 | D41: 1 | E41: 2 | F41: 1 | G41: Pajamos natūra | H41: 8 | I41: 0.00 | J41: 0.00 | K41: 0.00 | L41: 0.00
A42: 2 | B42: 1 | C42: 2 | G42: Socialinio draudimo įmokos | H42: 9 | I42: =I43 -> 0.00 | J42: 0.00 | K42: 0.00 | L42: 0.00
A43: 2 | B43: 1 | C43: 2 | D43: 1 | G43: Socialinio draudimo įmokos | H43: 10 | I43: 0.00 | J43: 0.00 | K43: 0.00 | L43: 0.00
A44: 2 | B44: 1 | C44: 2 | D44: 1 | E44: 1 | G44: Socialinio draudimo įmokos | H44: 11 | I44: 0.00 | J44: 0.00 | K44: 0.00 | L44: 0.00
A45: 2 | B45: 1 | C45: 2 | D45: 1 | E45: 1 | F45: 1 | G45: Socialinio draudimo įmokos | H45: 12 | I45: 0.00 | J45: 0.00 | K45: 0.00 | L45: 0.00
A46: 2 | B46: 2 | G46: Prekių ir paslaugų įsigijimo išlaidos | H46: 13 | I46: =I47 -> 0.00 | J46: 0.00 | K46: 0.00 | L46: 0.00
A47: 2 | B47: 2 | C47: 1 | G47: Prekių ir paslaugų įsigijimo išlaidos | H47: 14 | I47: 0.00 | J47: 0.00 | K47: 0.00 | L47: 0.00
A48: 2 | B48: 2 | C48: 1 | D48: 1 | G48: Prekių ir paslaugų įsigijimo išlaidos | H48: 15 | I48: 0.00 | J48: 0.00 | K48: 0.00 | L48: 0.00
A49: 2 | B49: 2 | C49: 1 | D49: 1 | E49: 1 | G49: Prekių ir paslaugų įsigijimo išlaidos | H49: 16 | I49: =SUM(I50:I65) -> 0.00 | J49: =SUM(J50:J65) -> 0.00 | K49: =SUM(K50:K65) -> 0.00 | L49: =SUM(L50:L65) -> 0.00
A50: 2 | B50: 2 | C50: 1 | D50: 1 | E50: 1 | F50: 1 | G50: Mitybos išlaidos | H50: 17 | I50: 0.00 | J50: 0.00 | K50: 0.00 | L50: 0.00
A51: 2 | B51: 2 | C51: 1 | D51: 1 | E51: 1 | F51: 2 | G51: Medikamentų ir medicininių prekių bei paslaugų įsigijimo išlaidos | H51: 18 | I51: 0.00 | J51: 0.00 | K51: 0.00 | L51: 0.00
A52: 2 | B52: 2 | C52: 1 | D52: 1 | E52: 1 | F52: 5 | G52: Ryšių įrangos ir ryšių paslaugų įsigijimo išlaidos | H52: 19 | I52: 0.00 | J52: 0.00 | K52: 0.00 | L52: 0.00
A53: 2 | B53: 2 | C53: 1 | D53: 1 | E53: 1 | F53: 6 | G53: Transporto išlaikymo ir transporto paslaugų įsigijimo išlaidos | H53: 20 | I53: 0.00 | J53: 0.00 | K53: 0.00 | L53: 0.00
A54: 2 | B54: 2 | C54: 1 | D54: 1 | E54: 1 | F54: 7 | G54: Aprangos ir patalynės įsigijimo bei priežiūros išlaidos | H54: 21 | I54: 0.00 | J54: 0.00 | K54: 0.00 | L54: 0.00
A55: 2 | B55: 2 | C55: 1 | D55: 1 | E55: 1 | F55: 11 | G55: Komandiruočių išlaidos | H55: 22 | I55: 0.00 | J55: 0.00 | K55: 0.00 | L55: 0.00
A56: 2 | B56: 2 | C56: 1 | D56: 1 | E56: 1 | F56: 12 | G56: Gyvenamųjų vietovių viešojo ūkio išlaidos | H56: 23 | I56: 0.00 | J56: 0.00 | K56: 0.00 | L56: 0.00
A57: 2 | B57: 2 | C57: 1 | D57: 1 | E57: 1 | F57: 14 | G57: Materialiojo ir nematerialiojo turto nuomos išlaidos | H57: 24 | I57: 0.00 | J57: 0.00 | K57: 0.00 | L57: 0.00
A58: 2 | B58: 2 | C58: 1 | D58: 1 | E58: 1 | F58: 15 | G58: Materialiojo turto paprastojo remonto prekių ir paslaugų įsigijimo išlaidos | H58: 25 | I58: 0.00 | J58: 0.00 | K58: 0.00 | L58: 0.00
A59: 2 | B59: 2 | C59: 1 | D59: 1 | E59: 1 | F59: 16 | G59: Kvalifikacijos kėlimo išlaidos | H59: 26 | I59: 0.00 | J59: 0.00 | K59: 0.00 | L59: 0.00
A60: 2 | B60: 2 | C60: 1 | D60: 1 | E60: 1 | F60: 17 | G60: Ekspertų ir konsultantų paslaugų įsigijimo išlaidos | H60: 27 | I60: 0.00 | J60: 0.00 | K60: 0.00 | L60: 0.00
A61: 2 | B61: 2 | C61: 1 | D61: 1 | E61: 1 | F61: 20 | G61: Komunalinių paslaugų įsigijimo išlaidos | H61: 28 | I61: 0.00 | J61: 0.00 | K61: 0.00 | L61: 0.00
A62: 2 | B62: 2 | C62: 1 | D62: 1 | E62: 1 | F62: 21 | G62: Informacinių technologijų prekių ir paslaugų įsigijimo išlaidos | H62: 29 | I62: 0.00 | J62: 0.00 | K62: 0.00 | L62: 0.00
A63: 2 | B63: 2 | C63: 1 | D63: 1 | E63: 1 | F63: 22 | G63: Reprezentacinės išlaidos | H63: 30 | I63: 0.00 | J63: 0.00 | K63: 0.00 | L63: 0.00
A64: 2 | B64: 2 | C64: 1 | D64: 1 | E64: 1 | F64: 23 | G64: Viešinimo išlaidos | H64: 31 | I64: 0.00 | J64: 0.00 | K64: 0.00 | L64: 0.00
A65: 2 | B65: 2 | C65: 1 | D65: 1 | E65: 1 | F65: 30 | G65: Kitų prekių ir paslaugų įsigijimo išlaidos | H65: 32 | I65: 0.00 | J65: 0.00 | K65: 0.00 | L65: 0.00
A66: 2 | B66: 3 | G66: Palūkanos | H66: 33 | I66: =I67 -> 0.00 | J66: =J67 -> 0.00 | K66: =K67 -> 0.00 | L66: =L67 -> 0.00
A67: 2 | B67: 3 | C67: 1 | G67: Palūkanos | H67: 34 | I67: =SUM(I68+I73+I78) -> 0.00 | J67: =SUM(J68+J73+J78) -> 0.00 | K67: =SUM(K68+K73+K78) -> 0.00 | L67: =SUM(L68+L73+L78) -> 0.00
A68: 2 | B68: 3 | C68: 1 | D68: 1 | G68: Palūkanos nerezidentams | H68: 35 | I68: =I69 -> 0.00 | J68: =J69 -> 0.00 | K68: =K69 -> 0.00 | L68: =L69 -> 0.00
A69: 2 | B69: 3 | C69: 1 | D69: 1 | E69: 1 | G69: Palūkanos nerezidentams | H69: 36 | I69: =SUM(I70:I72) -> 0.00 | J69: =SUM(J70:J72) -> 0.00 | K69: =SUM(K70:K72) -> 0.00 | L69: =SUM(L70:L72) -> 0.00
A70: 2 | B70: 3 | C70: 1 | D70: 1 | E70: 1 | F70: 1 | G70: Asignavimų valdytojų sumokėtos palūkanos | H70: 37 | I70: 0.00 | J70: 0.00 | K70: 0.00 | L70: 0.00
A71: 2 | B71: 3 | C71: 1 | D71: 1 | E71: 1 | F71: 2 | G71: Finansų ministerijos sumokėtos palūkanos | H71: 38 | I71: 0.00 | J71: 0.00 | K71: 0.00 | L71: 0.00
A72: 2 | B72: 3 | C72: 1 | D72: 1 | E72: 1 | F72: 3 | G72: Savivaldybių sumokėtos palūkanos | H72: 39 | I72: 0.00 | J72: 0.00 | K72: 0.00 | L72: 0.00
A73: 2 | B73: 3 | C73: 1 | D73: 2 | G73: Palūkanos rezidentams, kitiems nei valdžios sektorius (tik už tiesioginę skolą) | H73: 40 | I73: =I74 -> 0.00 | J73: =J74 -> 0.00 | K73: =K74 -> 0.00 | L73: =L74 -> 0.00
A74: 2 | B74: 3 | C74: 1 | D74: 2 | E74: 1 | G74: Palūkanos rezidentams, kitiems nei valdžios sektorius (tik už tiesioginę skolą) | H74: 41 | I74: =SUM(I75:I77) -> 0.00 | J74: =SUM(J75:J77) -> 0.00 | K74: =SUM(K75:K77) -> 0.00 | L74: =SUM(L75:L77) -> 0.00
A75: 2 | B75: 3 | C75: 1 | D75: 2 | E75: 1 | F75: 1 | G75: Asignavimų valdytojų sumokėtos palūkanos | H75: 42 | I75: 0.00 | J75: 0.00 | K75: 0.00 | L75: 0.00
A76: 2 | B76: 3 | C76: 1 | D76: 2 | E76: 1 | F76: 2 | G76: Finansų ministerijos sumokėtos palūkanos | H76: 43 | I76: 0.00 | J76: 0.00 | K76: 0.00 | L76: 0.00
A77: 2 | B77: 3 | C77: 1 | D77: 2 | E77: 1 | F77: 3 | G77: Savivaldybių sumokėtos palūkanos | H77: 44 | I77: 0.00 | J77: 0.00 | K77: 0.00 | L77: 0.00
A78: 2 | B78: 3 | C78: 1 | D78: 3 | G78: Palūkanos kitiems valdžios sektoriaus subjektams | H78: 45 | I78: =I79 -> 0.00 | J78: =J79 -> 0.00 | K78: =K79 -> 0.00 | L78: =L79 -> 0.00
A79: 2 | B79: 3 | C79: 1 | D79: 3 | E79: 1 | G79: Palūkanos kitiems valdžios sektoriaus subjektams | H79: 46 | I79: =SUM(I80:I82) -> 0.00 | J79: =SUM(J80:J82) -> 0.00 | K79: =SUM(K80:K82) -> 0.00 | L79: =SUM(L80:L82) -> 0.00
A80: 2 | B80: 3 | C80: 1 | D80: 3 | E80: 1 | F80: 1 | G80: Palūkanos valstybės biudžetui | H80: 47 | I80: 0.00 | J80: 0.00 | K80: 0.00 | L80: 0.00
A81: 2 | B81: 3 | C81: 1 | D81: 3 | E81: 1 | F81: 2 | G81: Palūkanos savivaldybių biudžetams | H81: 48 | I81: 0.00 | J81: 0.00 | K81: 0.00 | L81: 0.00
A82: 2 | B82: 3 | C82: 1 | D82: 3 | E82: 1 | F82: 3 | G82: Palūkanos nebiudžetiniams fondams | H82: 49 | I82: 0.00 | J82: 0.00 | K82: 0.00 | L82: 0.00
A83: 2 | B83: 3 | C83: 2 | G83: Žemės nuoma | H83: 50 | I83: =I84 -> 0.00 | J83: 0.00 | K83: 0.00 | L83: 0.00
A84: 2 | B84: 3 | C84: 2 | D84: 1 | G84: Žemės nuoma | H84: 51 | I84: 0.00 | J84: 0.00 | K84: 0.00 | L84: 0.00
A85: 2 | B85: 3 | C85: 2 | D85: 1 | E85: 1 | G85: Žemės nuoma | H85: 52 | I85: =SUM(I86) -> 0.00 | J85: =SUM(J86) -> 0.00 | K85: =SUM(K86) -> 0.00 | L85: =SUM(L86) -> 0.00
A86: 2 | B86: 3 | C86: 2 | D86: 1 | E86: 1 | F86: 1 | G86: Žemės nuoma | H86: 53 | I86: 0.00 | J86: 0.00 | K86: 0.00 | L86: 0.00
A87: 2 | B87: 4 | G87: Subsidijos | H87: 54 | I87: =I88 -> 0.00 | J87: 0.00 | K87: 0.00 | L87: 0.00
A88: 2 | B88: 4 | C88: 1 | G88: Subsidijos iš biudžeto lėšų | H88: 55 | I88: 0.00 | J88: 0.00 | K88: 0.00 | L88: 0.00
A89: 2 | B89: 4 | C89: 1 | D89: 1 | G89: Subsidijos iš biudžeto lėšų | H89: 56 | I89: 0.00 | J89: 0.00 | K89: 0.00 | L89: 0.00
A90: 2 | B90: 4 | C90: 1 | D90: 1 | E90: 1 | G90: Subsidijos iš biudžeto lėšų | H90: 57 | I90: =SUM(I91:I93) -> 0.00 | J90: =SUM(J91:J93) -> 0.00 | K90: =SUM(K91:K93) -> 0.00 | L90: =SUM(L91:L93) -> 0.00
A91: 2 | B91: 4 | C91: 1 | D91: 1 | E91: 1 | F91: 1 | G91: Subsidijos importui | H91: 58 | I91: 0.00 | J91: 0.00 | K91: 0.00 | L91: 0.00
A92: 2 | B92: 4 | C92: 1 | D92: 1 | E92: 1 | F92: 2 | G92: Subsidijos gaminiams | H92: 59 | I92: 0.00 | J92: 0.00 | K92: 0.00 | L92: 0.00
A93: 2 | B93: 4 | C93: 1 | D93: 1 | E93: 1 | F93: 3 | G93: Subsidijos gamybai | H93: 60 | I93: 0.00 | J93: 0.00 | K93: 0.00 | L93: 0.00
A94: 2 | B94: 5 | G94: Dotacijos | H94: 61 | I94: =SUM(I95+I100+I105) -> 0.00 | J94: =SUM(J95+J100+J105) -> 0.00 | K94: =SUM(K95+K100+K105) -> 0.00 | L94: =SUM(L95+L100+L105) -> 0.00
A95: 2 | B95: 5 | C95: 1 | G95: Dotacijos užsienio valstybėms | H95: 62 | I95: =I96 -> 0.00 | J95: 0.00 | K95: 0.00 | L95: 0.00
A96: 2 | B96: 5 | C96: 1 | D96: 1 | G96: Dotacijos užsienio valstybėms | H96: 63 | I96: 0.00 | J96: 0.00 | K96: 0.00 | L96: 0.00
A97: 2 | B97: 5 | C97: 1 | D97: 1 | E97: 1 | G97: Dotacijos užsienio valstybėms | H97: 64 | I97: =SUM(I98:I99) -> 0.00 | J97: =SUM(J98:J99) -> 0.00 | K97: =SUM(K98:K99) -> 0.00 | L97: =SUM(L98:L99) -> 0.00
A98: 2 | B98: 5 | C98: 1 | D98: 1 | E98: 1 | F98: 1 | G98: Dotacijos užsienio valstybėms einamiesiems tikslams | H98: 65 | I98: 0.00 | J98: 0.00 | K98: 0.00 | L98: 0.00
A99: 2 | B99: 5 | C99: 1 | D99: 1 | E99: 1 | F99: 2 | G99: Dotacijos užsienio valstybėms turtui įsigyti | H99: 66 | I99: 0.00 | J99: 0.00 | K99: 0.00 | L99: 0.00
A100: 2 | B100: 5 | C100: 2 | G100: Dotacijos tarptautinėms organizacijoms | H100: 67 | I100: =I101 -> 0.00 | J100: 0.00 | K100: 0.00 | L100: 0.00
A101: 2 | B101: 5 | C101: 2 | D101: 1 | G101: Dotacijos tarptautinėms organizacijoms | H101: 68 | I101: 0.00 | J101: 0.00 | K101: 0.00 | L101: 0.00
A102: 2 | B102: 5 | C102: 2 | D102: 1 | E102: 1 | G102: Dotacijos tarptautinėms organizacijoms | H102: 69 | I102: =SUM(I103:I104) -> 0.00 | J102: =SUM(J103:J104) -> 0.00 | K102: =SUM(K103:K104) -> 0.00 | L102: =SUM(L103:L104) -> 0.00
A103: 2 | B103: 5 | C103: 2 | D103: 1 | E103: 1 | F103: 1 | G103: Dotacijos tarptautinėms organizacijoms einamiesiems tikslams | H103: 70 | I103: 0.00 | J103: 0.00 | K103: 0.00 | L103: 0.00
A104: 2 | B104: 5 | C104: 2 | D104: 1 | E104: 1 | F104: 2 | G104: Dotacijos tarptautinėms organizacijoms turtui įsigyti | H104: 71 | I104: 0.00 | J104: 0.00 | K104: 0.00 | L104: 0.00
A105: 2 | B105: 5 | C105: 3 | G105: Dotacijos kitiems valdžios sektoriaus subjektams | H105: 72 | I105: =I106+I110 -> 0.00 | J105: =J106+J110 -> 0.00 | K105: =K106+K110 -> 0.00 | L105: =L106+L110 -> 0.00
A106: 2 | B106: 5 | C106: 3 | D106: 1 | G106: Dotacijos kitiems valdžios sektoriaus subjektams einamiesiems tikslams | H106: 73 | I106: =I107 -> 0.00 | J106: =J107 -> 0.00 | K106: =K107 -> 0.00 | L106: =L107 -> 0.00
A107: 2 | B107: 5 | C107: 3 | D107: 1 | E107: 1 | G107: Dotacijos kitiems valdžios sektoriaus subjektams einamiesiems tikslams | H107: 74 | I107: =SUM(I108:I109) -> 0.00 | J107: =SUM(J108:J109) -> 0.00 | K107: =SUM(K108:K109) -> 0.00 | L107: =SUM(L108:L109) -> 0.00
A108: 2 | B108: 5 | C108: 3 | D108: 1 | E108: 1 | F108: 1 | G108: Dotacijos kitiems valdžios sektoriaus subjektams einamiesiems tikslams | H108: 75 | I108: 0.00 | J108: 0.00 | K108: 0.00 | L108: 0.00
A109: 2 | B109: 5 | C109: 3 | D109: 1 | E109: 1 | F109: 2 | G109: Dotacijos savivaldybėms einamiesiems tikslams | H109: 76 | I109: 0.00 | J109: 0.00 | K109: 0.00 | L109: 0.00
A110: 2 | B110: 5 | C110: 3 | D110: 2 | G110: Dotacijos kitiems valdžios sektoriaus subjektams turtui įsigyti | H110: 77 | I110: =I111 -> 0.00 | J110: =J111 -> 0.00 | K110: =K111 -> 0.00 | L110: =L111 -> 0.00
A111: 2 | B111: 5 | C111: 3 | D111: 2 | E111: 1 | G111: Dotacijos kitiems valdžios sektoriaus subjektams turtui įsigyti | H111: 78 | I111: =SUM(I112:I113) -> 0.00 | J111: =SUM(J112:J113) -> 0.00 | K111: =SUM(K112:K113) -> 0.00 | L111: =SUM(L112:L113) -> 0.00
A112: 2 | B112: 5 | C112: 3 | D112: 2 | E112: 1 | F112: 1 | G112: Dotacijos kitiems valdžios sektoriaus subjektams turtui įsigyti | H112: 79 | I112: 0.00 | J112: 0.00 | K112: 0.00 | L112: 0.00
A113: 2 | B113: 5 | C113: 3 | D113: 2 | E113: 1 | F113: 2 | G113: Dotacijos savivaldybėms turtui įsigyti | H113: 80 | I113: 0.00 | J113: 0.00 | K113: 0.00 | L113: 0.00
A114: 2 | B114: 6 | G114: Įmokos į Europos Sąjungos biudžetą | H114: 81 | I114: =SUM(I115+I120+I124+I128+I132+I136) -> 0.00 | J114: =SUM(J115+J120+J124+J128+J132+J136) -> 0.00 | K114: =SUM(K115+K120+K124+K128+K132+K136) -> 0.00 | L114: =SUM(L115+L120+L124+L128+L132+L136) -> 0.00
A115: 2 | B115: 6 | C115: 1 | G115: Tradiciniai nuosavi ištekliai | H115: 82 | I115: =I116 -> 0.00 | J115: 0.00 | K115: 0.00 | L115: 0.00
A116: 2 | B116: 6 | C116: 1 | D116: 1 | G116: Tradiciniai nuosavi ištekliai | H116: 83 | I116: 0.00 | J116: 0.00 | K116: 0.00 | L116: 0.00
A117: 2 | B117: 6 | C117: 1 | D117: 1 | E117: 1 | G117: Tradiciniai nuosavi ištekliai | H117: 84 | I117: =SUM(I118:I119) -> 0.00 | J117: =SUM(J118:J119) -> 0.00 | K117: =SUM(K118:K119) -> 0.00 | L117: =SUM(L118:L119) -> 0.00
A118: 2 | B118: 6 | C118: 1 | D118: 1 | E118: 1 | F118: 1 | G118: Muitai | H118: 85 | I118: 0.00 | J118: 0.00 | K118: 0.00 | L118: 0.00
A119: 2 | B119: 6 | C119: 1 | D119: 1 | E119: 1 | F119: 2 | G119: Cukraus sektoriaus mokesčiai | H119: 86 | I119: 0.00 | J119: 0.00 | K119: 0.00 | L119: 0.00
A120: 2 | B120: 6 | C120: 2 | G120: Pridėtinės vertės mokesčio nuosavi ištekliai | H120: 87 | I120: =I121 -> 0.00 | J120: 0.00 | K120: 0.00 | L120: 0.00
A121: 2 | B121: 6 | C121: 2 | D121: 1 | G121: Pridėtinės vertės mokesčio nuosavi ištekliai | H121: 88 | I121: 0.00 | J121: 0.00 | K121: 0.00 | L121: 0.00
A122: 2 | B122: 6 | C122: 2 | D122: 1 | E122: 1 | G122: Pridėtinės vertės mokesčio nuosavi ištekliai | H122: 89 | I122: 0.00 | J122: 0.00 | K122: 0.00 | L122: 0.00
A123: 2 | B123: 6 | C123: 2 | D123: 1 | E123: 1 | F123: 1 | G123: Pridėtinės vertės mokesčio nuosavi ištekliai | H123: 90 | I123: 0.00 | J123: 0.00 | K123: 0.00 | L123: 0.00
A124: 2 | B124: 6 | C124: 3 | G124: Bendrųjų nacionalinių pajamų nuosavi ištekliai | H124: 91 | I124: =I125 -> 0.00 | J124: 0.00 | K124: 0.00 | L124: 0.00
A125: 2 | B125: 6 | C125: 3 | D125: 1 | G125: Bendrųjų nacionalinių pajamų nuosavi ištekliai | H125: 92 | I125: 0.00 | J125: 0.00 | K125: 0.00 | L125: 0.00
A126: 2 | B126: 6 | C126: 3 | D126: 1 | E126: 1 | G126: Bendrųjų nacionalinių pajamų nuosavi ištekliai | H126: 93 | I126: 0.00 | J126: 0.00 | K126: 0.00 | L126: 0.00
A127: 2 | B127: 6 | C127: 3 | D127: 1 | E127: 1 | F127: 1 | G127: Bendrųjų nacionalinių pajamų nuosavi ištekliai | H127: 94 | I127: 0.00 | J127: 0.00 | K127: 0.00 | L127: 0.00
A128: 2 | B128: 6 | C128: 4 | G128: Biudžeto disbalansų korekcija Jungtinės Karalystės naudai | H128: 95 | I128: =I129 -> 0.00 | J128: 0.00 | K128: 0.00 | L128: 0.00
A129: 2 | B129: 6 | C129: 4 | D129: 1 | G129: Biudžeto disbalansų korekcija Jungtinės Karalystės naudai | H129: 96 | I129: 0.00 | J129: 0.00 | K129: 0.00 | L129: 0.00
A130: 2 | B130: 6 | C130: 4 | D130: 1 | E130: 1 | G130: Biudžeto disbalansų korekcija Jungtinės Karalystės naudai | H130: 97 | I130: 0.00 | J130: 0.00 | K130: 0.00 | L130: 0.00
A131: 2 | B131: 6 | C131: 4 | D131: 1 | E131: 1 | F131: 1 | G131: Biudžeto disbalansų korekcija Jungtinės Karalystės naudai | H131: 98 | I131: 0.00 | J131: 0.00 | K131: 0.00 | L131: 0.00
A132: 2 | B132: 6 | C132: 5 | G132: Su nuosavais ištekliais susijusios baudos, delspinigiai ir neigiamos palūkanos | H132: 99 | I132: =I133 -> 0.00 | J132: 0.00 | K132: 0.00 | L132: 0.00
A133: 2 | B133: 6 | C133: 5 | D133: 1 | G133: Su nuosavais ištekliais susijusios baudos, delspinigiai ir neigiamos palūkanos | H133: 100 | I133: 0.00 | J133: 0.00 | K133: 0.00 | L133: 0.00
A134: 2 | B134: 6 | C134: 5 | D134: 1 | E134: 1 | G134: Su nuosavais ištekliais susijusios baudos, delspinigiai ir neigiamos palūkanos | H134: 101 | I134: 0.00 | J134: 0.00 | K134: 0.00 | L134: 0.00
A135: 2 | B135: 6 | C135: 5 | D135: 1 | E135: 1 | F135: 1 | G135: Su nuosavais ištekliais susijusios baudos, delspinigiai ir neigiamos palūkanos | H135: 102 | I135: 0.00 | J135: 0.00 | K135: 0.00 | L135: 0.00
A136: 2 | B136: 6 | C136: 6 | G136: Neperdirbto plastiko atliekų nuosavi ištekliai | H136: 103 | I136: =I137 -> 0.00 | J136: 0.00 | K136: 0.00 | L136: 0.00
A137: 2 | B137: 6 | C137: 6 | D137: 1 | G137: Neperdirbto plastiko atliekų nuosavi ištekliai | H137: 104 | I137: 0.00 | J137: 0.00 | K137: 0.00 | L137: 0.00
A138: 2 | B138: 6 | C138: 6 | D138: 1 | E138: 1 | G138: Neperdirbto plastiko atliekų nuosavi ištekliai | H138: 105 | I138: 0.00 | J138: 0.00 | K138: 0.00 | L138: 0.00
A139: 2 | B139: 6 | C139: 6 | D139: 1 | E139: 1 | F139: 1 | G139: Neperdirbto plastiko atliekų nuosavi ištekliai | H139: 106 | I139: 0.00 | J139: 0.00 | K139: 0.00 | L139: 0.00
A140: 2 | B140: 7 | G140: Socialinės išmokos (pašalpos) | H140: 107 | I140: =SUM(I141+I146+I154) -> 0.00 | J140: =SUM(J141+J146+J154) -> 0.00 | K140: =SUM(K141+K146+K154) -> 0.00 | L140: =SUM(L141+L146+L154) -> 0.00
A141: 2 | B141: 7 | C141: 1 | G141: Socialinio draudimo išmokos (pašalpos) | H141: 108 | I141: =I142 -> 0.00 | J141: 0.00 | K141: 0.00 | L141: 0.00
A142: 2 | B142: 7 | C142: 1 | D142: 1 | G142: Socialinio draudimo išmokos (pašalpos) | H142: 109 | I142: 0.00 | J142: 0.00 | K142: 0.00 | L142: 0.00
A143: 2 | B143: 7 | C143: 1 | D143: 1 | E143: 1 | G143: Socialinio draudimo išmokos (pašalpos) | H143: 110 | I143: =SUM(I144:I145) -> 0.00 | J143: =SUM(J144:J145) -> 0.00 | K143: =SUM(K144:K145) -> 0.00 | L143: =SUM(L144:L145) -> 0.00
A144: 2 | B144: 7 | C144: 1 | D144: 1 | E144: 1 | F144: 1 | G144: Socialinio draudimo išmokos pinigais | H144: 111 | I144: 0.00 | J144: 0.00 | K144: 0.00 | L144: 0.00
A145: 2 | B145: 7 | C145: 1 | D145: 1 | E145: 1 | F145: 2 | G145: Socialinio draudimo išmokos natūra | H145: 112 | I145: 0.00 | J145: 0.00 | K145: 0.00 | L145: 0.00
A146: 2 | B146: 7 | C146: 2 | G146: Socialinė parama (socialinės paramos pašalpos) ir rentos | H146: 113 | I146: =I147 -> 0.00 | J146: 0.00 | K146: 0.00 | L146: 0.00
A147: 2 | B147: 7 | C147: 2 | D147: 1 | G147: Socialinė parama (socialinės paramos pašalpos) | H147: 114 | I147: 0.00 | J147: 0.00 | K147: 0.00 | L147: 0.00
A148: 2 | B148: 7 | C148: 2 | D148: 1 | E148: 1 | G148: Socialinė parama (socialinės paramos pašalpos) | H148: 115 | I148: =SUM(I149:I150) -> 0.00 | J148: =SUM(J149:J150) -> 0.00 | K148: =SUM(K149:K150) -> 0.00 | L148: =SUM(L149:L150) -> 0.00
A149: 2 | B149: 7 | C149: 2 | D149: 1 | E149: 1 | F149: 1 | G149: Socialinė parama pinigais | H149: 116 | I149: 0.00 | J149: 0.00 | K149: 0.00 | L149: 0.00
A150: 2 | B150: 7 | C150: 2 | D150: 1 | E150: 1 | F150: 2 | G150: Socialinė parama natūra | H150: 117 | I150: 0.00 | J150: 0.00 | K150: 0.00 | L150: 0.00
A151: 2 | B151: 7 | C151: 2 | D151: 2 | G151: Rentos | H151: 118 | I151: =I152 -> 0.00 | J151: =J152 -> 0.00 | K151: =K152 -> 0.00 | L151: =L152 -> 0.00
A152: 2 | B152: 7 | C152: 2 | D152: 2 | E152: 1 | G152: Rentos | H152: 119 | I152: =SUM(I153) -> 0.00 | J152: =SUM(J153) -> 0.00 | K152: =SUM(K153) -> 0.00 | L152: =SUM(L153) -> 0.00
A153: 2 | B153: 7 | C153: 2 | D153: 2 | E153: 1 | F153: 1 | G153: Rentos | H153: 120 | I153: 0.00 | J153: 0.00 | K153: 0.00 | L153: 0.00
A154: 2 | B154: 7 | C154: 3 | G154: Darbdavių socialinė parama | H154: 121 | I154: =I155 -> 0.00 | J154: 0.00 | K154: 0.00 | L154: 0.00
A155: 2 | B155: 7 | C155: 3 | D155: 1 | G155: Darbdavių socialinė parama | H155: 122 | I155: 0.00 | J155: 0.00 | K155: 0.00 | L155: 0.00
A156: 2 | B156: 7 | C156: 3 | D156: 1 | E156: 1 | G156: Darbdavių socialinė parama | H156: 123 | I156: =SUM(I157:I158) -> 0.00 | J156: =SUM(J157:J158) -> 0.00 | K156: =SUM(K157:K158) -> 0.00 | L156: =SUM(L157:L158) -> 0.00
A157: 2 | B157: 7 | C157: 3 | D157: 1 | E157: 1 | F157: 1 | G157: Darbdavių socialinė parama pinigais | H157: 124 | I157: 0.00 | J157: 0.00 | K157: 0.00 | L157: 0.00
A158: 2 | B158: 7 | C158: 3 | D158: 1 | E158: 1 | F158: 2 | G158: Darbdavių socialinė parama natūra | H158: 125 | I158: 0.00 | J158: 0.00 | K158: 0.00 | L158: 0.00
A159: 2 | B159: 8 | G159: Kitos išlaidos | H159: 126 | I159: =I160 -> 0.00 | J159: =J160 -> 0.00 | K159: =K160 -> 0.00 | L159: =L160 -> 0.00
A160: 2 | B160: 8 | C160: 1 | G160: Kitos išlaidos | H160: 127 | I160: =I161+I166 -> 0.00 | J160: =J161+J166 -> 0.00 | K160: =K161+K166 -> 0.00 | L160: =L161+L166 -> 0.00
A161: 2 | B161: 8 | C161: 1 | D161: 1 | G161: Kitos išlaidos einamiesiems tikslams | H161: 128 | I161: =I162 -> 0.00 | J161: =J162 -> 0.00 | K161: =K162 -> 0.00 | L161: =L162 -> 0.00
A162: 2 | B162: 8 | C162: 1 | D162: 1 | E162: 1 | G162: Kitos išlaidos einamiesiems tikslams | H162: 129 | I162: =SUM(I163:I165) -> 0.00 | J162: =SUM(J163:J165) -> 0.00 | K162: =SUM(K163:K165) -> 0.00 | L162: =SUM(L163:L165) -> 0.00
A163: 2 | B163: 8 | C163: 1 | D163: 1 | E163: 1 | F163: 1 | G163: Stipendijoms | H163: 130 | I163: 0.00 | J163: 0.00 | K163: 0.00 | L163: 0.00
A164: 2 | B164: 8 | C164: 1 | D164: 1 | E164: 1 | F164: 2 | G164: Kitos išlaidos kitiems einamiesiems tikslams | H164: 131 | I164: 0.00 | J164: 0.00 | K164: 0.00 | L164: 0.00
A165: 2 | B165: 8 | C165: 1 | D165: 1 | E165: 1 | F165: 3 | G165: Valiutos kurso įtaka | H165: 132 | I165: 0.00 | J165: 0.00 | K165: 0.00 | L165: 0.00
A166: 2 | B166: 8 | C166: 1 | D166: 2 | G166: Kitos išlaidos turtui įsigyti | H166: 133 | I166: =I167 -> 0.00 | J166: 0.00 | K166: 0.00 | L166: 0.00
A167: 2 | B167: 8 | C167: 1 | D167: 2 | E167: 1 | G167: Kitos išlaidos turtui įsigyti | H167: 134 | I167: 0.00 | J167: 0.00 | K167: 0.00 | L167: 0.00
A168: 2 | B168: 8 | C168: 1 | D168: 2 | E168: 1 | F168: 1 | G168: Kitos išlaidos turtui įsigyti | H168: 135 | I168: 0.00 | J168: 0.00 | K168: 0.00 | L168: 0.00
A169: 2 | B169: 9 | G169: Pervedamos Europos Sąjungos, kitos tarptautinės finansinės paramos, bendrojo finansavimo lėšos ir kitos bendrai finansuojamiems iš Europos Sąjungos ar kitos tarptautinės finansinės paramos lėšų projektams įgyvendinti skirtos valstybės biudžeto lėšos | H169: 136 | I169: =I170+I174 -> 0.00 | J169: =J170+J174 -> 0.00 | K169: =K170+K174 -> 0.00 | L169: =L170+L174 -> 0.00
A170: 2 | B170: 9 | C170: 1 | G170: Subsidijos iš Europos Sąjungos ir kitos tarptautinės finansinės paramos lėšų (ne valdžios sektoriui) | H170: 137 | I170: =I171 -> 0.00 | J170: 0.00 | K170: 0.00 | L170: 0.00
A171: 2 | B171: 9 | C171: 1 | D171: 1 | G171: Subsidijos iš Europos Sąjungos ir kitos tarptautinės finansinės paramos lėšų (ne valdžios sektoriui) | H171: 138 | I171: 0.00 | J171: 0.00 | K171: 0.00 | L171: 0.00
A172: 2 | B172: 9 | C172: 1 | D172: 1 | E172: 1 | G172: Subsidijos iš Europos Sąjungos ir kitos tarptautinės finansinės paramos lėšų (ne valdžios sektoriui) | H172: 139 | I172: 0.00 | J172: 0.00 | K172: 0.00 | L172: 0.00
A173: 2 | B173: 9 | C173: 1 | D173: 1 | E173: 1 | F173: 1 | G173: Subsidijos iš Europos Sąjungos ir kitos tarptautinės finansinės paramos lėšų (ne valdžios sektoriui) | H173: 140 | I173: 0.00 | J173: 0.00 | K173: 0.00 | L173: 0.00
A174: 2 | B174: 9 | C174: 2 | G174: Pervedamos Europos Sąjungos, kitos tarptautinės finansinės paramos, bendrojo finansavimo lėšos ir kitos bendrai finansuojamiems iš Europos Sąjungos ar kitos tarptautinės finansinės paramos lėšų projektams įgyvendinti skirtos valstybės biudžeto lėšos | H174: 141 | I174: =SUM(I175+I180) -> 0.00 | J174: =SUM(J175+J180) -> 0.00 | K174: =SUM(K175+K180) -> 0.00 | L174: =SUM(L175+L180) -> 0.00
A175: 2 | B175: 9 | C175: 2 | D175: 1 | G175: Pervedamos Europos Sąjungos, kitos tarptautinės finansinės paramos, bendrojo finansavimo lėšos ir kitos bendrai finansuojamiems iš Europos Sąjungos ar kitos tarptautinės finansinės paramos lėšų projektams įgyvendinti skirtos valstybės biudžeto lėšos einamiesiems tikslams | H175: 142 | I175: =I176 -> 0.00 | J175: =J176 -> 0.00 | K175: =K176 -> 0.00 | L175: =L176 -> 0.00
A176: 2 | B176: 9 | C176: 2 | D176: 1 | E176: 1 | G176: Pervedamos Europos Sąjungos, kitos tarptautinės finansinės paramos, bendrojo finansavimo lėšos ir kitos bendrai finansuojamiems iš Europos Sąjungos ar kitos tarptautinės finansinės paramos lėšų projektams įgyvendinti skirtos valstybės biudžeto lėšos einamiesiems tikslams | H176: 143 | I176: =SUM(I177:I179) -> 0.00 | J176: =SUM(J177:J179) -> 0.00 | K176: =SUM(K177:K179) -> 0.00 | L176: =SUM(L177:L179) -> 0.00
A177: 2 | B177: 9 | C177: 2 | D177: 1 | E177: 1 | F177: 1 | G177: Pervedamos Europos Sąjungos, kitos tarptautinės finansinės paramos, bendrojo finansavimo lėšos ir kitos bendrai finansuojamiems iš Europos Sąjungos ar kitos tarptautinės finansinės paramos lėšų projektams įgyvendinti skirtos valstybės biudžeto lėšos einamiesiems tikslams savivaldybėms | H177: 144 | I177: 0.00 | J177: 0.00 | K177: 0.00 | L177: 0.00
A178: 2 | B178: 9 | C178: 2 | D178: 1 | E178: 1 | F178: 2 | G178: Pervedamos Europos Sąjungos, kitos tarptautinės finansinės paramos, bendrojo finansavimo lėšos ir kitos bendrai finansuojamiems iš Europos Sąjungos ar kitos tarptautinės finansinės paramos lėšų projektams įgyvendinti skirtos valstybės biudžeto lėšos einamiesiems tikslams kitiems valdžios sektoriaus subjektams | H178: 145 | I178: 0.00 | J178: 0.00 | K178: 0.00 | L178: 0.00
A179: 2 | B179: 9 | C179: 2 | D179: 1 | E179: 1 | F179: 3 | G179: Pervedamos Europos Sąjungos, kitos tarptautinės finansinės paramos, bendrojo finansavimo lėšos ir kitos bendrai finansuojamiems iš Europos Sąjungos ar kitos tarptautinės finansinės paramos lėšų projektams įgyvendinti skirtos valstybės biudžeto lėšos einamiesiems tikslams ne valdžios sektoriui | H179: 146 | I179: 0.00 | J179: 0.00 | K179: 0.00 | L179: 0.00
A180: 2 | B180: 9 | C180: 2 | D180: 2 | G180: Pervedamos Europos Sąjungos, kitos tarptautinės finansinės paramos, bendrojo finansavimo lėšos ir kitos bendrai finansuojamiems iš Europos Sąjungos ar kitos tarptautinės finansinės paramos lėšų projektams įgyvendinti skirtos valstybės biudžeto lėšos investicijoms | H180: 147 | I180: =I181 -> 0.00 | J180: =J181 -> 0.00 | K180: =K181 -> 0.00 | L180: =L181 -> 0.00
A181: 2 | B181: 9 | C181: 2 | D181: 2 | E181: 1 | G181: Pervedamos Europos Sąjungos, kitos tarptautinės finansinės paramos, bendrojo finansavimo lėšos ir kitos bendrai finansuojamiems iš Europos Sąjungos ar kitos tarptautinės finansinės paramos lėšų projektams įgyvendinti skirtos valstybės biudžeto lėšos investicijoms | H181: 148 | I181: =SUM(I182:I184) -> 0.00 | J181: =SUM(J182:J184) -> 0.00 | K181: =SUM(K182:K184) -> 0.00 | L181: =SUM(L182:L184) -> 0.00
A182: 2 | B182: 9 | C182: 2 | D182: 2 | E182: 1 | F182: 1 | G182: Pervedamos Europos Sąjungos, kitos tarptautinės finansinės paramos, bendrojo finansavimo lėšos ir kitos bendrai finansuojamiems iš Europos Sąjungos ar kitos tarptautinės finansinės paramos lėšų projektams įgyvendinti skirtos valstybės biudžeto lėšos investicijoms, skirtoms savivaldybėms | H182: 149 | I182: 0.00 | J182: 0.00 | K182: 0.00 | L182: 0.00
A183: 2 | B183: 9 | C183: 2 | D183: 2 | E183: 1 | F183: 2 | G183: Pervedamos Europos Sąjungos, kitos tarptautinės finansinės paramos, bendrojo finansavimo lėšos ir kitos bendrai finansuojamiems iš Europos Sąjungos ar kitos tarptautinės finansinės paramos lėšų projektams įgyvendinti skirtos valstybės biudžeto lėšos investicijoms kitiems valdžios sektoriaus subjektams | H183: 150 | I183: 0.00 | J183: 0.00 | K183: 0.00 | L183: 0.00
A184: 2 | B184: 9 | C184: 2 | D184: 2 | E184: 1 | F184: 3 | G184: Pervedamos Europos Sąjungos, kitos tarptautinės finansinės paramos, bendrojo finansavimo lėšos ir kitos bendrai finansuojamiems iš Europos Sąjungos ar kitos tarptautinės finansinės paramos lėšų projektams įgyvendinti skirtos valstybės biudžeto lėšos investicijoms ne valdžios sektoriui | H184: 151 | I184: 0.00 | J184: 0.00 | K184: 0.00 | L184: 0.00
A185: 3 | G185: MATERIALIOJO IR NEMATERIALIOJO TURTO ĮSIGIJIMO, FINANSINIO TURTO PADIDĖJIMO IR FINANSINIŲ ĮSIPAREIGOJIMŲ VYKDYMO IŠLAIDOS | H185: 152 | I185: =SUM(I186+I239+I304) -> 0.00 | J185: =SUM(J186+J239+J304) -> 0.00 | K185: =SUM(K186+K239+K304) -> 0.00 | L185: =SUM(L186+L239+L304) -> 0.00
A186: 3 | B186: 1 | G186: Materialiojo ir nematerialiojo turto įsigijimo išlaidos | H186: 153 | I186: =SUM(I187+I210+I217+I229+I233) -> 0.00 | J186: =SUM(J187+J210+J217+J229+J233) -> 0.00 | K186: =SUM(K187+K210+K217+K229+K233) -> 0.00 | L186: =SUM(L187+L210+L217+L229+L233) -> 0.00
A187: 3 | B187: 1 | C187: 1 | G187: Ilgalaikio materialiojo turto kūrimo ir įsigijimo išlaidos | H187: 154 | I187: =SUM(I188+I191+I196+I202+I207) -> 0.00 | J187: =SUM(J188+J191+J196+J202+J207) -> 0.00 | K187: =SUM(K188+K191+K196+K202+K207) -> 0.00 | L187: =SUM(L188+L191+L196+L202+L207) -> 0.00
A188: 3 | B188: 1 | C188: 1 | D188: 1 | G188: Žemės įsigijimo išlaidos | H188: 155 | I188: =I189 -> 0.00 | J188: 0.00 | K188: 0.00 | L188: 0.00
A189: 3 | B189: 1 | C189: 1 | D189: 1 | E189: 1 | G189: Žemės įsigijimo išlaidos | H189: 156 | I189: 0.00 | J189: 0.00 | K189: 0.00 | L189: 0.00
A190: 3 | B190: 1 | C190: 1 | D190: 1 | E190: 1 | F190: 1 | G190: Žemės įsigijimo išlaidos | H190: 157 | I190: 0.00 | J190: 0.00 | K190: 0.00 | L190: 0.00
A191: 3 | B191: 1 | C191: 1 | D191: 2 | G191: Pastatų ir statinių įsigijimo išlaidos | H191: 158 | I191: =I192 -> 0.00 | J191: =J192 -> 0.00 | K191: =K192 -> 0.00 | L191: =L192 -> 0.00
A192: 3 | B192: 1 | C192: 1 | D192: 2 | E192: 1 | G192: Pastatų ir statinių įsigijimo išlaidos | H192: 159 | I192: =SUM(I193:I195) -> 0.00 | J192: =SUM(J193:J195) -> 0.00 | K192: =SUM(K193:K195) -> 0.00 | L192: =SUM(L193:L195) -> 0.00
A193: 3 | B193: 1 | C193: 1 | D193: 2 | E193: 1 | F193: 1 | G193: Gyvenamųjų namų įsigijimo išlaidos | H193: 160 | I193: 0.00 | J193: 0.00 | K193: 0.00 | L193: 0.00
A194: 3 | B194: 1 | C194: 1 | D194: 2 | E194: 1 | F194: 2 | G194: Negyvenamųjų pastatų įsigijimo išlaidos | H194: 161 | I194: 0.00 | J194: 0.00 | K194: 0.00 | L194: 0.00
A195: 3 | B195: 1 | C195: 1 | D195: 2 | E195: 1 | F195: 3 | G195: Infrastruktūros ir kitų statinių įsigijimo išlaidos | H195: 162 | I195: 0.00 | J195: 0.00 | K195: 0.00 | L195: 0.00
A196: 3 | B196: 1 | C196: 1 | D196: 3 | G196: Mašinų ir įrenginių įsigijimo išlaidos | H196: 163 | I196: =I197 -> 0.00 | J196: =J197 -> 0.00 | K196: =K197 -> 0.00 | L196: =L197 -> 0.00
A197: 3 | B197: 1 | C197: 1 | D197: 3 | E197: 1 | G197: Mašinų ir įrenginių įsigijimo išlaidos | H197: 164 | I197: =SUM(I198:I201) -> 0.00 | J197: =SUM(J198:J201) -> 0.00 | K197: =SUM(K198:K201) -> 0.00 | L197: =SUM(L198:L201) -> 0.00
A198: 3 | B198: 1 | C198: 1 | D198: 3 | E198: 1 | F198: 1 | G198: Transporto priemonių įsigijimo išlaidos | H198: 165 | I198: 0.00 | J198: 0.00 | K198: 0.00 | L198: 0.00
A199: 3 | B199: 1 | C199: 1 | D199: 3 | E199: 1 | F199: 2 | G199: Kitų mašinų ir įrenginių įsigijimo išlaidos | H199: 166 | I199: 0.00 | J199: 0.00 | K199: 0.00 | L199: 0.00
A200: 3 | B200: 1 | C200: 1 | D200: 3 | E200: 1 | F200: 3 | G200: Ginklų ir karinės įrangos įsigijimo išlaidos | H200: 167 | I200: 0.00 | J200: 0.00 | K200: 0.00 | L200: 0.00
A201: 3 | B201: 1 | C201: 1 | D201: 3 | E201: 1 | F201: 4 | G201: Kompiuterinės techninės ir elektroninių ryšių įrangos įsigijimo išlaidos | H201: 168 | I201: 0.00 | J201: 0.00 | K201: 0.00 | L201: 0.00
A202: 3 | B202: 1 | C202: 1 | D202: 4 | G202: Kultūros ir kitų vertybių įsigijimo išlaidos | H202: 169 | I202: =I203 -> 0.00 | J202: =J203 -> 0.00 | K202: =K203 -> 0.00 | L202: =L203 -> 0.00
A203: 3 | B203: 1 | C203: 1 | D203: 4 | E203: 1 | G203: Kultūros ir kitų vertybių įsigijimo išlaidos | H203: 170 | I203: =SUM(I204:I206) -> 0.00 | J203: =SUM(J204:J206) -> 0.00 | K203: =SUM(K204:K206) -> 0.00 | L203: =SUM(L204:L206) -> 0.00
A204: 3 | B204: 1 | C204: 1 | D204: 4 | E204: 1 | F204: 1 | G204: Muziejinių vertybių įsigijimo išlaidos | H204: 171 | I204: 0.00 | J204: 0.00 | K204: 0.00 | L204: 0.00
A205: 3 | B205: 1 | C205: 1 | D205: 4 | E205: 1 | F205: 2 | G205: Antikvarinių ir kitų meno kūrinių įsigijimo išlaidos | H205: 172 | I205: 0.00 | J205: 0.00 | K205: 0.00 | L205: 0.00
A206: 3 | B206: 1 | C206: 1 | D206: 4 | E206: 1 | F206: 3 | G206: Kitų vertybių įsigijimo išlaidos | H206: 173 | I206: 0.00 | J206: 0.00 | K206: 0.00 | L206: 0.00
A207: 3 | B207: 1 | C207: 1 | D207: 5 | G207: Kito ilgalaikio materialiojo turto įsigijimo išlaidos | H207: 174 | I207: =I208 -> 0.00 | J207: 0.00 | K207: 0.00 | L207: 0.00
A208: 3 | B208: 1 | C208: 1 | D208: 5 | E208: 1 | G208: Kito ilgalaikio materialiojo turto įsigijimo išlaidos | H208: 175 | I208: 0.00 | J208: 0.00 | K208: 0.00 | L208: 0.00
... 166 more rows

Sheet SUKAUPTOS FS
A2: Gargždų vaikų ir jaunimo laisvalaikio centras
A3: (Įstaigos pavadinimas)
A6: Klaipėdos raj. savivaldybės administracijos (Biudžeto ir ekonomikos skyriui)
A9: PAŽYMA DĖL SUKAUPTŲ FINANSAVIMO SUMŲ
C11: 2025 Nr.______
A14: Ataskaitinis laikotarpis: | C14: 2025-12-31
A15: Sukaupta finansavimo pajamų suma ataskaitinio laikotarpio pabaigoje:
A16: Eil. Nr. | B16: Finansavimo šaltinis | C16: Finansavimo sumų paskirtis | F16: Valstybės funkcija | G16: Programa | H16: Suma
A17: 1 | B17: SB | C17: Kitoms išlaidoms | H17: 9.08
A18: 2 | B18: SB | C18: Atidėjiniai | H18: 2784.80
A19: 3 | B19: SB | C19: Atostogų rezervas, iš jų: | H19: 48274.86
A20: 4 | B20: SB | C20: socialinio draudimo įmokos | H20: 785.34
B21: Iš viso | H21: =0+H17+H18+H19 -> 51068.74
B22: Viso | H22: =+H21 -> 51068.74
A25: Direktorė | E25: Skaidra Karalienė
E26: (Parašas) (Vardas ir pavardė)
A29: Biudžetinių įstaigų centralizuotos apskaitos skyriaus vedėja | E29: Viktorija Kaprizkina
E30: (Parašas) (Vardas ir pavardė)

Sheet gautos fs
A2: Vaikų ir jaunimo laisvalaikio centras
A3: (Įstaigos pavadinimas)
A6: Klaipėdos raj. savivaldybės administracijos (Biudžeto ir ekonomikos skyriui)
A9: PAŽYMA DĖL GAUTINŲ, GAUTŲ IR GRĄŽINTINŲ FINANSAVIMO SUMŲ
C11: 2025 Nr.______
A14: Ataskaitinis laikotarpis: | C14: 2025-12-31
A15: Per ataskaitinį laikotarpį gautos finansavimo sumos:
A16: Eil. Nr. | B16: Finansavimo šaltinis | C16: Finansavimo sumų paskirtis | F16: Valstybės funkcija | G16: Programa | H16: Suma
A17: 1 | B17: ML | C17: Kitoms išlaidoms | F17: 09.05.01.01. | G17: 1 | H17: 49900.00
B18: Iš viso | F18: 09.05.01.01. | G18: 1 | H18: =0+H17 -> 49900.00
A19: 2 | B19: SB | C19: Ilgalaikiam turtui įsigyti | F19: 09.05.01.01. | G19: 1 | H19: 6400.00
A20: 3 | B20: SB | C20: Kitoms išlaidoms | F20: 09.05.01.01. | G20: 1 | H20: 379172.39
B21: Iš viso | F21: 09.05.01.01. | G21: 1 | H21: =0+H19+H20 -> 385572.39
A22: 4 | B22: VBD | C22: Kitoms išlaidoms | F22: 09.05.01.01. | G22: 1 | H22: 2800.00
B23: Iš viso | F23: 09.05.01.01. | G23: 1 | H23: =0+H22 -> 2800.00
B24: Viso | H24: =+H18+H21+H23 -> 438272.39
A27: Direktorė | E27: Skaidra Karalienė
E28: (Parašas) (Vardas ir pavardė)
A31: Biudžetinių įstaigų centralizuotos apskaitos skyriaus vedėja | E31: Viktorija Kaprizkina
E32: (Parašas) (Vardas ir pavardė)

Sheet gautos fs pagal š
A2: Vaikų ir jaunimo laisvalaikio centras
A3: (Įstaigos pavadinimas)
A6: Klaipėdos raj. savivaldybės administracijos (Biudžeto ir ekonomikos skyriui)
A9: PAŽYMA DĖL GAUTINŲ, GAUTŲ IR GRĄŽINTINŲ FINANSAVIMO SUMŲ
C11: 2025 Nr.______
A14: Ataskaitinis laikotarpis: | C14: 2025-12-31
A15: Per ataskaitinį laikotarpį gautos finansavimo sumos:
A16: Eil. Nr. | B16: Finansavimo šaltinis | C16: Finansavimo sumų paskirtis | F16: Valstybės funkcija | G16: Programa | H16: Suma
A17: 1 | B17: ML | C17: Kitoms išlaidoms | H17: 49900.00
B18: Iš viso | H18: =0+H17 -> 49900.00
A19: 2 | B19: SB | C19: Ilgalaikiam turtui įsigyti | H19: 6400.00
A20: 3 | B20: SB | C20: Kitoms išlaidoms | H20: 379172.39
B21: Iš viso | H21: =0+H19+H20 -> 385572.39
A22: 4 | B22: VBD | C22: Kitoms išlaidoms | H22: 2800.00
B23: Iš viso | H23: =0+H22 -> 2800.00
B24: Viso | H24: =+H18+H21+H23 -> 438272.39
A27: Direktorė | E27: Skaidra Karalienė
E28: (Parašas) (Vardas ir pavardė)
A31: Biudžetinių įstaigų centralizuotos apskaitos skyriaus vedėja | E31: Viktorija Kaprizkina
E32: (Parašas) (Vardas ir pavardė)

Sheet pažyma apie pajamas
J1: P A T V I R T I N T A Klaipėdos rajono savivaldybės administracijos direktoriaus 2023 m. kovo 21 d. įsakymu Nr.(5.1.1) AV - 747
B2: GARGŽDŲ VAIKŲ IR JAUNIMO LAISVALAIKIO CENTRAS
B3: (Įstaigos pavadinimas)
B5: 195174984, Laugalių g. 6, Gargždai, Klaipėdos r.
B6: (Registracijos kodas ir buveinės adresas)
J8: Metinė
A9: PAŽYMA APIE PAJAMAS UŽ PASLAUGAS IR NUOMĄ 2025M. GRUODŽIO MĖN. 31D.
K12: (Eur., euro cnt.)
A13: Pavadinimas | E13: Likutis metų pražioje | F13: Patvirtinta įmokų suma, įskaitant patikslinimą | H13: Faktinės įmokos į biudžetą ataskaitinį laikotarpį | I13: Gauti biudžeto asignavimai per ataskaitinį laikotarpį | J13: Panaudoti asignavimai | K13: Negauti biudžeto asignavimai per ataskaitinį laikotarpį
F15: metams | G15: ataskaitiniam laikotarpiui
A17: Biudžetinių įstaigų pajamų už prekes ir paslaugas įmokos | J17: =I17 -> 0.00 | K17: =(E17+H17-I17) -> 0.00
A18: Įmokos už išlaikymą švietimo, socialinės apsaugos ir kitose įstaigose | F18: 26000.00 | G18: 26000.00 | H18: =16955+150+7170 -> 24275.00 | I18: =4072.71+7683.89+2411.5+10106.9 -> 24275.00 | J18: =I18 -> 24275.00 | K18: =(E18+H18-I18) -> 0.00
A19: Pajamų už ilgalaikio ir trumpalaikio materialiojo turto nuomą įmokos | F19: 800.00 | G19: 800.00 | J19: =I19 -> 0.00 | K19: =(E19+H19-I19) -> 0.00
A20: Pajamų už socialinio būsto paslaugas įmokos | J20: =I20 -> 0.00 | K20: =(E20+H20-I20) -> 0.00
A21: Pajamų už infrastruktūros plėtrą įmokos, iš jų: | E21: =E22+E23 -> 0.00 | H21: =H22+H23 -> 0.00 | I21: =I22+I23 -> 0.00 | J21: =J22+J23 -> 0.00 | K21: =K22+K23 -> 0.00
A22: Pajamų už prioritetinės infrastruktūros plėtrą įmokos | F22: X | G22: X | J22: =I22 -> 0.00 | K22: =(E22+H22-I22) -> 0.00
A23: Pajamų už neprioritetinės infrastruktūros plėtrą įmokos | F23: X | G23: X | J23: =I23 -> 0.00 | K23: =(E23+H23-I23) -> 0.00
A24: Pajamos iš viso | E24: =E17+E18+E19+E20+E21 -> 0.00 | F24: =(F17+F18+F19+F20+F21) -> 26800.00 | G24: =(G17+G18+G19+G20+G21) -> 26800.00 | H24: =(H17+H18+H19+H20+H21) -> 24275.00 | I24: =(I17+I18+I19+I20+I21) -> 24275.00 | J24: =(J17+J18+J19+J20+J21) -> 24275.00 | K24: X
A25: Likutis ataskaitinio laikotarpio pabaigoje, iš viso | E25: X | F25: X | G25: X | H25: X | I25: X | J25: X | K25: =(K17+K18+K19+K21+K20) -> 0.00
A28: Direktorė | J28: Skaidra Karalienė
H29: (parašas)
A31: Biudžetinių įstaigų centralizuotos apskaitos skyriaus vedėja | J31: Viktorija Kaprizkina
H32: (parašas)
A33: Buhalterė Erika Venckuvienė, el. paštas erika.venckuviene@krcb.lt, tel. nr., +37065949798
A34: (ataskaitos rengėjas, tel. Nr.)

Sheet S7
F2: Informacijos, reikalingos Lietuvos Respublikos savivaldybių iždų
F3: finansinėms ataskaitoms sudaryti,
F4: pateikimo taisyklių
F5: 7 priedas
D7: GARGŽDŲ VAIKŲ IR JAUNIMO LAISVALAIKIO CENTRAS | H7: 195174984
B9: SAVIVALDYBĖS BIUDŽETINIŲ ĮSTAIGŲ PAJAMŲ ĮMOKŲ ATASKAITA UŽ 2025 METŲ IV KETVIRTĮ
E10: 2025 12 31
E12: Gargždai
H14: (Eur., euro cnt.)
B15: Didžiosios knygos sąskaitos numeris | C15: Didžiosios knygos sąskaitos pavadinimas | D15: Sukauptos gautinos iš savivaldybės iždo sumos
D17: Laikotarpio pradžios likutis | E17: Pervesta į iždą grąžintinų iš iždo sumų | F17: Gauta iš iždo sumų | G17: Grąžintinų sumų pokytis | H17: Laikotarpio pabaigos likutis (3+4-5-6)
B19: 1 | C19: 2 | D19: 3 | E19: 4 | F19: 5 | G19: 6 | H19: 7
B20: 741 | C20: Apskaičiuotos prekių, turto ir paslaugų pardavimo pajamos | D20: 2936.90 | E20: 7170.00 | F20: 10106.90 | G20: 0.00 | H20: =SUM(D20+E20-F20) -> 0.00
C23: IŠ VISO: | D23: =SUM(D20:D22) -> 2936.90 | E23: =SUM(E20:E22) -> 7170.00 | F23: =SUM(F20:F22) -> 10106.90 | G23: 0.00 | H23: =SUM(H20:H21) -> 0.00
B26: Direktorė | G26: Skaidra Karalienė
B27: (vadovo ar jo įgalioto asmens pareigos) | E27: (parašas) | G27: (vardas ir pavardė)
B28: Biudžetinių įstaigų centralizuotos apskaitos skyriaus vedėja | G28: Viktorija Kaprizkina
B29: (vyriausiojo buhalterio (buhalterio) ar jo įgalioto asmens pareigos) | E29: (parašas) | G29: (vardas ir pavardė)
B32: Parengė : buhalterė Erika Venckuvienė, el. paštas erika.venckuviene@krcb.lt, tel. nr. +37065949798

Sheet 9 priedas
H1: Valdžios sektoriaus subjektų apskaitos duomenų
H2: teikimo Finansų ministerijai ir skelbimo taisyklių
H3: 9 priedas
A5: (Mokėtinų sumų ataskaitos forma)
A6: Gargždų vaikų ir jaunimo laisvalaikio centras, 195174984
A7: (įstaigos pavadinimas, kodas Juridinių asmenų registre, adresas)
A9: MOKĖTINŲ SUMŲ
A11: 2025 m. gruodžio mėn. 31 d.
A12: 4 ketvirtis
A13: (metinė, ketvirtinė)
A15: ATASKAITA
A16: 2026.01.09 Nr.________________
G17: (data)
K19: Kodas
J20: Ministerijos / Savivaldybės
J21: Departamento
J22: Įstaigos | K22: 195174984
K24: (Eurais,ct)
A25: Išlaidų ekonominės klasifikacijos kodas | G25: Išlaidų pavadinimas | H25: Eil.Nr. | I25: Mokėtinos sumos
I26: biudžeto lėšos
I27: likutis metų pradžioje | J27: likutis ataskaitinio laikotarpio pabaigoje
J28: iš viso | K28: iš jų ilgalaikių įsiskolinimų likutis
A29: 1 | G29: 2 | H29: 3 | I29: 4 | J29: 5 | K29: 6
A30: 2 | G30: IŠLAIDOS | H30: 1 | I30: =I31+I37+I39+I42+I47+I59+I66+I75+I81 -> 127.29 | J30: =J31+J37+J39+J42+J47+J59+J66+J75+J81 -> 9.08 | K30: =K31+K37+K39+K42+K47+K59+K66+K75+K81 -> 0.00
A31: 2 | B31: 1 | G31: Darbo užmokestis ir socialinis draudimas | H31: 2 | I31: =I32+I36 -> 0.00 | J31: =J32+J36 -> 0.00 | K31: =K32+K36 -> 0.00
A32: 2 | B32: 1 | C32: 1 | G32: Darbo užmokestis | H32: 3 | I32: =I33+I35 -> 0.00 | J32: =J33+J35 -> 0.00 | K32: =K33+K35 -> 0.00
A33: 2 | B33: 1 | C33: 1 | D33: 1 | E33: 1 | F33: 1 | G33: Darbo užmokestis pinigais | H33: 4
G34: iš jų: gyventojų pajamų mokestis | H34: 5
A35: 2 | B35: 1 | C35: 1 | D35: 1 | E35: 2 | F35: 1 | G35: Pajamos natūra | H35: 6
A36: 2 | B36: 1 | C36: 2 | G36: Socialinio draudimo įmokos | H36: 7
A37: 2 | B37: 2 | G37: Prekių ir paslaugų įsigijimo išlaidos | H37: 8 | I37: =I38 -> 127.29 | J37: =J38 -> 9.08 | K37: =K38 -> 0.00
A38: 2 | B38: 2 | C38: 1 | G38: Prekių ir paslaugų įsigijimo išlaidos | H38: 9 | I38: 127.29 | J38: 9.08
A39: 2 | B39: 3 | G39: Palūkanos | H39: 10 | I39: =I40+I41 -> 0.00 | J39: =J40+J41 -> 0.00 | K39: =K40+K41 -> 0.00
A40: 2 | B40: 3 | C40: 1 | G40: Palūkanos | H40: 11
A41: 2 | B41: 3 | C41: 2 | G41: Žemės nuoma | H41: 12
A42: 2 | B42: 4 | G42: Subsidijos | H42: 13 | I42: =I43 -> 0.00 | J42: =J43 -> 0.00 | K42: =K43 -> 0.00
A43: 2 | B43: 4 | C43: 1 | G43: Subsidijos iš biudžeto lėšų | H43: 14 | I43: =I44+I45+I46 -> 0.00 | J43: =J44+J45+J46 -> 0.00 | K43: =K44+K45+K46 -> 0.00
A44: 2 | B44: 4 | C44: 1 | D44: 1 | E44: 1 | F44: 1 | G44: Subsidijos importui | H44: 15
A45: 2 | B45: 4 | C45: 1 | D45: 1 | E45: 1 | F45: 2 | G45: Subsidijos gaminiams | H45: 16
A46: 2 | B46: 4 | C46: 1 | D46: 1 | E46: 1 | F46: 3 | G46: Subsidijos gamybai | H46: 17
A47: 2 | B47: 5 | G47: Dotacijos | H47: 18 | I47: =I48+I51+I54 -> 0.00 | J47: =J48+J51+J54 -> 0.00 | K47: =K48+K51+K54 -> 0.00
A48: 2 | B48: 5 | C48: 1 | G48: Dotacijos užsienio valstybėms | H48: 19 | I48: =I49+I50 -> 0.00 | J48: =J49+J50 -> 0.00 | K48: =K49+K50 -> 0.00
A49: 2 | B49: 5 | C49: 1 | D49: 1 | E49: 1 | F49: 1 | G49: Dotacijos užsienio valstybėms einamiesiems tikslams | H49: 20
A50: 2 | B50: 5 | C50: 1 | D50: 1 | E50: 1 | F50: 2 | G50: Dotacijos užsienio valstybėms turtui įsigyti | H50: 21
A51: 2 | B51: 5 | C51: 2 | G51: Dotacijos tarptautinėms organizacijoms | H51: 22 | I51: =I52+I53 -> 0.00 | J51: =J52+J53 -> 0.00 | K51: =K52+K53 -> 0.00
A52: 2 | B52: 5 | C52: 2 | D52: 1 | E52: 1 | F52: 1 | G52: Dotacijos tarptautinėms organizacijoms einamiesiems tikslams | H52: 23
A53: 2 | B53: 5 | C53: 2 | D53: 1 | E53: 1 | F53: 2 | G53: Dotacijos tarptautinėms organizacijoms turtui įsigyti | H53: 24
A54: 2 | B54: 5 | C54: 3 | G54: Dotacijos kitiems valdžios sektoriaus subjektams | H54: 25 | I54: =I55+I56+I57+I58 -> 0.00 | J54: =J55+J56+J57+J58 -> 0.00 | K54: =K55+K56+K57+K58 -> 0.00
A55: 2 | B55: 5 | C55: 3 | D55: 1 | E55: 1 | F55: 1 | G55: Dotacijos kitiems valdžios sektoriaus subjektams einamiesiems tikslams | H55: 26
A56: 2 | B56: 5 | C56: 3 | D56: 1 | E56: 1 | F56: 2 | G56: Dotacijos savivaldybėms einamiesiems tikslams | H56: 27
A57: 2 | B57: 5 | C57: 3 | D57: 2 | E57: 1 | F57: 1 | G57: Dotacijos kitiems valdžios sektoriaus subjektams turtui įsigyti | H57: 28
A58: 2 | B58: 5 | C58: 3 | D58: 2 | E58: 1 | F58: 2 | G58: Dotacijos savivaldybėms turtui įsigyti | H58: 29
A59: 2 | B59: 6 | G59: Įmokos į Europos Sąjungos biudžetą | H59: 30 | I59: =I60+I61+I62+I63+I64+I65 -> 0.00 | J59: =J60+J61+J62+J63+J64+J65 -> 0.00 | K59: =K60+K61+K62+K63+K64+K65 -> 0.00
A60: 2 | B60: 6 | C60: 1 | G60: Tradiciniai nuosavi ištekliai | H60: 31
A61: 2 | B61: 6 | C61: 2 | G61: Pridėtinės vertės mokesčio nuosavi ištekliai | H61: 32
A62: 2 | B62: 6 | C62: 3 | G62: Bendrųjų nacionalinių pajamų nuosavi ištekliai | H62: 33
A63: 2 | B63: 6 | C63: 4 | G63: Biudžeto disbalansų korekcija Jungtinės Karalystės naudai | H63: 34
A64: 2 | B64: 6 | C64: 5 | G64: Su nuosavais ištekliais susijusios baudos, delspinigiai ir neigiamos palūkanos | H64: 35
A65: 2 | B65: 6 | C65: 6 | G65: Neperdirbto plastiko atliekų nuosavi ištekliai | H65: 36
A66: 2 | B66: 7 | G66: Socialinės išmokos (pašalpos) | H66: 37 | I66: =I67+I70+I74 -> 0.00 | J66: =J67+J70+J74 -> 0.00 | K66: =K67+K70+K74 -> 0.00
A67: 2 | B67: 7 | C67: 1 | G67: Socialinio draudimo išmokos (pašalpos) | H67: 38 | I67: =I68+I69 -> 0.00 | J67: =J68+J69 -> 0.00 | K67: =K68+K69 -> 0.00
A68: 2 | B68: 7 | C68: 1 | D68: 1 | E68: 1 | F68: 1 | G68: Socialinio draudimo išmokos pinigais | H68: 39
A69: 2 | B69: 7 | C69: 1 | D69: 1 | E69: 1 | F69: 2 | G69: Socialinio draudimo išmokos natūra | H69: 40
A70: 2 | B70: 7 | C70: 2 | G70: Socialinė parama (soc. paramos pašalpos) ir rentos | H70: 41 | I70: =I71+I72+I73 -> 0.00 | J70: =J71+J72+J73 -> 0.00 | K70: =K71+K72+K73 -> 0.00
A71: 2 | B71: 7 | C71: 2 | D71: 1 | E71: 1 | F71: 1 | G71: Socialinė parama pinigais | H71: 42
A72: 2 | B72: 7 | C72: 2 | D72: 1 | E72: 1 | F72: 2 | G72: Socialinė parama natūra | H72: 43
A73: 2 | B73: 7 | C73: 2 | D73: 2 | E73: 1 | F73: 1 | G73: Rentos | H73: 44
A74: 2 | B74: 7 | C74: 3 | G74: Darbdavių socialinė parama | H74: 45
A75: 2 | B75: 8 | G75: Kitos išlaidos | H75: 46 | I75: =I76+I80 -> 0.00 | J75: =J76+J80 -> 0.00 | K75: =K76+K80 -> 0.00
A76: 2 | B76: 8 | C76: 1 | D76: 1 | G76: Kitos išlaidos einamiesiems tikslams | H76: 47 | I76: =I77+I78+I79 -> 0.00 | J76: =J77+J78+J79 -> 0.00 | K76: =K77+K78+K79 -> 0.00
A77: 2 | B77: 8 | C77: 1 | D77: 1 | E77: 1 | F77: 1 | G77: Stipendijos | H77: 48
A78: 2 | B78: 8 | C78: 1 | D78: 1 | E78: 1 | F78: 2 | G78: Kitos išlaidos kitiems einamiesiems tikslams | H78: 49
A79: 2 | B79: 8 | C79: 1 | D79: 1 | E79: 1 | F79: 3 | G79: Valiutos kurso įtaka | H79: 50
A80: 2 | B80: 8 | C80: 1 | D80: 2 | G80: Kitos išlaidos turtui įsigyti | H80: 51
A81: 2 | B81: 9 | G81: Pervedamos Europos Sąjungos, kitos tarptautinės finansinės paramos ir bendrojo finansavimo lėšos | H81: 52
A82: 3 | G82: MATERIALIOJO IR NEMATERIALIOJO TURTO ĮSIGIJIMO, FINANSINIO TURTO PADIDĖJIMO IR FINANSINIŲ ĮSIPAREIGOJIMŲ VYKDYMO IŠLAIDOS | H82: 53 | I82: =I83+I89+I90 -> 0.00 | J82: =J83+J89+J90 -> 0.00 | K82: =K83+K89+K90 -> 0.00
A83: 3 | B83: 1 | G83: Materialiojo ir nematerialiojo turto įsigijimo išlaidos | H83: 54 | I83: =I84+I85+I86+I87+I88 -> 0.00 | J83: =J84+J85+J86+J87+J88 -> 0.00 | K83: =K84+K85+K86+K87+K88 -> 0.00
A84: 3 | B84: 1 | C84: 1 | G84: Ilgalaikio materialiojo turto kūrimo ir įsigijimo išlaidos | H84: 55
A85: 3 | B85: 1 | C85: 2 | G85: Nematerialiojo turto kūrimo ir įsigijimo išlaidos | H85: 56
A86: 3 | B86: 1 | C86: 3 | G86: Atsargų kūrimo ir įsigijimo išlaidos | H86: 57
A87: 3 | B87: 1 | C87: 4 | G87: Ilgalaikio turto finansinės nuomos (lizingo) išlaidos | H87: 58
A88: 3 | B88: 1 | C88: 5 | G88: Biologinio turto ir žemės gelmių išteklių įsigijimo išlaidos | H88: 59
A89: 3 | B89: 2 | G89: Finansinio turto padidėjimo išlaidos (finansinio turto įsigijimo / investavimo išlaidos) | H89: 60
A90: 3 | B90: 3 | G90: Finansinių įsipareigojimų vykdymo išlaidos (grąžintos skolos) | H90: 61
G91: IŠ VISO (2 + 3) | H91: 62 | I91: =I30+I82 -> 127.29 | J91: =J30+J82 -> 9.08 | K91: =K30+K82 -> 0.00
A93: Pastaba. Ilgalaikių įsipareigojimų likutis – įsipareigojimai, kurių terminas ilgesnis negu 1 metai.
A94: Direktorė | J94: Skaidra Karalienė
A95: (įstaigos vadovo ar jo įgalioto asmens pareigų pavadinimas) | I95: (parašas) | J95: (vardas ir pavardė)
A97: Biudžetinių įstaigų centralizuotos apskaitos skyriaus vedėja | J97: Viktorija Kaprizkina
A98: (vyriausiasis buhalteris (buhalteris) / centralizuotos apskaitos įstaigos vadovo arba jo įgalioto asmens pareigų pavadinimas | I98: (parašas) | J98: (vardas ir pavardė)

Sheet 9 priedo paž
E1: P A T V I R T I N T A
E2: Klaipėdos rajono savivaldybės
E3: administracijos direktoriaus
E4: 2020 m. kovo 24 d.
E5: įsakymu Nr. (5.1.1 E) AV-659
B6: Gargždų vaikų ir jaunimo laisvalaikio centras
A7: (Įstaigos pavadinimas)
A8: PAŽYMA PRIE MOKĖTINŲ SUMŲ 2025 M. GRUODŽIO 31 D. ATASKAITOS 9 PRIEDO
F9: Metinė
G10: (Eurais)
A11: Išlaidų ekonominės klasifikacijos kodas | B11: Išlaidų pavadinimas | C11: Iš viso | D11: biudžeto lėšos
D12: savivaldybės biudžeto | E12: valstybės biudžeto specialioji tikslinė dotacija | F12: mokymo lėšos | G12: pajamos už paslaugas ir nuomą | H12: ES struktūrinių fondų/valstybės biudžeto
D15: SB | E15: VBD | F15: ML | G15: S | H15: ES/VBES
A16: 2.1.1. | B16: Darbo užmokestis | C16: =(D16+E16+F16+G16+H16) -> 0.00
B17: iš jų: | C17: 0.00
B18: gyventojų pajamų mokestis | C18: 0.00
A19: 2.1.2. | B19: Socialinio draudimo įmokos | C19: 0.00
A20: 2.2.1. | B20: Prekių ir paslaugų įsigijimo išlaidos | C20: 9.08 | D20: =(D21+D22+D23+D24+D25+D26+D27+D28+D29+D30+D31+D37+D38+D39) -> 9.08 | E20: =(E21+E22+E23+E24+E25+E26+E27+E28+E29+E30+E31+G46+E38+E39) -> 0.00 | F20: =(F21+F22+F23+F24+F25+F26+F27+F28+F29+F30+F31+F37+F38+F39) -> 0.00 | G20: =(G21+G22+G23+G24+G25+G26+G27+G28+G29+G30+G31+G37+G38+G39) -> 0.00 | H20: =(H21+H22+H23+H24+H25+H26+H27+H28+H29+H30+H31+H37+H38+H39) -> 0.00
A21: 2.2.1.1.1.1. | B21: Mitybos išlaidos | C21: 0.00
A22: 2.2.1.1.1.2. | B22: Medikamentų įsigijimo išlaidos | C22: 0.00
A23: 2.2.1.1.1.5. | B23: Ryšių paslaugų įsigijimo išlaidos | C23: 0.00
A24: 2.2.1.1.1.6. | B24: Transporto išlaikymo išlaidos | C24: 0.00
A25: 2.2.1.1.1.7. | B25: Aprangos ir patalynės įsigijimo išlaidos | C25: 0.00
A26: 2.2.1.1.1.11. | B26: Komandiruočių išlaidos | C26: 0.00
A27: 2.2.1.1.1.12. | B27: Gyvenamųjų vietovių viešojo ūkio išlaidos | C27: 0.00
A28: 2.2.1.1.1.14. | B28: Materialiojo ir nemat. turto nuomos išlaidos | C28: 0.00
A29: 2.2.1.1.1.15. | B29: Mat. turto paprastojo remonto išlaidos | C29: 0.00
A30: 2.2.1.1.1.16. | B30: Kvalifikacijos kėlimo išlaidos | C30: 0.00
A31: 2.2.1.1.1.20 | B31: Komunalinių paslaugų įsigijimo išlaidos | C31: 9.08 | D31: =(D33+D34+D35+D36) -> 9.08
B32: iš jų:
B33: šildymui | C33: =(D33+E33+F33+G33+H33) -> 0.00
B34: elektros energijai | C34: =(D34+E34+F34+G34+H34) -> 0.00
B35: vandentiekiui, kanalizacijai | C35: =(D35+E35+F35+G35+H35) -> 9.08 | D35: 9.08
B36: atliekų tvarkymui | C36: =(D36+E36+F36+G36+H36) -> 0.00
A37: 2.2.1.1.1.21. | B37: Informacinių technologijų prekių ir paslaugų įsigijimo išlaidos | C37: =(D37+G46+F37+G37+H37) -> 0.00
A38: 2.2.1.1.1.22. | B38: Reprezentacinės išlaidos | C38: =(D38+E38+F38+G38+H38) -> 0.00
A39: 2.2.1.1.1.30 | B39: Kitų prekių ir paslaugų įsigijimo išlaidos | C39: =(D39+E39+F39+G39+H39) -> 0.00
A40: 2.7.3. | B40: Darbdavių socialinė parama | C40: =(D40+E40+F40+G40+H40) -> 0.00 | D40: =D41 -> 0.00
A41: 2.7.3.1.1.1. | B41: Darbdavių socialinė parama pinigais | C41: =(D41+E41+F41+G41+H41) -> 0.00
B42: Iš viso: | C42: =(C16+C19+C20+C40+M37) -> 9.08 | D42: =(D16+D19+D20+D40) -> 9.08 | E42: =(E16+E19+E20+E40) -> 0.00 | F42: =(F16+F19+F20+F40) -> 0.00 | G42: =(G16+G19+G20+G40) -> 0.00 | H42: =(H16+H19+H20+H40) -> 0.00
A44: Direktorė | F44: Skaidra Karalienė
C45: (parašas) | F45: (vardas ir pavardė)
A47: Biudžetinių įstaigų centralizuotos apskaitos skyriaus vedėja | F47: Viktorija Kaprizkina
C48: (parašas) | F48: (vardas ir pavardė)
A51: Parengė : buhalterė Erika Venckuvienė, el. paštas erika.venckuviene@krcb.lt, tel. nr. +37065949798

Sheet tikslinės lėšos
D1: P A T V I R T I N T A
D2: Klaipėdos rajono savivaldybės
D3: administracijos direktoriaus
D4: 2007 m. sausio 2 d.
A5: Gargždų vaikų ir jaunimo laisvalaikio centras | D5: įsakymu Nr. AV-4
A6: Įstaigos pavadinimas
D7: Metinė
A9: TIKSLINIŲ LĖŠŲ GAVIMAS IR PANAUDOJIMAS 2025 M GRUODŽIO 31 D.
A11: Sudaryta 2026 m. sausio 09 d.
E12: ( eurais)
A15: Tikslinių lėšų pavadinimas | B15: Likutis metų pradžioje | C15: Gauta lėšų | D15: Panaudota lėšų | E15: Likutis laikotarpio pabaigoje
A16: Grąžinta GPM parama iš Valstybinės mokesčių inspekcijos | B16: 861.19 | D16: =447.8+3+1.19+0.01+39 -> 491.00 | E16: =SUM(B16+C16-D16) -> 370.19
A17: Projektas "Saugus laisvalaikis" | C17: 1600.00 | D17: =420+150+383.87+570.52+7.4+68.21 -> 1600.00 | E17: =SUM(B17+C17-D17) -> 0.00
A18: Projektas "Mes savo žemei" | C18: 1080.00 | D18: =320+39+71+650 -> 1080.00 | E18: =C18-D18 -> 0.00
A19: Projektas "Žygiuokime už laisvę" | C19: 1000.00 | D19: 1000.00 | E19: =C19-D19 -> 0.00
A20: Projektas "Mažosios lietuvos raštai" | C20: 600.00 | D20: 600.00 | E20: =C20-D20 -> 0.00
A21: Projektas "Žvejojam medituojam" | C21: 1000.00 | D21: 1000.00 | E21: =SUM(B21+C21-D21) -> 0.00
A22: Gautos lėšos už stovyklą, tėvų įnašai | C22: 5952.00 | D22: =115.54+700+125.12+300+46+400+30+300+925.01+1650+400+100+403.34+260.53+196.46 -> 5952.00 | E22: =SUM(B22+C22-D22) -> 0.00
A23: projektas Tarptautinis modeliavimo konkursai | C23: 2000.00 | D23: =442.35+70.17+192+163.35+291.39+260.07+144+27.2+144+226.31+39.16 -> 2000.00 | E23: =SUM(B23+C23-D23) -> 0.00
A24: Projektas "Marių vėjai" | C24: 4224.00 | D24: =3850+300+74 -> 4224.00 | E24: =SUM(B24+C24-D24) -> 0.00
A25: Projektas "Kuršių genties pėdomis" | C25: 750.00 | D25: 750.00 | E25: =SUM(B25+C25-D25) -> 0.00
A26: Valstybė finansuojams projektas "Praeities smiltys" | C26: 6433.04 | D26: 6433.04 | E26: 0.00
A27: Iš viso: | B27: =SUM(B16:B21) -> 861.19 | C27: =SUM(C16:C26) -> 24639.04 | D27: =SUM(D16:D26) -> 25130.04 | E27: =SUM(E16:E25) -> 370.19
A30: Direktorė | D30: Skaidra Karalienė
B31: (parašas) | D31: (Vardas, pavardė)
A32: Biudžetinių įstaigų centralizuotos apskaitos skyriaus vedėja | D32: Viktorija Kaprizkina
B33: (parašas) | D33: (Vardas, pavardė)

Sheet B-2
N1: Forma Nr. B-2 metinė, ketvirtinė patvirtinta Klaipėdos rajono savivaldybės administracijos direktoriaus 2020 m. balandžio 1 d. įsakymu Nr AV-724
B2: GARGŽDŲ VAIKŲ IR JAUNIMO LAISVALAIKIO CENTRAS
H3: (Įstaigos pavadinimas, kodas)
A5: IKIMOKYKLINIŲ, VISŲ TIPŲ BENDROJO UGDYMO MOKYKLŲ, KITŲ ŠVIETIMO ĮSTAIGŲ TINKLO, KONTINGENTO, ETATŲ IR IŠLAIDŲ DARBO UŽMOKESČIUI PLANO ĮVYKDYMO ATASKAITA 2025 m. GRUODŽIO mėn. 31 d.
D7: 2026-01-13
E8: (data ir numeris)
B10: Faktiškai | D10: Ataskaitinio laikotarpio
A11: Rodiklio pavadinimas | B11: metų pradžioje | C11: Laikotarpio pabaigoje | D11: Patikslintas planas | E11: Įvykdyta
A12: Įstaigų skaičius | B12: 1 | C12: 1 | D12: x | E12: x | I12: Programa: | J12: Žinių visuomenės plėtros programa | R12: 1
A13: Grupių (klasių) skaičius | B13: 15 | C13: 13 | D13: 14 | E13: 14
A14: Vaikų (mokinių) skaičius | B14: 289 | C14: 200 | D14: 259 | E14: 259 | I14: Išlaidų klasifikacija pagal valstybės funkcijas: | P14: 9 | Q14: 5 | R14: 1 | S14: 1
A16: Pareigybės | B16: Pareigybių skaičius, vnt. | H16: Ataskaitinio laikotarpio patikslintas planas, eurais | M16: Įvykdyta, eurais
B17: Patvirtinta etatų sąraše | E17: Faktiškai | H17: pareiginei algai | I17: pareiginės algos kintamajai daliai | J17: priedams ir priemokoms | K17: už darbą poilsio ir švenčių dienomis, naktinį bei viršvalandinį darbą ir budėjimą | L17: Iš viso | M17: pareiginei algai | N17: pareiginės algos kintamajai daliai | O17: priedams ir priemokoms | P17: už darbą poilsio ir švenčių dienomis, naktinį bei viršvalandinį darbą ir bud. | Q17: skatina-mosioms išmokoms | R17: kitoms išmo-koms | S17: Iš viso
B18: metų pradžioje | C18: ataskaitinio laikotarpio pabaigoje | D18: patikslintas planas (vidutinis skaičius) x | E18: metų pradžioje | F18: ataskaitinio laikotarpio pabaigoje | G18: ataskaitinio laikotarpio vidurkis (įvykdymas) x
A19: 1 | B19: 2 | C19: 3 | D19: 4 | E19: 5 | F19: 6 | G19: 7 | H19: 8 | I19: 9 | J19: 10 | K19: 11 | L19: 12 | M19: 13 | N19: 14 | O19: 15 | P19: 16 | Q19: 17 | R19: 18 | S19: 19
A20: Įstaigos vadovas, vadovo pavaduotojai ugymui | B20: 2 | C20: 2 | D20: 2 | E20: 2 | F20: 2 | G20: 2 | H20: =109112.2-232 -> 108880.20 | I20: 2248.31 | J20: 9855.25 | K20: 232.00 | L20: =SUM(H20:K20) -> 121,215.76 | M20: =109112.2-232 -> 108880.20 | N20: =1546.33+701.98 -> 2248.31 | O20: =4399.25+5456 -> 9855.25 | P20: 232.00 | S20: =SUM(M20:R20) -> 121,215.76
A21: iš jų gaunantys DU iš ML lėšų | L21: 0.00 | S21: 0.00
A22: Mokytojai, iš viso | B22: 7.94 | C22: 7.94 | D22: 7.94 | E22: 7.94 | F22: 6.93 | G22: 7.18 | H22: =164897.23-410.84 -> 164486.39 | J22: 10787.77 | K22: 410.84 | L22: 175,685.00 | M22: =164595.07-410.84 -> 164184.23 | O22: 10787.77 | P22: 410.84 | R22: 302.16 | S22: 175,685.00
A23: iš jų gaunantys DU iš ML lėšų | B23: 1.77 | C23: 1.97 | D23: 1.92 | E23: 1.77 | F23: 1.97 | G23: 1.92 | H23: 49000.00 | L23: 49,000.00 | M23: 49000.00 | S23: 49,000.00
A24: Kiti pedagoginiai darbuotojai | L24: 0.00 | S24: 0.00
A25: iš jų gaunantys DU iš ML lėšų | L25: 0.00 | S25: 0.00
A26: Pedag. švietimo pagalbos darb. | L26: 0.00 | S26: 0.00
A27: iš jų gaunantys DU iš ML lėšų | L27: 0.00 | S27: 0.00
A28: Mokinio padėjėjai | L28: 0.00 | S28: 0.00
A29: iš jų gaunantys DU iš ML lėšų | L29: 0.00 | S29: 0.00
A30: Bibliotekininkai | L30: 0.00 | S30: 0.00
A31: iš jų gaunantys DU iš ML lėšų | L31: 0.00 | S31: 0.00
A32: Kiti darbuotojai | B32: 5 | C32: 5.5 | D32: 5.38 | E32: 5 | F32: 5.5 | G32: 5.38 | H32: =94269.81-83.3 -> 94186.51 | I32: 1478.49 | J32: 5740.94 | K32: 83.30 | L32: 101,489.24 | M32: =92559.71-103.27-83.3 -> 92373.14 | N32: 1478.49 | O32: 5740.94 | P32: 83.30 | R32: 1813.37 | S32: 101,489.24
A33: iš jų pareigybės prisk. D lygiui | B33: 2 | C33: 2 | D33: 2 | E33: 2 | F33: 2 | G33: 2 | H33: 21806.38 | L33: 21,806.38 | M33: 21780.62 | R33: 25.76 | S33: 21,806.38
A34: Iš viso | B34: =SUM(B20,B24,B26,B28,B30,B32,B22) -> 14.94 | C34: 15.44 | D34: 15.32 | E34: 14.94 | F34: 14.43 | G34: 14.56 | H34: 367553.1 | I34: 3726.8 | J34: 26383.96 | K34: 726.14 | L34: 398390.00 | M34: 365437.57 | N34: 3726.8 | O34: 26383.96 | P34: 726.14 | Q34: 0 | R34: 2115.53 | S34: 398,390.00
A35: iš jų gaunantys DU iš ML lėšų | B35: =SUM(B21,B25,B27,B29,B31,B23) -> 1.77 | C35: 1.97 | D35: 1.92 | E35: 1.77 | F35: 1.97 | G35: 1.92 | H35: 49000.00 | I35: 0.00 | J35: 0.00 | K35: 0.00 | L35: =SUM(H35:K35) -> 49,000.00 | M35: =SUM(M21,M25,M27,M29,M31,M23) -> 49000.00 | N35: 0.00 | O35: 0.00 | P35: 0.00 | Q35: 0.00 | R35: 0.00 | S35: 49,000.00
A36: Pedagogai, iš viso | B36: =SUM(B20,B24,B26,B22) -> 9.94 | C36: 9.94 | D36: 9.94 | E36: 9.94 | F36: 8.93 | G36: 9.18 | H36: 273366.59 | I36: 2248.31 | J36: 20643.02 | K36: 642.84 | L36: =SUM(H36:K36) -> 296,900.76 | M36: =SUM(M20,M24,M26,M22) -> 273064.43 | N36: 2248.31 | O36: 20643.02 | P36: 642.84 | Q36: 0 | R36: 302.16 | S36: 296,900.76
A37: iš jų gaunantys DU iš ML lėšų | B37: =SUM(B21,B25,B27,B23) -> 1.77 | C37: 1.97 | D37: 1.92 | E37: 1.77 | F37: 1.97 | G37: 1.92 | H37: 49000 | I37: 0 | J37: 0 | K37: 0 | L37: =SUM(H37:K37) -> 49,000.00 | M37: 49000 | N37: 0 | O37: 0 | P37: 0 | Q37: 0 | R37: 0 | S37: 49,000.00
A38: Švietimo pagalbos darbuotojai | B38: =SUM(B26,B28,B30) -> 0 | C38: 0 | D38: 0 | E38: 0 | F38: 0 | G38: 0 | H38: 0 | I38: 0 | J38: 0 | K38: 0 | L38: =SUM(H38:K38) -> 0.00 | M38: =SUM(M26,M28,M30) -> 0 | N38: 0 | O38: 0 | P38: 0 | Q38: 0 | R38: 0 | S38: 0.00
A39: iš jų gaunantys DU iš ML lėšų | B39: =SUM(B27,B29,B31) -> 0 | C39: 0 | D39: 0 | E39: 0 | F39: 0 | G39: 0 | H39: 0 | I39: 0 | J39: 0 | K39: 0 | L39: =SUM(H39:K39) -> 0.00 | M39: 0 | N39: 0 | O39: 0 | P39: 0 | Q39: 0 | R39: 0 | S39: 0.00
A41: x (I+II+III) mėn. /3 arba (I+II+III+IV+V+VI) mėn. /6
A42: Įstaigos vadovas | K42: Skaidra Karalienė
F43: (parašas) | M43: (vardas ir pavardė)
A45: Klaipėdos rajono centralizuotos biudžetinių įstaigų buhalterinės apskaitos skyriaus vedėja | K45: Viktorija Kaprizkina
F46: (parašas) | M46: (vardas ir pavardė)

Sheet Pažyma dėl neužimtų etatų
B4: GARGŽDŲ VAIKŲ IR JAUNIMO LAISVALAIKIO CENTRAS
C5: (Įstaigos pavadinimas)
B7: PAŽYMA APIE NEUŽIMTAS PAREIGYBES 2025 M. GRUODŽIO 31 D.
C9: 2026-01-13
B10: (data)
B12: Eil.Nr. | C12: Pareigybės pavadinimas | D12: pareigybių skaičius
B13: 1. | C13: Mokytojas | D13: 1.01
B20: IŠ VISO | D20: =SUM(D13:D15,D19) -> 1.01
B23: Įstaigos vadovas | D23: Skaidra Karalienė
C24: (parašas) | D24: Vardas, pavardė
D27: `
